Workbook

Sheet EE
A1: EELDUSED MAJANDUS- JA FINANTSANALÜÜSI KOOSTAMISEL
A2: INDIKAATOR | B2: Ühik | C2: 2017 | D2: 2018 | E2: 2019 | F2: 2020 | G2: 2021 | H2: 2022 | I2: 2023 | J2: 2024 | K2: 2025 | L2: 2026 | M2: 2027 | N2: 2028 | O2: 2029 | P2: 2030 | Q2: 2031
A3: Arvestusperiood | F3: =+E3+1 -> 1 | G3: 2 | H3: 3 | I3: 4 | J3: 5 | K3: 6 | L3: 7 | M3: 8 | N3: 9 | O3: 10 | P3: 11 | Q3: 12
A4: Makromajanduslikud eeldused (Prognoosiperioodil on kasutatud Rahandusministeeriumi prognoose)
A5: THI | B5: % | C5: 0.03411658025 | D5: 0.0343 | E5: 0.02232733638 | F5: 0.02226957499 | G5: 0.0212 | H5: 0.0207 | I5: 0.0203 | J5: 0.02030001274 | K5: 0.02030001893 | L5: 0.02030002633 | M5: 0.02030003495 | N5: 0.02030004478 | O5: 0.02030005582 | P5: 0.02030006807 | Q5: 0.02030008154 | R5: Kuni 2023. aastani RM suvine majandusprognoos 2019 (valminud 09.09.2019)
A6: Käibemaks | B6: % | C6: 0.2 | D6: 0.2 | E6: 0.2 | F6: 0.2 | G6: 0.2 | H6: 0.2 | I6: 0.2 | J6: 0.2 | K6: 0.2 | L6: 0.2 | M6: 0.2 | N6: 0.2 | O6: 0.2 | P6: 0.2 | Q6: 0.2 | R6: Alates aastast 2041 on kasutatud Euroopa Liidu majanduspoliitika komitee (Economic Policy Committee) poolt kokku lepitud, kogu ELi kohta ühtsetel alustel loodud eeldusi eelarvepoliitika pikaajalise jätkusuutlikkuse hindamiseks.
A7: Sotsiaalmajanduslikud eeldused: | R7: Periood 2024-2040 toimub tasemete üleminek RM prognoosilt Ageing Report 2018 projektsioonidele.
A8: Rahvaarv vallas | B8: in | C8: =2431+1887 -> 4318 | D8: 4319 | E8: =+D8 -> 4319 | F8: 4319 | G8: 4319 | H8: 4319 | I8: 4319 | J8: 4319 | K8: 4319 | L8: 4319 | M8: 4319 | N8: 4319 | O8: 4319 | P8: 4319 | Q8: 4319
A9: Leibkonna suurus vallas | B9: in | C9: 2.15 | D9: =C9 -> 2.15 | E9: =D9 -> 2.15 | F9: 2.15 | G9: 2.15 | H9: 2.15 | I9: 2.15 | J9: 2.15 | K9: 2.15 | L9: 2.15 | M9: 2.15 | N9: 2.15 | O9: 2.15 | P9: 2.15 | Q9: 2.15
A10: Leibkonnaliikme aastane netosissetulek | B10: EUR/a | C10: =12*C11 -> 7342.8 | D10: 8130 | E10: =12*E11 -> 8311.521245 | F10: =12*F11 -> 8496.61529 | G10: 8676.743535 | H10: 8856.352126 | I10: 9036.136074 | J10: 9219.569751 | K10: 9406.727192 | L10: 9597.684002 | M10: 9792.517322 | N10: 9991.305862 | O10: 10194.12993 | P10: 10401.07146 | Q10: 10612.21406
A11: Leibkonnaliikme kuine netosissetulek | B11: EUR/kuu | C11: =STAT!K5 -> 611.9 | D11: =STAT!L5 -> 677.5 | E11: =D11*(1+E5) -> 692.6267704 | F11: =E11*(1+F5) -> 708.0512742 | G11: 723.0619612 | H11: 738.0293438 | I11: 753.0113395 | J11: 768.2974793 | K11: 783.8939327 | L11: 799.8070001 | M11: 816.0431102 | N11: 832.6088219 | O11: 849.5108274 | P11: 866.755955 | Q11: 884.3511716
A12: 4% leibkonnaliikme kuisest netosissetulekust | B12: EUR/kuu | C12: =4%*C11 -> 24.476 | D12: =4%*D11 -> 27.1 | E12: 27.70507082 | F12: 28.32205097 | G12: 28.92247845 | H12: 29.52117375 | I12: 30.12045358 | J12: 30.73189917 | K12: 31.35575731 | L12: 31.99228001 | M12: 32.64172441 | N12: 33.30435287 | O12: 33.9804331 | P12: 34.6702382 | Q12: 35.37404686
A13: Leibkonnaliikme poolt tarbitav vee kogus | B13: m3/a | F13: =+MAHUD!D7*0.365 -> 26.72297049 | G13: =+MAHUD!E7*0.365 -> 26.79017995 | H13: =+MAHUD!F7*0.365 -> 26.87495872 | I13: =+MAHUD!G7*0.365 -> 26.95500557 | J13: =+MAHUD!H7*0.365 -> 26.99866592 | K13: =+MAHUD!I7*0.365 -> 27.02279524 | L13: =+MAHUD!J7*0.365 -> 27.04659003 | M13: =+MAHUD!K7*0.365 -> 27.04659003 | N13: =+MAHUD!L7*0.365 -> 27.04659003 | O13: =+MAHUD!M7*0.365 -> 27.04659003 | P13: =+MAHUD!N7*0.365 -> 27.04659003 | Q13: =+MAHUD!O7*0.365 -> 27.39188948
A14: Leibkonnaliikme poolt tarbitava reovee kogus | B14: m3/a | F14: =+MAHUD!D8*0.365 -> 24.32082537 | G14: =+MAHUD!E8*0.365 -> 24.29478017 | H14: =+MAHUD!F8*0.365 -> 24.28011936 | I14: =+MAHUD!G8*0.365 -> 24.26751113 | J14: =+MAHUD!H8*0.365 -> 24.20527479 | K14: =+MAHUD!I8*0.365 -> 24.1372407 | L14: =+MAHUD!J8*0.365 -> 24.07239043 | M14: =+MAHUD!K8*0.365 -> 24.07239043 | N14: =+MAHUD!L8*0.365 -> 24.07239043 | O14: =+MAHUD!M8*0.365 -> 24.07239043 | P14: =+MAHUD!N8*0.365 -> 24.07239043 | Q14: =+MAHUD!O8*0.365 -> 24.07523933
A15: Eeldused laenude arvestamisel ja diskonteerimisel
A16: Laenu pikkus | B16: a | C16: 20
A17: 6 kuu EURIBOR | B17: % | E17: -0.00041
A18: Kulumi arvestuste aluseks olevad eluea pikkused vastavalt Määruse Lisale 2
A19: võrgud ja torustikud | B19: a | C19: 40
A20: reservuaarid ja mahutid | B20: a | C20: 40
A21: masinad ja seadmed | B21: a | C21: 15
A22: tootmishooned | B22: a | C22: 40
A23: AS Haljala Soojus bilanss | B23: Ühik | C23: 2019.a
A24: Käibevara | B24: EUR | C24: 672399.29
A25: Varud | B25: EUR | C25: 1336.71
A26: Lühiajalised kohustused | B26: EUR | C26: 141941.14
A27: sh laenukohustused | B27: EUR | C27: 26142
A28: Käibekapital | B28: EUR | C28: =+C24-C25-C26 -> 529121.44
A29: sh jätkusuutlikkuse tabelisse ÜVK alla | B29: EUR | C29: =+(C28+C27)*(1-38%-3%) -> 327605.4296
A30: sh sh endine Haljala | B30: EUR | C30: =+C29*50% -> 163802.7148
A31: sh sh endine Vihula | B31: EUR | C31: =+C29-C30 -> 163802.7148

Sheet Tarbimise prognoos (hidden)
A1: Leibkonna keskmine suurus: Lääne-Viru 2018 | F1: 2.15
A3: Asula nr | B3: Asula | C3: Olemasolev 2019 a põhjal | L3: peale 0 etappi | S3: peale I etappi | Z3: peale II etappi | AH3: Asula | AI3: ühikuline veetarbimine | AJ3: Arvestamata vee osakaal | AM3: uued kinnistud
C4: Elanike arv | D4: Liitunud elanike | F4: Veetarve (m3/d) | I4: Arvestamata vesi | K4: Võrku juhitav vooluhulk (m3/d) | L4: Liitunud elanike arv | M4: Veetarve (m3/d) | P4: Arvestamata vesi | R4: Võrku juhitav vooluhulk (m3/d) | S4: Liitunud elanike arv | T4: Veetarve (m3/d) | W4: Arvestamata vesi | Y4: Võrku juhitav vooluhulk (m3/d) | Z4: Liitunud elanike arv | AA4: Veetarve (m3/d) | AD4: Arvestamata vesi | AF4: Võrku juhitav vooluhulk (m3/d) | AM4: eramutega kinnistud | AP4: äri-tootmismaa kinnistud
D5: arv | E5: % | F5: Era | G5: Jur. | H5: Kokku | I5: (m3/d) | J5: % | M5: Era | N5: Jur. | O5: Kokku | P5: (m3/d) | Q5: % | T5: Era | U5: Jur. | V5: Kokku | W5: (m3/d) | X5: % | AA5: Era | AB5: Jur. | AC5: Kokku | AD5: (m3/d) | AE5: % | AJ5: Ol.olev | AK5: I etapp | AL5: II etapp | AM5: 0 etapp | AN5: I etapp | AO5: II etapp | AP5: 0 etapp | AQ5: I etapp | AR5: II etapp
A6: 1 | B6: Haljala | C6: 1049 | D6: 980 | E6: =D6/C6 -> 0.9342230696 | F6: =D6*AI6/1000 -> 74.65479452 | G6: =H6-F6 -> 8.082191781 | H6: =K6-I6 -> 82.7369863 | I6: =J6*K6 -> 3.284931507 | J6: =AJ6 -> 0.03818714568 | K6: 86.02191781 | L6: =D6+(AM6*$F$1) -> 1010.1 | M6: =L6*$AI6/1000 -> 76.94776321 | N6: =G6+AP6*$F$1*$AI6/1000 -> 8.573542214 | O6: =SUM(M6:N6) -> 85.52130542 | P6: =Q6*R6 -> 3.395478168 | Q6: =AJ6 -> 0.03818714568 | R6: =O6/(1-Q6) -> 88.91678359 | S6: =L6+(AN6*$F$1) -> 1010.1 | T6: =S6*$AI6/1000 -> 76.94776321 | U6: =N6+AQ6*$F$1*$AI6/1000 -> 8.573542214 | V6: =SUM(T6:U6) -> 85.52130542 | W6: =X6*Y6 -> 9.502367269 | X6: =AK6 -> 0.1 | Y6: =V6/(1-X6) -> 95.02367269 | Z6: =S6+(AO6*$F$1) -> 1027.3 | AA6: =Z6*$AI6/1000 -> 78.25803103 | AB6: =U6+AR6*$F$1*$AI6/1000 -> 8.573542214 | AC6: =SUM(AA6:AB6) -> 86.83157325 | AD6: =AE6*AF6 -> 9.647952583 | AE6: =AL6 -> 0.1 | AF6: =AC6/(1-AE6) -> 96.47952583 | AH6: =B6 -> Haljala | AI6: 76.17836176 | AJ6: 0.03818714568 | AK6: 0.1 | AL6: =AK6 -> 0.1 | AM6: 14 | AO6: 8 | AP6: 3
A7: 2 | B7: Võsu | C7: 418 | D7: 393 | E7: 0.9401913876 | F7: =D7*AI7/1000 -> 32.79178082 | G7: =H7-F7 -> 4.071232877 | H7: =K7-I7 -> 36.8630137 | I7: =J7*K7 -> 58.92876712 | J7: =AJ7 -> 0.6151756092 | K7: 95.79178082 | L7: =D7+(AM7*$F$1) -> 511.25 | M7: =L7*$AI7/1000 -> 42.65851894 | N7: =G7+AP7*$F$1*$AI7/1000 -> 4.071232877 | O7: 46.72975182 | P7: =Q7*R7 -> 74.70161516 | Q7: =AJ7 -> 0.6151756092 | R7: =O7/(1-Q7) -> 121.431367 | S7: =L7+(AN7*$F$1) -> 562.85 | T7: =S7*$AI7/1000 -> 46.96400467 | U7: =N7+AQ7*$F$1*$AI7/1000 -> 4.071232877 | V7: 51.03523755 | W7: =X7*Y7 -> 27.48051253 | X7: =AK7 -> 0.35 | Y7: =V7/(1-X7) -> 78.51575007 | Z7: =S7+(AO7*$F$1) -> 840.2 | AA7: =Z7*$AI7/1000 -> 70.10599045 | AB7: =U7+AR7*$F$1*$AI7/1000 -> 4.071232877 | AC7: 74.17722333 | AD7: =AE7*AF7 -> 24.72574111 | AE7: =AL7 -> 0.25 | AF7: =AC7/(1-AE7) -> 98.90296443 | AH7: =B7 -> Võsu | AI7: 83.43964586 | AJ7: 0.6151756092 | AK7: 0.35 | AL7: 0.25 | AM7: 55 | AN7: 24 | AO7: 129 | AS7: =+AI7*30*F1/1000 -> 5.381857158
A8: 3 | B8: Essu | C8: 249 | D8: 220 | E8: 0.8835341365 | F8: 14.90958904 | G8: 1.849315068 | H8: 16.75890411 | I8: 0.3643835616 | J8: 0.02128 | K8: 17.12328767 | L8: 220 | M8: 14.90958904 | N8: 1.849315068 | O8: 16.75890411 | P8: 0.3643835616 | Q8: 0.02128 | R8: 17.12328767 | S8: 220 | T8: 14.90958904 | U8: 1.849315068 | V8: 16.75890411 | W8: 1.862100457 | X8: 0.1 | Y8: 18.62100457 | Z8: 220 | AA8: 14.90958904 | AB8: 1.849315068 | AC8: 16.75890411 | AD8: 1.862100457 | AE8: 0.1 | AF8: 18.62100457 | AH8: Essu | AI8: 67.77085928 | AJ8: 0.02128 | AK8: 0.1 | AL8: =AK8 -> 0.1
A9: 4 | B9: Aaspere | C9: 231 | D9: 190 | E9: 0.8225108225 | F9: 11.1369863 | G9: 5.18630137 | H9: 16.32328767 | I9: -0.2547945205 | J9: -0.01585677749 | K9: 16.06849315 | L9: 190 | M9: 11.1369863 | N9: 5.18630137 | O9: 16.32328767 | P9: -0.2547945205 | Q9: -0.01585677749 | R9: 16.06849315 | S9: 190 | T9: 11.1369863 | U9: 5.18630137 | V9: 16.32328767 | W9: 1.81369863 | X9: 0.1 | Y9: 18.1369863 | Z9: 190 | AA9: 11.1369863 | AB9: 5.18630137 | AC9: 16.32328767 | AD9: 1.81369863 | AE9: 0.1 | AF9: 18.1369863 | AH9: Aaspere | AI9: 58.61571738 | AJ9: -0.01585677749 | AK9: 0.1 | AL9: =AK9 -> 0.1
A10: 5 | B10: Käsmu | C10: 144 | D10: 148 | E10: 1.027777778 | F10: 12.12876712 | G10: 1.810958904 | H10: 13.93972603 | I10: 20.85753425 | J10: 0.5994016219 | K10: 34.79726027 | L10: 148 | M10: 12.12876712 | N10: 1.810958904 | O10: 13.93972603 | P10: 20.85753425 | Q10: 0.5994016219 | R10: 34.79726027 | S10: 195.3 | T10: 16.00505553 | U10: 1.810958904 | V10: 17.81601444 | W10: 5.93867148 | X10: 0.25 | Y10: 23.75468592 | Z10: 195.3 | AA10: 16.00505553 | AB10: 1.810958904 | AC10: 17.81601444 | AD10: 5.93867148 | AE10: 0.25 | AF10: 23.75468592 | AH10: Käsmu | AI10: 81.95112921 | AJ10: 0.5994016219 | AK10: 0.25 | AL10: 0.25 | AN10: 22 | AS10: =+AI10*30*F1/1000 -> 5.285847834
A11: 6 | B11: Võsupere | C11: 127 | D11: 129 | E11: 1.015748031 | F11: 4.920547945 | G11: 6.791780822 | H11: 11.71232877 | I11: 3.794520548 | J11: 0.2446996466 | K11: 15.50684932 | L11: 129 | M11: 4.920547945 | N11: 7.037808219 | O11: 11.95835616 | P11: 3.87422767 | Q11: 0.2446996466 | R11: 15.83258383 | S11: 129 | T11: 4.920547945 | U11: 7.037808219 | V11: 11.95835616 | W11: 3.87422767 | X11: 0.2446996466 | Y11: 15.83258383 | Z11: 129 | AA11: 4.920547945 | AB11: 7.037808219 | AC11: 11.95835616 | AD11: 3.87422767 | AE11: 0.2446996466 | AF11: 15.83258383 | AH11: Võsupere | AI11: 38.14378252 | AJ11: 0.2446996466 | AK11: =AJ11 -> 0.2446996466 | AL11: =AK11 -> 0.2446996466 | AP11: 3
A12: 7 | B12: Vihula | C12: 85 | D12: 37 | E12: 0.4352941176 | F12: 2.049315068 | G12: 0.6630136986 | H12: 2.712328767 | I12: 1.315068493 | J12: 0.3265306122 | K12: 4.02739726 | L12: 37 | M12: 2.049315068 | N12: 0.6630136986 | O12: 2.712328767 | P12: 1.315068493 | Q12: 0.3265306122 | R12: 4.02739726 | S12: 37 | T12: 2.049315068 | U12: 0.6630136986 | V12: 2.712328767 | W12: 1.315068493 | X12: 0.3265306122 | Y12: 4.02739726 | Z12: 37 | AA12: 2.049315068 | AB12: 0.6630136986 | AC12: 2.712328767 | AD12: 1.315068493 | AE12: 0.3265306122 | AF12: 4.02739726 | AH12: Vihula | AI12: 55.38689374 | AJ12: 0.3265306122 | AK12: =AJ12 -> 0.3265306122 | AL12: 0.3265306122
A13: 8 | B13: Vergi | C13: 81 | D13: 79 | E13: 0.975308642 | F13: 6.301369863 | G13: 1.539726027 | H13: 7.84109589 | I13: 11.46849315 | J13: 0.5939273553 | K13: 19.30958904 | L13: 137.05 | M13: 10.93168025 | N13: 1.539726027 | O13: 12.47140628 | P13: 18.2408479 | Q13: 0.5939273553 | R13: 30.71225417 | S13: 137.05 | T13: 10.93168025 | U13: 1.539726027 | V13: 12.47140628 | W13: 18.2408479 | X13: 0.5939273553 | Y13: 30.71225417 | Z13: 137.05 | AA13: 10.93168025 | AB13: 1.539726027 | AC13: 12.47140628 | AD13: 18.2408479 | AE13: 0.5939273553 | AF13: 30.71225417 | AH13: Vergi | AI13: 79.76417548 | AJ13: 0.5939273553 | AK13: 0.5939273553 | AL13: 0.5939273553 | AM13: 27
C14: =SUM(C6:C13) -> 2384 | D14: =SUM(D6:D13) -> 2176 | F14: =SUM(F6:F13) -> 158.8931507 | G14: 29.99452055 | H14: 188.8876712 | I14: 99.75890411 | K14: =SUM(K6:K13) -> 288.6465753 | L14: 2382.4 | M14: 175.6831679 | N14: 30.73189838 | O14: 206.4150663 | P14: 122.4943607 | R14: =SUM(R6:R13) -> 328.9094269 | S14: 2481.3 | T14: 183.864942 | U14: 30.73189838 | V14: 214.5968404 | W14: 70.02749442 | Y14: =SUM(Y6:Y13) -> 284.6243348 | Z14: 2775.85 | AA14: 208.3171956 | AB14: 30.73189838 | AC14: 239.049094 | AD14: 67.41830832 | AF14: =SUM(AF6:AF13) -> 306.4674023 | AM14: =SUM(AM6:AM13) -> 96 | AN14: =SUM(AN6:AN13) -> 46 | AO14: 137 | AP14: 6 | AQ14: 0 | AR14: 0
A16: Asula nr | B16: Asula | C16: Olemasolev 2019 a põhjal | L16: peale 0 etappi | S16: peale I etappi | Z16: peale II etappi | AH16: Asula | AI16: ühikuline reoveekogus | AJ16: Infiltratsioon | AM16: uued kinnistud
C17: Elanike arv | D17: Liitunud elanike | F17: Reoveekogus (m3/d) | I17: Infiltratsioon* | K17: Puhastile juhitav vooluhulk (m3/d)* | L17: Liitunud elanike arv | M17: Reoveekogus (m3/d) | P17: Infiltratsioon | R17: Puhastile juhitav vooluhulk (m3/d) | S17: Liitunud elanike arv | T17: Reoveekogus (m3/d) | W17: Infiltratsioon | Y17: Puhastile juhitav vooluhulk (m3/d) | Z17: Liitunud elanike arv | AA17: Reoveekogus (m3/d) | AD17: Infiltratsioon | AF17: Puhastile juhitav vooluhulk (m3/d) | AM17: eramutega kinnistud | AP17: äri-tootmismaa kinnistud
D18: arv | E18: % | F18: Era | G18: Jur. | H18: Kokku | I18: (m3/d) | J18: % | M18: Era | N18: Jur. | O18: Kokku | P18: (m3/d) | Q18: % | T18: Era | U18: Jur. | V18: Kokku | W18: (m3/d) | X18: % | AA18: Era | AB18: Jur. | AC18: Kokku | AD18: (m3/d) | AE18: % | AJ18: Ol.olev | AK18: I etapp | AL18: II etapp | AM18: 0 etapp | AN18: I etapp | AO18: II etapp | AP18: 0 etapp | AQ18: I etapp | AR18: II etapp
A19: 1 | B19: =B6 -> Haljala | C19: 1049 | D19: 970 | E19: =D19/C19 -> 0.9246901811 | F19: 75.6 | G19: 114.0931507 | H19: =SUM(F19:G19) -> 189.6931507 | I19: =K19*J19 -> 102.1424658 | J19: =AJ19 -> 0.35 | K19: =H19/(1-J19) -> 291.8356164 | L19: =D19+(AM19*$F$1) -> 1023.75 | M19: =L19*$AI19/1000 -> 79.78917526 | N19: =G19+AP19*$F$1*$AI19/1000 -> 114.7634187 | O19: =SUM(M19:N19) -> 194.552594 | P19: =Q19*R19 -> 104.7590891 | Q19: =AJ19 -> 0.35 | R19: =O19/(1-Q19) -> 299.3116831 | S19: =L19+(AN19*$F$1) -> 1023.75 | T19: =S19*$AI19/1000 -> 79.78917526 | U19: =N19+AQ19*$F$1*$AI19/1000 -> 114.7634187 | V19: =SUM(T19:U19) -> 194.552594 | W19: =X19*Y19 -> 83.37968314 | X19: =AK19 -> 0.3 | Y19: =V19/(1-X19) -> 277.9322771 | Z19: =S19+(AO19*$F$1) -> 1105.45 | AA19: =Z19*$AI19/1000 -> 86.15672165 | AB19: =U19+AR19*$F$1*$AI19/1000 -> 115.2661198 | AC19: =SUM(AA19:AB19) -> 201.4228414 | AD19: =AE19*AF19 -> 67.14094714 | AE19: =AL19 -> 0.25 | AF19: =AC19/(1-AE19) -> 268.5637885 | AH19: =B19 -> Haljala | AI19: 77.93814433 | AJ19: 0.35 | AK19: 0.3 | AL19: 0.25 | AM19: 25 | AO19: 38 | AP19: 4 | AR19: 3
A20: 2 | B20: Võsu | C20: 418 | D20: 350 | E20: 0.8373205742 | F20: 20.48767123 | G20: 3.739726027 | H20: =SUM(F20:G20) -> 24.22739726 | I20: =K20*J20 -> 10.38317025 | J20: =AJ20 -> 0.3 | K20: =H20/(1-J20) -> 34.61056751 | L20: =D20+(AM20*$F$1) -> 461.8 | M20: =L20*$AI20/1000 -> 27.03201879 | N20: =G20+AP20*$F$1*$AI20/1000 -> 3.739726027 | O20: 30.77174481 | P20: =Q20*R20 -> 13.18789063 | Q20: =AJ20 -> 0.3 | R20: =O20/(1-Q20) -> 43.95963545 | S20: =L20+(AN20*$F$1) -> 651 | T20: =S20*$AI20/1000 -> 38.10706849 | U20: =N20+AQ20*$F$1*$AI20/1000 -> 3.739726027 | V20: 41.84679452 | W20: =X20*Y20 -> 13.94893151 | X20: =AK20 -> 0.25 | Y20: =V20/(1-X20) -> 55.79572603 | Z20: =S20+(AO20*$F$1) -> 780 | AA20: =Z20*$AI20/1000 -> 45.65823875 | AB20: =U20+AR20*$F$1*$AI20/1000 -> 3.739726027 | AC20: 49.39796477 | AD20: =AE20*AF20 -> 16.46598826 | AE20: =AL20 -> 0.25 | AF20: =AC20/(1-AE20) -> 65.86395303 | AH20: =B20 -> Võsu | AI20: 58.53620352 | AJ20: 0.3 | AK20: 0.25 | AL20: =AK20 -> 0.25 | AM20: 52 | AN20: 88 | AO20: 60
A21: 3 | B21: Essu | C21: 249 | D21: 215 | E21: 0.8634538153 | F21: 14.9260274 | G21: 1.832876712 | H21: 16.75890411 | I21: 13.71183064 | J21: 0.45 | K21: 30.47073474 | L21: 217.15 | M21: 15.07528767 | N21: 1.832876712 | O21: 16.90816438 | P21: 13.83395268 | Q21: 0.45 | R21: 30.74211706 | S21: 217.15 | T21: 15.07528767 | U21: 1.832876712 | V21: 16.90816438 | W21: 13.83395268 | X21: 0.45 | Y21: 30.74211706 | Z21: 217.15 | AA21: 15.07528767 | AB21: 1.832876712 | AC21: 16.90816438 | AD21: 7.246356164 | AE21: 0.3 | AF21: 24.15452055 | AH21: Essu | AI21: 69.42338324 | AJ21: 0.45 | AK21: =AJ21 -> 0.45 | AL21: 0.3 | AM21: 1
A22: 4 | B22: Aaspere | C22: 231 | D22: 185 | E22: 0.8008658009 | F22: 10.84657534 | G22: 5.054794521 | H22: 15.90136986 | I22: 13.01021171 | J22: 0.45 | K22: 28.91158157 | L22: 185 | M22: 10.84657534 | N22: 5.054794521 | O22: 15.90136986 | P22: 13.01021171 | Q22: 0.45 | R22: 28.91158157 | S22: 185 | T22: 10.84657534 | U22: 5.054794521 | V22: 15.90136986 | W22: 13.01021171 | X22: 0.45 | Y22: 28.91158157 | Z22: 185 | AA22: 10.84657534 | AB22: 5.054794521 | AC22: 15.90136986 | AD22: 5.300456621 | AE22: 0.25 | AF22: 21.20182648 | AH22: Aaspere | AI22: 58.63013699 | AJ22: 0.45 | AK22: 0.45 | AL22: 0.25
A23: 5 | B23: Käsmu | C23: 144 | D23: 0 | E23: 0 | L23: 0 | S23: 369.8 | T23: =S23*$AI28/1000 -> 24.6671177 | U23: =U10 -> 1.810958904 | V23: 26.4780766 | W23: 8.826025534 | X23: 0.25 | Y23: 35.30410213 | Z23: 369.8 | AA23: =Z23*$AI28/1000 -> 24.6671177 | AB23: 1.810958904 | AC23: 26.4780766 | AD23: 8.826025534 | AE23: 0.25 | AF23: 35.30410213 | AH23: Käsmu | AI23: 0 | AK23: 0.25 | AL23: =AK23 -> 0.25 | AN23: 172
A24: 6 | B24: Võsupere | C24: 127 | D24: 129 | E24: 1.015748031 | F24: 4.37260274 | G24: 6.126027397 | H24: 10.49863014 | I24: 3.499543379 | J24: 0.25 | K24: 13.99817352 | L24: 129 | M24: 4.37260274 | N24: 6.126027397 | O24: 10.49863014 | P24: 3.499543379 | Q24: 0.25 | R24: 13.99817352 | S24: 129 | T24: 4.37260274 | U24: 6.126027397 | V24: 10.49863014 | W24: 3.499543379 | X24: 0.25 | Y24: 13.99817352 | Z24: 129 | AA24: 4.37260274 | AB24: 6.490410959 | AC24: 10.8630137 | AD24: 3.621004566 | AE24: 0.25 | AF24: 14.48401826 | AH24: Võsupere | AI24: 33.89614527 | AJ24: 0.25 | AK24: 0.25 | AL24: 0.25 | AR24: 5
A25: 7 | B25: Vihula | C25: 85 | D25: 37 | E25: 0.4352941176 | F25: 2.049315068 | G25: 30.45479452 | H25: 32.50410959 | I25: 10.8347032 | J25: 0.25 | K25: 43.33881279 | L25: 37 | M25: 2.049315068 | N25: 30.45479452 | O25: 32.50410959 | P25: 10.8347032 | Q25: 0.25 | R25: 43.33881279 | S25: 37 | T25: 2.049315068 | U25: 30.45479452 | V25: 32.50410959 | W25: 10.8347032 | X25: 0.25 | Y25: 43.33881279 | Z25: 37 | AA25: 2.049315068 | AB25: 30.45479452 | AC25: 32.50410959 | AD25: 10.8347032 | AE25: =AL25 -> 0.25 | AF25: 43.33881279 | AH25: Vihula | AI25: 55.38689374 | AJ25: 0.25 | AK25: 0.25 | AL25: 0.25
A26: 8 | B26: Vergi | C26: 81 | D26: 74 | E26: 0.9135802469 | F26: 2.457534247 | G26: 0.9260273973 | H26: 3.383561644 | I26: 1.127853881 | J26: 0.25 | K26: 4.511415525 | L26: 82.6 | M26: 2.743139578 | N26: 0.9260273973 | O26: 3.669166975 | P26: 1.223055658 | Q26: 0.25 | R26: 4.892222634 | S26: 82.6 | T26: 2.743139578 | U26: 0.9260273973 | V26: 3.669166975 | W26: 1.223055658 | X26: 0.25 | Y26: 4.892222634 | Z26: 82.6 | AA26: 2.743139578 | AB26: 0.9260273973 | AC26: 3.669166975 | AD26: 1.223055658 | AE26: 0.25 | AF26: 4.892222634 | AH26: Vergi | AI26: 33.20992225 | AJ26: 0.25 | AK26: 0.25 | AL26: 0.25 | AM26: 4
C27: =SUM(C19:C26) -> 2384 | D27: =SUM(D19:D26) -> 1960 | F27: 130.739726 | G27: 162.2273973 | H27: 292.9671233 | I27: 154.7097788 | K27: 447.6769021 | L27: 2136.3 | M27: 141.9081144 | N27: 162.8976653 | O27: 304.8057797 | P27: 160.3484463 | R27: 465.1542261 | S27: 2695.3 | T27: 177.6502818 | U27: 164.7086242 | V27: 342.3589061 | W27: 148.5561068 | Y27: 490.9150128 | Z27: 2906 | AA27: 191.5689985 | AB27: 165.5757088 | AC27: 357.1447073 | AD27: 120.6585371 | AF27: 477.8032444 | AM27: =SUM(AM19:AM26) -> 82 | AN27: =SUM(AN19:AN26) -> 260 | AO27: 98 | AP27: 4 | AQ27: 0 | AR27: 8
AH28: Valla keskmine | AI28: =[41]MAHUD!D16/365/[41]MAHUD!D6*1000 -> 66.70394185

Sheet STAT (hidden)
A1: ST08: LEIBKONNALIIKME NETOSISSETULEK KUUS --- Aasta, Elukoht, Sissetulekuallikas ning Näitaja
B2: Netosissetulek kokku
B3: Sissetulek, eurot
A4: LEIBKONNALIIKME NETOSISSETULEK KUUS | B4: Ühik | C4: 2009 | D4: 2010 | E4: 2011 | F4: 2012 | G4: 2013 | H4: 2014 | I4: 2015 | J4: 2016 | K4: 2017 | L4: 2018
A5: Lääne-Viru maakond | B5: EUR/kuu | C5: 323.1 | D5: 312.4 | E5: 345.2 | F5: 396.7 | G5: 429.5 | H5: 489.9 | I5: 528 | J5: 523.6 | K5: 611.9 | L5: 677.5
A6: muutus | B6: EUR/kuu | D6: =+D5/C5-1 -> -0.03311668214 | E6: =+E5/D5-1 -> 0.104993598 | F6: 0.149188876 | G6: 0.08268212755 | H6: 0.140628638 | I6: 0.07777097367 | J6: -0.008333333333 | K6: 0.1686401833 | L6: 0.10720706
A7: Kogu Eesti | B7: EUR/kuu | C7: 394.2 | D7: 380.4 | E7: 414.5 | F7: 476.1 | G7: 510.9 | H7: 555.7 | I7: 585.6 | J7: 619.9 | K7: 680.8 | L7: 752.5
A9: RV092: PROGNOOSITAV RAHVAARV (ALUSEKS 1. JAANUARI 2012 RAHVAARV) --- Vanuserühm, Maakond/linn, Sugu ning Aasta
A10: Vanuserühmad kokku | B10: 2019 | C10: 2020 | D10: 2021 | E10: 2022 | F10: 2023 | G10: 2024 | H10: 2025 | I10: 2026 | J10: 2027 | K10: 2028 | L10: 2029 | M10: 2030 | N10: 2031
A11: Lääne-Viru maakond
A12: Mehed ja naised | B12: 57386 | C12: 56825 | D12: 56253 | E12: 55689 | F12: 55130 | G12: 54577 | H12: 54017 | I12: 53465 | J12: 52899 | K12: 52332 | L12: 51740 | M12: 51166 | N12: 50591
A13: muutus | C13: =+C12/B12-1 -> -0.00977590353 | D13: =+D12/C12-1 -> -0.01006599208 | E13: -0.01002613194 | F13: -0.01003788899 | G13: -0.01003083621 | H13: -0.01026073254 | I13: -0.01021900513 | J13: -0.01058636491 | K13: -0.0107185391 | L13: -0.01131239012 | M13: -0.01109393119 | N13: -0.01123793144

Sheet LAEN
A1: Laenuleping nr 5-1/11/8 | B1: Ühik | C1: 2013 | D1: 2014 | E1: 2015 | F1: 2016 | G1: 2017 | H1: 2018 | I1: 2019 | J1: 2020 | K1: 2021 | L1: 2022 | M1: 2023 | N1: 2024 | O1: 2025 | P1: 2026 | Q1: 2027 | R1: 2028 | S1: 2029 | T1: 2030 | U1: 2031
A2: Pikaajaline laen (01.01) | B2: EUR | C2: 262780.56 | D2: =+C6 -> 254310 | E2: =+D6 -> 237356 | F2: 220402 | G2: 203448 | H2: 186494 | I2: 169540 | J2: 152586 | K2: 135632 | L2: 118678 | M2: 101724 | N2: 84770 | O2: 67816 | P2: 50862 | Q2: 33908 | R2: 16954 | S2: 0
A3: Lisanduv laen | B3: EUR | C3: 0 | D3: 0 | E3: 0 | F3: 0 | G3: 0 | H3: 0 | I3: 0 | J3: 0 | K3: 0 | L3: 0 | M3: 0 | N3: 0 | O3: 0 | P3: 0 | Q3: 0 | R3: 0 | S3: 0
A4: Laenu tagasimakse | B4: EUR | C4: 0 | D4: 8470.56 | E4: =8477*2 -> 16954 | F4: =8477*2 -> 16954 | G4: 16954 | H4: 16954 | I4: 16954 | J4: 16954 | K4: 16954 | L4: 16954 | M4: 16954 | N4: 16954 | O4: 16954 | P4: 16954 | Q4: 16954 | R4: 16954 | S4: 16954
A5: Lühiajalised kohustused (31.12) | B5: EUR | C5: =+D4 -> 8470.56 | D5: =+E4 -> 16954 | E5: 16954 | F5: 16954 | G5: 16954 | H5: 16954 | I5: 16954 | J5: 16954 | K5: 16954 | L5: 16954 | M5: 16954 | N5: 16954 | O5: 16954 | P5: 16954 | Q5: 16954 | R5: 16954 | S5: 0
A6: Pikaajalised kohustused (31.12) | B6: EUR | C6: =+C2+C3-C5 -> 254310 | D6: =+D2+D3-D5 -> 237356 | E6: 220402 | F6: 203448 | G6: 186494 | H6: 169540 | I6: 152586 | J6: 135632 | K6: 118678 | L6: 101724 | M6: 84770 | N6: 67816 | O6: 50862 | P6: 33908 | Q6: 16954 | R6: 0 | S6: 0
A7: Intress | B7: 0.0125 | C7: =+SUM(C5:C6)*$B$7 -> 3284.757 | D7: =+SUM(C5:D6)/2*$B$7 -> 3231.816 | E7: =+SUM(D5:E6)/2*$B$7 -> 3072.9125 | F7: 2860.9875 | G7: 2649.0625 | H7: 2437.1375 | I7: 2225.2125 | J7: 2013.2875 | K7: 1801.3625 | L7: 1589.4375 | M7: 1377.5125 | N7: 1165.5875 | O7: 953.6625 | P7: 741.7375 | Q7: 529.8125 | R7: 317.8875 | S7: 105.9625
A8: Laenuleping nr 5-1/14/18 | B8: Ühik | C8: 2013 | D8: 2014 | E8: 2015 | F8: 2016 | G8: 2017 | H8: 2018 | I8: 2019 | J8: 2020 | K8: 2021 | L8: 2022 | M8: 2023 | N8: 2024 | O8: 2025 | P8: 2026 | Q8: 2027 | R8: 2028 | S8: 2029 | T8: 2030 | U8: 2031
A9: Pikaajaline laen (01.01) | B9: EUR | F9: 101057 | G9: =F13 -> 91880 | H9: =G13 -> 82692 | I9: 73504 | J9: 64316 | K9: 55128 | L9: 45940 | M9: 36752 | N9: 27564 | O9: 18376 | P9: 9188 | Q9: 0
A10: Lisanduv laen | B10: EUR | F10: 0 | G10: 0 | H10: 0 | I10: 0 | J10: 0 | K10: 0 | L10: 0 | M10: 0 | N10: 0 | O10: 0 | P10: 0 | Q10: 0
A11: Laenu tagasimakse | B11: EUR | F11: 0 | G11: =4583+4594 -> 9177 | H11: =4594*2 -> 9188 | I11: =4594*2 -> 9188 | J11: 9188 | K11: 9188 | L11: 9188 | M11: 9188 | N11: 9188 | O11: 9188 | P11: 9188 | Q11: 9188
A12: Lühiajalised kohustused (31.12) | B12: EUR | F12: =+G11 -> 9177 | G12: =+H11 -> 9188 | H12: 9188 | I12: 9188 | J12: 9188 | K12: 9188 | L12: 9188 | M12: 9188 | N12: 9188 | O12: 9188 | P12: 9188 | Q12: 0
A13: Pikaajalised kohustused (31.12) | B13: EUR | F13: =+F9+F10-F12 -> 91880 | G13: =+G9+G10-G12 -> 82692 | H13: 73504 | I13: 64316 | J13: 55128 | K13: 45940 | L13: 36752 | M13: 27564 | N13: 18376 | O13: 9188 | P13: 0 | Q13: 0
A14: Intress | B14: 0.0125 | F14: =+SUM(F12:F13)*$B$14 -> 1263.2125 | G14: =+SUM(F12:G13)/2*$B$14 -> 1205.85625 | H14: =+SUM(G12:H13)/2*$B$14 -> 1091.075 | I14: 976.225 | J14: 861.375 | K14: 746.525 | L14: 631.675 | M14: 516.825 | N14: 401.975 | O14: 287.125 | P14: 172.275 | Q14: 57.425
A15: Endise Haljala uus laen | B15: Ühik | C15: 2013 | D15: 2014 | E15: 2015 | F15: 2016 | G15: 2017 | H15: 2018 | I15: 2019 | J15: 2020 | K15: 2021 | L15: 2022 | M15: 2023 | N15: 2024 | O15: 2025 | P15: 2026 | Q15: 2027 | R15: 2028 | S15: 2029 | T15: 2030 | U15: 2031
A16: Pikaajaline laen (01.01) | B16: EUR | J16: =+I20 -> 0 | K16: =+J20 -> 0 | L16: =+K20 -> 0 | M16: =+L20 -> 0 | N16: =+M20 -> 0 | O16: =+N20 -> 0 | P16: =+O20 -> 0 | Q16: =+P20 -> 40850 | R16: =+Q20 -> 90950 | S16: =+R20 -> 138300 | T16: =+S20 -> 182900 | U16: =+T20 -> 224750
A17: Lisanduv laen | B17: EUR | J17: =+Rahastamiseelarve!F8+Rahastamiseelarve!F16+Rahastamiseelarve!F24 -> 0 | K17: =+Rahastamiseelarve!G8+Rahastamiseelarve!G16+Rahastamiseelarve!G24 -> 0 | L17: =+Rahastamiseelarve!H8+Rahastamiseelarve!H16+Rahastamiseelarve!H24 -> 0 | M17: =+Rahastamiseelarve!I8+Rahastamiseelarve!I16+Rahastamiseelarve!I24 -> 0 | N17: =+Rahastamiseelarve!J8+Rahastamiseelarve!J16+Rahastamiseelarve!J24 -> 0 | O17: =+Rahastamiseelarve!K8+Rahastamiseelarve!K16+Rahastamiseelarve!K24 -> 0 | P17: =+Rahastamiseelarve!L8+Rahastamiseelarve!L16+Rahastamiseelarve!L24 -> 43000 | Q17: =+Rahastamiseelarve!M8+Rahastamiseelarve!M16+Rahastamiseelarve!M24 -> 55000 | R17: =+Rahastamiseelarve!N8+Rahastamiseelarve!N16+Rahastamiseelarve!N24 -> 55000 | S17: =+Rahastamiseelarve!O8+Rahastamiseelarve!O16+Rahastamiseelarve!O24 -> 55000 | T17: =+Rahastamiseelarve!P8+Rahastamiseelarve!P16+Rahastamiseelarve!P24 -> 55000 | U17: =+Rahastamiseelarve!Q8+Rahastamiseelarve!Q16+Rahastamiseelarve!Q24 -> 0
A18: Laenu tagasimakse | B18: EUR | J18: =+I18+I17/EE!$C$16 -> 0 | K18: =+J18+J17/EE!$C$16 -> 0 | L18: =+K18+K17/EE!$C$16 -> 0 | M18: =+L18+L17/EE!$C$16 -> 0 | N18: =+M18+M17/EE!$C$16 -> 0 | O18: =+N18+N17/EE!$C$16 -> 0 | P18: =+O18+O17/EE!$C$16 -> 0 | Q18: =+P18+P17/EE!$C$16 -> 2150 | R18: =+Q18+Q17/EE!$C$16 -> 4900 | S18: =+R18+R17/EE!$C$16 -> 7650 | T18: =+S18+S17/EE!$C$16 -> 10400 | U18: =+T18+T17/EE!$C$16 -> 13150
A19: Lühiajalised kohustused (31.12) | B19: EUR | J19: =+K18 -> 0 | K19: =+L18 -> 0 | L19: =+M18 -> 0 | M19: =+N18 -> 0 | N19: =+O18 -> 0 | O19: =+P18 -> 0 | P19: =+Q18 -> 2150 | Q19: =+R18 -> 4900 | R19: =+S18 -> 7650 | S19: =+T18 -> 10400 | T19: =+U18 -> 13150 | U19: =+U18 -> 13150
A20: Pikaajalised kohustused (31.12) | B20: EUR | J20: =+J16+J17-J19 -> 0 | K20: 0 | L20: 0 | M20: 0 | N20: 0 | O20: 0 | P20: 40850 | Q20: 90950 | R20: 138300 | S20: 182900 | T20: =+T16+T17-T19 -> 224750 | U20: 211600
A21: Intress | B21: 0.023 | J21: =+SUM(I19:J20)/2*$B$7 -> 0 | K21: =+SUM(J19:K20)/2*$B$7 -> 0 | L21: =+SUM(K19:L20)/2*$B$7 -> 0 | M21: =+SUM(L19:M20)/2*$B$7 -> 0 | N21: =+SUM(M19:N20)/2*$B$7 -> 0 | O21: =+SUM(N19:O20)/2*$B$7 -> 0 | P21: =+SUM(O19:P20)/2*$B$7 -> 268.75 | Q21: =+SUM(P19:Q20)/2*$B$7 -> 867.8125 | R21: =+SUM(Q19:R20)/2*$B$7 -> 1511.25 | S21: =+SUM(R19:S20)/2*$B$7 -> 2120.3125 | T21: =+SUM(S19:T20)/2*$B$7 -> 2695 | U21: =+SUM(T19:U20)/2*$B$7 -> 2891.5625
A22: Endise Vihula uus laen | B22: Ühik | C22: 2013 | D22: 2014 | E22: 2015 | F22: 2016 | G22: 2017 | H22: 2018 | I22: 2019 | J22: 2020 | K22: 2021 | L22: 2022 | M22: 2023 | N22: 2024 | O22: 2025 | P22: 2026 | Q22: 2027 | R22: 2028 | S22: 2029 | T22: 2030 | U22: 2031
A23: Pikaajaline laen (01.01) | B23: EUR | J23: =+I27 -> 0 | K23: =+J27 -> 0 | L23: =+K27 -> 475000 | M23: =+L27 -> 530750 | N23: =+M27 -> 587000 | O23: =+N27 -> 604961.8864 | P23: =+O27 -> 635001.3783 | Q23: =+P27 -> 661540.2824 | R23: =+Q27 -> 694078.5985 | S23: =+R27 -> 713116.3268 | T23: =+S27 -> 723903.4671 | U23: =+T27 -> 739990.0195
A24: Lisanduv laen | B24: EUR | J24: =+Rahastamiseelarve!F32+Rahastamiseelarve!F40+Rahastamiseelarve!F48+Rahastamiseelarve!F56+Rahastamiseelarve!F64 -> 0 | K24: =+Rahastamiseelarve!G32+Rahastamiseelarve!G40+Rahastamiseelarve!G48+Rahastamiseelarve!G56+Rahastamiseelarve!G64 -> 500000 | L24: =+Rahastamiseelarve!H32+Rahastamiseelarve!H40+Rahastamiseelarve!H48+Rahastamiseelarve!H56+Rahastamiseelarve!H64 -> 85000 | M24: =+Rahastamiseelarve!I32+Rahastamiseelarve!I40+Rahastamiseelarve!I48+Rahastamiseelarve!I56+Rahastamiseelarve!I64 -> 90000 | N24: =+Rahastamiseelarve!J32+Rahastamiseelarve!J40+Rahastamiseelarve!J48+Rahastamiseelarve!J56+Rahastamiseelarve!J64 -> 54433.5646 | O24: =+Rahastamiseelarve!K32+Rahastamiseelarve!K40+Rahastamiseelarve!K48+Rahastamiseelarve!K56+Rahastamiseelarve!K64 -> 70011.75809 | P24: =+Rahastamiseelarve!L32+Rahastamiseelarve!L40+Rahastamiseelarve!L48+Rahastamiseelarve!L56+Rahastamiseelarve!L64 -> 70011.75809 | Q24: =+Rahastamiseelarve!M32+Rahastamiseelarve!M40+Rahastamiseelarve!M48+Rahastamiseelarve!M56+Rahastamiseelarve!M64 -> 80011.75809 | R24: =+Rahastamiseelarve!N32+Rahastamiseelarve!N40+Rahastamiseelarve!N48+Rahastamiseelarve!N56+Rahastamiseelarve!N64 -> 70011.75809 | S24: =+Rahastamiseelarve!O32+Rahastamiseelarve!O40+Rahastamiseelarve!O48+Rahastamiseelarve!O56+Rahastamiseelarve!O64 -> 65011.75809 | T24: =+Rahastamiseelarve!P32+Rahastamiseelarve!P40+Rahastamiseelarve!P48+Rahastamiseelarve!P56+Rahastamiseelarve!P64 -> 74011.75809 | U24: =+Rahastamiseelarve!Q32+Rahastamiseelarve!Q40+Rahastamiseelarve!Q48+Rahastamiseelarve!Q56+Rahastamiseelarve!Q64 -> 49167
A25: Laenu tagasimakse | B25: EUR | J25: =+I25+I24/EE!$C$16 -> 0 | K25: =+J25+J24/EE!$C$16 -> 0 | L25: =+K25+K24/EE!$C$16 -> 25000 | M25: =+L25+L24/EE!$C$16 -> 29250 | N25: =+M25+M24/EE!$C$16 -> 33750 | O25: =+N25+N24/EE!$C$16 -> 36471.67823 | P25: =+O25+O24/EE!$C$16 -> 39972.26613 | Q25: =+P25+P24/EE!$C$16 -> 43472.85404 | R25: =+Q25+Q24/EE!$C$16 -> 47473.44194 | S25: =+R25+R24/EE!$C$16 -> 50974.02985 | T25: =+S25+S24/EE!$C$16 -> 54224.61775 | U25: =+T25+T24/EE!$C$16 -> 57925.20566
A26: Lühiajalised kohustused (31.12) | B26: EUR | J26: =+K25 -> 0 | K26: =+L25 -> 25000 | L26: =+M25 -> 29250 | M26: =+N25 -> 33750 | N26: =+O25 -> 36471.67823 | O26: =+P25 -> 39972.26613 | P26: =+Q25 -> 43472.85404 | Q26: =+R25 -> 47473.44194 | R26: =+S25 -> 50974.02985 | S26: =+T25 -> 54224.61775 | T26: =+U25 -> 57925.20566 | U26: =+U25 -> 57925.20566
A27: Pikaajalised kohustused (31.12) | B27: EUR | J27: =+J23+J24-J26 -> 0 | K27: 475000 | L27: 530750 | M27: 587000 | N27: 604961.8864 | O27: 635001.3783 | P27: 661540.2824 | Q27: 694078.5985 | R27: 713116.3268 | S27: 723903.4671 | T27: =+T23+T24-T26 -> 739990.0195 | U27: 731231.8139
A28: Intress | B28: 0.023 | J28: =+SUM(I26:J27)/2*$B$7 -> 0 | K28: =+SUM(J26:K27)/2*$B$7 -> 3125 | L28: =+SUM(K26:L27)/2*$B$7 -> 6625 | M28: =+SUM(L26:M27)/2*$B$7 -> 7379.6875 | N28: =+SUM(M26:N27)/2*$B$7 -> 7888.647279 | O28: =+SUM(N26:O27)/2*$B$7 -> 8227.545057 | P28: =+SUM(O26:P27)/2*$B$7 -> 8624.91738 | Q28: =+SUM(P26:Q27)/2*$B$7 -> 9041.032356 | R28: =+SUM(Q26:R27)/2*$B$7 -> 9410.264982 | S28: =+SUM(R26:S27)/2*$B$7 -> 9638.865259 | T28: =+SUM(S26:T27)/2*$B$7 -> 9850.270688 | U28: =+SUM(T26:U27)/2*$B$7 -> 9919.20153

Sheet KULUD
A1: Vana Haljala valla piirkond (Haljala, Essu ja aaspere) | B1: Ühik | C1: =+EE!E2 -> 2019 | D1: =+EE!F2 -> 2020 | E1: =+EE!G2 -> 2021 | F1: =+EE!H2 -> 2022 | G1: =+EE!I2 -> 2023 | H1: =+EE!J2 -> 2024 | I1: =+EE!K2 -> 2025 | J1: =+EE!L2 -> 2026 | K1: =+EE!M2 -> 2027 | L1: =+EE!N2 -> 2028 | M1: =+EE!O2 -> 2029 | N1: =+EE!P2 -> 2030 | O1: =+EE!Q2 -> 2031 | P1: Piirkonniti jagunemine
A2: MAHUD
A3: Toodetud vesi | B3: m3 | C3: =MAHUD!C133+MAHUD!C153+MAHUD!C173 -> 43513 | D3: =MAHUD!D133+MAHUD!D153+MAHUD!D173 -> 43917.00406 | E3: =MAHUD!E133+MAHUD!E153+MAHUD!E173 -> 44134.54471 | F3: =MAHUD!F133+MAHUD!F153+MAHUD!F173 -> 44352.08536 | G3: =MAHUD!G133+MAHUD!G153+MAHUD!G173 -> 48100.3072 | H3: =MAHUD!H133+MAHUD!H153+MAHUD!H173 -> 48100.3072 | I3: =MAHUD!I133+MAHUD!I153+MAHUD!I173 -> 48100.3072 | J3: =MAHUD!J133+MAHUD!J153+MAHUD!J173 -> 48100.3072 | K3: =MAHUD!K133+MAHUD!K153+MAHUD!K173 -> 48100.3072 | L3: =MAHUD!L133+MAHUD!L153+MAHUD!L173 -> 48100.3072 | M3: =MAHUD!M133+MAHUD!M153+MAHUD!M173 -> 48100.3072 | N3: =MAHUD!N133+MAHUD!N153+MAHUD!N173 -> 48100.3072 | O3: =MAHUD!O133+MAHUD!O153+MAHUD!O173 -> 48631.69359 | P3: =+SUM(C3:C4)/SUM(C3:C4,C32:C33) -> 0.6388926142
A4: Puhastatud heitvesi | B4: m3 | C4: =MAHUD!C138+MAHUD!C158+MAHUD!C178 -> 128194.5455 | D4: =MAHUD!D138+MAHUD!D158+MAHUD!D178 -> 98488.84627 | E4: =MAHUD!E138+MAHUD!E158+MAHUD!E178 -> 68213.86511 | F4: =MAHUD!F138+MAHUD!F158+MAHUD!F178 -> 68801.96086 | G4: =MAHUD!G138+MAHUD!G158+MAHUD!G178 -> 65988.88115 | H4: =MAHUD!H138+MAHUD!H158+MAHUD!H178 -> 65988.88115 | I4: =MAHUD!I138+MAHUD!I158+MAHUD!I178 -> 65988.88115 | J4: =MAHUD!J138+MAHUD!J158+MAHUD!J178 -> 65988.88115 | K4: =MAHUD!K138+MAHUD!K158+MAHUD!K178 -> 65988.88115 | L4: =MAHUD!L138+MAHUD!L158+MAHUD!L178 -> 65988.88115 | M4: =MAHUD!M138+MAHUD!M158+MAHUD!M178 -> 65988.88115 | N4: =MAHUD!N138+MAHUD!N158+MAHUD!N178 -> 65988.88115 | O4: =MAHUD!O138+MAHUD!O158+MAHUD!O178 -> 61166.18282
A5: ÜHIKKULU
A6: Energiakulud | B6: EUR/m3 | C6: =ROUND(C15/(C3+C4),1) -> 0.2
A7: sh vesi | B7: EUR/m3 | C7: =+C16/C3 -> 0.1350718176 | D7: =C7*(1+EE!F$5) -> 0.1380798096 | E7: =D7*(1+EE!G$5) -> 0.1410071016 | F7: =E7*(1+EE!H$5) -> 0.1439259486 | G7: =F7*(1+EE!I$5) -> 0.1468476453 | H7: =G7*(1+EE!J$5) -> 0.1498286544 | I7: =H7*(1+EE!K$5) -> 0.1528701789 | J7: =I7*(1+EE!L$5) -> 0.1559734476 | K7: =J7*(1+EE!M$5) -> 0.159139714 | L7: =K7*(1+EE!N$5) -> 0.1623702573 | M7: =L7*(1+EE!O$5) -> 0.1656663826 | N7: =M7*(1+EE!P$5) -> 0.1690294214 | O7: =N7*(1+EE!Q$5) -> 0.1724607325
A8: sh kanal | B8: EUR/m3 | C8: =+C17/C4 -> 0.1910321528 | D8: =C8*(1+EE!F$5) -> 0.1952863577 | E8: =D8*(1+EE!G$5) -> 0.1994264285 | F8: =E8*(1+EE!H$5) -> 0.2035545555 | G8: =F8*(1+EE!I$5) -> 0.207686713 | H8: =G8*(1+EE!J$5) -> 0.2119027559 | I8: =H8*(1+EE!K$5) -> 0.2162043859 | J8: =I8*(1+EE!L$5) -> 0.2205933406 | K8: =J8*(1+EE!M$5) -> 0.2250713931 | L8: =K8*(1+EE!N$5) -> 0.2296403525 | M8: =L8*(1+EE!O$5) -> 0.2343020645 | N8: =M8*(1+EE!P$5) -> 0.2390584123 | O8: =N8*(1+EE!Q$5) -> 0.2439113176
A9: Saastetasu | B9: EUR/m3 | C9: =C18/C4 -> 0.02080751557 | D9: =C9*(1+EE!F$5) -> 0.02127089009 | E9: =D9*(1+EE!G$5) -> 0.02172183296 | F9: =E9*(1+EE!H$5) -> 0.02217147491 | G9: =F9*(1+EE!I$5) -> 0.02262155585 | H9: =G9*(1+EE!J$5) -> 0.02308077372 | I9: =H9*(1+EE!K$5) -> 0.02354931386 | J9: =I9*(1+EE!L$5) -> 0.02402736555 | K9: =J9*(1+EE!M$5) -> 0.02451512191 | L9: =K9*(1+EE!N$5) -> 0.02501277999 | M9: =L9*(1+EE!O$5) -> 0.02552054082 | N9: =M9*(1+EE!P$5) -> 0.02603860953 | O9: =N9*(1+EE!Q$5) -> 0.02656719543
A10: Vee erikasutusõiguse tasu | B10: EUR/m3 | C10: =C19/C3 -> 0.0806301565 | D10: =+C10 -> 0.0806301565 | E10: =+D10 -> 0.0806301565 | F10: 0.0806301565 | G10: 0.0806301565 | H10: 0.0806301565 | I10: 0.0806301565 | J10: =I10*(1+EE!L$5) -> 0.08226695081 | K10: =J10*(1+EE!M$5) -> 0.08393697278 | L10: =K10*(1+EE!N$5) -> 0.08564089709 | M10: =L10*(1+EE!O$5) -> 0.08737941208 | N10: =M10*(1+EE!P$5) -> 0.08915322009 | O10: =N10*(1+EE!Q$5) -> 0.09096303773 | P10: *seadusest tulenevalt kuni 2025
A11: Spetsiifilise tehnoloogia kulud (kemikaalid) | B11: EUR/m3 | C11: =C20/(C3+C4) -> 0.04895940931
A12: sh vesi | B12: EUR/m3 | C12: =+C21/C3 -> 0 | D12: =C12*(1+EE!F$5) -> 0 | E12: =D12*(1+EE!G$5) -> 0 | F12: =E12*(1+EE!H$5) -> 0 | G12: =F12*(1+EE!I$5) -> 0 | H12: =G12*(1+EE!J$5) -> 0 | I12: =H12*(1+EE!K$5) -> 0 | J12: =I12*(1+EE!L$5) -> 0 | K12: =J12*(1+EE!M$5) -> 0 | L12: =K12*(1+EE!N$5) -> 0 | M12: =L12*(1+EE!O$5) -> 0 | N12: =M12*(1+EE!P$5) -> 0 | O12: =N12*(1+EE!Q$5) -> 0
A13: sh kanal | B13: EUR/m3 | C13: =+C22/C4 -> 0.06557767314 | D13: =C13*(1+EE!F$5) -> 0.06703806005 | E13: =D13*(1+EE!G$5) -> 0.06845926692 | F13: =E13*(1+EE!H$5) -> 0.06987637375 | G13: =F13*(1+EE!I$5) -> 0.07129486413 | H13: =G13*(1+EE!J$5) -> 0.07274215078 | I13: =H13*(1+EE!K$5) -> 0.07421881782 | J13: =I13*(1+EE!L$5) -> 0.07572546178 | K13: =J13*(1+EE!M$5) -> 0.0772626913 | L13: =K13*(1+EE!N$5) -> 0.07883112739 | M13: =L13*(1+EE!O$5) -> 0.08043140368 | N13: =M13*(1+EE!P$5) -> 0.08206416665 | O13: =N13*(1+EE!Q$5) -> 0.08373007592
A14: MUUTUVKULUD
A15: Energiakulud | B15: EUR | C15: =SUM('KA2019'!C157:E157)+SUM('KA2019'!K157:M157)+'KA2019'!V157 -> 30366.66 | D15: =+SUM(D16:D17) -> 25297.57962 | E15: =+SUM(E16:E17) -> 19826.93172 | F15: 20388.36852 | G15: 20768.43067 | H15: 21190.03008 | I15: 21620.18809 | J15: 22059.07848 | K15: 22506.87854 | L15: 22963.76919 | M15: 23429.93498 | N15: 23905.56426 | O15: 23306.18174
A16: sh vesi | B16: EUR | C16: =+SUM('KA2019'!K157:M157) -> 5877.38 | D16: =+D7*D3 -> 6064.051559 | E16: =+E7*E3 -> 6223.284228 | F16: 6383.415956 | G16: 7063.416851 | H16: 7206.804303 | I16: 7353.102567 | J16: 7502.370743 | K16: 7654.669131 | L16: 7810.059257 | M16: 7968.603896 | N16: 8130.367097 | O16: 8387.057499
A17: sh kanal | B17: EUR | C17: =+SUM('KA2019'!C157:E157) -> 24489.28 | D17: =+D8*D4 -> 19233.52806 | E17: =+E8*E4 -> 13603.64749 | F17: 14004.95256 | G17: 13705.01382 | H17: 13983.22578 | I17: 14267.08552 | J17: 14556.70774 | K17: 14852.20941 | L17: 15153.70993 | M17: 15461.33109 | N17: 15775.19716 | O17: 14919.12424
A18: Saastetasu | B18: EUR | C18: =SUM('KA2019'!C161:E161)+SUM('KA2019'!K161:M161)+'KA2019'!V161 -> 2667.41 | D18: =D9*D4 -> 2094.945425 | E18: =E9*E4 -> 1481.730184 | F18: 1525.440949 | G18: 1492.77116 | H18: 1523.074434 | I18: 1553.992874 | J18: 1585.53897 | K18: 1617.725466 | L18: 1650.565366 | M18: 1684.071935 | N18: 1718.25871 | O18: 1625.013933
A19: Vee erikasutusõiguse tasu | B19: EUR | C19: =SUM('KA2019'!C162:E162)+SUM('KA2019'!K162:M162)+'KA2019'!V162 -> 3508.46 | D19: =D10*D3 -> 3541.034911 | E19: =E10*E3 -> 3558.575247 | F19: 3576.115584 | G19: 3878.335297 | H19: 3878.335297 | I19: 3878.335297 | J19: 3957.065606 | K19: 4037.394176 | L19: 4119.353459 | M19: 4202.976564 | N19: 4288.297274 | O19: 4423.686579
A20: Spetsiifilise tehnoloogia kulud (kemikaalid) | B20: EUR | C20: =SUM('KA2019'!C163:E163)+SUM('KA2019'!K163:M163)+'KA2019'!V163 -> 8406.7 | D20: =+SUM(D21:D22) -> 6602.501191 | E20: =+SUM(E21:E22) -> 4669.871199 | F20: 4807.631532 | G20: 4704.668316 | H20: 4800.173143 | I20: 4897.616748 | J20: 4997.038497 | K20: 5098.478553 | L20: 5201.977896 | M20: 5307.578338 | N20: 5415.322539 | O20: 5121.449131
A21: sh vesi | B21: EUR | C21: =+SUM('KA2019'!K163:M163) -> 0 | D21: =+D3*D12 -> 0 | E21: =+E3*E12 -> 0 | F21: 0 | G21: 0 | H21: 0 | I21: 0 | J21: 0 | K21: 0 | L21: 0 | M21: 0 | N21: 0 | O21: 0
A22: sh kanal | B22: EUR | C22: =+SUM('KA2019'!C163:E163) -> 8406.7 | D22: =+D4*D13 -> 6602.501191 | E22: =+E4*E13 -> 4669.871199 | F22: 4807.631532 | G22: 4704.668316 | H22: 4800.173143 | I22: 4897.616748 | J22: 4997.038497 | K22: 5098.478553 | L22: 5201.977896 | M22: 5307.578338 | N22: 5415.322539 | O22: 5121.449131
A23: PÜSIKULUD
A24: Seadmete hoolduse teenus ja materjalid | B24: EUR | C24: =SUM('KA2019'!C165:E165)+SUM('KA2019'!K165:M165)+'KA2019'!V165 -> 3097.495034 | D24: =C24*(1+EE!F$5) -> 3166.474932 | E24: =D24*(1+EE!G$5) -> 3233.604201 | F24: =E24*(1+EE!H$5) -> 3300.539807 | G24: =F24*(1+EE!I$5) -> 3367.540766 | H24: =G24*(1+EE!J$5) -> 3435.901886 | I24: =H24*(1+EE!K$5) -> 3505.650759 | J24: =I24*(1+EE!L$5) -> 3576.815562 | K24: =J24*(1+EE!M$5) -> 3649.425043 | L24: =K24*(1+EE!N$5) -> 3723.508535 | M24: =L24*(1+EE!O$5) -> 3799.095966 | N24: =M24*(1+EE!P$5) -> 3876.217873 | O24: =N24*(1+EE!Q$5) -> 3954.905411
A25: Tööjõu- ja personalikulud | B25: EUR | C25: =SUM('KA2019'!C158:E158)+SUM('KA2019'!K158:M158)+'KA2019'!V158 -> 75957.91477 | D25: =C25*(1+EE!F$5) -> 77649.46525 | E25: =D25*(1+EE!G$5) -> 79295.63392 | F25: =E25*(1+EE!H$5) -> 80937.05354 | G25: =F25*(1+EE!I$5) -> 82580.07572 | H25: =G25*(1+EE!J$5) -> 84256.45231 | I25: =H25*(1+EE!K$5) -> 85966.85989 | J25: =I25*(1+EE!L$5) -> 87711.98941 | K25: =J25*(1+EE!M$5) -> 89492.54586 | L25: =K25*(1+EE!N$5) -> 91309.24855 | M25: =L25*(1+EE!O$5) -> 93162.83139 | N25: =M25*(1+EE!P$5) -> 95054.04321 | O25: =N25*(1+EE!Q$5) -> 96983.64804
A26: Administratiivkulud | B26: EUR | C26: =SUM('KA2019'!C159:E159)+SUM('KA2019'!K159:M159)+'KA2019'!V159 -> 7634.458719 | D26: =C26*(1+EE!F$5) -> 7804.47487 | E26: =D26*(1+EE!G$5) -> 7969.929737 | F26: =E26*(1+EE!H$5) -> 8134.907283 | G26: =F26*(1+EE!I$5) -> 8300.045901 | H26: =G26*(1+EE!J$5) -> 8468.536938 | I26: =H26*(1+EE!K$5) -> 8640.448398 | J26: =I26*(1+EE!L$5) -> 8815.849728 | K26: =J26*(1+EE!M$5) -> 8994.811786 | L26: =K26*(1+EE!N$5) -> 9177.406868 | M26: =L26*(1+EE!O$5) -> 9363.70874 | N26: =M26*(1+EE!P$5) -> 9553.792664 | O26: =N26*(1+EE!Q$5) -> 9747.735435
A27: Kaupade ja teenuste vahendamiskulud | B27: EUR | C27: =SUM('KA2019'!C164:E164)+SUM('KA2019'!K164:M164)+'KA2019'!V164 -> 16494.83535 | D27: =C27*(1+EE!F$5) -> 16862.16833 | E27: =D27*(1+EE!G$5) -> 17219.6463 | F27: =E27*(1+EE!H$5) -> 17576.09297 | G27: =F27*(1+EE!I$5) -> 17932.88766 | H27: =G27*(1+EE!J$5) -> 18296.92551 | I27: =H27*(1+EE!K$5) -> 18668.35344 | J27: =I27*(1+EE!L$5) -> 19047.32151 | K27: =J27*(1+EE!M$5) -> 19433.9828 | L27: =K27*(1+EE!N$5) -> 19828.49352 | M27: =L27*(1+EE!O$5) -> 20231.01305 | N27: =M27*(1+EE!P$5) -> 20641.70399 | O27: =N27*(1+EE!Q$5) -> 21060.73227
A28: Ülalpidamiskulud | B28: EUR | C28: =SUM('KA2019'!C160:E160)+SUM('KA2019'!K160:M160)+'KA2019'!V160 -> 14520.39044 | D28: =C28*(1+EE!F$5) -> 14843.75336 | E28: =D28*(1+EE!G$5) -> 15158.44094 | F28: =E28*(1+EE!H$5) -> 15472.22066 | G28: =F28*(1+EE!I$5) -> 15786.30674 | H28: =G28*(1+EE!J$5) -> 16106.76897 | I28: =H28*(1+EE!K$5) -> 16433.73669 | J28: =I28*(1+EE!L$5) -> 16767.34197 | K28: =J28*(1+EE!M$5) -> 17107.7196 | L28: =K28*(1+EE!N$5) -> 17455.00707 | M28: =L28*(1+EE!O$5) -> 17809.34469 | N28: =M28*(1+EE!P$5) -> 18170.8756 | O28: =N28*(1+EE!Q$5) -> 18539.74586
A29: KOKKU | B29: EUR | C29: =SUM(C15,C18:C20,C24:C28) -> 162654.3243 | D29: =SUM(D15,D18:D20,D24:D28) -> 157862.3979 | E29: 152414.3634 | F29: 155718.3709 | G29: 158811.0622 | H29: 161956.1986 | I29: 165165.1822 | J29: 168518.0397 | K29: 171938.9618 | L29: 175429.3305 | M29: 178990.5557 | N29: 182624.0761 | O29: 184763.0984
A30: Vana Vihula valla piirkond (Võsu, Käsmu, Vergi, Vihula ja Võsupere) | B30: Ühik | C30: =+C1 -> 2019 | D30: =+D1 -> 2020 | E30: 2021 | F30: 2022 | G30: 2023 | H30: 2024 | I30: 2025 | J30: 2026 | K30: 2027 | L30: 2028 | M30: 2029 | N30: 2030 | O30: 2031
A31: MAHUD
A32: Toodetud vesi | B32: m3 | C32: =MAHUD!C53+MAHUD!C73+MAHUD!C93+MAHUD!C113+MAHUD!C33 -> 61843 | D32: =MAHUD!D53+MAHUD!D73+MAHUD!D93+MAHUD!D113+MAHUD!D33 -> 65341.99853 | E32: =MAHUD!E53+MAHUD!E73+MAHUD!E93+MAHUD!E113+MAHUD!E33 -> 68722.10396 | F32: =MAHUD!F53+MAHUD!F73+MAHUD!F93+MAHUD!F113+MAHUD!F33 -> 66814.02951 | G32: =MAHUD!G53+MAHUD!G73+MAHUD!G93+MAHUD!G113+MAHUD!G33 -> 52741.05906 | H32: =MAHUD!H53+MAHUD!H73+MAHUD!H93+MAHUD!H113+MAHUD!H33 -> 54175.77779 | I32: =MAHUD!I53+MAHUD!I73+MAHUD!I93+MAHUD!I113+MAHUD!I33 -> 54981.6764 | J32: =MAHUD!J53+MAHUD!J73+MAHUD!J93+MAHUD!J113+MAHUD!J33 -> 55787.57501 | K32: =MAHUD!K53+MAHUD!K73+MAHUD!K93+MAHUD!K113+MAHUD!K33 -> 55787.57501 | L32: =MAHUD!L53+MAHUD!L73+MAHUD!L93+MAHUD!L113+MAHUD!L33 -> 55787.57501 | M32: =MAHUD!M53+MAHUD!M73+MAHUD!M93+MAHUD!M113+MAHUD!M33 -> 55787.57501 | N32: =MAHUD!N53+MAHUD!N73+MAHUD!N93+MAHUD!N113+MAHUD!N33 -> 55787.57501 | O32: =MAHUD!O53+MAHUD!O73+MAHUD!O93+MAHUD!O113+MAHUD!O33 -> 63228.90825 | P32: =1-P3 -> 0.3611073858
A33: Puhastatud heitvesi | B33: m3 | C33: =MAHUD!C58+MAHUD!C78+MAHUD!C98+MAHUD!C118+MAHUD!C38 -> 35207.52381 | D33: =MAHUD!D58+MAHUD!D78+MAHUD!D98+MAHUD!D118+MAHUD!D38 -> 36095.37491 | E33: =MAHUD!E58+MAHUD!E78+MAHUD!E98+MAHUD!E118+MAHUD!E38 -> 36983.226 | F33: =MAHUD!F58+MAHUD!F78+MAHUD!F98+MAHUD!F118+MAHUD!F38 -> 41890.39221 | G33: =MAHUD!G58+MAHUD!G78+MAHUD!G98+MAHUD!G118+MAHUD!G38 -> 46797.55842 | H33: =MAHUD!H58+MAHUD!H78+MAHUD!H98+MAHUD!H118+MAHUD!H38 -> 51543.80825 | I33: =MAHUD!I58+MAHUD!I78+MAHUD!I98+MAHUD!I118+MAHUD!I38 -> 53340.42742 | J33: =MAHUD!J58+MAHUD!J78+MAHUD!J98+MAHUD!J118+MAHUD!J38 -> 55137.04659 | K33: =MAHUD!K58+MAHUD!K78+MAHUD!K98+MAHUD!K118+MAHUD!K38 -> 55137.04659 | L33: =MAHUD!L58+MAHUD!L78+MAHUD!L98+MAHUD!L118+MAHUD!L38 -> 55137.04659 | M33: =MAHUD!M58+MAHUD!M78+MAHUD!M98+MAHUD!M118+MAHUD!M38 -> 55137.04659 | N33: =MAHUD!N58+MAHUD!N78+MAHUD!N98+MAHUD!N118+MAHUD!N38 -> 55137.04659 | O33: =MAHUD!O58+MAHUD!O78+MAHUD!O98+MAHUD!O118+MAHUD!O38 -> 58989.28279
A34: ÜHIKKULU
A35: Energiakulud | B35: EUR/m3 | C35: =ROUND(C44/(C32+C33),1) -> 0.2
A36: sh vesi | B36: EUR/m3 | C36: =+C45/C32 -> 0.1000747053 | D36: =C36*(1+EE!F$5) -> 0.1023033265 | E36: =D36*(1+EE!G$5) -> 0.104472157 | F36: =E36*(1+EE!H$5) -> 0.1066347306 | G36: =F36*(1+EE!I$5) -> 0.1087994157 | H36: =G36*(1+EE!J$5) -> 0.1110080452 | I36: =H36*(1+EE!K$5) -> 0.1132615106 | J36: =I36*(1+EE!L$5) -> 0.1155607222 | K36: =J36*(1+EE!M$5) -> 0.1179066089 | L36: =K36*(1+EE!N$5) -> 0.1203001184 | M36: =L36*(1+EE!O$5) -> 0.1227422175 | N36: =M36*(1+EE!P$5) -> 0.1252338929 | O36: =N36*(1+EE!Q$5) -> 0.1277761511
A37: sh kanal | B37: EUR/m3 | C37: =+C46/C33 -> 0.4225716094 | D37: =C37*(1+EE!F$5) -> 0.4319820996 | E37: =D37*(1+EE!G$5) -> 0.4411401201 | F37: =E37*(1+EE!H$5) -> 0.4502717206 | G37: =F37*(1+EE!I$5) -> 0.4594122365 | H37: =G37*(1+EE!J$5) -> 0.4687383107 | I37: =H37*(1+EE!K$5) -> 0.4782537073 | J37: =I37*(1+EE!L$5) -> 0.4879622702 | K37: =J37*(1+EE!M$5) -> 0.4978679213 | L37: =K37*(1+EE!N$5) -> 0.5079746624 | M37: =L37*(1+EE!O$5) -> 0.5182865764 | N37: =M37*(1+EE!P$5) -> 0.5288078292 | O37: =N37*(1+EE!Q$5) -> 0.5395426713
A38: Saastetasu | B38: EUR/m3 | C38: =C47/C33 -> 0.2670602469 | D38: 0.21 | E38: =D38*(1+EE!G$5) -> 0.214452 | F38: =E38*(1+EE!H$5) -> 0.2188911564 | G38: =F38*(1+EE!I$5) -> 0.2233346469 | H38: =G38*(1+EE!J$5) -> 0.2278683431 | I38: =H38*(1+EE!K$5) -> 0.2324940747 | J38: =I38*(1+EE!L$5) -> 0.2372137106 | K38: =J38*(1+EE!M$5) -> 0.2420291572 | L38: =K38*(1+EE!N$5) -> 0.2469423599 | M38: =L38*(1+EE!O$5) -> 0.2519553036 | N38: =M38*(1+EE!P$5) -> 0.2570700134 | O38: =N38*(1+EE!Q$5) -> 0.2622885557
A39: Vee erikasutusõiguse tasu | B39: EUR/m3 | C39: =C48/C32 -> 0.09774687515 | D39: =+C39*(1+1%) -> 0.0987243439 | E39: =+D39 -> 0.0987243439 | F39: 0.0987243439 | G39: 0.0987243439 | H39: 0.0987243439 | I39: 0.0987243439 | J39: =I39*(1+EE!L$5) -> 0.1007284507 | K39: =J39*(1+EE!M$5) -> 0.1027732418 | L39: =K39*(1+EE!N$5) -> 0.1048595432 | M39: =L39*(1+EE!O$5) -> 0.1069881977 | N39: =M39*(1+EE!P$5) -> 0.1091600654 | O39: =N39*(1+EE!Q$5) -> 0.1113760237 | P39: *seadusest tulenevalt kuni 2025
A40: Spetsiifilise tehnoloogia kulud (kemikaalid) | B40: EUR/m3 | C40: =C49/(C32+C33) -> 0.03587904386
A41: sh vesi | B41: EUR/m3 | C41: =+C50/C32 -> 0.01744546675 | D41: =C41*(1+EE!F$5) -> 0.01783396988 | E41: =D41*(1+EE!G$5) -> 0.01821205004 | F41: =E41*(1+EE!H$5) -> 0.01858903947 | G41: =F41*(1+EE!I$5) -> 0.01896639697 | H41: =G41*(1+EE!J$5) -> 0.01935141508 | I41: =H41*(1+EE!K$5) -> 0.01974424917 | J41: =I41*(1+EE!L$5) -> 0.02014505795 | K41: =J41*(1+EE!M$5) -> 0.02055400333 | L41: =K41*(1+EE!N$5) -> 0.02097125051 | M41: =L41*(1+EE!O$5) -> 0.02139696807 | N41: =M41*(1+EE!P$5) -> 0.02183132798 | O41: =N41*(1+EE!Q$5) -> 0.02227450572
A42: sh kanal | B42: EUR/m3 | C42: =+C51/C33 -> 0.06825813747 | D42: =C42*(1+EE!F$5) -> 0.06977821718 | E42: =D42*(1+EE!G$5) -> 0.07125751538 | F42: =E42*(1+EE!H$5) -> 0.07273254595 | G42: =F42*(1+EE!I$5) -> 0.07420901663 | H42: =G42*(1+EE!J$5) -> 0.07571546061 | I42: =H42*(1+EE!K$5) -> 0.0772524859 | J42: =I42*(1+EE!L$5) -> 0.0788207134 | K42: =J42*(1+EE!M$5) -> 0.08042077663 | L42: =K42*(1+EE!N$5) -> 0.082053322 | M42: =L42*(1+EE!O$5) -> 0.08371900902 | N42: =M42*(1+EE!P$5) -> 0.0854185106 | O42: =N42*(1+EE!Q$5) -> 0.08715251333
A43: MUUTUVKULUD
A44: Energiakulud | B44: EUR | C44: =+SUM('KA2019'!F157:J157)+SUM('KA2019'!N157:S157)+'KA2019'!W157 -> 21066.62 | D44: =+SUM(D45:D46) -> 22277.25964 | E44: =+SUM(E45:E46) -> 23494.33119 | F44: 25986.75502 | G44: 27237.56738 | H44: 30174.50479 | I44: 31737.56489 | J44: 33351.65089 | K44: 34028.69057 | L44: 34719.47451 | M44: 35424.28178 | N44: 36143.39711 | O44: 39906.38174
A45: sh vesi | B45: EUR | C45: =+SUM('KA2019'!N157:R157) -> 6188.92 | D45: =+D32*D36 -> 6684.703807 | E45: =+E32*E36 -> 7179.546433 | F45: 7124.696039 | G45: 5738.196407 | H45: 6013.947189 | I45: 6227.307724 | J45: 6446.852461 | K45: 6577.723791 | L45: 6711.251878 | M45: 6847.490666 | N45: 6986.495193 | O45: 8079.146536
A46: sh kanal | B46: EUR | C46: =+SUM('KA2019'!F157:J157) -> 14877.7 | D46: =+D33*D37 -> 15592.55584 | E46: =+E33*E37 -> 16314.78476 | F46: 18862.05898 | G46: 21499.37098 | H46: 24160.55761 | I46: 25510.25716 | J46: 26904.79843 | K46: 27450.96678 | L46: 28008.22263 | M46: 28576.79111 | N46: 29156.90192 | O46: 31827.23521
A47: Saastetasu | B47: EUR | C47: =+SUM('KA2019'!F161:J161)+SUM('KA2019'!N161:S161)+'KA2019'!W161 -> 9402.53 | D47: =D38*D33 -> 7580.028731 | E47: =E38*E33 -> 7931.126783 | F47: 9169.436394 | G47: 10451.51618 | H47: 11745.20218 | I47: 12401.33332 | J47: 13079.26341 | K47: 13344.77292 | L47: 13615.6724 | M47: 13892.07131 | N47: 14174.08131 | O47: 15472.21378
A48: Vee erikasutusõiguse tasu | B48: EUR | C48: =+SUM('KA2019'!F162:J162)+SUM('KA2019'!N162:S162)+'KA2019'!W162 -> 6044.96 | D48: =D39*D32 -> 6450.845934 | E48: =E39*E32 -> 6784.544625 | F48: 6596.171227 | G48: 5206.826452 | H48: 5348.468118 | I48: 5428.029929 | J48: 5619.395998 | K48: 5733.469933 | L48: 5849.85963 | M48: 5968.612107 | N48: 6089.775339 | O48: 7042.184382
A49: Spetsiifilise tehnoloogia kulud (kemikaalid) | B49: EUR | C49: =+SUM('KA2019'!F163:J163)+SUM('KA2019'!N163:S163)+'KA2019'!W163 -> 3482.08 | D49: =+SUM(D50:D51) -> 3683.978143 | E49: =+SUM(E50:E51) -> 3886.903192 | F49: 4288.803508 | G49: 4473.108654 | H49: 4951.041146 | I49: 5206.252536 | J49: 5469.785278 | K49: 5580.822111 | L49: 5694.113049 | M49: 5809.703862 | N49: 5927.641246 | O49: 6549.456932
A50: sh vesi | B50: EUR | C50: =+SUM('KA2019'!N163:R163) -> 1078.88 | D50: =+D41*D32 -> 1165.307233 | E50: =+E41*E32 -> 1251.570396 | F50: 1242.008632 | G50: 1000.307863 | H50: 1048.377963 | I50: 1085.571918 | J50: 1123.843931 | K50: 1146.658002 | L50: 1169.935211 | M50: 1193.684961 | N50: 1217.916847 | O50: 1408.392678
A51: sh kanal | B51: EUR | C51: =+SUM('KA2019'!F163:J163) -> 2403.2 | D51: =+D42*D33 -> 2518.670909 | E51: =+E42*E33 -> 2635.332796 | F51: 3046.794876 | G51: 3472.800791 | H51: 3902.663183 | I51: 4120.680617 | J51: 4345.941347 | K51: 4434.164108 | L51: 4524.177838 | M51: 4616.018901 | N51: 4709.724399 | O51: 5141.064254
A52: PÜSIKULUD
A53: Seadmete hoolduse teenus ja materjalid | B53: EUR | C53: =+SUM('KA2019'!F165:J165)+SUM('KA2019'!N165:S165)+'KA2019'!W165 -> 7596.134266 | D53: =C53*(1+EE!F$5) -> 7765.296948 | E53: =D53*(1+EE!G$5) -> 7929.921243 | F53: =E53*(1+EE!H$5) -> 8094.070613 | G53: =F53*(1+EE!I$5) -> 8258.380246 | H53: =G53*(1+EE!J$5) -> 8426.02547 | I53: =H53*(1+EE!K$5) -> 8597.073947 | J53: =I53*(1+EE!L$5) -> 8771.594774 | K53: =J53*(1+EE!M$5) -> 8949.658455 | L53: =K53*(1+EE!N$5) -> 9131.336922 | M53: =L53*(1+EE!O$5) -> 9316.703571 | N53: =M53*(1+EE!P$5) -> 9505.833288 | O53: =N53*(1+EE!Q$5) -> 9698.802479
A54: Tööjõu- ja personalikulud | B54: EUR | C54: =+SUM('KA2019'!F158:J158)+SUM('KA2019'!N158:S158)+'KA2019'!W158 -> 52593.01153 | D54: =C54*(1+EE!F$5) -> 53764.23554 | E54: =D54*(1+EE!G$5) -> 54904.03733 | F54: =E54*(1+EE!H$5) -> 56040.55091 | G54: =F54*(1+EE!I$5) -> 57178.17409 | H54: =G54*(1+EE!J$5) -> 58338.89175 | I54: =H54*(1+EE!K$5) -> 59523.17236 | J54: =I54*(1+EE!L$5) -> 60731.49433 | K54: =J54*(1+EE!M$5) -> 61964.34578 | L54: =K54*(1+EE!N$5) -> 63222.22478 | M54: =L54*(1+EE!O$5) -> 64505.63947 | N54: =M54*(1+EE!P$5) -> 65815.10834 | O54: =N54*(1+EE!Q$5) -> 67151.16041
A55: Administratiivkulud | B55: EUR | C55: =+SUM('KA2019'!F159:J159)+SUM('KA2019'!N159:S159)+'KA2019'!W159 -> 5571.662881 | D55: =C55*(1+EE!F$5) -> 5695.741445 | E55: =D55*(1+EE!G$5) -> 5816.491164 | F55: =E55*(1+EE!H$5) -> 5936.892531 | G55: =F55*(1+EE!I$5) -> 6057.411449 | H55: =G55*(1+EE!J$5) -> 6180.376979 | I55: =H55*(1+EE!K$5) -> 6305.838749 | J55: =I55*(1+EE!L$5) -> 6433.847441 | K55: =J55*(1+EE!M$5) -> 6564.454769 | L55: =K55*(1+EE!N$5) -> 6697.713495 | M55: =L55*(1+EE!O$5) -> 6833.677453 | N55: =M55*(1+EE!P$5) -> 6972.40157 | O55: =N55*(1+EE!Q$5) -> 7113.941891
A56: Kaupade ja teenuste vahendamiskulud | B56: EUR | C56: =+SUM('KA2019'!F164:J164)+SUM('KA2019'!N164:S164)+'KA2019'!W164 -> 8450.200345 | D56: =C56*(1+EE!F$5) -> 8638.382716 | E56: =D56*(1+EE!G$5) -> 8821.516429 | F56: =E56*(1+EE!H$5) -> 9004.121819 | G56: =F56*(1+EE!I$5) -> 9186.905492 | H56: =G56*(1+EE!J$5) -> 9373.399791 | I56: =H56*(1+EE!K$5) -> 9563.679984 | J56: =I56*(1+EE!L$5) -> 9757.822939 | K56: =J56*(1+EE!M$5) -> 9955.907086 | L56: =K56*(1+EE!N$5) -> 10158.01245 | M56: =L56*(1+EE!O$5) -> 10364.22067 | N56: =M56*(1+EE!P$5) -> 10574.61505 | O56: =N56*(1+EE!Q$5) -> 10789.2806
A57: Ülalpidamiskulud | B57: EUR | C57: =+SUM('KA2019'!F160:J160)+SUM('KA2019'!N160:S160)+'KA2019'!W160 -> 21637.39376 | D57: =C57*(1+EE!F$5) -> 22119.24932 | E57: =D57*(1+EE!G$5) -> 22588.17741 | F57: =E57*(1+EE!H$5) -> 23055.75268 | G57: =F57*(1+EE!I$5) -> 23523.78446 | H57: =G57*(1+EE!J$5) -> 24001.31758 | I57: =H57*(1+EE!K$5) -> 24488.54479 | J57: =I57*(1+EE!L$5) -> 24985.66289 | K57: =J57*(1+EE!M$5) -> 25492.87272 | L57: =K57*(1+EE!N$5) -> 26010.37918 | M57: =L57*(1+EE!O$5) -> 26538.39133 | N57: =M57*(1+EE!P$5) -> 27077.12248 | O57: =N57*(1+EE!Q$5) -> 27626.79027
A58: KOKKU | B58: EUR | C58: =SUM(C44,C47:C49,C53:C57) -> 135844.5928 | D58: =SUM(D44,D47:D49,D53:D57) -> 137975.0184 | E58: 142157.0494 | F58: 148172.5547 | G58: 151573.6744 | H58: 158539.2278 | I58: 163251.4905 | J58: 168200.5179 | K58: 171614.9943 | L58: 175098.7864 | M58: 178653.3015 | N58: 182279.9757 | O58: 191350.2125
A59: KONTROLL | B59: KOKKU | C59: =C29+C58 -> 298498.9171
B60: KA2019 | C60: =+SUM('KA2019'!C39:S39)+SUM('KA2019'!V39:W39)-SUM('KA2019'!C129:S129)-SUM('KA2019'!V129:W129) -> 298498.9171
B61: VAHE | C61: =C60-C59 -> 0
A62: Teenushinna kujunemine:
A63: Vee rahalised tegevkulud | B63: EUR | E63: =+E16+E19+E21+SUM(E24:E28)*51%+E45+E48+E50+SUM(E53:E57)*51% -> 138695.5942
A64: Kanali rahalised tegevkulud | B64: EUR | E64: =+E29+E58-E63-#REF! -> 
A65: Vesi of kulum | B65: EUR | E65: =+SUMIFS(PV!Q:Q,PV!$O:$O,"vesi") -> 20573.06265
A66: Kanal of kulum | B66: EUR | E66: =+SUMIFS(PV!Q:Q,PV!$O:$O,"kanal") -> 24661.29503
A67: Vesi tulukus | B67: EUR | E67: 0
A68: Kanal tulukus | B68: EUR | E68: 0
A69: Vesi hinda kokku | B69: EUR | E69: =+E63+E65+E67 -> 159268.6569 | F69: =+E69/SUM($E$69:$E$70) -> 
A70: Kanal hinda kokku | B70: EUR | E70: =+E64+E66+E68 ->  | F70: =+E70/SUM($E$69:$E$70) -> 

Sheet MAHUD
A1: Haljala valla ÜVK teenuspiirkond kokku | B1: ühik | C1: 2019 | D1: 2020 | E1: 2021 | F1: 2022 | G1: 2023 | H1: 2024 | I1: 2025 | J1: 2026 | K1: 2027 | L1: 2028 | M1: 2029 | N1: 2030 | O1: 2031 | P1: Leibkonna keskmine suurus 2011 | R1: =+'Tarbimise prognoos'!F1 -> 2.15
A2: Elanike arv | B2: in | C2: =+C21+C41+C61+C81+C101+C121+C141+C161 -> 2384 | D2: =+D21+D41+D61+D81+D101+D121+D141+D161 -> 2378.476615 | E2: 2372.844927 | F2: 2367.292005 | G2: 2361.788311 | H2: 2356.34369 | I2: 2350.83015 | J2: 2345.395375 | K2: 2339.822762 | L2: 2334.240303 | M2: 2328.411703 | N2: 2322.760325 | O2: 2317.099101
A3: ÜV-teenusega ühendatud elanikud | B3: in | C3: =+SUMIF($A$20:$A$179,$A3,C$20:C$179) -> 2176 | D3: 2227.6 | E3: 2279.2 | F3: 2346.566667 | G3: 2413.933333 | H3: 2446.9 | I3: 2464.1 | J3: 2481.3 | K3: 2481.3 | L3: 2481.3 | M3: 2481.3 | N3: 2481.3 | O3: 2775.85
A4: ühendatuse määr | B4: % | C4: =+C3/C2 -> 0.9127516779 | D4: 0.9365658617 | E4: 0.9605347462 | F4: 0.9912451281 | G4: 1.022078618 | H4: 1.038430858 | I4: 1.048182915 | J4: 1.057945294 | K4: 1.060464938 | L4: 1.063001096 | M4: 1.065662055 | N4: 1.068254858 | O4: 1.197985015
A5: ÜK-teenusega ühendatud elanikud | B5: in | C5: =+SUMIF($A$20:$A$179,$A5,C$20:C$179) -> 1960 | D5: 2005.6875 | E5: 2049.225 | F5: 2216.029167 | G5: 2382.833333 | H5: 2569.166667 | I5: 2632.233333 | J5: 2695.3 | K5: 2695.3 | L5: 2695.3 | M5: 2695.3 | N5: 2695.3 | O5: 2906
A6: ühendatuse määr | B6: % | C6: =+C5/C2 -> 0.822147651 | D6: 0.843265596 | E6: 0.8636152226 | F6: 0.936103008 | G6: 1.00891063 | H6: 1.090319157 | I6: 1.119703749 | J6: 1.149187906 | K6: 1.151924857 | L6: 1.154679746 | M6: 1.1575702 | N6: 1.160386619 | O6: 1.254154386
A7: Tarbimine elaniku kohta, ÜV-teenuse tarbijati | B7: l/päevas | C7: =+C10/C3/365*1000 -> 73.0207494 | D7: =+D10/D3/365*1000 -> 73.21361779 | E7: 73.39775328 | F7: 73.63002389 | G7: 73.84933034 | H7: 73.96894773 | I7: 74.03505544 | J7: 74.10024665 | K7: 74.10024665 | L7: 74.10024665 | M7: 74.10024665 | N7: 74.10024665 | O7: 75.04627254
A8: Tarbimine elaniku kohta, ÜK-teenuse tarbijati | B8: l/päevas | C8: =+C15/C5/365*1000 -> 66.70394185 | D8: =+D15/D5/365*1000 -> 66.63239829 | E8: 66.56104155 | F8: 66.52087495 | G8: 66.48633186 | H8: 66.31582135 | I8: 66.12942656 | J8: 65.95175459 | K8: 65.95175459 | L8: 65.95175459 | M8: 65.95175459 | N8: 65.95175459 | O8: 65.95955981
A9: Müüdud vesi | B9: m3/aastas | C9: =+SUM(C10:C11) -> 68944 | D9: 70745.23198 | E9: =+SUM(E10:E11) -> 72277.32105 | F9: 74281.02521 | G9: 76284.72937 | H9: 77280.17855 | I9: 77804.01265 | J9: 78327.84675 | K9: 78327.84675 | L9: 78327.84675 | M9: 78327.84675 | N9: 78327.84675 | O9: =+SUM(O10:O11) -> 87252.91931
A10: Füüsilistele isikutele (sh korteriühistud) | B10: m3/aastas | C10: =+C31+C51+C71+C91+C111+C131+C151+C171 -> 57996 | D10: 59528.08907 | E10: 61060.17814 | F10: 63063.8823 | G10: 65067.58646 | H10: 66063.03564 | I10: 66586.86974 | J10: 67110.70384 | K10: 67110.70384 | L10: 67110.70384 | M10: 67110.70384 | N10: 67110.70384 | O10: =+O31+O51+O71+O91+O111+O131+O151+O171 -> 76035.7764
A11: Juriidilistele isikutele (va korteriühistud) | B11: m3/aastas | C11: =+C32+C52+C72+C92+C112+C132+C152+C172 -> 10948 | D11: 11217.14291 | E11: 11217.14291 | F11: 11217.14291 | G11: 11217.14291 | H11: 11217.14291 | I11: 11217.14291 | J11: 11217.14291 | K11: 11217.14291 | L11: 11217.14291 | M11: 11217.14291 | N11: 11217.14291 | O11: =+O32+O52+O72+O92+O112+O132+O152+O172 -> 11217.14291
A12: Toodetud vesi | B12: m3/aastas | C12: =+SUMIF($A$20:$A$179,$A12,C$20:C$179) -> 105356 | D12: 109259.0026 | E12: 112856.6487 | F12: 111166.1149 | G12: 100841.3663 | H12: 102276.085 | I12: 103081.9836 | J12: 103887.8822 | K12: 103887.8822 | L12: 103887.8822 | M12: 103887.8822 | N12: 103887.8822 | O12: 111860.6018
A13: Arvestamata vesi | B13: % | C13: =+(C12-C9)/C12 -> 0.3456091727 | D13: 0.3524997456 | E13: 0.359565237 | F13: 0.331801554 | G13: 0.2435174949 | H13: 0.2443963947 | I13: 0.2452220074 | J13: 0.246034811 | K13: 0.246034811 | L13: 0.246034811 | M13: 0.246034811 | N13: 0.246034811 | O13: 0.2199852507
A14: Vastuvõetud reovesi | B14: m3/aastas | C14: =+SUM(C15:C16) -> 106933 | D14: 88237.62328 | E14: 69182.11872 | F14: 73202.1005 | G14: 77222.08227 | H14: 81584.03299 | I14: 82931.49737 | J14: 84278.96175 | K14: 84278.96175 | L14: 84278.96175 | M14: 84278.96175 | N14: 84278.96175 | O14: 89675.7792
A15: Füüsilistelt isikutelt (sh korteriühistud) | B15: m3/aastas | C15: =+C36+C56+C76+C96+C116+C136+C156+C176 -> 47720 | D15: 48779.97544 | E15: 49785.47089 | F15: 53805.45266 | G15: 57825.43444 | H15: 62187.38515 | I15: 63534.84953 | J15: 64882.31392 | K15: 64882.31392 | L15: 64882.31392 | M15: 64882.31392 | N15: 64882.31392 | O15: =+O36+O56+O76+O96+O116+O136+O156+O176 -> 69962.64549
A16: Juriidilistelt isikutelt (va korteriühistud) | B16: m3/aastas | C16: =+C37+C57+C77+C97+C117+C137+C157+C177 -> 59213 | D16: 39457.64784 | E16: 19396.64784 | F16: 19396.64784 | G16: 19396.64784 | H16: 19396.64784 | I16: 19396.64784 | J16: 19396.64784 | K16: 19396.64784 | L16: 19396.64784 | M16: 19396.64784 | N16: 19396.64784 | O16: =+O37+O57+O77+O97+O117+O137+O157+O177 -> 19713.13371
A17: Purgimine | B17: m3/aastas | C17: =+SUMIF($A$20:$A$179,$A17,C$20:C$179) -> 0 | D17: 0 | E17: 0 | F17: 0 | G17: 0 | H17: 0 | I17: 0 | J17: 0 | K17: 0 | L17: 0 | M17: 0 | N17: 0 | O17: 0
A18: Puhastatud heitvee mahud | B18: m3/aastas | C18: 163402.0693 | D18: 134584.2212 | E18: 105197.0911 | F18: 110692.3531 | G18: 112786.4396 | H18: 117532.6894 | I18: 119329.3086 | J18: 121125.9277 | K18: 121125.9277 | L18: 121125.9277 | M18: 121125.9277 | N18: 121125.9277 | O18: 120155.4656
A19: Infiltratsioon | B19: % | C19: =+(C18-C14)/C18 -> 0.3455835628 | D19: 0.3443687343 | E19: 0.3423571128 | F19: 0.3386887309 | G19: 0.3153247627 | H19: 0.3058609191 | I19: 0.3050198785 | J19: 0.3042037876 | K19: 0.3042037876 | L19: 0.3042037876 | M19: 0.3042037876 | N19: 0.3042037876 | O19: 0.253668747
A20: Võsupere küla | B20: ühik | C20: 2019 | D20: 2020 | E20: 2021 | F20: 2022 | G20: 2023 | H20: 2024 | I20: 2025 | J20: 2026 | K20: 2027 | L20: 2028 | M20: 2029 | N20: 2030 | O20: 2031
A21: Elanike arv | B21: in | C21: 127 | D21: =+C21 -> 127 | E21: =+D21 -> 127 | F21: 127 | G21: 127 | H21: 127 | I21: 127 | J21: 127 | K21: 127 | L21: 127 | M21: 127 | N21: 127 | O21: 127
A22: ÜV-teenusega ühendatud elanikud | B22: in | C22: 129 | D22: =C22+D24 -> 129 | E22: =D22+E24 -> 129 | F22: 129 | G22: 129 | H22: 129 | I22: 129 | J22: 129 | K22: 129 | L22: 129 | M22: 129 | N22: 129 | O22: 129
A23: ühendatuse määr | B23: % | C23: =+C22/C21 -> 1.015748031 | D23: 1.015748031 | E23: 1.015748031 | F23: 1.015748031 | G23: 1.015748031 | H23: 1.015748031 | I23: 1.015748031 | J23: 1.015748031 | K23: 1.015748031 | L23: 1.015748031 | M23: 1.015748031 | N23: 1.015748031 | O23: 1.015748031
A24: Uued liitujad ÜV teenusega | B24: in
A25: ÜK-teenusega ühendatud elanikud | B25: in | C25: 129 | D25: =C25+D27 -> 129 | E25: =D25+E27 -> 129 | F25: 129 | G25: 129 | H25: 129 | I25: 129 | J25: 129 | K25: 129 | L25: 129 | M25: 129 | N25: 129 | O25: 129
A26: ühendatuse määr | B26: % | C26: =+C25/C21 -> 1.015748031 | D26: 1.015748031 | E26: 1.015748031 | F26: 1.015748031 | G26: 1.015748031 | H26: 1.015748031 | I26: 1.015748031 | J26: 1.015748031 | K26: 1.015748031 | L26: 1.015748031 | M26: 1.015748031 | N26: 1.015748031 | O26: 1.015748031
A27: Uued liitujad ÜK teenusega | B27: in
A28: Tarbimine elaniku kohta, ÜV-teenuse tarbijati | B28: l/päevas | C28: =+C31/C22/365*1000 -> 38.14378252 | D28: =+C28 -> 38.14378252 | E28: =+D28 -> 38.14378252 | F28: =+E28 -> 38.14378252 | G28: 38.14378252 | H28: 38.14378252 | I28: 38.14378252 | J28: 38.14378252 | K28: 38.14378252 | L28: 38.14378252 | M28: 38.14378252 | N28: 38.14378252 | O28: =+N28 -> 38.14378252
A29: Tarbimine elaniku kohta, ÜK-teenuse tarbijati | B29: l/päevas | C29: =+C36/C25/365*1000 -> 33.89614527 | D29: =+C29 -> 33.89614527 | E29: =+D29 -> 33.89614527 | F29: 33.89614527 | G29: 33.89614527 | H29: 33.89614527 | I29: 33.89614527 | J29: 33.89614527 | K29: 33.89614527 | L29: 33.89614527 | M29: 33.89614527 | N29: 33.89614527 | O29: 33.89614527
A30: Müüdud vesi | B30: m3/aastas | C30: =+SUM(C31:C32) -> 4275 | D30: 4364.8 | E30: 4364.8 | F30: 4364.8 | G30: 4364.8 | H30: 4364.8 | I30: 4364.8 | J30: 4364.8 | K30: 4364.8 | L30: 4364.8 | M30: 4364.8 | N30: 4364.8 | O30: 4364.8
A31: Füüsilistele isikutele (sh korteriühistud) | B31: m3/aastas | C31: 1796 | D31: =D22*D28*0.365 -> 1796 | E31: =E22*E28*0.365 -> 1796 | F31: 1796 | G31: 1796 | H31: 1796 | I31: 1796 | J31: 1796 | K31: 1796 | L31: 1796 | M31: 1796 | N31: 1796 | O31: 1796
A32: Juriidilistele isikutele (va korteriühistud) | B32: m3/aastas | C32: 2479 | D32: =C32+'Tarbimise prognoos'!AP11*'Tarbimise prognoos'!$F$1*D28*365/1000 -> 2568.8 | E32: =D32 -> 2568.8 | F32: 2568.8 | G32: 2568.8 | H32: 2568.8 | I32: 2568.8 | J32: 2568.8 | K32: 2568.8 | L32: 2568.8 | M32: 2568.8 | N32: 2568.8 | O32: 2568.8
A33: Toodetud vesi | B33: m3/aastas | C33: 5660 | D33: =D30/(1-D34) -> 5778.893099 | E33: 5778.893099 | F33: =F30/(1-F34) -> 5778.893099 | G33: =G30/(1-G34) -> 5778.893099 | H33: 5778.893099 | I33: =I30/(1-I34) -> 5778.893099 | J33: 5778.893099 | K33: 5778.893099 | L33: 5778.893099 | M33: 5778.893099 | N33: 5778.893099 | O33: 5778.893099
A34: Arvestamata vesi | B34: % | C34: =+(C33-C30)/C33 -> 0.2446996466 | D34: =C34 -> 0.2446996466 | E34: =D34 -> 0.2446996466 | F34: 0.2446996466 | G34: 0.2446996466 | H34: 0.2446996466 | I34: 0.2446996466 | J34: 0.2446996466 | K34: 0.2446996466 | L34: 0.2446996466 | M34: 0.2446996466 | N34: 0.2446996466 | O34: 0.2446996466
A35: Vastuvõetud reovesi | B35: m3/aastas | C35: =SUM(C36:C37) -> 3832 | D35: 3832 | E35: 3832 | F35: 3832 | G35: 3832 | H35: 3832 | I35: =SUM(I36:I37) -> 3832 | J35: =SUM(J36:J37) -> 3832 | K35: 3832 | L35: 3832 | M35: 3832 | N35: 3832 | O35: 3965
A36: Füüsilistelt isikutelt (sh korteriühistud) | B36: m3/aastas | C36: 1596 | D36: =D25*D29*0.365 -> 1596 | E36: =E25*E29*0.365 -> 1596 | F36: 1596 | G36: 1596 | H36: 1596 | I36: 1596 | J36: 1596 | K36: 1596 | L36: 1596 | M36: 1596 | N36: 1596 | O36: 1596
A37: Juriidilistelt isikutelt (va korteriühistud) | B37: m3/aastas | C37: 2236 | D37: =C37 -> 2236 | E37: =D37 -> 2236 | F37: 2236 | G37: 2236 | H37: 2236 | I37: 2236 | J37: 2236 | K37: 2236 | L37: 2236 | M37: 2236 | N37: 2236 | O37: =N37+'Tarbimise prognoos'!AR24*'Tarbimise prognoos'!$F$1*O29*365/1000 -> 2369
A38: Puhastatud heitvee mahud | B38: m3/aastas | C38: =C35/(1-C39) -> 5109.333333 | D38: 5109.333333 | E38: 5109.333333 | F38: 5109.333333 | G38: 5109.333333 | H38: 5109.333333 | I38: =I35/(1-I39) -> 5109.333333 | J38: =J35/(1-J39) -> 5109.333333 | K38: 5109.333333 | L38: 5109.333333 | M38: 5109.333333 | N38: 5109.333333 | O38: 5286.666667
A39: Infiltratsioon | B39: % | C39: 0.25 | D39: =C39 -> 0.25 | E39: =D39 -> 0.25 | F39: 0.25 | G39: 0.25 | H39: 0.25 | I39: 0.25 | J39: 0.25 | K39: 0.25 | L39: 0.25 | M39: 0.25 | N39: 0.25 | O39: 0.25
A40: Võsu alevik | B40: ühik | C40: 2019 | D40: 2020 | E40: 2021 | F40: 2022 | G40: 2023 | H40: 2024 | I40: 2025 | J40: 2026 | K40: 2027 | L40: 2028 | M40: 2029 | N40: 2030 | O40: 2031
A41: Elanike arv | B41: in | C41: 418 | D41: =+C41 -> 418 | E41: =+D41 -> 418 | F41: 418 | G41: 418 | H41: 418 | I41: 418 | J41: 418 | K41: 418 | L41: 418 | M41: 418 | N41: 418 | O41: 418
A42: ÜV-teenusega ühendatud elanikud | B42: in | C42: 393 | D42: =C42+D44 -> 422.5625 | E42: =D42+E44 -> 452.125 | F42: 481.6875 | G42: 511.25 | H42: 528.45 | I42: 545.65 | J42: 562.85 | K42: 562.85 | L42: 562.85 | M42: 562.85 | N42: 562.85 | O42: 840.2
A43: ühendatuse määr | B43: % | C43: =+C42/C41 -> 0.9401913876 | D43: 1.010915072 | E43: 1.081638756 | F43: 1.15236244 | G43: 1.223086124 | H43: 1.26423445 | I43: 1.305382775 | J43: 1.3465311 | K43: 1.3465311 | L43: 1.3465311 | M43: 1.3465311 | N43: 1.3465311 | O43: 2.010047847
A44: Uued liitujad ÜV teenusega | B44: in | D44: =+'Tarbimise prognoos'!$AM$7/4*'Tarbimise prognoos'!$F$1 -> 29.5625 | E44: =+'Tarbimise prognoos'!$AM$7/4*'Tarbimise prognoos'!$F$1 -> 29.5625 | F44: =+'Tarbimise prognoos'!$AM$7/4*'Tarbimise prognoos'!$F$1 -> 29.5625 | G44: =+'Tarbimise prognoos'!$AM$7/4*'Tarbimise prognoos'!$F$1 -> 29.5625 | H44: =+'Tarbimise prognoos'!$AN$7/3*'Tarbimise prognoos'!$F$1 -> 17.2 | I44: =+'Tarbimise prognoos'!$AN$7/3*'Tarbimise prognoos'!$F$1 -> 17.2 | J44: =+'Tarbimise prognoos'!$AN$7/3*'Tarbimise prognoos'!$F$1 -> 17.2 | O44: =+'Tarbimise prognoos'!AO7*'Tarbimise prognoos'!$F$1 -> 277.35
A45: ÜK-teenusega ühendatud elanikud | B45: in | C45: 350 | D45: =C45+D47 -> 377.95 | E45: =D45+E47 -> 405.9 | F45: 433.85 | G45: 461.8 | H45: 524.8666667 | I45: 587.9333333 | J45: 651 | K45: 651 | L45: 651 | M45: 651 | N45: 651 | O45: 780
A46: ühendatuse määr | B46: % | C46: =+C45/C41 -> 0.8373205742 | D46: 0.9041866029 | E46: 0.9710526316 | F46: 1.03791866 | G46: 1.104784689 | H46: 1.255661882 | I46: 1.406539075 | J46: 1.557416268 | K46: 1.557416268 | L46: 1.557416268 | M46: 1.557416268 | N46: 1.557416268 | O46: 1.866028708
A47: Uued liitujad ÜK teenusega | B47: in | D47: =+'Tarbimise prognoos'!$AM$20/4*'Tarbimise prognoos'!$F$1 -> 27.95 | E47: =+'Tarbimise prognoos'!$AM$20/4*'Tarbimise prognoos'!$F$1 -> 27.95 | F47: =+'Tarbimise prognoos'!$AM$20/4*'Tarbimise prognoos'!$F$1 -> 27.95 | G47: =+'Tarbimise prognoos'!$AM$20/4*'Tarbimise prognoos'!$F$1 -> 27.95 | H47: =+'Tarbimise prognoos'!$AN$20/3*'Tarbimise prognoos'!$F$1 -> 63.06666667 | I47: =+'Tarbimise prognoos'!$AN$20/3*'Tarbimise prognoos'!$F$1 -> 63.06666667 | J47: =+'Tarbimise prognoos'!$AN$20/3*'Tarbimise prognoos'!$F$1 -> 63.06666667 | O47: =+'Tarbimise prognoos'!AO20*'Tarbimise prognoos'!F1 -> 129
A48: Tarbimine elaniku kohta, ÜV-teenuse tarbijati | B48: l/päevas | C48: =+C51/C42/365*1000 -> 83.43964586 | D48: =+C48 -> 83.43964586 | E48: =+D48 -> 83.43964586 | F48: =+E48 -> 83.43964586 | G48: 83.43964586 | H48: 83.43964586 | I48: 83.43964586 | J48: 83.43964586 | K48: 83.43964586 | L48: 83.43964586 | M48: 83.43964586 | N48: 83.43964586 | O48: 83.43964586
A49: Tarbimine elaniku kohta, ÜK-teenuse tarbijati | B49: l/päevas | C49: =+C56/C45/365*1000 -> 58.53620352 | D49: =+C49 -> 58.53620352 | E49: =+D49 -> 58.53620352 | F49: 58.53620352 | G49: 58.53620352 | H49: 58.53620352 | I49: 58.53620352 | J49: 58.53620352 | K49: 58.53620352 | L49: 58.53620352 | M49: 58.53620352 | N49: 58.53620352 | O49: 58.53620352
A50: Müüdud vesi | B50: m3/aastas | C50: =+SUM(C51:C52) -> 13455 | D50: 14355.33985 | E50: 15255.67971 | F50: 16156.01956 | G50: 17056.35941 | H50: 17580.19351 | I50: 18104.02761 | J50: 18627.8617 | K50: 18627.8617 | L50: 18627.8617 | M50: 18627.8617 | N50: 18627.8617 | O50: 27074.68651
A51: Füüsilistele isikutele (sh korteriühistud) | B51: m3/aastas | C51: 11969 | D51: =D42*D48*0.365 -> 12869.33985 | E51: =E42*E48*0.365 -> 13769.67971 | F51: 14670.01956 | G51: 15570.35941 | H51: 16094.19351 | I51: 16618.02761 | J51: 17141.8617 | K51: 17141.8617 | L51: 17141.8617 | M51: 17141.8617 | N51: 17141.8617 | O51: 25588.68651
A52: Juriidilistele isikutele (va korteriühistud) | B52: m3/aastas | C52: 1486 | D52: =C52 -> 1486 | E52: =D52 -> 1486 | F52: 1486 | G52: 1486 | H52: 1486 | I52: 1486 | J52: 1486 | K52: 1486 | L52: 1486 | M52: 1486 | N52: 1486 | O52: 1486
A53: Toodetud vesi | B53: m3/aastas | C53: 34964 | D53: =D50/(1-D54) -> 37303.61224 | E53: 39643.22447 | F53: =F50/(1-F54) -> 41982.83671 | G53: =G50/(1-G54) -> 26240.55295 | H53: 27046.45156 | I53: =I50/(1-I54) -> 27852.35017 | J53: =J50/(1-J54) -> 28658.24878 | K53: 28658.24878 | L53: 28658.24878 | M53: 28658.24878 | N53: 28658.24878 | O53: 36099.58202
A54: Arvestamata vesi | B54: % | C54: =+(C53-C50)/C53 -> 0.6151756092 | D54: =C54 -> 0.6151756092 | E54: =D54 -> 0.6151756092 | F54: 0.6151756092 | G54: 0.35 | H54: 0.35 | I54: 0.35 | J54: 0.35 | K54: 0.35 | L54: 0.35 | M54: 0.35 | N54: 0.35 | O54: 0.25
A55: Vastuvõetud reovesi | B55: m3/aastas | C55: =SUM(C56:C57) -> 8843 | D55: 9440.171714 | E55: 10037.34343 | F55: 10634.51514 | G55: 11231.68686 | H55: 12579.15124 | I55: =SUM(I56:I57) -> 13926.61562 | J55: =SUM(J56:J57) -> 15274.08 | K55: 15274.08 | L55: 15274.08 | M55: 15274.08 | N55: 15274.08 | O55: 18030.25714
A56: Füüsilistelt isikutelt (sh korteriühistud) | B56: m3/aastas | C56: 7478 | D56: =D45*D49*0.365 -> 8075.171714 | E56: =E45*E49*0.365 -> 8672.343429 | F56: 9269.515143 | G56: 9866.686857 | H56: 11214.15124 | I56: 12561.61562 | J56: 13909.08 | K56: 13909.08 | L56: 13909.08 | M56: 13909.08 | N56: 13909.08 | O56: 16665.25714
A57: Juriidilistelt isikutelt (va korteriühistud) | B57: m3/aastas | C57: 1365 | D57: =C57 -> 1365 | E57: =D57 -> 1365 | F57: 1365 | G57: 1365 | H57: 1365 | I57: 1365 | J57: 1365 | K57: 1365 | L57: 1365 | M57: 1365 | N57: 1365 | O57: 1365
A58: Puhastatud heitvee mahud | B58: m3/aastas | C58: =C55/(1-C59) -> 12632.85714 | D58: 13485.95959 | E58: 14339.06204 | F58: 15192.16449 | G58: 16045.26694 | H58: 16772.20165 | I58: =I55/(1-I59) -> 18568.82083 | J58: =J55/(1-J59) -> 20365.44 | K58: 20365.44 | L58: 20365.44 | M58: 20365.44 | N58: 20365.44 | O58: 24040.34286
A59: Infiltratsioon | B59: % | C59: 0.3 | D59: =C59 -> 0.3 | E59: =D59 -> 0.3 | F59: 0.3 | G59: 0.3 | H59: 0.25 | I59: 0.25 | J59: 0.25 | K59: 0.25 | L59: 0.25 | M59: 0.25 | N59: 0.25 | O59: 0.25
A60: Käsmu küla | B60: ühik | C60: 2019 | D60: 2020 | E60: 2021 | F60: 2022 | G60: 2023 | H60: 2024 | I60: 2025 | J60: 2026 | K60: 2027 | L60: 2028 | M60: 2029 | N60: 2030 | O60: 2031
A61: Elanike arv | B61: in | C61: 144 | D61: =+C61 -> 144 | E61: =+D61 -> 144 | F61: 144 | G61: 144 | H61: 144 | I61: 144 | J61: 144 | K61: 144 | L61: 144 | M61: 144 | N61: 144 | O61: 144
A62: ÜV-teenusega ühendatud elanikud | B62: in | C62: 148 | D62: =C62+D64 -> 148 | E62: =D62+E64 -> 148 | F62: 163.7666667 | G62: 179.5333333 | H62: 195.3 | I62: 195.3 | J62: 195.3 | K62: 195.3 | L62: 195.3 | M62: 195.3 | N62: 195.3 | O62: 195.3
A63: ühendatuse määr | B63: % | C63: =+C62/C61 -> 1.027777778 | D63: 1.027777778 | E63: 1.027777778 | F63: 1.137268519 | G63: 1.246759259 | H63: 1.35625 | I63: 1.35625 | J63: 1.35625 | K63: 1.35625 | L63: 1.35625 | M63: 1.35625 | N63: 1.35625 | O63: 1.35625
A64: Uued liitujad ÜV teenusega | B64: in | F64: =+'Tarbimise prognoos'!$AN$10*'Tarbimise prognoos'!$F$1/3 -> 15.76666667 | G64: =+'Tarbimise prognoos'!$AN$10*'Tarbimise prognoos'!$F$1/3 -> 15.76666667 | H64: =+'Tarbimise prognoos'!$AN$10*'Tarbimise prognoos'!$F$1/3 -> 15.76666667
A65: ÜK-teenusega ühendatud elanikud | B65: in | F65: =E65+F67 -> 123.2666667 | G65: =F65+G67 -> 246.5333333 | H65: 369.8 | I65: 369.8 | J65: 369.8 | K65: 369.8 | L65: 369.8 | M65: 369.8 | N65: 369.8 | O65: 369.8
A66: ühendatuse määr | B66: % | F66: =+F65/F61 -> 0.8560185185 | G66: 1.712037037 | H66: 2.568055556 | I66: 2.568055556 | J66: 2.568055556 | K66: 2.568055556 | L66: 2.568055556 | M66: 2.568055556 | N66: 2.568055556 | O66: 2.568055556
A67: Uued liitujad ÜK teenusega | B67: in | F67: =+'Tarbimise prognoos'!$AN$23*'Tarbimise prognoos'!$F$1/3 -> 123.2666667 | G67: =+'Tarbimise prognoos'!$AN$23*'Tarbimise prognoos'!$F$1/3 -> 123.2666667 | H67: =+'Tarbimise prognoos'!$AN$23*'Tarbimise prognoos'!$F$1/3 -> 123.2666667
A68: Tarbimine elaniku kohta, ÜV-teenuse tarbijati | B68: l/päevas | C68: =+C71/C62/365*1000 -> 81.95112921 | D68: =+C68 -> 81.95112921 | E68: =+D68 -> 81.95112921 | F68: =+E68 -> 81.95112921 | G68: 81.95112921 | H68: 81.95112921 | I68: 81.95112921 | J68: 81.95112921 | K68: 81.95112921 | L68: 81.95112921 | M68: 81.95112921 | N68: 81.95112921 | O68: 81.95112921
A69: Tarbimine elaniku kohta, ÜK-teenuse tarbijati | B69: l/päevas | F69: 67 | G69: 67 | H69: 67 | I69: 67 | J69: 67 | K69: 67 | L69: 67 | M69: 67 | N69: 67 | O69: 67
A70: Müüdud vesi | B70: m3/aastas | C70: =+SUM(C71:C72) -> 5088 | D70: 5088 | E70: 5088 | F70: 5559.61509 | G70: 6031.23018 | H70: 6502.84527 | I70: 6502.84527 | J70: 6502.84527 | K70: 6502.84527 | L70: 6502.84527 | M70: 6502.84527 | N70: 6502.84527 | O70: 6502.84527
A71: Füüsilistele isikutele (sh korteriühistud) | B71: m3/aastas | C71: 4427 | D71: =D62*D68*0.365 -> 4427 | E71: =E62*E68*0.365 -> 4427 | F71: 4898.61509 | G71: 5370.23018 | H71: 5841.84527 | I71: 5841.84527 | J71: 5841.84527 | K71: 5841.84527 | L71: 5841.84527 | M71: 5841.84527 | N71: 5841.84527 | O71: 5841.84527
A72: Juriidilistele isikutele (va korteriühistud) | B72: m3/aastas | C72: 661 | D72: =C72 -> 661 | E72: =D72 -> 661 | F72: 661 | G72: 661 | H72: 661 | I72: 661 | J72: 661 | K72: 661 | L72: 661 | M72: 661 | N72: 661 | O72: 661
A73: Toodetud vesi | B73: m3/aastas | C73: 12701 | D73: =D70/(1-D74) -> 12701 | E73: 12701 | F73: =F70/(1-F74) -> 7412.82012 | G73: =G70/(1-G74) -> 8041.64024 | H73: 8670.46036 | I73: =I70/(1-I74) -> 8670.46036 | J73: =J70/(1-J74) -> 8670.46036 | K73: 8670.46036 | L73: 8670.46036 | M73: 8670.46036 | N73: 8670.46036 | O73: 8670.46036
A74: Arvestamata vesi | B74: % | C74: =+(C73-C70)/C73 -> 0.5994016219 | D74: =C74 -> 0.5994016219 | E74: =D74 -> 0.5994016219 | F74: 0.25 | G74: 0.25 | H74: 0.25 | I74: 0.25 | J74: 0.25 | K74: 0.25 | L74: 0.25 | M74: 0.25 | N74: 0.25 | O74: 0.25
A75: Vastuvõetud reovesi | B75: m3/aastas | F75: =SUM(F76:F77) -> 3014.486333 | G75: 6028.972667 | H75: 9043.459 | I75: =SUM(I76:I77) -> 9043.459 | J75: =SUM(J76:J77) -> 9043.459 | K75: 9043.459 | L75: 9043.459 | M75: 9043.459 | N75: 9043.459 | O75: 9043.459
A76: Füüsilistelt isikutelt (sh korteriühistud) | B76: m3/aastas | F76: =F65*F69*0.365 -> 3014.486333 | G76: =G65*G69*0.365 -> 6028.972667 | H76: 9043.459 | I76: 9043.459 | J76: 9043.459 | K76: 9043.459 | L76: =L65*L69*0.365 -> 9043.459 | M76: 9043.459 | N76: 9043.459 | O76: 9043.459
A77: Juriidilistelt isikutelt (va korteriühistud) | B77: m3/aastas | F77: =E77 -> 0 | G77: 0 | H77: 0 | I77: 0 | J77: 0 | K77: 0 | L77: 0 | M77: 0 | N77: 0 | O77: 0
A78: Puhastatud heitvee mahud | B78: m3/aastas | F78: =F75/(1-F79) -> 4019.315111 | G78: 8038.630222 | H78: 12057.94533 | I78: =I75/(1-I79) -> 12057.94533 | J78: =J75/(1-J79) -> 12057.94533 | K78: 12057.94533 | L78: 12057.94533 | M78: 12057.94533 | N78: 12057.94533 | O78: 12057.94533
A79: Infiltratsioon | B79: % | F79: 0.25 | G79: =F79 -> 0.25 | H79: 0.25 | I79: 0.25 | J79: 0.25 | K79: 0.25 | L79: 0.25 | M79: 0.25 | N79: 0.25 | O79: 0.25
A80: Vergi küla | B80: ühik | C80: 2019 | D80: 2020 | E80: 2021 | F80: 2022 | G80: 2023 | H80: 2024 | I80: 2025 | J80: 2026 | K80: 2027 | L80: 2028 | M80: 2029 | N80: 2030 | O80: 2031
A81: Elanike arv | B81: in | C81: 81 | D81: =+C81 -> 81 | E81: =+D81 -> 81 | F81: 81 | G81: 81 | H81: 81 | I81: 81 | J81: 81 | K81: 81 | L81: 81 | M81: 81 | N81: 81 | O81: 81
A82: ÜV-teenusega ühendatud elanikud | B82: in | C82: 79 | D82: =C82+D84 -> 93.5125 | E82: =D82+E84 -> 108.025 | F82: 122.5375 | G82: 137.05 | H82: 137.05 | I82: 137.05 | J82: 137.05 | K82: 137.05 | L82: 137.05 | M82: 137.05 | N82: 137.05 | O82: 137.05
A83: ühendatuse määr | B83: % | C83: =+C82/C81 -> 0.975308642 | D83: 1.154475309 | E83: 1.333641975 | F83: 1.512808642 | G83: 1.691975309 | H83: 1.691975309 | I83: 1.691975309 | J83: 1.691975309 | K83: 1.691975309 | L83: 1.691975309 | M83: 1.691975309 | N83: 1.691975309 | O83: 1.691975309
A84: Uued liitujad ÜV teenusega | B84: in | D84: =+'Tarbimise prognoos'!$AM$13*'Tarbimise prognoos'!$F$1/4 -> 14.5125 | E84: =+'Tarbimise prognoos'!$AM$13*'Tarbimise prognoos'!$F$1/4 -> 14.5125 | F84: =+'Tarbimise prognoos'!$AM$13*'Tarbimise prognoos'!$F$1/4 -> 14.5125 | G84: =+'Tarbimise prognoos'!$AM$13*'Tarbimise prognoos'!$F$1/4 -> 14.5125
A85: ÜK-teenusega ühendatud elanikud | B85: in | C85: 74 | D85: =C85+D87 -> 76.15 | E85: =D85+E87 -> 78.3 | F85: 80.45 | G85: 82.6 | H85: 82.6 | I85: 82.6 | J85: 82.6 | K85: 82.6 | L85: 82.6 | M85: 82.6 | N85: 82.6 | O85: 82.6
A86: ühendatuse määr | B86: % | C86: =+C85/C81 -> 0.9135802469 | D86: 0.9401234568 | E86: 0.9666666667 | F86: 0.9932098765 | G86: 1.019753086 | H86: 1.019753086 | I86: 1.019753086 | J86: 1.019753086 | K86: 1.019753086 | L86: 1.019753086 | M86: 1.019753086 | N86: 1.019753086 | O86: 1.019753086
A87: Uued liitujad ÜK teenusega | B87: in | D87: =+'Tarbimise prognoos'!$AM$26*'Tarbimise prognoos'!$F$1/4 -> 2.15 | E87: =+'Tarbimise prognoos'!$AM$26*'Tarbimise prognoos'!$F$1/4 -> 2.15 | F87: =+'Tarbimise prognoos'!$AM$26*'Tarbimise prognoos'!$F$1/4 -> 2.15 | G87: =+'Tarbimise prognoos'!$AM$26*'Tarbimise prognoos'!$F$1/4 -> 2.15
A88: Tarbimine elaniku kohta, ÜV-teenuse tarbijati | B88: l/päevas | C88: =+C91/C82/365*1000 -> 79.76417548 | D88: =+C88 -> 79.76417548 | E88: =+D88 -> 79.76417548 | F88: =+E88 -> 79.76417548 | G88: 79.76417548 | H88: 79.76417548 | I88: 79.76417548 | J88: 79.76417548 | K88: 79.76417548 | L88: 79.76417548 | M88: 79.76417548 | N88: 79.76417548 | O88: 79.76417548
A89: Tarbimine elaniku kohta, ÜK-teenuse tarbijati | B89: l/päevas | C89: =+C96/C85/365*1000 -> 33.20992225 | D89: =+C89 -> 33.20992225 | E89: =+D89 -> 33.20992225 | F89: 33.20992225 | G89: 33.20992225 | H89: 33.20992225 | I89: 33.20992225 | J89: 33.20992225 | K89: 33.20992225 | L89: 33.20992225 | M89: 33.20992225 | N89: 33.20992225 | O89: 33.20992225
A90: Müüdud vesi | B90: m3/aastas | C90: =+SUM(C91:C92) -> 2862 | D90: 3284.515823 | E90: 3707.031646 | F90: 4129.547468 | G90: 4552.063291 | H90: 4552.063291 | I90: 4552.063291 | J90: 4552.063291 | K90: 4552.063291 | L90: 4552.063291 | M90: 4552.063291 | N90: 4552.063291 | O90: 4552.063291
A91: Füüsilistele isikutele (sh korteriühistud) | B91: m3/aastas | C91: 2300 | D91: =D82*D88*0.365 -> 2722.515823 | E91: =E82*E88*0.365 -> 3145.031646 | F91: 3567.547468 | G91: 3990.063291 | H91: 3990.063291 | I91: 3990.063291 | J91: 3990.063291 | K91: 3990.063291 | L91: 3990.063291 | M91: 3990.063291 | N91: 3990.063291 | O91: 3990.063291
A92: Juriidilistele isikutele (va korteriühistud) | B92: m3/aastas | C92: 562 | D92: =C92 -> 562 | E92: =D92 -> 562 | F92: 562 | G92: 562 | H92: 562 | I92: 562 | J92: 562 | K92: 562 | L92: 562 | M92: 562 | N92: 562 | O92: 562
A93: Toodetud vesi | B93: m3/aastas | C93: 7048 | D93: =D90/(1-D94) -> 8088.493193 | E93: 9128.986386 | F93: =F90/(1-F94) -> 10169.47958 | G93: =G90/(1-G94) -> 11209.97277 | H93: 11209.97277 | I93: =I90/(1-I94) -> 11209.97277 | J93: =J90/(1-J94) -> 11209.97277 | K93: 11209.97277 | L93: 11209.97277 | M93: 11209.97277 | N93: 11209.97277 | O93: 11209.97277
A94: Arvestamata vesi | B94: % | C94: =+(C93-C90)/C93 -> 0.5939273553 | D94: =C94 -> 0.5939273553 | E94: =D94 -> 0.5939273553 | F94: 0.5939273553 | G94: 0.5939273553 | H94: 0.5939273553 | I94: 0.5939273553 | J94: 0.5939273553 | K94: 0.5939273553 | L94: 0.5939273553 | M94: 0.5939273553 | N94: 0.5939273553 | O94: 0.5939273553
A95: Vastuvõetud reovesi | B95: m3/aastas | C95: =SUM(C96:C97) -> 1235 | D95: 1261.061486 | E95: 1287.122973 | F95: 1313.184459 | G95: 1339.245946 | H95: 1339.245946 | I95: =SUM(I96:I97) -> 1339.245946 | J95: =SUM(J96:J97) -> 1339.245946 | K95: 1339.245946 | L95: 1339.245946 | M95: 1339.245946 | N95: 1339.245946 | O95: 1339.245946
A96: Füüsilistelt isikutelt (sh korteriühistud) | B96: m3/aastas | C96: 897 | D96: =D85*D89*0.365 -> 923.0614865 | E96: =E85*E89*0.365 -> 949.122973 | F96: 975.1844595 | G96: 1001.245946 | H96: 1001.245946 | I96: 1001.245946 | J96: 1001.245946 | K96: 1001.245946 | L96: 1001.245946 | M96: 1001.245946 | N96: 1001.245946 | O96: 1001.245946
A97: Juriidilistelt isikutelt (va korteriühistud) | B97: m3/aastas | C97: 338 | D97: =C97 -> 338 | E97: =D97 -> 338 | F97: 338 | G97: 338 | H97: 338 | I97: 338 | J97: 338 | K97: 338 | L97: 338 | M97: 338 | N97: 338 | O97: 338
A98: Puhastatud heitvee mahud | B98: m3/aastas | C98: =C95/(1-C99) -> 1646.666667 | D98: 1681.415315 | E98: 1716.163964 | F98: 1750.912613 | G98: 1785.661261 | H98: 1785.661261 | I98: =I95/(1-I99) -> 1785.661261 | J98: =J95/(1-J99) -> 1785.661261 | K98: 1785.661261 | L98: 1785.661261 | M98: 1785.661261 | N98: 1785.661261 | O98: 1785.661261
A99: Infiltratsioon | B99: % | C99: 0.25 | D99: =C99 -> 0.25 | E99: =D99 -> 0.25 | F99: 0.25 | G99: 0.25 | H99: 0.25 | I99: 0.25 | J99: 0.25 | K99: 0.25 | L99: 0.25 | M99: 0.25 | N99: 0.25 | O99: 0.25
A100: Vihula küla | B100: ühik | C100: 2019 | D100: 2020 | E100: 2021 | F100: 2022 | G100: 2023 | H100: 2024 | I100: 2025 | J100: 2026 | K100: 2027 | L100: 2028 | M100: 2029 | N100: 2030 | O100: 2031
A101: Elanike arv | B101: in | C101: 85 | D101: =C101*(1+STAT!C$13) -> 84.1690482 | E101: =D101*(1+STAT!D$13) -> 83.32180323 | F101: =E101*(1+STAT!E$13) -> 82.48640783 | G101: =F101*(1+STAT!F$13) -> 81.65841843 | H101: =G101*(1+STAT!G$13) -> 80.83931621 | I101: =H101*(1+STAT!H$13) -> 80.00984561 | J101: =I101*(1+STAT!I$13) -> 79.19222458 | K101: =J101*(1+STAT!J$13) -> 78.3538668 | L101: =K101*(1+STAT!K$13) -> 77.51402781 | M101: =L101*(1+STAT!L$13) -> 76.63715889 | N101: =M101*(1+STAT!M$13) -> 75.78695152 | O101: =N101*(1+STAT!N$13) -> 74.93526296
A102: ÜV-teenusega ühendatud elanikud | B102: in | C102: 37 | D102: =C102+D104 -> 37 | E102: =D102+E104 -> 37 | F102: 37 | G102: 37 | H102: 37 | I102: 37 | J102: 37 | K102: 37 | L102: 37 | M102: 37 | N102: 37 | O102: 37
A103: ühendatuse määr | B103: % | C103: =+C102/C101 -> 0.4352941176 | D103: 0.439591522 | E103: 0.4440614409 | F103: 0.4485587501 | G103: 0.4531069878 | H103: 0.4576980823 | I103: 0.4624430871 | J103: 0.467217586 | K103: 0.4722166437 | L103: 0.4773329557 | M103: 0.4827945156 | N103: 0.4882106914 | O103: 0.4937595271
A104: Uued liitujad ÜV teenusega | B104: in
A105: ÜK-teenusega ühendatud elanikud | B105: in | C105: 37 | D105: =C105+D107 -> 37 | E105: =D105+E107 -> 37 | F105: 37 | G105: 37 | H105: 37 | I105: 37 | J105: 37 | K105: 37 | L105: 37 | M105: 37 | N105: 37 | O105: 37
A106: ühendatuse määr | B106: % | C106: =+C105/C101 -> 0.4352941176 | D106: 0.439591522 | E106: 0.4440614409 | F106: 0.4485587501 | G106: 0.4531069878 | H106: 0.4576980823 | I106: 0.4624430871 | J106: 0.467217586 | K106: 0.4722166437 | L106: 0.4773329557 | M106: 0.4827945156 | N106: 0.4882106914 | O106: 0.4937595271
A107: Uued liitujad ÜK teenusega | B107: in
A108: Tarbimine elaniku kohta, ÜV-teenuse tarbijati | B108: l/päevas | C108: =+C111/C102/365*1000 -> 55.38689374 | D108: =+C108 -> 55.38689374 | E108: =+D108 -> 55.38689374 | F108: =+E108 -> 55.38689374 | G108: 55.38689374 | H108: 55.38689374 | I108: 55.38689374 | J108: 55.38689374 | K108: 55.38689374 | L108: 55.38689374 | M108: 55.38689374 | N108: 55.38689374 | O108: 55.38689374
A109: Tarbimine elaniku kohta, ÜK-teenuse tarbijati | B109: l/päevas | C109: =+C116/C105/365*1000 -> 55.38689374 | D109: =+C109 -> 55.38689374 | E109: =+D109 -> 55.38689374 | F109: 55.38689374 | G109: 55.38689374 | H109: 55.38689374 | I109: 55.38689374 | J109: 55.38689374 | K109: 55.38689374 | L109: 55.38689374 | M109: 55.38689374 | N109: 55.38689374 | O109: 55.38689374
A110: Müüdud vesi | B110: m3/aastas | C110: =+SUM(C111:C112) -> 990 | D110: 990 | E110: 990 | F110: 990 | G110: 990 | H110: 990 | I110: 990 | J110: 990 | K110: 990 | L110: 990 | M110: 990 | N110: 990 | O110: 990
A111: Füüsilistele isikutele (sh korteriühistud) | B111: m3/aastas | C111: 748 | D111: =D102*D108*0.365 -> 748 | E111: =E102*E108*0.365 -> 748 | F111: 748 | G111: 748 | H111: 748 | I111: 748 | J111: 748 | K111: 748 | L111: 748 | M111: 748 | N111: 748 | O111: 748
A112: Juriidilistele isikutele (va korteriühistud) | B112: m3/aastas | C112: 242 | D112: =C112 -> 242 | E112: =D112 -> 242 | F112: 242 | G112: 242 | H112: 242 | I112: 242 | J112: 242 | K112: 242 | L112: 242 | M112: 242 | N112: 242 | O112: 242
A113: Toodetud vesi | B113: m3/aastas | C113: 1470 | D113: =D110/(1-D114) -> 1470 | E113: 1470 | F113: =F110/(1-F114) -> 1470 | G113: =G110/(1-G114) -> 1470 | H113: 1470 | I113: =I110/(1-I114) -> 1470 | J113: =J110/(1-J114) -> 1470 | K113: 1470 | L113: 1470 | M113: 1470 | N113: 1470 | O113: 1470
A114: Arvestamata vesi | B114: % | C114: =+(C113-C110)/C113 -> 0.3265306122 | D114: =C114 -> 0.3265306122 | E114: =D114 -> 0.3265306122 | F114: 0.3265306122 | G114: 0.3265306122 | H114: 0.3265306122 | I114: 0.3265306122 | J114: 0.3265306122 | K114: 0.3265306122 | L114: 0.3265306122 | M114: 0.3265306122 | N114: 0.3265306122 | O114: 0.3265306122
A115: Vastuvõetud reovesi | B115: m3/aastas | C115: =SUM(C116:C117) -> 11864 | D115: 11864 | E115: 11864 | F115: 11864 | G115: 11864 | H115: 11864 | I115: =SUM(I116:I117) -> 11864 | J115: =SUM(J116:J117) -> 11864 | K115: 11864 | L115: 11864 | M115: 11864 | N115: 11864 | O115: 11864
A116: Füüsilistelt isikutelt (sh korteriühistud) | B116: m3/aastas | C116: 748 | D116: =D105*D109*0.365 -> 748 | E116: =E105*E109*0.365 -> 748 | F116: 748 | G116: 748 | H116: 748 | I116: 748 | J116: 748 | K116: 748 | L116: 748 | M116: 748 | N116: 748 | O116: 748
A117: Juriidilistelt isikutelt (va korteriühistud) | B117: m3/aastas | C117: 11116 | D117: =C117 -> 11116 | E117: =D117 -> 11116 | F117: 11116 | G117: 11116 | H117: 11116 | I117: 11116 | J117: 11116 | K117: 11116 | L117: 11116 | M117: 11116 | N117: 11116 | O117: 11116
A118: Puhastatud heitvee mahud | B118: m3/aastas | C118: =C115/(1-C119) -> 15818.66667 | D118: 15818.66667 | E118: 15818.66667 | F118: 15818.66667 | G118: 15818.66667 | H118: 15818.66667 | I118: =I115/(1-I119) -> 15818.66667 | J118: =J115/(1-J119) -> 15818.66667 | K118: 15818.66667 | L118: 15818.66667 | M118: 15818.66667 | N118: 15818.66667 | O118: 15818.66667
A119: Infiltratsioon | B119: % | C119: 0.25 | D119: =C119 -> 0.25 | E119: =D119 -> 0.25 | F119: 0.25 | G119: 0.25 | H119: 0.25 | I119: 0.25 | J119: 0.25 | K119: 0.25 | L119: 0.25 | M119: 0.25 | N119: 0.25 | O119: 0.25
A120: Haljala alevik | B120: ühik | C120: 2019 | D120: 2020 | E120: 2021 | F120: 2022 | G120: 2023 | H120: 2024 | I120: 2025 | J120: 2026 | K120: 2027 | L120: 2028 | M120: 2029 | N120: 2030 | O120: 2031
A121: Elanike arv | B121: in | C121: 1049 | D121: =+C121 -> 1049 | E121: =+D121 -> 1049 | F121: 1049 | G121: 1049 | H121: 1049 | I121: 1049 | J121: 1049 | K121: 1049 | L121: 1049 | M121: 1049 | N121: 1049 | O121: 1049
A122: ÜV-teenusega ühendatud elanikud | B122: in | C122: 980 | D122: =C122+D124 -> 987.525 | E122: =D122+E124 -> 995.05 | F122: 1002.575 | G122: 1010.1 | H122: 1010.1 | I122: 1010.1 | J122: 1010.1 | K122: 1010.1 | L122: 1010.1 | M122: 1010.1 | N122: 1010.1 | O122: 1027.3
A123: ühendatuse määr | B123: % | C123: =+C122/C121 -> 0.9342230696 | D123: 0.9413965682 | E123: 0.9485700667 | F123: 0.9557435653 | G123: 0.9629170639 | H123: 0.9629170639 | I123: 0.9629170639 | J123: 0.9629170639 | K123: 0.9629170639 | L123: 0.9629170639 | M123: 0.9629170639 | N123: 0.9629170639 | O123: 0.979313632
A124: Uued liitujad ÜV teenusega | B124: in | D124: =+'Tarbimise prognoos'!$AM$6*'Tarbimise prognoos'!$F$1/4 -> 7.525 | E124: =+'Tarbimise prognoos'!$AM$6*'Tarbimise prognoos'!$F$1/4 -> 7.525 | F124: =+'Tarbimise prognoos'!$AM$6*'Tarbimise prognoos'!$F$1/4 -> 7.525 | G124: =+'Tarbimise prognoos'!$AM$6*'Tarbimise prognoos'!$F$1/4 -> 7.525 | O124: =+'Tarbimise prognoos'!$AO$6*'Tarbimise prognoos'!$F$1 -> 17.2
A125: ÜK-teenusega ühendatud elanikud | B125: in | C125: 970 | D125: =C125+D127 -> 983.4375 | E125: =D125+E127 -> 996.875 | F125: 1010.3125 | G125: 1023.75 | H125: 1023.75 | I125: 1023.75 | J125: 1023.75 | K125: 1023.75 | L125: 1023.75 | M125: 1023.75 | N125: 1023.75 | O125: 1105.45
A126: ühendatuse määr | B126: % | C126: =+C125/C121 -> 0.9246901811 | D126: 0.9375 | E126: 0.9503098189 | F126: 0.9631196378 | G126: 0.9759294566 | H126: 0.9759294566 | I126: 0.9759294566 | J126: 0.9759294566 | K126: 0.9759294566 | L126: 0.9759294566 | M126: 0.9759294566 | N126: 0.9759294566 | O126: 1.053813155
A127: Uued liitujad ÜK teenusega | B127: in | D127: =+'Tarbimise prognoos'!$AM$19*'Tarbimise prognoos'!$F$1/4 -> 13.4375 | E127: =+'Tarbimise prognoos'!$AM$19*'Tarbimise prognoos'!$F$1/4 -> 13.4375 | F127: =+'Tarbimise prognoos'!$AM$19*'Tarbimise prognoos'!$F$1/4 -> 13.4375 | G127: =+'Tarbimise prognoos'!$AM$19*'Tarbimise prognoos'!$F$1/4 -> 13.4375 | O127: =+'Tarbimise prognoos'!AO19*'Tarbimise prognoos'!$F$1 -> 81.7
A128: Tarbimine elaniku kohta, ÜV-teenuse tarbijati | B128: l/päevas | C128: =+C131/C122/365*1000 -> 76.17836176 | D128: =+C128 -> 76.17836176 | E128: =+D128 -> 76.17836176 | F128: =+E128 -> 76.17836176 | G128: 76.17836176 | H128: 76.17836176 | I128: 76.17836176 | J128: 76.17836176 | K128: 76.17836176 | L128: 76.17836176 | M128: 76.17836176 | N128: 76.17836176 | O128: 76.17836176
A129: Tarbimine elaniku kohta, ÜK-teenuse tarbijati | B129: l/päevas | C129: =+C136/C125/365*1000 -> 77.93814433 | D129: =+C129 -> 77.93814433 | E129: =+D129 -> 77.93814433 | F129: 77.93814433 | G129: 77.93814433 | H129: 77.93814433 | I129: 77.93814433 | J129: 77.93814433 | K129: 77.93814433 | L129: 77.93814433 | M129: 77.93814433 | N129: 77.93814433 | O129: 77.93814433
A130: Müüdud vesi | B130: m3/aastas | C130: =+SUM(C131:C132) -> 30199 | D130: 30587.5763 | E130: 30796.80969 | F130: 31006.04309 | G130: 31215.27648 | H130: 31215.27648 | I130: 31215.27648 | J130: 31215.27648 | K130: 31215.27648 | L130: 31215.27648 | M130: 31215.27648 | N130: 31215.27648 | O130: 31693.52423
A131: Füüsilistele isikutele (sh korteriühistud) | B131: m3/aastas | C131: 27249 | D131: =D122*D128*0.365 -> 27458.23339 | E131: =E122*E128*0.365 -> 27667.46679 | F131: 27876.70018 | G131: 28085.93357 | H131: 28085.93357 | I131: 28085.93357 | J131: 28085.93357 | K131: 28085.93357 | L131: 28085.93357 | M131: 28085.93357 | N131: 28085.93357 | O131: 28564.18133
A132: Juriidilistele isikutele (va korteriühistud) | B132: m3/aastas | C132: 2950 | D132: =C132+'Tarbimise prognoos'!AP6*'Tarbimise prognoos'!F1*D128*365/1000 -> 3129.342908 | E132: =D132 -> 3129.342908 | F132: 3129.342908 | G132: 3129.342908 | H132: 3129.342908 | I132: 3129.342908 | J132: 3129.342908 | K132: 3129.342908 | L132: 3129.342908 | M132: 3129.342908 | N132: 3129.342908 | O132: 3129.342908
A133: Toodetud vesi | B133: m3/aastas | C133: 31398 | D133: =D130/(1-D134) -> 31802.00406 | E133: 32019.54471 | F133: =F130/(1-F134) -> 32237.08536 | G133: =G130/(1-G134) -> 34683.64053 | H133: 34683.64053 | I133: =I130/(1-I134) -> 34683.64053 | J133: =J130/(1-J134) -> 34683.64053 | K133: 34683.64053 | L133: 34683.64053 | M133: 34683.64053 | N133: 34683.64053 | O133: 35215.02693
A134: Arvestamata vesi | B134: % | C134: =+(C133-C130)/C133 -> 0.03818714568 | D134: =C134 -> 0.03818714568 | E134: =D134 -> 0.03818714568 | F134: 0.03818714568 | G134: 0.1 | H134: 0.1 | I134: 0.1 | J134: 0.1 | K134: 0.1 | L134: 0.1 | M134: 0.1 | N134: 0.1 | O134: 0.1
A135: Vastuvõetud reovesi | B135: m3/aastas | C135: =SUM(C136:C137) -> 69238 | D135: 49864.91008 | E135: 30186.17232 | F135: 30568.43456 | G135: 30950.6968 | H135: 30950.6968 | I135: =SUM(I136:I137) -> 30950.6968 | J135: =SUM(J136:J137) -> 30950.6968 | K135: 30950.6968 | L135: 30950.6968 | M135: 30950.6968 | N135: 30950.6968 | O135: 33458.33711
A136: Füüsilistelt isikutelt (sh korteriühistud) | B136: m3/aastas | C136: 27594 | D136: =D125*D129*0.365 -> 27976.26224 | E136: =E125*E129*0.365 -> 28358.52448 | F136: 28740.78673 | G136: 29123.04897 | H136: 29123.04897 | I136: 29123.04897 | J136: 29123.04897 | K136: 29123.04897 | L136: 29123.04897 | M136: 29123.04897 | N136: 29123.04897 | O136: 31447.2034
A137: Juriidilistelt isikutelt (va korteriühistud) | B137: m3/aastas | C137: 41644 | D137: =C137-20000+'Tarbimise prognoos'!AP19*'Tarbimise prognoos'!F1*D129*365/1000 -> 21888.64784 | E137: =D137-20061 -> 1827.647835 | F137: =E137 -> 1827.647835 | G137: 1827.647835 | H137: 1827.647835 | I137: 1827.647835 | J137: 1827.647835 | K137: 1827.647835 | L137: 1827.647835 | M137: 1827.647835 | N137: 1827.647835 | O137: =N137+'Tarbimise prognoos'!AR19*'Tarbimise prognoos'!F1*O129*365/1000 -> 2011.133711
A138: Puhastatud heitvee mahud | B138: m3/aastas | C138: =C135/(1-C139) -> 106520 | D138: 76715.24627 | E138: 46440.26511 | F138: 47028.36086 | G138: 44215.28115 | H138: 44215.28115 | I138: =I135/(1-I139) -> 44215.28115 | J138: =J135/(1-J139) -> 44215.28115 | K138: 44215.28115 | L138: 44215.28115 | M138: 44215.28115 | N138: 44215.28115 | O138: 44611.11615
A139: Infiltratsioon | B139: % | C139: 0.35 | D139: =C139 -> 0.35 | E139: =D139 -> 0.35 | F139: 0.35 | G139: 0.3 | H139: 0.3 | I139: 0.3 | J139: 0.3 | K139: 0.3 | L139: 0.3 | M139: 0.3 | N139: 0.3 | O139: 0.25
A140: Essu küla | B140: ühik | C140: 2019 | D140: 2020 | E140: 2021 | F140: 2022 | G140: 2023 | H140: 2024 | I140: 2025 | J140: 2026 | K140: 2027 | L140: 2028 | M140: 2029 | N140: 2030 | O140: 2031
A141: Elanike arv | B141: in | C141: 249 | D141: =C141*(1+STAT!C$13) -> 246.5658 | E141: =D141*(1+STAT!D$13) -> 244.0838706 | F141: =E141*(1+STAT!E$13) -> 241.6366535 | G141: =F141*(1+STAT!F$13) -> 239.2111316 | H141: =G141*(1+STAT!G$13) -> 236.811644 | I141: =H141*(1+STAT!H$13) -> 234.381783 | J141: =I141*(1+STAT!I$13) -> 231.9866344 | K141: =J141*(1+STAT!J$13) -> 229.5307392 | L141: =K141*(1+STAT!K$13) -> 227.070505 | M141: =L141*(1+STAT!L$13) -> 224.5017949 | N141: =M141*(1+STAT!M$13) -> 222.0111874 | O141: =N141*(1+STAT!N$13) -> 219.5162409
A142: ÜV-teenusega ühendatud elanikud | B142: in | C142: 220 | D142: =C142+D144 -> 220 | E142: =D142+E144 -> 220 | F142: 220 | G142: 220 | H142: 220 | I142: 220 | J142: 220 | K142: 220 | L142: 220 | M142: 220 | N142: 220 | O142: 220
A143: ühendatuse määr | B143: % | C143: =+C142/C141 -> 0.8835341365 | D143: 0.8922567525 | E143: 0.9013295284 | F143: 0.9104578994 | G143: 0.9196896419 | H143: 0.9290083728 | I143: 0.9386395016 | J143: 0.9483304958 | K143: 0.9584772861 | L143: 0.9688620722 | M143: 0.979947622 | N143: 0.9909410538 | O143: 1.002203751
A144: Uued liitujad ÜV teenusega | B144: in
A145: ÜK-teenusega ühendatud elanikud | B145: in | C145: 215 | D145: =C145+D147 -> 217.15 | E145: =D145+E147 -> 217.15 | F145: 217.15 | G145: 217.15 | H145: 217.15 | I145: 217.15 | J145: 217.15 | K145: 217.15 | L145: 217.15 | M145: 217.15 | N145: 217.15 | O145: 217.15
A146: ühendatuse määr | B146: % | C146: =+C145/C141 -> 0.8634538153 | D146: 0.8806979718 | E146: 0.889653214 | F146: 0.8986633312 | G146: 0.9077754807 | H146: 0.9169734916 | I146: 0.9264798535 | J146: 0.9360453053 | K146: 0.9460606486 | L146: 0.9563109044 | M146: 0.9672528459 | N146: 0.9781038629 | O146: 0.9892206568
A147: Uued liitujad ÜK teenusega | B147: in | D147: =+'Tarbimise prognoos'!AM21*'Tarbimise prognoos'!F1 -> 2.15
A148: Tarbimine elaniku kohta, ÜV-teenuse tarbijati | B148: l/päevas | C148: =+C151/C142/365*1000 -> 67.77085928 | D148: =+C148 -> 67.77085928 | E148: =+D148 -> 67.77085928 | F148: =+E148 -> 67.77085928 | G148: 67.77085928 | H148: 67.77085928 | I148: 67.77085928 | J148: 67.77085928 | K148: 67.77085928 | L148: 67.77085928 | M148: 67.77085928 | N148: 67.77085928 | O148: 67.77085928
A149: Tarbimine elaniku kohta, ÜK-teenuse tarbijati | B149: l/päevas | C149: =+C156/C145/365*1000 -> 69.42338324 | D149: =+C149 -> 69.42338324 | E149: =+D149 -> 69.42338324 | F149: 69.42338324 | G149: 69.42338324 | H149: 69.42338324 | I149: 69.42338324 | J149: 69.42338324 | K149: 69.42338324 | L149: 69.42338324 | M149: 69.42338324 | N149: 69.42338324 | O149: 69.42338324
A150: Müüdud vesi | B150: m3/aastas | C150: =+SUM(C151:C152) -> 6117 | D150: 6117 | E150: 6117 | F150: 6117 | G150: 6117 | H150: 6117 | I150: 6117 | J150: 6117 | K150: 6117 | L150: 6117 | M150: 6117 | N150: 6117 | O150: 6117
A151: Füüsilistele isikutele (sh korteriühistud) | B151: m3/aastas | C151: 5442 | D151: =D142*D148*0.365 -> 5442 | E151: =E142*E148*0.365 -> 5442 | F151: 5442 | G151: 5442 | H151: 5442 | I151: 5442 | J151: 5442 | K151: 5442 | L151: 5442 | M151: 5442 | N151: 5442 | O151: 5442
A152: Juriidilistele isikutele (va korteriühistud) | B152: m3/aastas | C152: 675 | D152: =C152 -> 675 | E152: =D152 -> 675 | F152: 675 | G152: 675 | H152: 675 | I152: 675 | J152: 675 | K152: 675 | L152: 675 | M152: 675 | N152: 675 | O152: 675
A153: Toodetud vesi | B153: m3/aastas | C153: 6250 | D153: =D150/(1-D154) -> 6250 | E153: 6250 | F153: =F150/(1-F154) -> 6250 | G153: =G150/(1-G154) -> 6796.666667 | H153: 6796.666667 | I153: =I150/(1-I154) -> 6796.666667 | J153: =J150/(1-J154) -> 6796.666667 | K153: 6796.666667 | L153: 6796.666667 | M153: 6796.666667 | N153: 6796.666667 | O153: 6796.666667
A154: Arvestamata vesi | B154: % | C154: =+(C153-C150)/C153 -> 0.02128 | D154: =C154 -> 0.02128 | E154: =D154 -> 0.02128 | F154: 0.02128 | G154: 0.1 | H154: 0.1 | I154: 0.1 | J154: 0.1 | K154: 0.1 | L154: 0.1 | M154: 0.1 | N154: 0.1 | O154: 0.1
A155: Vastuvõetud reovesi | B155: m3/aastas | C155: =SUM(C156:C157) -> 6117 | D155: 6171.48 | E155: 6171.48 | F155: 6171.48 | G155: 6171.48 | H155: 6171.48 | I155: =SUM(I156:I157) -> 6171.48 | J155: =SUM(J156:J157) -> 6171.48 | K155: 6171.48 | L155: 6171.48 | M155: 6171.48 | N155: 6171.48 | O155: 6171.48
A156: Füüsilistelt isikutelt (sh korteriühistud) | B156: m3/aastas | C156: 5448 | D156: =D145*D149*0.365 -> 5502.48 | E156: =E145*E149*0.365 -> 5502.48 | F156: 5502.48 | G156: 5502.48 | H156: 5502.48 | I156: 5502.48 | J156: 5502.48 | K156: 5502.48 | L156: 5502.48 | M156: 5502.48 | N156: 5502.48 | O156: 5502.48
A157: Juriidilistelt isikutelt (va korteriühistud) | B157: m3/aastas | C157: 669 | D157: =C157 -> 669 | E157: =D157 -> 669 | F157: 669 | G157: 669 | H157: 669 | I157: 669 | J157: 669 | K157: 669 | L157: 669 | M157: 669 | N157: 669 | O157: 669
A158: Puhastatud heitvee mahud | B158: m3/aastas | C158: =C155/(1-C159) -> 11121.81818 | D158: 11220.87273 | E158: 11220.87273 | F158: 11220.87273 | G158: 11220.87273 | H158: 11220.87273 | I158: =I155/(1-I159) -> 11220.87273 | J158: =J155/(1-J159) -> 11220.87273 | K158: 11220.87273 | L158: 11220.87273 | M158: 11220.87273 | N158: 11220.87273 | O158: 8816.4
A159: Infiltratsioon | B159: % | C159: 0.45 | D159: =C159 -> 0.45 | E159: =D159 -> 0.45 | F159: 0.45 | G159: 0.45 | H159: 0.45 | I159: 0.45 | J159: 0.45 | K159: 0.45 | L159: 0.45 | M159: 0.45 | N159: 0.45 | O159: 0.3
A160: Aaspere küla | B160: ühik | C160: 2019 | D160: 2020 | E160: 2021 | F160: 2022 | G160: 2023 | H160: 2024 | I160: 2025 | J160: 2026 | K160: 2027 | L160: 2028 | M160: 2029 | N160: 2030 | O160: 2031 | P160: *nii keskus kui mõis, raamatupidamises ei hoia enam eraldi
A161: Elanike arv | B161: in | C161: 231 | D161: =C161*(1+STAT!C$13) -> 228.7417663 | E161: =D161*(1+STAT!D$13) -> 226.4392535 | F161: =E161*(1+STAT!E$13) -> 224.1689436 | G161: =F161*(1+STAT!F$13) -> 221.9187607 | H161: =G161*(1+STAT!G$13) -> 219.6927299 | I161: =H161*(1+STAT!H$13) -> 217.4385216 | J161: =I161*(1+STAT!I$13) -> 215.2165162 | K161: =J161*(1+STAT!J$13) -> 212.9381556 | L161: =K161*(1+STAT!K$13) -> 210.6557697 | M161: =L161*(1+STAT!L$13) -> 208.2727495 | N161: =M161*(1+STAT!M$13) -> 205.9621859 | O161: =N161*(1+STAT!N$13) -> 203.647597
A162: ÜV-teenusega ühendatud elanikud | B162: in | C162: 190 | D162: =C162+D164 -> 190 | E162: =D162+E164 -> 190 | F162: 190 | G162: 190 | H162: 190 | I162: 190 | J162: 190 | K162: 190 | L162: 190 | M162: 190 | N162: 190 | O162: 190
A163: ühendatuse määr | B163: % | C163: =+C162/C161 -> 0.8225108225 | D163: 0.8306309909 | E163: 0.8390771347 | F163: 0.8475750339 | G163: 0.8561691649 | H163: 0.8648442762 | I163: 0.873810209 | J163: 0.8828318725 | K163: 0.8922778514 | L163: 0.9019453883 | M163: 0.9122652891 | N163: 0.9224994344 | O163: 0.9329842474
A164: Uued liitujad ÜV teenusega | B164: in
A165: ÜK-teenusega ühendatud elanikud | B165: in | C165: 185 | D165: =C165+D167 -> 185 | E165: =D165+E167 -> 185 | F165: 185 | G165: 185 | H165: 185 | I165: 185 | J165: 185 | K165: 185 | L165: 185 | M165: 185 | N165: 185 | O165: 185
A166: ühendatuse määr | B166: % | C166: =+C165/C161 -> 0.8008658009 | D166: 0.8087722807 | E166: 0.8169961575 | F166: 0.8252704277 | G166: 0.8336383974 | H166: 0.8420852163 | I166: 0.8508152035 | J166: 0.8595994548 | K166: 0.8687968553 | L166: 0.8782099833 | M166: 0.8882583079 | N166: 0.8982231335 | O166: 0.9084320304
A167: Uued liitujad ÜK teenusega | B167: in
A168: Tarbimine elaniku kohta, ÜV-teenuse tarbijati | B168: l/päevas | C168: =+C171/C162/365*1000 -> 58.61571738 | D168: =+C168 -> 58.61571738 | E168: =+D168 -> 58.61571738 | F168: =+E168 -> 58.61571738 | G168: 58.61571738 | H168: 58.61571738 | I168: 58.61571738 | J168: 58.61571738 | K168: 58.61571738 | L168: 58.61571738 | M168: 58.61571738 | N168: 58.61571738 | O168: 58.61571738
A169: Tarbimine elaniku kohta, ÜK-teenuse tarbijati | B169: l/päevas | C169: =+C176/C165/365*1000 -> 58.63013699 | D169: =+C169 -> 58.63013699 | E169: =+D169 -> 58.63013699 | F169: 58.63013699 | G169: 58.63013699 | H169: 58.63013699 | I169: 58.63013699 | J169: 58.63013699 | K169: 58.63013699 | L169: 58.63013699 | M169: 58.63013699 | N169: 58.63013699 | O169: 58.63013699
A170: Müüdud vesi | B170: m3/aastas | C170: =+SUM(C171:C172) -> 5958 | D170: 5958 | E170: 5958 | F170: 5958 | G170: 5958 | H170: 5958 | I170: 5958 | J170: 5958 | K170: 5958 | L170: 5958 | M170: 5958 | N170: 5958 | O170: 5958
A171: Füüsilistele isikutele (sh korteriühistud) | B171: m3/aastas | C171: 4065 | D171: =D162*D168*0.365 -> 4065 | E171: =E162*E168*0.365 -> 4065 | F171: 4065 | G171: 4065 | H171: 4065 | I171: 4065 | J171: 4065 | K171: 4065 | L171: 4065 | M171: 4065 | N171: 4065 | O171: 4065
A172: Juriidilistele isikutele (va korteriühistud) | B172: m3/aastas | C172: 1893 | D172: =C172 -> 1893 | E172: =D172 -> 1893 | F172: 1893 | G172: 1893 | H172: 1893 | I172: 1893 | J172: 1893 | K172: 1893 | L172: 1893 | M172: 1893 | N172: 1893 | O172: 1893
A173: Toodetud vesi | B173: m3/aastas | C173: 5865 | D173: =D170/(1-D174) -> 5865 | E173: 5865 | F173: =F170/(1-F174) -> 5865 | G173: =G170/(1-G174) -> 6620 | H173: 6620 | I173: =I170/(1-I174) -> 6620 | J173: =J170/(1-J174) -> 6620 | K173: 6620 | L173: 6620 | M173: 6620 | N173: 6620 | O173: 6620
A174: Arvestamata vesi | B174: % | C174: =+(C173-C170)/C173 -> -0.01585677749 | D174: =C174 -> -0.01585677749 | E174: =D174 -> -0.01585677749 | F174: -0.01585677749 | G174: 0.1 | H174: 0.1 | I174: 0.1 | J174: 0.1 | K174: 0.1 | L174: 0.1 | M174: 0.1 | N174: 0.1 | O174: 0.1
A175: Vastuvõetud reovesi | B175: m3/aastas | C175: =SUM(C176:C177) -> 5804 | D175: 5804 | E175: 5804 | F175: 5804 | G175: 5804 | H175: 5804 | I175: =SUM(I176:I177) -> 5804 | J175: =SUM(J176:J177) -> 5804 | K175: 5804 | L175: 5804 | M175: 5804 | N175: 5804 | O175: 5804
A176: Füüsilistelt isikutelt (sh korteriühistud) | B176: m3/aastas | C176: 3959 | D176: =D165*D169*0.365 -> 3959 | E176: =E165*E169*0.365 -> 3959 | F176: 3959 | G176: 3959 | H176: 3959 | I176: 3959 | J176: 3959 | K176: 3959 | L176: 3959 | M176: 3959 | N176: 3959 | O176: 3959
A177: Juriidilistelt isikutelt (va korteriühistud) | B177: m3/aastas | C177: 1845 | D177: =C177 -> 1845 | E177: =D177 -> 1845 | F177: 1845 | G177: 1845 | H177: 1845 | I177: 1845 | J177: 1845 | K177: 1845 | L177: 1845 | M177: 1845 | N177: 1845 | O177: 1845
A178: Puhastatud heitvee mahud | B178: m3/aastas | C178: =C175/(1-C179) -> 10552.72727 | D178: 10552.72727 | E178: 10552.72727 | F178: 10552.72727 | G178: 10552.72727 | H178: 10552.72727 | I178: =I175/(1-I179) -> 10552.72727 | J178: =J175/(1-J179) -> 10552.72727 | K178: 10552.72727 | L178: 10552.72727 | M178: 10552.72727 | N178: 10552.72727 | O178: 7738.666667
A179: Infiltratsioon | B179: % | C179: 0.45 | D179: =C179 -> 0.45 | E179: =D179 -> 0.45 | F179: 0.45 | G179: 0.45 | H179: 0.45 | I179: 0.45 | J179: 0.45 | K179: 0.45 | L179: 0.45 | M179: 0.45 | N179: 0.45 | O179: 0.25
A181: ABONENDID
A182: endine Haljala piirkond
A183: ÜV abonentide arv, kelle kuine tarbimismaht oli üle 2m3/kuus aasta ringi | B183: tk | C183: 176
A184: ÜK abonentide arv, kelle kuine tarbimismaht oli üle 2m3/kuus aasta ringi | B184: tk | C184: 141
A185: ÜV abonentide arv, kelle kuine tarbimismaht oli kuni 2m3/kuus aasta ringi | B185: tk | C185: 37
A186: ÜK abonentide arv, kelle kuine tarbimismaht oli kuni 2m3/kuus aasta ringi | B186: tk | C186: 30
A187: endine Vihula piirkond
A188: ÜV abonentide arv, kelle kuine tarbimismaht oli üle 2m3/kuus aasta ringi | B188: tk | C188: 320 | D188: =+C188+D202*0.5 -> 331.75 | E188: =+D188+E202*0.5 -> 342 | F188: 355.9166667 | G188: 369.8333333 | H188: 377.5 | I188: 381.5 | J188: 385.5 | K188: 385.5 | L188: 385.5 | M188: 385.5 | N188: 385.5 | O188: 450
A189: ÜK abonentide arv, kelle kuine tarbimismaht oli üle 2m3/kuus aasta ringi | B189: tk | C189: 100 | D189: =+C189+D203*0.5 -> 107 | E189: =+D189+E203*0.5 -> 114 | F189: 149.6666667 | G189: 185.3333333 | H189: 228.6666667 | I189: 243.3333333 | J189: 258 | K189: 258 | L189: 258 | M189: 258 | N189: 258 | O189: 290.5
A190: ÜV abonentide arv, kelle kuine tarbimismaht oli kuni 2m3/kuus aasta ringi | B190: tk | C190: 330 | D190: =+C190+D202*0.5 -> 341.75 | E190: =+D190+E202*0.5 -> 352 | F190: 365.9166667 | G190: 379.8333333 | H190: 387.5 | I190: 391.5 | J190: 395.5 | K190: 395.5 | L190: 395.5 | M190: 395.5 | N190: 395.5 | O190: 460
A191: ÜK abonentide arv, kelle kuine tarbimismaht oli kuni 2m3/kuus aasta ringi | B191: tk | C191: 138 | D191: =+C191+D203*0.5 -> 145 | E191: =+D191+E203*0.5 -> 152 | F191: 187.6666667 | G191: 223.3333333 | H191: 266.6666667 | I191: 281.3333333 | J191: 296 | K191: 296 | L191: 296 | M191: 296 | N191: 296 | O191: 328.5
A192: endine Haljala piirkond
A193: ÜV abonente | B193: tk | C193: =+C183+C185 -> 213 | D193: =+C193+D199 -> 219.5 | E193: =+D193+E199 -> 223 | F193: 226.5 | G193: 230 | H193: 230 | I193: 230 | J193: 230 | K193: 230 | L193: 230 | M193: 230 | N193: 230 | O193: 238
A194: ÜK abonente | B194: tk | C194: =+C184+C186 -> 171 | D194: =+C194+D200 -> 182.25 | E194: =+D194+E200 -> 188.5 | F194: 194.75 | G194: 201 | H194: 201 | I194: 201 | J194: 201 | K194: 201 | L194: 201 | M194: 201 | N194: 201 | O194: 242
A195: endine Vihula piirkond
A196: ÜV abonente | B196: tk | C196: =+C188+C190 -> 650 | D196: =+C196+D202 -> 673.5 | E196: =+D196+E202 -> 694 | F196: 721.8333333 | G196: 749.6666667 | H196: 765 | I196: 773 | J196: 781 | K196: 781 | L196: 781 | M196: 781 | N196: 781 | O196: 910
A197: ÜK abonente | B197: tk | C197: =+C189+C191 -> 238 | D197: =+C197+D203 -> 252 | E197: =+D197+E203 -> 266 | F197: 337.3333333 | G197: 408.6666667 | H197: 495.3333333 | I197: 524.6666667 | J197: 554 | K197: 554 | L197: 554 | M197: 554 | N197: 554 | O197: 619
A198: endine Haljala piirkond
A199: Lisandunud abonent ÜV | B199: tk | D199: =+'Tarbimise prognoos'!$AM$6/4+'Tarbimise prognoos'!AP6 -> 6.5 | E199: =+'Tarbimise prognoos'!$AM$6/4 -> 3.5 | F199: =+'Tarbimise prognoos'!$AM$6/4 -> 3.5 | G199: 3.5 | H199: 0 | I199: 0 | J199: 0 | K199: 0 | L199: 0 | M199: 0 | N199: 0 | O199: 8
A200: Lisandunud abonent ÜK | B200: tk | D200: =+'Tarbimise prognoos'!$AM$19/4+'Tarbimise prognoos'!AP19+'Tarbimise prognoos'!AM21 -> 11.25 | E200: =+'Tarbimise prognoos'!$AM$19/4 -> 6.25 | F200: =+'Tarbimise prognoos'!$AM$19/4 -> 6.25 | G200: 6.25 | H200: 0 | I200: 0 | J200: 0 | K200: 0 | L200: 0 | M200: 0 | N200: 0 | O200: 41
A201: endine Vihula piirkond
... 2 more rows

Sheet 2020_2022_FIN(ERALDI)
A1: FINANTSANALÜÜS | B1: Ühik | C1: 2020 | D1: 2021 | E1: 2022
A2: Vana Haljala valla piirkond (Haljala, Essu ja Aaspere)
A3: MAHUD
A4: Elanike vesi | B4: m3/a | C4: =MAHUD!D131+MAHUD!D151+MAHUD!D171 -> 36965.23339 | D4: =MAHUD!E131+MAHUD!E151+MAHUD!E171 -> 37174.46679 | E4: =MAHUD!F131+MAHUD!F151+MAHUD!F171 -> 37383.70018
A5: Juriidiliste isikute vesi | B5: m3/a | C5: =MAHUD!D132+MAHUD!D152+MAHUD!D172 -> 5697.342908 | D5: =MAHUD!E132+MAHUD!E152+MAHUD!E172 -> 5697.342908 | E5: =MAHUD!F132+MAHUD!F152+MAHUD!F172 -> 5697.342908
A6: Elanike kanal | B6: m3/a | C6: =MAHUD!D136+MAHUD!D156+MAHUD!D176 -> 37437.74224 | D6: =MAHUD!E136+MAHUD!E156+MAHUD!E176 -> 37820.00448 | E6: =MAHUD!F136+MAHUD!F156+MAHUD!F176 -> 38202.26673
A7: Juriidiliste isikute kanal | B7: m3/a | C7: =MAHUD!D137+MAHUD!D157+MAHUD!D177 -> 24402.64784 | D7: =MAHUD!E137+MAHUD!E157+MAHUD!E177 -> 4341.647835 | E7: =MAHUD!F137+MAHUD!F157+MAHUD!F177 -> 4341.647835
A8: VESI KOKKU | B8: m3/a | C8: =+C4+C5 -> 42662.5763 | D8: =+D4+D5 -> 42871.80969 | E8: 43081.04309
A9: KANAL KOKKU | B9: m3/a | C9: =+C6+C7 -> 61840.39008 | D9: =+D6+D7 -> 42161.65232 | E9: 42543.91456
A10: TEENUSHINNAD
A11: Elanike vesi | B11: EUR/m3 | C11: 1.55 | D11: =+C11*(1+D19) -> 2.325 | E11: =+D11*(1+E19) -> 2.325
A12: Juriidiliste isikute vesi | B12: EUR/m3 | C12: 1.55 | D12: =+C12*(1+D20) -> 2.325 | E12: 2.325
A13: Elanike kanal | B13: EUR/m3 | C13: 1.05 | D13: 1.575 | E13: 1.575
A14: Juriidiliste isikute kanal* | B14: EUR/m3 | C14: 1.69096902 | D14: 2.536453531 | E14: 2.536453531
A15: Abonenttasud ÜV/ÜK | B15: EUR/kuu
A16: Abonenttasud ÜVK | B16: EUR/kuu
A17: *keskmistatud hind üle reostusgruppide
A18: Tariifi muutus võrreldes eelmise aastaga
A19: Elanike vesi | B19: % | D19: 0.5 | E19: =+C19 -> 0
A20: Juriidiliste isikute vesi | B20: % | D20: =+D19 -> 0.5 | E20: =+E19 -> 0
A21: Elanike kanal | B21: % | D21: =+D20 -> 0.5 | E21: 0
A22: Juriidiliste isikute kanal | B22: % | D22: 0.5 | E22: 0
A23: Abonenttasu muutus ÜV/ÜK | B23: % | D23: 0.5 | E23: 0
A24: Abonenttasu muutus ÜVK | B24: % | D24: 0.5 | E24: 0
A26: MÜÜGITULUD
A27: Elanike vesi | B27: EUR | C27: =+C4*C11 -> 57296.11176 | D27: 86430.63528 | E27: 86917.10292
A28: Juriidiliste isikute vesi | B28: EUR | C28: 8830.881508 | D28: 13246.32226 | E28: 13246.32226
A29: Elanike kanal | B29: EUR | C29: 39309.62935 | D29: 59566.50706 | E29: 60168.57009
A30: Juriidiliste isikute kanal | B30: EUR | C30: 41264.1215 | D30: 11012.38798 | E30: 11012.38798
A31: Tulud vee- ja kanalisatsiooni-teenuse müügist | B31: EUR | C31: =+SUM(C27:C30) -> 146700.7441 | D31: =+SUM(D27:D30) -> 170255.8526 | E31: 171344.3833
A32: Tulu abonenttasust | B32: EUR | C32: 0 | D32: 0 | E32: 0
A33: KOV toetus tegevuskulude katmiseks | B33: EUR | C33: 0 | D33: 0 | E33: 0
A34: Fekaali purgimine (Haljala) | B34: EUR | C34: 3036.600659 | D34: =+C34*(1+EE!G5) -> 3100.976593 | E34: =+D34*(1+EE!H5) -> 3165.166808
A35: Muud tulud kokku | B35: EUR | C35: =+SUM(C32:C34) -> 3036.600659 | D35: =+SUM(D32:D34) -> 3100.976593 | E35: 3165.166808
A36: TULUD KOKKU | B36: EUR | C36: =+C31+C35 -> 149737.3448 | D36: =+D31+D35 -> 173356.8292 | E36: 174509.5501
A37: TEGEVUSKULUD
A38: Energiakulud | B38: EUR | C38: =KULUD!D15 -> 25297.57962 | D38: =KULUD!E15 -> 19826.93172 | E38: =KULUD!F15 -> 20388.36852
A39: Saastetasu | B39: EUR | C39: =KULUD!D18 -> 2094.945425 | D39: =KULUD!E18 -> 1481.730184 | E39: =KULUD!F18 -> 1525.440949
A40: Vee erikasutusõiguse tasu | B40: EUR | C40: =KULUD!D19 -> 3541.034911 | D40: =KULUD!E19 -> 3558.575247 | E40: =KULUD!F19 -> 3576.115584
A41: Spetsiifilise tehnoloogia kulud (kemikaalid) | B41: EUR | C41: =KULUD!D20 -> 6602.501191 | D41: =KULUD!E20 -> 4669.871199 | E41: =KULUD!F20 -> 4807.631532
A42: Kaupade ja teenuste vahendamiskulud | B42: EUR | C42: =KULUD!D27 -> 16862.16833 | D42: =KULUD!E27 -> 17219.6463 | E42: =KULUD!F27 -> 17576.09297
A43: Seadmete hoolduse teenus ja materjalid | B43: EUR | C43: =KULUD!D24 -> 3166.474932 | D43: =KULUD!E24 -> 3233.604201 | E43: =KULUD!F24 -> 3300.539807
A44: Tööjõu- ja personalikulud | B44: EUR | C44: =KULUD!D25 -> 77649.46525 | D44: =KULUD!E25 -> 79295.63392 | E44: =KULUD!F25 -> 80937.05354
A45: Administratiivkulud | B45: EUR | C45: =KULUD!D26 -> 7804.47487 | D45: =KULUD!E26 -> 7969.929737 | E45: =KULUD!F26 -> 8134.907283
A46: Ülalpidamiskulud | B46: EUR | C46: =KULUD!D28 -> 14843.75336 | D46: =KULUD!E28 -> 15158.44094 | E46: =KULUD!F28 -> 15472.22066
A47: KULUD (va kulum) KOKKU | B47: EUR | C47: =+SUM(C38:C46) -> 157862.3979 | D47: 152414.3634 | E47: 155718.3709
A48: RAHAVOOG OPEREERIMISTEGEVUSEST | B48: EUR | C48: =C36-C47 -> -8125.053109 | D48: 20942.46574 | E48: 18791.17921
A49: Hinda lülitatav kulum | B49: EUR | C49: =+'Kulum&INV'!D10 -> 15985.99038 | D49: =+'Kulum&INV'!E10 -> 12311.77038 | E49: =+'Kulum&INV'!F10 -> 11631.77038
A50: TULEM | B50: EUR | C50: =+C48-C49 -> -24111.04349 | D50: 8630.695356 | E50: 7159.408825
A51: TULUKUS | B51: % | C51: =+C50/C36 -> -0.1610222455 | D51: =+D50/D36 -> 0.04978572461 | E51: 0.04102588553
A52: TASKUKOHASUS | B52: Ühik | C52: 2020 | D52: 2021 | E52: 2022
A53: Leibkonnaliikme netosissetulek | B53: EUR/a | C53: =+EE!F10 -> 8496.61529 | D53: =+EE!G10 -> 8676.743535 | E53: =+EE!H10 -> 8856.352126
A54: Kulu veele ja kanalisatsioonile pereliikme kohta | B54: EUR/a | C54: =+EE!F13*(C11+C13)*1.2 -> 83.37566794 | D54: =+EE!G13*(D11+D13)*1.2 -> 125.3780422 | E54: =+EE!H13*(E11+E13)*1.2 -> 125.7748068
A55: Vee- ja kanalisatsiooniteenuse eest makstava kulu osakaal leibkonnaliikme netosissetulekust | B55: % | C55: =+C54/C53 -> 0.009812809582 | D55: 0.01444989605 | E55: 0.01420164928
A56: VEEMAJANDUSALASE TEGEVUSE FINANTSILINE JÄTKUSUUTLIKKUS
A57: Jätkusuutlikkuse analüüs | B57: Ühik | C57: 2020 | D57: 2021 | E57: 2022
A58: Toetus (KIK) | B58: EUR | C58: =+Rahastamiseelarve!F9+Rahastamiseelarve!F17+Rahastamiseelarve!F25 -> 0 | D58: =+Rahastamiseelarve!G9+Rahastamiseelarve!G17+Rahastamiseelarve!G25 -> 0 | E58: =+Rahastamiseelarve!H9+Rahastamiseelarve!H17+Rahastamiseelarve!H25 -> 0
A59: Omavahendid | B59: EUR | C59: =+[42]EE!$C$30 -> 163802.7148 | D59: 0 | E59: 0
A60: Võetav laen/Kap.rent | B60: EUR | C60: =+LAEN!J17 -> 0 | D60: =+LAEN!K17 -> 0 | E60: =+LAEN!L17 -> 0
A61: Kolmandate osapoolte toetus | B61: EUR | C61: =+Rahastamiseelarve!F7+Rahastamiseelarve!F15+Rahastamiseelarve!F23 -> 21250 | D61: =+Rahastamiseelarve!G7+Rahastamiseelarve!G15+Rahastamiseelarve!G23 -> 21250 | E61: =+Rahastamiseelarve!H7+Rahastamiseelarve!H15+Rahastamiseelarve!H23 -> 21250
A62: Tegevustulud (s.h.muud tulud) | B62: EUR | C62: =+C36 -> 149737.3448 | D62: =+D36 -> 173356.8292 | E62: 174509.5501
A63: Kokku laekumised | B63: EUR | C63: =SUM(C58:C62) -> 334790.0596 | D63: 194606.8292 | E63: 195759.5501
A64: Kokku investeeringud | B64: EUR | C64: =+Rahastamiseelarve!F2+Rahastamiseelarve!F10+Rahastamiseelarve!F18 -> 21250 | D64: =+Rahastamiseelarve!G2+Rahastamiseelarve!G10+Rahastamiseelarve!G18 -> 21250 | E64: =+Rahastamiseelarve!H2+Rahastamiseelarve!H10+Rahastamiseelarve!H18 -> 21250
A65: Intressikulud | B65: EUR | C65: =+LAEN!J7+LAEN!J21 -> 2013.2875 | D65: =+LAEN!K7+LAEN!K21 -> 1801.3625 | E65: =+LAEN!L7+LAEN!L21 -> 1589.4375
A66: Laenude tagasimaksmine | B66: EUR | C66: =+LAEN!J4+LAEN!J18 -> 16954 | D66: =+LAEN!K4+LAEN!K18 -> 16954 | E66: =+LAEN!L4+LAEN!L18 -> 16954
A67: Tegevuskulud | B67: EUR | C67: =+C47 -> 157862.3979 | D67: =+D47 -> 152414.3634 | E67: 155718.3709
A68: Kokku väljamaksed | B68: EUR | C68: =SUM(C64:C67) -> 198079.6854 | D68: 192419.7259 | E68: 195511.8084
A69: Kokku rahavoog | B69: EUR | C69: =C63-C68 -> 136710.3742 | D69: 2187.10324 | E69: 247.7417093
A70: Kumulatiivne rahavoog | B70: EUR | C70: =+C69 -> 136710.3742 | D70: =C70+D69 -> 138897.4774 | E70: 139145.2191
A71: Vana Vihula valla piirkond (Võsu, Käsmu, Vergi, Vihula ja Võsupere)
A72: MAHUD
A73: Elanike vesi | B73: m3/a | C73: =MAHUD!D51+MAHUD!D71+MAHUD!D91+MAHUD!D111+MAHUD!D31 -> 22562.85568 | D73: =MAHUD!E51+MAHUD!E71+MAHUD!E91+MAHUD!E111+MAHUD!E31 -> 23885.71135 | E73: =MAHUD!F51+MAHUD!F71+MAHUD!F91+MAHUD!F111+MAHUD!F31 -> 25680.18212
A74: Juriidiliste isikute vesi | B74: m3/a | C74: =MAHUD!D52+MAHUD!D72+MAHUD!D92+MAHUD!D112+MAHUD!D32 -> 5519.8 | D74: =MAHUD!E52+MAHUD!E72+MAHUD!E92+MAHUD!E112+MAHUD!E32 -> 5519.8 | E74: =MAHUD!F52+MAHUD!F72+MAHUD!F92+MAHUD!F112+MAHUD!F32 -> 5519.8
A75: Elanike kanal | B75: m3/a | C75: =MAHUD!D56+MAHUD!D76+MAHUD!D96+MAHUD!D116+MAHUD!D36 -> 11342.2332 | D75: =MAHUD!E56+MAHUD!E76+MAHUD!E96+MAHUD!E116+MAHUD!E36 -> 11965.4664 | E75: =MAHUD!F56+MAHUD!F76+MAHUD!F96+MAHUD!F116+MAHUD!F36 -> 15603.18594
A76: Juriidiliste isikute kanal | B76: m3/a | C76: =MAHUD!D57+MAHUD!D77+MAHUD!D97+MAHUD!D117+MAHUD!D37 -> 15055 | D76: =MAHUD!E57+MAHUD!E77+MAHUD!E97+MAHUD!E117+MAHUD!E37 -> 15055 | E76: =MAHUD!F57+MAHUD!F77+MAHUD!F97+MAHUD!F117+MAHUD!F37 -> 15055
A77: VESI KOKKU | B77: m3/a | C77: =+C73+C74 -> 28082.65568 | D77: =+D73+D74 -> 29405.51135 | E77: 31199.98212
A78: KANAL KOKKU | B78: m3/a | C78: =+C75+C76 -> 26397.2332 | D78: =+D75+D76 -> 27020.4664 | E78: 30658.18594
A79: TEENUSHINNAD
A80: Elanike vesi | B80: EUR/m3 | C80: 1.75 | D80: =+C80*(1+D89) -> 1.75 | E80: =+D80*(1+E89) -> 1.785
A81: Juriidiliste isikute vesi | B81: EUR/m3 | C81: 1.75 | D81: =+C81*(1+D90) -> 1.75 | E81: 1.785
A82: Elanike kanal | B82: EUR/m3 | C82: 3.1 | D82: 3.1 | E82: 3.162
A83: Juriidiliste isikute kanal | B83: EUR/m3 | C83: 3.1 | D83: 3.1 | E83: 3.162
A84: Abonenttasud ÜV | B84: EUR/kuu | C84: 4.95 | D84: 4.95 | E84: 5.049
A85: Abonenttasud ÜVK | B85: EUR/kuu | C85: 5.95 | D85: 5.95 | E85: 6.069
A86: Lisandunud abonent ÜV | B86: abonent | C86: 23.5 | D86: 20.5 | E86: 27.83333333
A87: Lisandunud abonent ÜK | B87: abonent | C87: 14 | D87: 14 | E87: 71.33333333
A88: Tariifi muutus võrreldes eelmise aastaga
A89: Elanike vesi | B89: % | D89: 0 | E89: 0.02
A90: Juriidiliste isikute vesi | B90: % | D90: =+D89 -> 0 | E90: =+E89 -> 0.02
A91: Elanike kanal | B91: % | D91: =+D90 -> 0 | E91: 0.02
A92: Juriidiliste isikute kanal | B92: % | D92: 0 | E92: 0.02
A93: Abonenttasu muutus ÜV/ÜK | B93: % | D93: 0 | E93: 0.02
A94: Abonenttasu muutus ÜVK | B94: % | D94: 0 | E94: 0.02
A96: MÜÜGITULUD
A97: Elanike vesi | B97: EUR | C97: =C73*C80 -> 39484.99743 | D97: 41799.99487 | E97: 45839.12508
A98: Juriidiliste isikute vesi | B98: EUR | C98: 9659.65 | D98: 9659.65 | E98: 9852.843
A99: Elanike kanal | B99: EUR | C99: 35160.92292 | D99: 37092.94584 | E99: 49337.27393
A100: Juriidiliste isikute kanal | B100: EUR | C100: 46670.5 | D100: 46670.5 | E100: 47603.91
A101: Tulud vee- ja kanalisatsiooni-teenuse müügist | B101: EUR | C101: =SUM(C97:C100) -> 130976.0704 | D101: =SUM(D97:D100) -> 135223.0907 | E101: 152633.152
A102: Tulu abonenttasust | B102: EUR | C102: =+SUM('KA2019'!S31:S32)+IF(C86<C87,C86*C85+(C87-C86)*(C85-C84),C87*C85+(C86-C87)*C84) -> 44253.175 | D102: =+C102*(1+D93)+IF(D86<D87,D86*D85+(D87-D86)*(D85-D84),D87*D85+(D86-D87)*D84) -> 44368.65 | E102: =+D102*(1+E93)+IF(E86<E87,E86*E85+(E87-E86)*(E85-E84),E87*E85+(E86-E87)*E84) -> 45469.3135
A103: KOV toetus tegevuskulude katmiseks | B103: EUR | C103: 0 | D103: 0 | E103: 0
A104: Fekaali purgimine Võsu+ÜVK teenustööd | B104: EUR | C104: 6020.04 | D104: =+C104*(1+EE!G5) -> 6147.664848 | E104: =+D104*(1+EE!H5) -> 6274.92151
A105: Muud tulud kokku | B105: EUR | C105: =+SUM(C102:C104) -> 50273.215 | D105: 50516.31485 | E105: 51744.23501
A106: TULUD KOKKU | B106: EUR | C106: =+C101+C105 -> 181249.2854 | D106: 185739.4056 | E106: 204377.387
A107: TEGEVUSKULUD
A108: Energiakulud | B108: EUR | C108: =KULUD!D44 -> 22277.25964 | D108: =KULUD!E44 -> 23494.33119 | E108: =KULUD!F44 -> 25986.75502
A109: Saastetasu | B109: EUR | C109: =KULUD!D47 -> 7580.028731 | D109: =KULUD!E47 -> 7931.126783 | E109: =KULUD!F47 -> 9169.436394
A110: Vee erikasutusõiguse tasu | B110: EUR | C110: =KULUD!D48 -> 6450.845934 | D110: =KULUD!E48 -> 6784.544625 | E110: =KULUD!F48 -> 6596.171227
A111: Spetsiifilise tehnoloogia kulud (kemikaalid) | B111: EUR | C111: =KULUD!D49 -> 3683.978143 | D111: =KULUD!E49 -> 3886.903192 | E111: =KULUD!F49 -> 4288.803508
A112: Kaupade ja teenuste vahendamiskulud | B112: EUR | C112: =KULUD!D56 -> 8638.382716 | D112: =KULUD!E56 -> 8821.516429 | E112: =KULUD!F56 -> 9004.121819
A113: Seadmete hoolduse teenus ja materjalid | B113: EUR | C113: =KULUD!D53 -> 7765.296948 | D113: =KULUD!E53 -> 7929.921243 | E113: =KULUD!F53 -> 8094.070613
A114: Tööjõu- ja personalikulud | B114: EUR | C114: =KULUD!D54 -> 53764.23554 | D114: =KULUD!E54 -> 54904.03733 | E114: =KULUD!F54 -> 56040.55091
A115: Administratiivkulud | B115: EUR | C115: =KULUD!D55 -> 5695.741445 | D115: =KULUD!E55 -> 5816.491164 | E115: =KULUD!F55 -> 5936.892531
A116: Ülalpidamiskulud | B116: EUR | C116: =KULUD!D57 -> 22119.24932 | D116: =KULUD!E57 -> 22588.17741 | E116: =KULUD!F57 -> 23055.75268
A117: KULUD (va kulum) KOKKU | B117: EUR | C117: =+SUM(C108:C116) -> 137975.0184 | D117: 142157.0494 | E117: 148172.5547
A118: RAHAVOOG OPEREERIMISTEGEVUSEST | B118: EUR | C118: =C106-C117 -> 43274.26693 | D118: 43582.35619 | E118: 56204.83233
A119: Hinda lülitatav kulum | B119: EUR | C119: =+'Kulum&INV'!D42 -> 32922.5873 | D119: =+'Kulum&INV'!E42 -> 32922.5873 | E119: =+'Kulum&INV'!F42 -> 52023.8498
A120: TULEM | B120: EUR | C120: =+C118-C119 -> 10351.67963 | D120: 10659.76889 | E120: 4180.982526
A121: TULUKUS | B121: % | C121: =+C120/C106 -> 0.0571129404 | D121: =+D120/D106 -> 0.05739099281 | E121: 0.02045716793
A122: TASKUKOHASUS | B122: Ühik | C122: 2020 | D122: 2021 | E122: 2022
A123: Leibkonnaliikme netosissetulek | B123: EUR/a | C123: =+C53 -> 8496.61529 | D123: =+D53 -> 8676.743535 | E123: 8856.352126
A124: Kulu veele ja kanalisatsioonile pereliikme kohta | B124: EUR/a | C124: =+EE!F13*('2020_2022_FIN(ERALDI)'!C80+'2020_2022_FIN(ERALDI)'!C82)*1.2+'2020_2022_FIN(ERALDI)'!C85*12*1.2/EE!F9 -> 195.3788511 | D124: =+EE!G13*('2020_2022_FIN(ERALDI)'!D80+'2020_2022_FIN(ERALDI)'!D82)*1.2+'2020_2022_FIN(ERALDI)'!D85*12*1.2/EE!G9 -> 195.7700101 | E124: =+EE!H13*('2020_2022_FIN(ERALDI)'!E80+'2020_2022_FIN(ERALDI)'!E82)*1.2+'2020_2022_FIN(ERALDI)'!E85*12*1.2/EE!H9 -> 200.188691
A125: Vee- ja kanalisatsiooniteenuse eest makstava kulu osakaal leibkonnaliikme netosissetulekust | B125: % | C125: =+C124/C123 -> 0.02299490378 | D125: 0.02256261342 | E125: 0.02260396698
A126: VEEMAJANDUSALASE TEGEVUSE FINANTSILINE JÄTKUSUUTLIKKUS
A127: Jätkusuutlikkuse analüüs | B127: Ühik | C127: 2020 | D127: 2021 | E127: 2022
A128: Toetus (KIK) | B128: EUR | C128: =+Rahastamiseelarve!F33+Rahastamiseelarve!F41+Rahastamiseelarve!F49+Rahastamiseelarve!F57+Rahastamiseelarve!F65 -> 0 | D128: =+Rahastamiseelarve!G33+Rahastamiseelarve!G41+Rahastamiseelarve!G49+Rahastamiseelarve!G57+Rahastamiseelarve!G65 -> 1165559.5 | E128: =+Rahastamiseelarve!H33+Rahastamiseelarve!H41+Rahastamiseelarve!H49+Rahastamiseelarve!H57+Rahastamiseelarve!H65 -> 297376.625
A129: Omavahendid | B129: EUR | C129: =+EE!C31 -> 163802.7148 | D129: 0 | E129: 0
A130: Võetav laen/Kap.rent | B130: EUR | C130: =+LAEN!J10+LAEN!J24 -> 0 | D130: =+LAEN!K10+LAEN!K24 -> 500000 | E130: =+LAEN!L10+LAEN!L24 -> 85000
A131: Kolmandate osapoolte toetus | B131: EUR | C131: =+Rahastamiseelarve!F31+Rahastamiseelarve!F39+Rahastamiseelarve!F47+Rahastamiseelarve!F55+Rahastamiseelarve!F63 -> 20000 | D131: =+Rahastamiseelarve!G31+Rahastamiseelarve!G39+Rahastamiseelarve!G47+Rahastamiseelarve!G55+Rahastamiseelarve!G63 -> 77500 | E131: =+Rahastamiseelarve!H31+Rahastamiseelarve!H39+Rahastamiseelarve!H47+Rahastamiseelarve!H55+Rahastamiseelarve!H63 -> 48750
A132: Tegevustulud (s.h.muud tulud) | B132: EUR | C132: =+C106 -> 181249.2854 | D132: =+D106 -> 185739.4056 | E132: 204377.387
A133: Kokku laekumised | B133: EUR | C133: =SUM(C128:C132) -> 365052.0002 | D133: 1928798.906 | E133: 635504.012
A134: Kokku investeeringud | B134: EUR | C134: =+Rahastamiseelarve!F26+Rahastamiseelarve!F34+Rahastamiseelarve!F42+Rahastamiseelarve!F50+Rahastamiseelarve!F58 -> 20000 | D134: =+Rahastamiseelarve!G26+Rahastamiseelarve!G34+Rahastamiseelarve!G42+Rahastamiseelarve!G50+Rahastamiseelarve!G58 -> 1949610 | E134: =+Rahastamiseelarve!H26+Rahastamiseelarve!H34+Rahastamiseelarve!H42+Rahastamiseelarve!H50+Rahastamiseelarve!H58 -> 444823.75
A135: Intressikulud | B135: EUR | C135: =+LAEN!J14+LAEN!J28 -> 861.375 | D135: =+LAEN!K14+LAEN!K28 -> 3871.525 | E135: =+LAEN!L14+LAEN!L28 -> 7256.675
A136: Laenude tagasimaksmine | B136: EUR | C136: =+LAEN!J11+LAEN!J25 -> 9188 | D136: =+LAEN!K11+LAEN!K25 -> 9188 | E136: =+LAEN!L11+LAEN!L25 -> 34188
A137: Tegevuskulud | B137: EUR | C137: =+C117 -> 137975.0184 | D137: =+D117 -> 142157.0494 | E137: 148172.5547
A138: Kokku väljamaksed | B138: EUR | C138: =SUM(C134:C137) -> 168024.3934 | D138: 2104826.574 | E138: 634440.9797
A139: Kokku rahavoog | B139: EUR | C139: =C133-C138 -> 197027.6067 | D139: -176027.6688 | E139: 1063.032326
A140: Kumulatiivne rahavoog | B140: EUR | C140: =C139 -> 197027.6067 | D140: =C140+D139 -> 20999.93792 | E140: 22062.97025
A141: ÜVK-teenuspiirkonnad kokku
A142: ÜVK-teenustulud | B142: EUR | C142: =+C31+C101 -> 277676.8145 | D142: 305478.9433 | E142: 323977.5353
A143: Muud tulud | B143: EUR | C143: =+C105+C35 -> 53309.81566 | D143: 53617.29144 | E143: 54909.40182
A144: TULUD KOKKU | B144: EUR | C144: =+C142+C143 -> 330986.6301 | D144: =+D142+D143 -> 359096.2347 | E144: 378886.9371
A146: KULUD (va kulum) KOKKU | B146: EUR | C146: =C47+C117 -> 295837.4163 | D146: 294571.4128 | E146: 303890.9255
A148: RAHAVOOG OPEREERIMISTEGEVUSEST | B148: EUR | C148: =C144-C146 -> 35149.21382 | D148: =D144-D146 -> 64524.82193 | E148: 74996.01154
A149: Hinda lülitatav kulum | B149: EUR | C149: =+C49+C119 -> 48908.57768 | D149: 45234.35768 | E149: 63655.62018
A150: TULEM | B150: EUR | C150: =+C148-C149 -> -13759.36386 | D150: 19290.46424 | E150: 11340.39135
A151: TULUKUS | B151: % | C151: =+C150/C144 -> -0.04157075425 | D151: =+D150/D144 -> 0.05371948347 | E151: 0.02993080585
A153: VEEMAJANDUSALASE TEGEVUSE FINANTSILINE JÄTKUSUUTLIKKUS
A154: Jätkusuutlikkuse analüüs | B154: Ühik | C154: 2020 | D154: 2021 | E154: 2022
A155: Toetus (KIK) | B155: EUR | C155: =+C58+C128 -> 0 | D155: 1165559.5 | E155: 297376.625
A156: Omavahendid | B156: EUR | C156: 327605.4296 | D156: 0 | E156: 0
A157: Võetav laen/Kap.rent | B157: EUR | C157: 0 | D157: 500000 | E157: 85000
A158: Kolmandate osapoolte toetus | B158: EUR | C158: 41250 | D158: 98750 | E158: 70000
A159: Tegevustulud (s.h.muud tulud) | B159: EUR | C159: =C62+C132 -> 330986.6301 | D159: 359096.2347 | E159: 378886.9371
A160: Kokku laekumised | B160: EUR | C160: =SUM(C155:C159) -> 699842.0597 | D160: 2123405.735 | E160: 831263.5621
A161: Kokku investeeringud | B161: EUR | C161: =+C64+C134 -> 41250 | D161: 1970860 | E161: 466073.75
A162: Intressikulud | B162: EUR | C162: 2874.6625 | D162: 5672.8875 | E162: 8846.1125
A163: Laenude tagasimaksmine | B163: EUR | C163: 26142 | D163: 26142 | E163: 51142
A164: Tegevuskulud | B164: EUR | C164: =C67+C137 -> 295837.4163 | D164: 294571.4128 | E164: 303890.9255
A165: Kokku väljamaksed | B165: EUR | C165: =SUM(C161:C164) -> 366104.0788 | D165: 2297246.3 | E165: 829952.788
A166: Kokku rahavoog | B166: EUR | C166: =C160-C165 -> 333737.9809 | D166: -173840.5656 | E166: 1310.774036
A167: Kumulatiivne rahavoog | B167: EUR | C167: =C166 -> 333737.9809 | D167: =C167+D166 -> 159897.4154 | E167: 161208.1894
A168: DSCR | C168: =+C148/SUM(C162:C163) -> 1.211345854 | D168: =+D148/SUM(D162:D163) -> 2.028132959 | E168: 1.250181218

Sheet PV (hidden)
A1: Põhivara 31.12.2019 | D1: % | E1: 01.01.2019 | H1: Käive | K1: 31.12.2019 | N1: Piirkond | O1: Vei/kanal | P1: KULUM | AB1: JVRT
A2: Nimetus | B2: LIIK | C2: Soet. aeg | E2: Maksumus | F2: Kulum | G2: Jääkväärtus | H2: Maksumus | I2: Kulumkuluks | J2: Kulum | K2: Maksumus | L2: Kulum | M2: Jääkväärtus | N2: 1=Haljala, 2=Vihula | P2: 2020 | Q2: 2021 | R2: 2022 | S2: 2023 | T2: 2024 | U2: 2025 | V2: 2026 | W2: 2027 | X2: 2028 | Y2: 2029 | Z2: 2030 | AA2: 2031
A3: 0010 HKM Haljala katlamaja (omaosalus) | B3: KM1 | C3: 31.08.2016 | D3: 2.5 | E3: 51756.79 | F3: 15090.02 | G3: 36666.77 | H3: 0 | I3: 1293.96 | J3: 0 | K3: 51756.79 | L3: 16383.98 | M3: 35372.81 | P3: =+$K3*$D3/100 -> 1293.91975 | Q3: =+$K3*$D3/100 -> 1293.91975 | R3: 1293.91975 | S3: 1293.91975 | T3: 1293.91975 | U3: 1293.91975 | V3: 1293.91975 | W3: 1293.91975 | X3: 1293.91975 | Y3: 1293.91975 | Z3: 1293.91975 | AA3: 1293.91975 | AB3: =+M3-SUM(P3:AA3) -> 19845.773
A4: 0011 HKM Haljala katlamaja (Vald toetus) | B4: SF | C4: 31.08.2016 | D4: 2.5 | E4: 28087.53 | F4: 1711 | G4: 26376.53 | H4: 0 | I4: 702.24 | J4: 0 | K4: 28087.53 | L4: 2413.24 | M4: 25674.29 | P4: =+$K4*$D4/100 -> 702.18825 | Q4: 702.18825 | R4: 702.18825 | S4: 702.18825 | T4: 702.18825 | U4: 702.18825 | V4: 702.18825 | W4: 702.18825 | X4: 702.18825 | Y4: 702.18825 | Z4: 702.18825 | AA4: 702.18825 | AB4: =+M4-SUM(P4:AA4) -> 17248.031
A5: 0012 HKM Haljala katlamaja (KIK toetus) | B5: SF | C5: 31.08.2016 | D5: 2.5 | E5: 44574.51 | F5: 2697 | G5: 41877.51 | H5: 0 | I5: 1114.32 | J5: 0 | K5: 44574.51 | L5: 3811.32 | M5: 40763.19 | P5: 1114.36275 | Q5: 1114.36275 | R5: 1114.36275 | S5: 1114.36275 | T5: 1114.36275 | U5: 1114.36275 | V5: 1114.36275 | W5: 1114.36275 | X5: 1114.36275 | Y5: 1114.36275 | Z5: 1114.36275 | AA5: 1114.36275 | AB5: 27390.837
A6: 0013 Haljala katlamaja kontoriosa | B6: KM1 | C6: 31.03.2016 | D6: 2.5 | E6: 18950 | F6: 1326 | G6: 17624 | H6: 0 | I6: 473.76 | J6: 0 | K6: 18950 | L6: 1799.76 | M6: 17150.24 | P6: 473.75 | Q6: 473.75 | R6: 473.75 | S6: 473.75 | T6: 473.75 | U6: 473.75 | V6: 473.75 | W6: 473.75 | X6: 473.75 | Y6: 473.75 | Z6: 473.75 | AA6: 473.75 | AB6: 11465.24
A7: 0020 Laohoone 1 (garaaž) | B7: KM1 | C7: 01.01.1995 | D7: 3.33 | E7: 8702.59 | F7: 3753.52 | G7: 4949.07 | H7: 0 | I7: 289.8 | J7: 0 | K7: 8702.59 | L7: 4043.32 | M7: 4659.27 | P7: 289.796247 | Q7: 289.796247 | R7: 289.796247 | S7: 289.796247 | T7: 289.796247 | U7: 289.796247 | V7: 289.796247 | W7: 289.796247 | X7: 289.796247 | Y7: 289.796247 | Z7: 289.796247 | AA7: 289.796247 | AB7: 1181.715036
A8: 0022 Laohoone 2 | B8: KM1 | C8: 31.08.2016 | D8: 2.5 | E8: 11000.4 | F8: 667 | G8: 10333.4 | H8: 0 | I8: 275.04 | J8: 0 | K8: 11000.4 | L8: 942.04 | M8: 10058.36 | P8: 275.01 | Q8: 275.01 | R8: 275.01 | S8: 275.01 | T8: 275.01 | U8: 275.01 | V8: 275.01 | W8: 275.01 | X8: 275.01 | Y8: 275.01 | Z8: 275.01 | AA8: 275.01 | AB8: 6758.24
A9: 0030 Aaspere katlamaja | B9: KM3 | C9: 01.01.1995 | D9: 3.33 | E9: 6391.16 | F9: 2794.05 | G9: 3597.11 | H9: 0 | I9: 212.88 | J9: 0 | K9: 6391.16 | L9: 3006.93 | M9: 3384.23 | P9: 212.825628 | Q9: 212.825628 | R9: 212.825628 | S9: 212.825628 | T9: 212.825628 | U9: 212.825628 | V9: 212.825628 | W9: 212.825628 | X9: 212.825628 | Y9: 212.825628 | Z9: 212.825628 | AA9: 212.825628 | AB9: 830.322464
A10: 0040 Aaspere keskuse puurkaevupumpla | B10: TR3 | C10: 31.12.2005 | D10: 5 | E10: 1917.35 | F10: 1247.34 | G10: 670.01 | H10: 0 | I10: 95.88 | J10: 0 | K10: 1917.35 | L10: 1343.22 | M10: 574.13 | N10: 1 | O10: vesi | P10: 95.8675 | Q10: 95.8675 | R10: 95.8675 | S10: 95.8675 | T10: 95.8675 | U10: =+$K10*$D10/100-1.075 -> 94.7925 | AB10: 0
A11: 0050 Aaspere keskuse reoveepuhasti | B11: KAN3 | C11: 31.12.2005 | D11: 10 | E11: 639.12 | F11: 639.12 | G11: 0 | H11: 0 | I11: 0 | J11: 0 | K11: 639.12 | L11: 639.12 | M11: 0 | N11: 1 | O11: kanal | AB11: 0
A12: 0060 Aaspere mõisa puurkaevupumpla | B12: TR3 | C12: 01.01.1993 | D12: 5 | E12: 639.12 | F12: 449.06 | G12: 190.06 | H12: 0 | I12: 31.92 | J12: 0 | K12: 639.12 | L12: 480.98 | M12: 158.14 | N12: 1 | O12: vesi | P12: 31.956 | Q12: 31.956 | R12: 31.956 | S12: 31.956 | T12: =+$K12*$D12/100-1.64 -> 30.316 | AB12: 0
A13: 0070 Aaspere mõisa reoveepuhasti | B13: KAN3 | C13: 31.12.2005 | D13: 5 | E13: 807.59 | F13: 491.24 | G13: 316.35 | H13: 0 | I13: 40.32 | J13: 0 | K13: 807.59 | L13: 531.56 | M13: 276.03 | N13: 1 | O13: kanal | P13: 40.3795 | Q13: 40.3795 | R13: 40.3795 | S13: 40.3795 | T13: 40.3795 | U13: 40.3795 | V13: =+$K13*$D13/100-6.6265 -> 33.753 | AB13: 0
A14: 00801 Essu puurkaevupumpla | B14: TR2 | C14: 30.06.2011 | D14: 2.5 | E14: 1605.98 | F14: 449.06 | G14: 1156.92 | H14: 0 | I14: 40.2 | J14: 0 | K14: 1605.98 | L14: 489.26 | M14: 1116.72 | N14: 1 | O14: vesi | P14: 40.1495 | Q14: 40.1495 | R14: 40.1495 | S14: 40.1495 | T14: 40.1495 | U14: 40.1495 | V14: 40.1495 | W14: 40.1495 | X14: 40.1495 | Y14: 40.1495 | Z14: 40.1495 | AA14: 40.1495 | AB14: 634.926
A15: 00802 Essu puurkaevupumpla (KIK toetusega) | B15: SF | C15: 30.06.2011 | D15: 2.5 | E15: 3928.78 | F15: 702 | G15: 3226.78 | H15: 0 | I15: 98.16 | J15: 0 | K15: 3928.78 | L15: 800.16 | M15: 3128.62 | P15: 98.2195 | Q15: 98.2195 | R15: 98.2195 | S15: 98.2195 | T15: 98.2195 | U15: 98.2195 | V15: 98.2195 | W15: 98.2195 | X15: 98.2195 | Y15: 98.2195 | Z15: 98.2195 | AA15: 98.2195 | AB15: 1949.986
A16: 0090 Essu reoveepuhasti | B16: KAN2 | C16: 01.01.1993 | D16: 10 | E16: 958.67 | F16: 958.67 | G16: 0 | H16: 0 | I16: 0 | J16: 0 | K16: 958.67 | L16: 958.67 | M16: 0 | N16: 1 | O16: kanal | AB16: 0
A17: 0102 Naaritsa puurkaevupumpla (ÜF omaosalus) | B17: TR1 | C17: 31.12.2012 | D17: 2.5 | E17: 21002.63 | F17: 3168 | G17: 17834.63 | H17: 0 | I17: 525.12 | J17: 0 | K17: 21002.63 | L17: 3693.12 | M17: 17309.51 | N17: 1 | O17: vesi | P17: 525.06575 | Q17: 525.06575 | R17: 525.06575 | S17: 525.06575 | T17: 525.06575 | U17: 525.06575 | V17: 525.06575 | W17: 525.06575 | X17: 525.06575 | Y17: 525.06575 | Z17: 525.06575 | AA17: 525.06575 | AB17: 11008.721
A18: 0103 Naaritsa puurkaevupumpla (ÜF toetus) | B18: SF | C18: 31.12.2012 | D18: 2.5 | E18: 104180.95 | F18: 15624 | G18: 88556.95 | H18: 0 | I18: 2604.48 | J18: 0 | K18: 104180.95 | L18: 18228.48 | M18: 85952.47 | P18: 2604.52375 | Q18: 2604.52375 | R18: 2604.52375 | S18: 2604.52375 | T18: 2604.52375 | U18: 2604.52375 | V18: 2604.52375 | W18: 2604.52375 | X18: 2604.52375 | Y18: 2604.52375 | Z18: 2604.52375 | AA18: 2604.52375 | AB18: 54698.185
A19: 0120 Maheda puurkaevupumpla | B19: TR1 | C19: 31.12.2005 | D19: 3.33 | E19: 1852.8 | F19: 786.78 | G19: 1066.02 | H19: 0 | I19: 61.68 | J19: 0 | K19: 1852.8 | L19: 848.46 | M19: 1004.34 | N19: 1 | O19: vesi | P19: 61.69824 | Q19: 61.69824 | R19: 61.69824 | S19: 61.69824 | T19: 61.69824 | U19: 61.69824 | V19: 61.69824 | W19: 61.69824 | X19: 61.69824 | Y19: 61.69824 | Z19: 61.69824 | AA19: 61.69824 | AB19: 263.96112
A20: 0140 RVP tehnohoone (ÜF toetus) | B20: SF | C20: 31.01.2014 | D20: 2.5 | E20: 328940.59 | F20: 41100 | G20: 287840.59 | H20: 0 | I20: 8223.48 | J20: 0 | K20: 328940.59 | L20: 49323.48 | M20: 279617.11 | P20: 8223.51475 | Q20: 8223.51475 | R20: 8223.51475 | S20: 8223.51475 | T20: 8223.51475 | U20: 8223.51475 | V20: 8223.51475 | W20: 8223.51475 | X20: 8223.51475 | Y20: 8223.51475 | Z20: 8223.51475 | AA20: 8223.51475 | AB20: 180934.933
A21: 01401 RVP tehnohoone (VÕ, vald toetus) | B21: SF | C21: 31.01.2014 | D21: 2.5 | E21: 63548.61 | F21: 7920 | G21: 55628.61 | H21: 0 | I21: 1588.68 | J21: 0 | K21: 63548.61 | L21: 9508.68 | M21: 54039.93 | P21: 1588.71525 | Q21: 1588.71525 | R21: 1588.71525 | S21: 1588.71525 | T21: 1588.71525 | U21: =+$K21*$D21/100 -> 1588.71525 | V21: 1588.71525 | W21: 1588.71525 | X21: 1588.71525 | Y21: 1588.71525 | Z21: 1588.71525 | AA21: 1588.71525 | AB21: 34975.347
A22: 014011 RVP tehnohoone (omaosalus) | B22: KAN1 | C22: 31.01.2014 | D22: 2.5 | E22: 1994.93 | F22: 240 | G22: 1754.93 | H22: 0 | I22: 49.92 | J22: 0 | K22: 1994.93 | L22: 289.92 | M22: 1705.01 | N22: 1 | O22: kanal | P22: 49.87325 | Q22: 49.87325 | R22: 49.87325 | S22: 49.87325 | T22: 49.87325 | U22: 49.87325 | V22: 49.87325 | W22: 49.87325 | X22: 49.87325 | Y22: 49.87325 | Z22: 49.87325 | AA22: 49.87325 | AB22: 1106.531
A23: 0141 RVP kangasfiltri hoone (ÜF toetus) | B23: SF | C23: 31.01.2014 | D23: 2.5 | E23: 48025.92 | F23: 6000 | G23: 42025.92 | H23: 0 | I23: 1200.6 | J23: 0 | K23: 48025.92 | L23: 7200.6 | M23: 40825.32 | P23: 1200.648 | Q23: 1200.648 | R23: 1200.648 | S23: 1200.648 | T23: 1200.648 | U23: 1200.648 | V23: 1200.648 | W23: 1200.648 | X23: 1200.648 | Y23: 1200.648 | Z23: 1200.648 | AA23: 1200.648 | AB23: 26417.544
A24: 01411 RVP kangasfiltri hoone (VÕ, vald toetus) | B24: SF | C24: 31.01.2014 | D24: 2.5 | E24: 9278.22 | F24: 1140 | G24: 8138.22 | H24: 0 | I24: 231.96 | J24: 0 | K24: 9278.22 | L24: 1371.96 | M24: 7906.26 | P24: 231.9555 | Q24: 231.9555 | R24: 231.9555 | S24: 231.9555 | T24: 231.9555 | U24: 231.9555 | V24: 231.9555 | W24: 231.9555 | X24: 231.9555 | Y24: 231.9555 | Z24: 231.9555 | AA24: 231.9555 | AB24: 5122.794
A25: 014111 RVP kangasfiltri hoone (omaosalus) | B25: KAN1 | C25: 31.01.2014 | D25: 2.5 | E25: 291.26 | F25: 60 | G25: 231.26 | H25: 0 | I25: 7.32 | J25: 0 | K25: 291.26 | L25: 67.32 | M25: 223.94 | N25: 1 | O25: kanal | P25: 7.2815 | Q25: 7.2815 | R25: 7.2815 | S25: 7.2815 | T25: 7.2815 | U25: 7.2815 | V25: 7.2815 | W25: 7.2815 | X25: 7.2815 | Y25: 7.2815 | Z25: 7.2815 | AA25: 7.2815 | AB25: 136.562
A26: 0142 Võsupere reoveepuhastusjaama hoone (KIK toetus) | B26: SF | C26: 01.01.2019 | D26: 2.5 | E26: 143013.07 | F26: 297.94 | G26: 142715.13 | H26: 0 | I26: 3575.28 | J26: 0 | K26: 143013.07 | L26: 3873.22 | M26: 139139.85 | P26: 3575.32675 | Q26: 3575.32675 | R26: 3575.32675 | S26: 3575.32675 | T26: 3575.32675 | U26: 3575.32675 | V26: 3575.32675 | W26: 3575.32675 | X26: 3575.32675 | Y26: 3575.32675 | Z26: 3575.32675 | AA26: 3575.32675 | AB26: 96235.929
A27: 01421 Võsupere reoveepuhastusjaama hoone (omaosalus) | B27: KAN8 | C27: 01.01.2019 | D27: 2.5 | E27: 47389.97 | F27: 98.73 | G27: 47291.24 | H27: 0 | I27: 1184.76 | J27: 0 | K27: 47389.97 | L27: 1283.49 | M27: 46106.48 | N27: 2 | O27: kanal | P27: 1184.74925 | Q27: 1184.74925 | R27: 1184.74925 | S27: 1184.74925 | T27: 1184.74925 | U27: 1184.74925 | V27: 1184.74925 | W27: 1184.74925 | X27: 1184.74925 | Y27: 1184.74925 | Z27: 1184.74925 | AA27: 1184.74925 | AB27: 31889.489
A28: 0143 Võsupere veetöötlusjaama hoone (KIK toetus) | B28: SF | C28: 01.01.2019 | D28: 2.5 | E28: 38070.12 | F28: 79.31 | G28: 37990.81 | H28: 0 | I28: 951.72 | J28: 0 | K28: 38070.12 | L28: 1031.03 | M28: 37039.09 | P28: 951.753 | Q28: 951.753 | R28: 951.753 | S28: 951.753 | T28: 951.753 | U28: 951.753 | V28: 951.753 | W28: 951.753 | X28: 951.753 | Y28: 951.753 | Z28: 951.753 | AA28: 951.753 | AB28: 25618.054
A29: 01431 Võsupere veetöötlusjaama hoone (omaosalus) | B29: KAN8 | C29: 01.01.2019 | D29: 2.5 | E29: 12615.22 | F29: 26.28 | G29: 12588.94 | H29: 0 | I29: 315.36 | J29: 0 | K29: 12615.22 | L29: 341.64 | M29: 12273.58 | N29: 2 | O29: kanal | P29: 315.3805 | Q29: 315.3805 | R29: 315.3805 | S29: 315.3805 | T29: 315.3805 | U29: 315.3805 | V29: 315.3805 | W29: 315.3805 | X29: 315.3805 | Y29: 315.3805 | Z29: 315.3805 | AA29: 315.3805 | AB29: 8489.014
A30: 00010 Aaspere keskuse trassid, vesi | B30: TR3 | C30: 31.12.2005 | D30: 6.7 | E30: 7605.49 | F30: 4711 | G30: 2894.49 | H30: 0 | I30: 509.52 | J30: 0 | K30: 7605.49 | L30: 5220.52 | M30: 2384.97 | N30: 1 | O30: vesi | P30: 509.56783 | Q30: 509.56783 | R30: 509.56783 | S30: 509.56783 | T30: =+$K30*$D30/100-162.86915 -> 346.69868 | AB30: 0
A31: 00011 Aaspere keskuse trassid, vesi | B31: TR3 | C31: 31.08.2009 | D31: 5 | E31: 9612.63 | F31: 4481.16 | G31: 5131.47 | H31: 0 | I31: 480.6 | J31: 0 | K31: 9612.63 | L31: 4961.76 | M31: 4650.87 | N31: 1 | O31: vesi | P31: 480.6315 | Q31: 480.6315 | R31: 480.6315 | S31: 480.6315 | T31: 480.6315 | U31: 480.6315 | V31: 480.6315 | W31: 480.6315 | X31: 480.6315 | Y31: =+$K31*$D31/100-155.445 -> 325.1865 | AB31: 0
A32: 00020 Aaspere keskuse trassid, kanal | B32: KAN3 | C32: 31.12.2005 | D32: 6.7 | E32: 30038.48 | F32: 27181.89 | G32: 2856.59 | H32: 0 | I32: 2012.52 | J32: 0 | K32: 30038.48 | L32: 29194.41 | M32: 844.07 | N32: 1 | O32: kanal | P32: =+M32 -> 844.07 | AB32: 0
A33: 00030 Aaspere mõisa trassid, vesi | B33: TR3 | C33: 31.12.2005 | D33: 6.7 | E33: 8628.07 | F33: 7783.9 | G33: 844.17 | H33: 0 | I33: 578.04 | J33: 0 | K33: 8628.07 | L33: 8361.94 | M33: 266.13 | N33: 1 | O33: vesi | P33: =+M33 -> 266.13 | AB33: 0
A34: 00040 Aaspere mõisa trassid, kanal | B34: KAN3 | C34: 31.12.2005 | D34: 6.7 | E34: 10098.04 | F34: 9091.82 | G34: 1006.22 | H34: 0 | I34: 676.56 | J34: 0 | K34: 10098.04 | L34: 9768.38 | M34: 329.66 | N34: 1 | O34: kanal | P34: 329.66 | AB34: 0
A35: 00051 Essu trassid, vesi | B35: TR2 | C35: 31.12.2010 | D35: 2.5 | E35: 4863.55 | F35: 960 | G35: 3903.55 | H35: 0 | I35: 121.56 | J35: 0 | K35: 4863.55 | L35: 1081.56 | M35: 3781.99 | N35: 1 | O35: vesi | P35: 121.58875 | Q35: 121.58875 | R35: 121.58875 | S35: 121.58875 | T35: 121.58875 | U35: 121.58875 | V35: 121.58875 | W35: 121.58875 | X35: 121.58875 | Y35: 121.58875 | Z35: 121.58875 | AA35: 121.58875 | AB35: 2322.925
A36: 00052 Essu trassid, vesi | B36: TR2 | C36: 31.12.2010 | D36: 2.5 | E36: 2967.87 | F36: 576 | G36: 2391.87 | H36: 0 | I36: 74.16 | J36: 0 | K36: 2967.87 | L36: 650.16 | M36: 2317.71 | N36: 1 | O36: vesi | P36: 74.19675 | Q36: 74.19675 | R36: 74.19675 | S36: 74.19675 | T36: 74.19675 | U36: 74.19675 | V36: 74.19675 | W36: 74.19675 | X36: 74.19675 | Y36: 74.19675 | Z36: 74.19675 | AA36: 74.19675 | AB36: 1427.349
A37: 00053 Essu trassid, vesi (omaosalus) | B37: TR2 | C37: 30.09.2013 | D37: 2.5 | E37: 9187.65 | F37: 1197 | G37: 7990.65 | H37: 0 | I37: 229.68 | J37: 0 | K37: 9187.65 | L37: 1426.68 | M37: 7760.97 | N37: 1 | O37: vesi | P37: 229.69125 | Q37: =+$K37*$D37/100 -> 229.69125 | R37: 229.69125 | S37: 229.69125 | T37: 229.69125 | U37: 229.69125 | V37: 229.69125 | W37: 229.69125 | X37: 229.69125 | Y37: 229.69125 | Z37: 229.69125 | AA37: 229.69125 | AB37: 5004.675
A38: 00054 Essu trassid, vesi (KIK toetus) | B38: SF | C38: 30.09.2013 | D38: 2.5 | E38: 51668.35 | F38: 6804 | G38: 44864.35 | H38: 0 | I38: 1291.68 | J38: 0 | K38: 51668.35 | L38: 8095.68 | M38: 43572.67 | P38: 1291.70875 | Q38: 1291.70875 | R38: 1291.70875 | S38: 1291.70875 | T38: 1291.70875 | U38: 1291.70875 | V38: 1291.70875 | W38: 1291.70875 | X38: 1291.70875 | Y38: 1291.70875 | Z38: 1291.70875 | AA38: 1291.70875 | AB38: 28072.165
A39: 00055 Tammispea trassid, vesi (KIK toetus) | B39: SF | C39: 31.12.2017 | D39: 2.5 | E39: 67610.19 | F39: 1832.99 | G39: 65777.2 | H39: 0 | I39: 1690.2 | J39: 0 | K39: 67610.19 | L39: 3523.19 | M39: 64087 | P39: 1690.25475 | Q39: 1690.25475 | R39: 1690.25475 | S39: 1690.25475 | T39: 1690.25475 | U39: 1690.25475 | V39: 1690.25475 | W39: 1690.25475 | X39: 1690.25475 | Y39: 1690.25475 | Z39: 1690.25475 | AA39: 1690.25475 | AB39: 43803.943
A40: 00056 Tammispea trassid, vesi (HVV toetus) | B40: SF | C40: 31.12.2017 | D40: 2.5 | E40: 11981.81 | F40: 325 | G40: 11656.81 | H40: 0 | I40: 299.52 | J40: 0 | K40: 11981.81 | L40: 624.52 | M40: 11357.29 | P40: 299.54525 | Q40: 299.54525 | R40: 299.54525 | S40: 299.54525 | T40: 299.54525 | U40: 299.54525 | V40: 299.54525 | W40: 299.54525 | X40: 299.54525 | Y40: 299.54525 | Z40: 299.54525 | AA40: 299.54525 | AB40: 7762.747
A41: 00060 Essu trassid, kanal | B41: KAN2 | C41: 29.12.1993 | D41: 6.7 | E41: 22893.15 | F41: 20697.94 | G41: 2195.21 | H41: 0 | I41: 1533.84 | J41: 0 | K41: 22893.15 | L41: 22231.78 | M41: 661.37 | N41: 1 | O41: kanal | P41: =+$K41*$D41/100-872.47105 -> 661.37 | AB41: 0
A42: 00061 Essu trassid, kanal (omaosalus) | B42: KAN2 | C42: 30.09.2013 | D42: 2.5 | E42: 928.19 | F42: 126 | G42: 802.19 | H42: 0 | I42: 23.16 | J42: 0 | K42: 928.19 | L42: 149.16 | M42: 779.03 | N42: 1 | O42: kanal | P42: 23.20475 | Q42: 23.20475 | R42: 23.20475 | S42: 23.20475 | T42: 23.20475 | U42: 23.20475 | V42: 23.20475 | W42: 23.20475 | X42: 23.20475 | Y42: 23.20475 | Z42: 23.20475 | AA42: 23.20475 | AB42: 500.573
A43: 00062 Essu trassid, kanal (KIK toetus) | B43: SF | C43: 30.09.2013 | D43: 2.5 | E43: 5219.81 | F43: 693 | G43: 4526.81 | H43: 0 | I43: 130.44 | J43: 0 | K43: 5219.81 | L43: 823.44 | M43: 4396.37 | P43: 130.49525 | Q43: 130.49525 | R43: 130.49525 | S43: 130.49525 | T43: 130.49525 | U43: 130.49525 | V43: 130.49525 | W43: 130.49525 | X43: 130.49525 | Y43: 130.49525 | Z43: 130.49525 | AA43: 130.49525 | AB43: 2830.427
A44: 00063 Tammispea trassid, kanal (KIK toetus) | B44: SF | C44: 31.12.2017 | D44: 2.5 | E44: 52649.5 | F44: 1430 | G44: 51219.5 | H44: 0 | I44: 1316.28 | J44: 0 | K44: 52649.5 | L44: 2746.28 | M44: 49903.22 | P44: 1316.2375 | Q44: 1316.2375 | R44: 1316.2375 | S44: 1316.2375 | T44: 1316.2375 | U44: 1316.2375 | V44: 1316.2375 | W44: 1316.2375 | X44: 1316.2375 | Y44: 1316.2375 | Z44: 1316.2375 | AA44: 1316.2375 | AB44: 34108.37
A45: 00064 Tammispea trassid, kanal (HVV toetus) | B45: SF | C45: 31.12.2017 | D45: 2.5 | E45: 9330.5 | F45: 247 | G45: 9083.5 | H45: 0 | I45: 233.28 | J45: 0 | K45: 9330.5 | L45: 480.28 | M45: 8850.22 | P45: 233.2625 | Q45: 233.2625 | R45: 233.2625 | S45: 233.2625 | T45: 233.2625 | U45: 233.2625 | V45: 233.2625 | W45: 233.2625 | X45: 233.2625 | Y45: 233.2625 | Z45: 233.2625 | AA45: 233.2625 | AB45: 6051.07
A46: 00065 Tammispea trassid, survekanal (KIK toetus) | B46: SF | C46: 31.12.2017 | D46: 2.5 | E46: 20974.86 | F46: 572 | G46: 20402.86 | H46: 0 | I46: 524.4 | J46: 0 | K46: 20974.86 | L46: 1096.4 | M46: 19878.46 | P46: 524.3715 | Q46: 524.3715 | R46: 524.3715 | S46: 524.3715 | T46: 524.3715 | U46: 524.3715 | V46: 524.3715 | W46: 524.3715 | X46: 524.3715 | Y46: 524.3715 | Z46: 524.3715 | AA46: 524.3715 | AB46: 13586.002
A47: 00066 Tammispea trassid, survekanal (HVV toetus) | B47: SF | C47: 31.12.2017 | D47: 2.5 | E47: 3717.14 | F47: 104 | G47: 3613.14 | H47: 0 | I47: 92.88 | J47: 0 | K47: 3717.14 | L47: 196.88 | M47: 3520.26 | P47: 92.9285 | Q47: 92.9285 | R47: 92.9285 | S47: 92.9285 | T47: 92.9285 | U47: 92.9285 | V47: 92.9285 | W47: 92.9285 | X47: 92.9285 | Y47: 92.9285 | Z47: 92.9285 | AA47: 92.9285 | AB47: 2405.118
A48: 00070 Haljala trassid, vesi | B48: TR1 | C48: 31.12.2005 | D48: 6.7 | E48: 49211.97 | F48: 44505.46 | G48: 4706.51 | H48: 0 | I48: 3297.24 | J48: 0 | K48: 49211.97 | L48: 47802.7 | M48: 1409.27 | N48: 1 | O48: vesi | P48: =+M48 -> 1409.27 | AB48: 0
A49: 00071 Haljala trassid, vesi (ÜF omaosalus) | B49: TR1 | C49: 31.12.2012 | D49: 2.5 | E49: 105677.93 | F49: 15840 | G49: 89837.93 | H49: 0 | I49: 2641.92 | J49: 0 | K49: 105677.93 | L49: 18481.92 | M49: 87196.01 | N49: 1 | O49: vesi | P49: 2641.94825 | Q49: 2641.94825 | R49: 2641.94825 | S49: 2641.94825 | T49: 2641.94825 | U49: 2641.94825 | V49: 2641.94825 | W49: 2641.94825 | X49: 2641.94825 | Y49: 2641.94825 | Z49: 2641.94825 | AA49: 2641.94825 | AB49: 55492.631
A50: 00072 Haljala trassid, vesi (ÜF toetus) | B50: SF | C50: 31.12.2012 | D50: 2.5 | E50: 524201.84 | F50: 78623.95 | G50: 445577.89 | H50: 0 | I50: 13105.08 | J50: 0 | K50: 524201.84 | L50: 91729.03 | M50: 432472.81 | P50: 13105.046 | Q50: 13105.046 | R50: 13105.046 | S50: 13105.046 | T50: 13105.046 | U50: 13105.046 | V50: 13105.046 | W50: 13105.046 | X50: 13105.046 | Y50: 13105.046 | Z50: 13105.046 | AA50: 13105.046 | AB50: 275212.258
A51: 00073 Haljala trassid, vesi (Võsu mnt 20-51 omaosalus) | B51: TR1 | C51: 31.07.2015 | D51: 2.5 | E51: 2136 | F51: 164 | G51: 1972 | H51: 0 | I51: 53.4 | J51: 0 | K51: 2136 | L51: 217.4 | M51: 1918.6 | N51: 1 | O51: vesi | P51: 53.4 | Q51: 53.4 | R51: 53.4 | S51: 53.4 | T51: 53.4 | U51: 53.4 | V51: 53.4 | W51: 53.4 | X51: 53.4 | Y51: 53.4 | Z51: 53.4 | AA51: 53.4 | AB51: 1277.8
A52: 00074 Haljala trassid, vesi (Võsu mnt 20-51 HVV toetus) | B52: SF | C52: 31.07.2015 | D52: 2.5 | E52: 34583.64 | F52: 2912 | G52: 31671.64 | H52: 0 | I52: 864.6 | J52: 0 | K52: 34583.64 | L52: 3776.6 | M52: 30807.04 | P52: 864.591 | Q52: 864.591 | R52: 864.591 | S52: 864.591 | T52: 864.591 | U52: 864.591 | V52: 864.591 | W52: 864.591 | X52: 864.591 | Y52: 864.591 | Z52: 864.591 | AA52: 864.591 | AB52: 20431.948
A53: 00080 Haljala trassid, kanal | B53: KAN1 | C53: 31.12.2005 | D53: 6.7 | E53: 6391.17 | F53: 5799.29 | G53: 591.88 | H53: 0 | I53: 428.16 | J53: 0 | K53: 6391.17 | L53: 6227.45 | M53: 163.72 | N53: 1 | O53: kanal | P53: =+M53 -> 163.72 | AB53: 0
A54: 00081 Haljala trassid, kanal (ÜF omaosalus) | B54: KAN1 | C54: 31.12.2012 | D54: 2.5 | E54: 114860.34 | F54: 17208 | G54: 97652.34 | H54: 0 | I54: 2871.48 | J54: 0 | K54: 114860.34 | L54: 20079.48 | M54: 94780.86 | N54: 1 | O54: kanal | P54: 2871.5085 | Q54: =+$K54*$D54/100 -> 2871.5085 | R54: 2871.5085 | S54: 2871.5085 | T54: 2871.5085 | U54: 2871.5085 | V54: 2871.5085 | W54: 2871.5085 | X54: 2871.5085 | Y54: 2871.5085 | Z54: 2871.5085 | AA54: 2871.5085 | AB54: 60322.758
A55: 00082 Haljala trassid, kanal (ÜF toetus) | B55: SF | C55: 31.12.2012 | D55: 2.5 | E55: 569750.21 | F55: 85464.02 | G55: 484286.19 | H55: 0 | I55: 14243.76 | J55: 0 | K55: 569750.21 | L55: 99707.78 | M55: 470042.43 | P55: 14243.75525 | Q55: 14243.75525 | R55: 14243.75525 | S55: 14243.75525 | T55: 14243.75525 | U55: 14243.75525 | V55: 14243.75525 | W55: 14243.75525 | X55: 14243.75525 | Y55: 14243.75525 | Z55: 14243.75525 | AA55: 14243.75525 | AB55: 299117.367
A56: 00083 Haljala trassid, kanal (Uus põik 5-11 HVV toetus) | B56: SF | C56: 30.09.2017 | D56: 2.5 | E56: 6400 | F56: 208 | G56: 6192 | H56: 0 | I56: 159.96 | J56: 0 | K56: 6400 | L56: 367.96 | M56: 6032.04 | P56: 160 | Q56: 160 | R56: 160 | S56: 160 | T56: 160 | U56: 160 | V56: 160 | W56: 160 | X56: 160 | Y56: 160 | Z56: 160 | AA56: 160 | AB56: 4112.04
A57: 00090 Haljala soojustrassid | B57: KM1 | C57: 05.01.2000 | D57: 5 | E57: 172720.98 | F57: 139695.78 | G57: 33025.2 | H57: 0 | I57: 8636.04 | J57: 0 | K57: 172720.98 | L57: 148331.82 | M57: 24389.16 | P57: 8636.049 | Q57: 8636.049 | R57: =+$K57*$D57/100-1518.987 -> 7117.062 | AB57: 0
A58: 00091 Haljala soojustrassid | B58: KM1 | C58: 31.12.2005 | D58: 5 | E58: 54117.18 | F58: 37834.59 | G58: 16282.59 | H58: 0 | I58: 2705.88 | J58: 0 | K58: 54117.18 | L58: 40540.47 | M58: 13576.71 | P58: 2705.859 | Q58: 2705.859 | R58: 2705.859 | S58: 2705.859 | T58: 2705.859 | U58: 47.415 | AB58: 0
A59: 00092 Haljala soojustrassid (Tartu projekt) | B59: KM1 | C59: 10.11.2006 | D59: 5 | E59: 7255.89 | F59: 4391.51 | G59: 2864.38 | H59: 0 | I59: 362.76 | J59: 0 | K59: 7255.89 | L59: 4754.27 | M59: 2501.62 | P59: 362.7945 | Q59: 362.7945 | R59: 362.7945 | S59: 362.7945 | T59: 362.7945 | U59: 362.7945 | V59: =+$K59*$D59/100-37.9415 -> 324.853 | AB59: 0
A60: 00093 Haljala soojustrassid (Phare omafinantseering) | B60: KM1 | C60: 22.12.2006 | D60: 5 | E60: 61327.23 | F60: 36840.9 | G60: 24486.33 | H60: 0 | I60: 3066.36 | J60: 0 | K60: 61327.23 | L60: 39907.26 | M60: 21419.97 | P60: 3066.3615 | Q60: 3066.3615 | R60: 3066.3615 | S60: 3066.3615 | T60: 3066.3615 | U60: 3066.3615 | V60: =+$K60*$D60/100-44.5605 -> 3021.801 | AB60: 0
A61: 00094 Haljala soojustrassid (Phare toetusega soetatud) | B61: SF | C61: 22.12.2006 | D61: 5 | E61: 85441.21 | F61: 51263.42 | G61: 34177.79 | H61: 0 | I61: 4272.12 | J61: 0 | K61: 85441.21 | L61: 55535.54 | M61: 29905.67 | P61: 4272.0605 | Q61: 4272.0605 | R61: 4272.0605 | S61: 4272.0605 | T61: 4272.0605 | U61: 4272.0605 | V61: 4272.0605 | W61: 1.2465 | AB61: 0
A62: 00095 Haljala soojustrassid (kooli soojustrass) | B62: KM1 | C62: 31.12.2017 | D62: 6.7 | E62: 25588.66 | F62: 1859 | G62: 23729.66 | H62: 0 | I62: 1714.44 | J62: 0 | K62: 25588.66 | L62: 3573.44 | M62: 22015.22 | P62: 1714.44022 | Q62: 1714.44022 | R62: 1714.44022 | S62: 1714.44022 | T62: 1714.44022 | U62: 1714.44022 | V62: 1714.44022 | W62: 1714.44022 | X62: 1714.44022 | Y62: 1714.44022 | Z62: 1714.44022 | AA62: 1714.44022 | AB62: 1441.93736
A63: 00096 Haljala soojustrassid (Rahvamaja trass) | B63: SF | C63: 30.06.2018 | D63: 6.7 | E63: 16253 | F63: 546 | G63: 15707 | H63: 0 | I63: 1089 | J63: 0 | K63: 16253 | L63: 1635 | M63: 14618 | P63: 1088.951 | Q63: 1088.951 | R63: 1088.951 | S63: 1088.951 | T63: 1088.951 | U63: 1088.951 | V63: 1088.951 | W63: 1088.951 | X63: 1088.951 | Y63: 1088.951 | Z63: 1088.951 | AA63: 1088.951 | AB63: 1550.588
A64: 00100 Puhastusseadmed | B64: KAN3 | C64: 31.10.1996 | E64: 0 | F64: 0 | G64: 0 | H64: 0 | I64: 0 | J64: 0 | K64: 0 | L64: 0 | M64: 0 | N64: 1 | O64: kanal | P64: 0 | Q64: 0 | R64: 0 | S64: 0 | T64: 0 | U64: 0 | V64: 0 | W64: 0 | X64: 0 | Y64: 0 | Z64: 0 | AA64: 0 | AB64: 0
A65: 00101 Puurkaev PK-185 | B65: TR3 | C65: 01.02.1998 | E65: 0 | F65: 0 | G65: 0 | H65: 0 | I65: 0 | J65: 0 | K65: 0 | L65: 0 | M65: 0 | N65: 1 | O65: vesi | P65: 0 | Q65: 0 | R65: 0 | S65: 0 | T65: 0 | U65: 0 | V65: 0 | W65: 0 | X65: 0 | Y65: 0 | Z65: 0 | AA65: 0 | AB65: 0
A66: 00102 Puurkaev PK-200 | B66: TR3 | C66: 01.02.1998 | E66: 0 | F66: 0 | G66: 0 | H66: 0 | I66: 0 | J66: 0 | K66: 0 | L66: 0 | M66: 0 | N66: 1 | O66: vesi | P66: 0 | Q66: 0 | R66: 0 | S66: 0 | T66: 0 | U66: 0 | V66: 0 | W66: 0 | X66: 0 | Y66: 0 | Z66: 0 | AA66: 0 | AB66: 0
A67: 00103 Tammispea puurkaev koos veevarustusega | B67: TR2 | C67: 02.07.1999 | E67: 0 | F67: 0 | G67: 0 | H67: 0 | I67: 0 | J67: 0 | K67: 0 | L67: 0 | M67: 0 | N67: 1 | O67: vesi | P67: 0 | Q67: 0 | R67: 0 | S67: 0 | T67: 0 | U67: 0 | V67: 0 | W67: 0 | X67: 0 | Y67: 0 | Z67: 0 | AA67: 0 | AB67: 0
A68: 00104 Essu reoveepumpla | B68: KAN2 | C68: 30.06.2011 | D68: 6.7 | E68: 2092.96 | F68: 1080 | G68: 1012.96 | H68: 0 | I68: 140.28 | J68: 0 | K68: 2092.96 | L68: 1220.28 | M68: 872.68 | N68: 1 | O68: kanal | P68: =+$K68*$D68/100 -> 140.22832 | Q68: 140.22832 | R68: 140.22832 | S68: 140.22832 | T68: 140.22832 | U68: 140.22832 | V68: =+$K68*$D68/100-108.91824 -> 31.31008 | AB68: =+M68-SUM(P68:AA68) -> 0
A69: 00105 Essu reoveepumpla (KIK toetusega) | B69: SF | C69: 30.06.2011 | D69: 6.7 | E69: 11750.3 | F69: 5940 | G69: 5810.3 | H69: 0 | I69: 787.32 | J69: 0 | K69: 11750.3 | L69: 6727.32 | M69: 5022.98 | P69: 787.2701 | Q69: 787.2701 | R69: 787.2701 | S69: 787.2701 | T69: 787.2701 | U69: 787.2701 | V69: =+$K69*$D69/100-487.9107 -> 299.3594 | AB69: 0
A70: 001051 Tammispea reoveepumpla (KIK toetusega) | B70: SF | C70: 31.12.2017 | D70: 6.7 | E70: 23815.45 | F70: 1729 | G70: 22086.45 | H70: 0 | I70: 1595.64 | J70: 0 | K70: 23815.45 | L70: 3324.64 | M70: 20490.81 | P70: 1595.63515 | Q70: 1595.63515 | R70: 1595.63515 | S70: 1595.63515 | T70: 1595.63515 | U70: 1595.63515 | V70: 1595.63515 | W70: 1595.63515 | X70: 1595.63515 | Y70: 1595.63515 | Z70: 1595.63515 | AA70: 1595.63515 | AB70: 1343.1882
A71: 0010511 Tammispea reoveepumpla (HVV toetusega) | B71: SF | C71: 31.12.2017 | D71: 6.7 | E71: 4220.55 | F71: 312 | G71: 3908.55 | H71: 0 | I71: 282.72 | J71: 0 | K71: 4220.55 | L71: 594.72 | M71: 3625.83 | P71: 282.77685 | Q71: 282.77685 | R71: 282.77685 | S71: 282.77685 | T71: 282.77685 | U71: 282.77685 | V71: 282.77685 | W71: 282.77685 | X71: 282.77685 | Y71: 282.77685 | Z71: 282.77685 | AA71: 282.77685 | AB71: 232.5078
A72: 00106 Essu reoveepuhasti | B72: KAN2 | C72: 30.06.2011 | D72: 6.7 | E72: 7343 | F72: 3690 | G72: 3653 | H72: 0 | I72: 492 | J72: 0 | K72: 7343 | L72: 4182 | M72: 3161 | N72: 1 | O72: kanal | P72: 491.981 | Q72: 491.981 | R72: 491.981 | S72: 491.981 | T72: 491.981 | U72: 491.981 | V72: 209.114 | AB72: 0
A73: 00107 Essu reoveepuhasti (KIK toetusega) | B73: SF | C73: 30.06.2011 | D73: 6.7 | E73: 48681.95 | F73: 24480 | G73: 24201.95 | H73: 0 | I73: 3261.72 | J73: 0 | K73: 48681.95 | L73: 27741.72 | M73: 20940.23 | P73: 3261.69065 | Q73: 3261.69065 | R73: 3261.69065 | S73: 3261.69065 | T73: 3261.69065 | U73: 3261.69065 | V73: 1370.0861 | AB73: 0
A74: 00108 Haljala reoveepumpla (ÜF omaosalus) | B74: KAN1 | C74: 31.12.2012 | D74: 6.7 | E74: 9614.49 | F74: 3888 | G74: 5726.49 | H74: 0 | I74: 644.16 | J74: 0 | K74: 9614.49 | L74: 4532.16 | M74: 5082.33 | N74: 1 | O74: kanal | P74: 644.17083 | Q74: 644.17083 | R74: 644.17083 | S74: 644.17083 | T74: 644.17083 | U74: 644.17083 | V74: 644.17083 | W74: 573.13419 | AB74: 0
A75: 00109 Haljala reoveepumpla (ÜF toetus) | B75: SF | C75: 31.12.2012 | D75: 6.7 | E75: 47690.98 | F75: 19152 | G75: 28538.98 | H75: 0 | I75: 3195.24 | J75: 0 | K75: 47690.98 | L75: 22347.24 | M75: 25343.74 | P75: 3195.29566 | Q75: 3195.29566 | R75: 3195.29566 | S75: 3195.29566 | T75: 3195.29566 | U75: 3195.29566 | V75: 3195.29566 | W75: 2976.67038 | AB75: 0
A76: 00140 RVP Mahutid (ÜF toetus) | B76: SF | C76: 31.01.2014 | D76: 2.5 | E76: 460545.37 | F76: 57540 | G76: 403005.37 | H76: 0 | I76: 11513.64 | J76: 0 | K76: 460545.37 | L76: 69053.64 | M76: 391491.73 | P76: 11513.63425 | Q76: 11513.63425 | R76: 11513.63425 | S76: 11513.63425 | T76: 11513.63425 | U76: 11513.63425 | V76: 11513.63425 | W76: 11513.63425 | X76: 11513.63425 | Y76: 11513.63425 | Z76: 11513.63425 | AA76: 11513.63425 | AB76: 253328.119
A77: 001401 RVP Mahutid (VÕ, vald toetus) | B77: SF | C77: 31.01.2014 | D77: 2.5 | E77: 88973.57 | F77: 11100 | G77: 77873.57 | H77: 0 | I77: 2224.32 | J77: 0 | K77: 88973.57 | L77: 13324.32 | M77: 75649.25 | P77: 2224.33925 | Q77: 2224.33925 | R77: 2224.33925 | S77: 2224.33925 | T77: 2224.33925 | U77: 2224.33925 | V77: 2224.33925 | W77: 2224.33925 | X77: 2224.33925 | Y77: 2224.33925 | Z77: 2224.33925 | AA77: 2224.33925 | AB77: 48957.179
A78: 0014011 RVP Mahutid (omaosalus) | B78: KAN1 | C78: 31.01.2014 | D78: 2.5 | E78: 2793.07 | F78: 360 | G78: 2433.07 | H78: 0 | I78: 69.84 | J78: 0 | K78: 2793.07 | L78: 429.84 | M78: 2363.23 | N78: 1 | O78: kanal | P78: 69.82675 | Q78: 69.82675 | R78: 69.82675 | S78: 69.82675 | T78: 69.82675 | U78: 69.82675 | V78: 69.82675 | W78: 69.82675 | X78: 69.82675 | Y78: 69.82675 | Z78: 69.82675 | AA78: 69.82675 | AB78: 1525.309
A79: 00141 RVP Mudakäitlusväljak (ÜF toetus) | B79: SF | C79: 31.01.2014 | D79: 2.5 | E79: 198270.22 | F79: 24780 | G79: 173490.22 | H79: 0 | I79: 4956.72 | J79: 0 | K79: 198270.22 | L79: 29736.72 | M79: 168533.5 | P79: 4956.7555 | Q79: 4956.7555 | R79: 4956.7555 | S79: 4956.7555 | T79: 4956.7555 | U79: 4956.7555 | V79: 4956.7555 | W79: 4956.7555 | X79: 4956.7555 | Y79: 4956.7555 | Z79: 4956.7555 | AA79: 4956.7555 | AB79: 109052.434
A80: 001411 RVP Mudakäitlusväljak (VÕ, vald toetus) | B80: SF | C80: 31.01.2014 | D80: 2.5 | E80: 38304.17 | F80: 4800 | G80: 33504.17 | H80: 0 | I80: 957.6 | J80: 0 | K80: 38304.17 | L80: 5757.6 | M80: 32546.57 | P80: 957.60425 | Q80: 957.60425 | R80: 957.60425 | S80: 957.60425 | T80: 957.60425 | U80: 957.60425 | V80: 957.60425 | W80: 957.60425 | X80: 957.60425 | Y80: 957.60425 | Z80: 957.60425 | AA80: 957.60425 | AB80: 21055.319
A81: 0014111 RVP Mudakäitlusväljak (omaosalus) | B81: KAN1 | C81: 31.01.2014 | D81: 2.5 | E81: 1202.45 | F81: 180 | G81: 1022.45 | H81: 0 | I81: 30.12 | J81: 0 | K81: 1202.45 | L81: 210.12 | M81: 992.33 | N81: 1 | O81: kanal | P81: 30.06125 | Q81: 30.06125 | R81: 30.06125 | S81: 30.06125 | T81: 30.06125 | U81: 30.06125 | V81: 30.06125 | W81: 30.06125 | X81: 30.06125 | Y81: 30.06125 | Z81: 30.06125 | AA81: 30.06125 | AB81: 631.595
A82: 00142 RVP Välistorustikud (ÜF toetus) | B82: SF | C82: 31.01.2014 | D82: 2.5 | E82: 137200.56 | F82: 17159.99 | G82: 120040.57 | H82: 0 | I82: 3429.96 | J82: 0 | K82: 137200.56 | L82: 20589.95 | M82: 116610.61 | P82: 3430.014 | Q82: 3430.014 | R82: 3430.014 | S82: 3430.014 | T82: 3430.014 | U82: 3430.014 | V82: 3430.014 | W82: 3430.014 | X82: 3430.014 | Y82: 3430.014 | Z82: 3430.014 | AA82: 3430.014 | AB82: 75450.442
A83: 001421 RVP Välistorustikud (VÕ, vald toetus) | B83: SF | C83: 31.01.2014 | D83: 2.5 | E83: 26506.02 | F83: 3300 | G83: 23206.02 | H83: 0 | I83: 662.64 | J83: 0 | K83: 26506.02 | L83: 3962.64 | M83: 22543.38 | P83: 662.6505 | Q83: 662.6505 | R83: 662.6505 | S83: 662.6505 | T83: 662.6505 | U83: 662.6505 | V83: 662.6505 | W83: 662.6505 | X83: 662.6505 | Y83: 662.6505 | Z83: 662.6505 | AA83: 662.6505 | AB83: 14591.574
A84: 0014211 RVP Välistorustikud (omaosalus) | B84: KAN1 | C84: 31.01.2014 | D84: 2.5 | E84: 832.08 | F84: 120 | G84: 712.08 | H84: 0 | I84: 20.76 | J84: 0 | K84: 832.08 | L84: 140.76 | M84: 691.32 | N84: 1 | O84: kanal | P84: 20.802 | Q84: 20.802 | R84: 20.802 | S84: 20.802 | T84: 20.802 | U84: 20.802 | V84: 20.802 | W84: 20.802 | X84: 20.802 | Y84: 20.802 | Z84: 20.802 | AA84: 20.802 | AB84: 441.696
A85: 00143 RVP Hoonesisene torustik (ÜF toetus) | B85: SF | C85: 31.01.2014 | D85: 2.5 | E85: 6932.3 | F85: 840 | G85: 6092.3 | H85: 0 | I85: 173.28 | J85: 0 | K85: 6932.3 | L85: 1013.28 | M85: 5919.02 | P85: 173.3075 | Q85: 173.3075 | R85: 173.3075 | S85: 173.3075 | T85: 173.3075 | U85: =+$K85*$D85/100 -> 173.3075 | V85: 173.3075 | W85: 173.3075 | X85: 173.3075 | Y85: 173.3075 | Z85: 173.3075 | AA85: 173.3075 | AB85: 3839.33
A86: 001431 RVP Hoonesisene torustik (VÕ, vald toetus) | B86: SF | C86: 31.01.2014 | D86: 2.5 | E86: 1339.27 | F86: 180 | G86: 1159.27 | H86: 0 | I86: 33.48 | J86: 0 | K86: 1339.27 | L86: 213.48 | M86: 1125.79 | P86: 33.48175 | Q86: 33.48175 | R86: 33.48175 | S86: 33.48175 | T86: 33.48175 | U86: 33.48175 | V86: 33.48175 | W86: 33.48175 | X86: 33.48175 | Y86: 33.48175 | Z86: 33.48175 | AA86: 33.48175 | AB86: 724.009
A87: 0014311 RVP Hoonesisene torustik (omaosalus) | B87: KAN1 | C87: 31.01.2014 | D87: 2.5 | E87: 42.04 | F87: 0 | G87: 42.04 | H87: 0 | I87: 1.08 | J87: 0 | K87: 42.04 | L87: 1.08 | M87: 40.96 | N87: 1 | O87: kanal | P87: 1.051 | Q87: 1.051 | R87: 1.051 | S87: 1.051 | T87: 1.051 | U87: 1.051 | V87: 1.051 | W87: 1.051 | X87: 1.051 | Y87: 1.051 | Z87: 1.051 | AA87: 1.051 | AB87: 28.348
A88: 00144 RVP Kompleksalajaam (ÜF toetus) | B88: SF | C88: 31.01.2014 | D88: 2.5 | E88: 98605.09 | F88: 12300 | G88: 86305.09 | H88: 0 | I88: 2465.16 | J88: 0 | K88: 98605.09 | L88: 14765.16 | M88: 83839.93 | P88: 2465.12725 | Q88: 2465.12725 | R88: 2465.12725 | S88: 2465.12725 | T88: 2465.12725 | U88: 2465.12725 | V88: 2465.12725 | W88: 2465.12725 | X88: 2465.12725 | Y88: 2465.12725 | Z88: 2465.12725 | AA88: 2465.12725 | AB88: 54258.403
A89: 001441 RVP Kompleksalajaam (VÕ, vald toetus) | B89: SF | C89: 31.01.2014 | D89: 2.5 | E89: 19049.69 | F89: 2400 | G89: 16649.69 | H89: 0 | I89: 476.28 | J89: 0 | K89: 19049.69 | L89: 2876.28 | M89: 16173.41 | P89: 476.24225 | Q89: 476.24225 | R89: 476.24225 | S89: 476.24225 | T89: 476.24225 | U89: 476.24225 | V89: 476.24225 | W89: 476.24225 | X89: 476.24225 | Y89: 476.24225 | Z89: 476.24225 | AA89: 476.24225 | AB89: 10458.503
A90: 0014411 RVP Kompleksalajaam (omaosalus) | B90: KAN1 | C90: 31.01.2014 | D90: 2.5 | E90: 598.01 | F90: 60 | G90: 538.01 | H90: 0 | I90: 15 | J90: 0 | K90: 598.01 | L90: 75 | M90: 523.01 | N90: 1 | O90: kanal | P90: 14.95025 | Q90: 14.95025 | R90: 14.95025 | S90: 14.95025 | T90: 14.95025 | U90: 14.95025 | V90: 14.95025 | W90: 14.95025 | X90: 14.95025 | Y90: 14.95025 | Z90: 14.95025 | AA90: 14.95025 | AB90: 343.607
A91: 00150 HKM Väline sadeveekanalisatsioon (omaosalus) | B91: KM1 | C91: 31.08.2016 | D91: 6.7 | E91: 1470.89 | F91: 232 | G91: 1238.89 | H91: 0 | I91: 98.52 | J91: 0 | K91: 1470.89 | L91: 330.52 | M91: 1140.37 | P91: 98.54963 | Q91: 98.54963 | R91: 98.54963 | S91: 98.54963 | T91: 98.54963 | U91: 98.54963 | V91: 98.54963 | W91: 98.54963 | X91: 98.54963 | Y91: 98.54963 | Z91: 98.54963 | AA91: 56.32407 | AB91: 0
A92: 001501 HKM Väline sadeveekanalisatsioon (Vald toetus) | B92: SF | C92: 31.08.2016 | D92: 6.7 | E92: 2327.16 | F92: 377 | G92: 1950.16 | H92: 0 | I92: 155.88 | J92: 0 | K92: 2327.16 | L92: 532.88 | M92: 1794.28 | P92: 155.91972 | Q92: 155.91972 | R92: 155.91972 | S92: 155.91972 | T92: 155.91972 | U92: 155.91972 | V92: 155.91972 | W92: 155.91972 | X92: 155.91972 | Y92: 155.91972 | Z92: 155.91972 | AA92: 79.16308 | AB92: 0
A93: 0015011 HKM Väline sadeveekanalisatsioon (KIK toetus) | B93: SF | C93: 31.08.2016 | D93: 6.7 | E93: 3693.17 | F93: 609 | G93: 3084.17 | H93: 0 | I93: 247.44 | J93: 0 | K93: 3693.17 | L93: 856.44 | M93: 2836.73 | P93: 247.44239 | Q93: 247.44239 | R93: 247.44239 | S93: 247.44239 | T93: 247.44239 | U93: 247.44239 | V93: 247.44239 | W93: 247.44239 | X93: 247.44239 | Y93: 247.44239 | Z93: 247.44239 | AA93: 114.86371 | AB93: 0
A94: 00151 HKM Välisplats (omaosalus) | B94: KM1 | C94: 31.08.2016 | D94: 6.7 | E94: 19410.17 | F94: 3132 | G94: 16278.17 | H94: 0 | I94: 1300.44 | J94: 0 | K94: 19410.17 | L94: 4432.44 | M94: 14977.73 | P94: 1300.48139 | Q94: 1300.48139 | R94: 1300.48139 | S94: 1300.48139 | T94: 1300.48139 | U94: 1300.48139 | V94: 1300.48139 | W94: 1300.48139 | X94: 1300.48139 | Y94: 1300.48139 | Z94: 1300.48139 | AA94: 672.43471 | AB94: 0
A95: 001511 HKM Välisplats (Vald toetus) | B95: SF | C95: 31.08.2016 | D95: 6.7 | E95: 30709.73 | F95: 4959 | G95: 25750.73 | H95: 0 | I95: 2057.52 | J95: 0 | K95: 30709.73 | L95: 7016.52 | M95: 23693.21 | P95: 2057.55191 | Q95: 2057.55191 | R95: 2057.55191 | S95: 2057.55191 | T95: 2057.55191 | U95: 2057.55191 | V95: 2057.55191 | W95: 2057.55191 | X95: 2057.55191 | Y95: 2057.55191 | Z95: 2057.55191 | AA95: 1060.13899 | AB95: 0
A96: 0015111 HKM Välisplats (KIK toetus) | B96: SF | C96: 31.08.2016 | D96: 6.7 | E96: 48735.92 | F96: 7888 | G96: 40847.92 | H96: 0 | I96: 3265.32 | J96: 0 | K96: 48735.92 | L96: 11153.32 | M96: 37582.6 | P96: 3265.30664 | Q96: 3265.30664 | R96: 3265.30664 | S96: 3265.30664 | T96: 3265.30664 | U96: 3265.30664 | V96: 3265.30664 | W96: 3265.30664 | X96: 3265.30664 | Y96: 3265.30664 | Z96: 3265.30664 | AA96: 1664.22696 | AB96: 0
A97: 00160 Võsupere veetorustik (KIK toetus) | B97: SF | C97: 01.01.2019 | D97: 3 | E97: 108687.46 | F97: 271.72 | G97: 108415.74 | H97: 0 | I97: 3260.64 | J97: 0 | K97: 108687.46 | L97: 3532.36 | M97: 105155.1 | P97: 3260.6238 | Q97: 3260.6238 | R97: 3260.6238 | S97: 3260.6238 | T97: 3260.6238 | U97: 3260.6238 | V97: 3260.6238 | W97: 3260.6238 | X97: 3260.6238 | Y97: 3260.6238 | Z97: 3260.6238 | AA97: 3260.6238 | AB97: 66027.6144
A98: 001601 Võsupere veetorustik (omaosalus) | B98: TR8 | C98: 01.01.2019 | D98: 3 | E98: 36015.56 | F98: 90.04 | G98: 35925.52 | H98: 0 | I98: 1080.48 | J98: 0 | K98: 36015.56 | L98: 1170.52 | M98: 34845.04 | N98: 2 | O98: vesi | P98: 1080.4668 | Q98: 1080.4668 | R98: 1080.4668 | S98: 1080.4668 | T98: 1080.4668 | U98: 1080.4668 | V98: 1080.4668 | W98: 1080.4668 | X98: 1080.4668 | Y98: 1080.4668 | Z98: 1080.4668 | AA98: 1080.4668 | AB98: 21879.4384
A99: 00161 Võsupere Lageda pumpla (KIK toetus) | B99: SF | C99: 01.01.2019 | D99: 3 | E99: 14399.27 | F99: 36 | G99: 14363.27 | H99: 0 | I99: 432 | J99: 0 | K99: 14399.27 | L99: 468 | M99: 13931.27 | P99: 431.9781 | Q99: 431.9781 | R99: 431.9781 | S99: 431.9781 | T99: 431.9781 | U99: 431.9781 | V99: 431.9781 | W99: 431.9781 | X99: 431.9781 | Y99: 431.9781 | Z99: 431.9781 | AA99: 431.9781 | AB99: 8747.5328
A100: 001611 Võsupere Lageda pumpla (omaosalus) | B100: KAN8 | C100: 01.01.2019 | D100: 3 | E100: 4771.46 | F100: 11.93 | G100: 4759.53 | H100: 0 | I100: 143.16 | J100: 0 | K100: 4771.46 | L100: 155.09 | M100: 4616.37 | N100: 2 | O100: kanal | P100: 143.1438 | Q100: 143.1438 | R100: 143.1438 | S100: 143.1438 | T100: 143.1438 | U100: 143.1438 | V100: 143.1438 | W100: 143.1438 | X100: 143.1438 | Y100: 143.1438 | Z100: 143.1438 | AA100: 143.1438 | AB100: 2898.6444
A101: 00162 Võsupere Mudila pumpla (KIK toetus) | B101: SF | C101: 01.01.2019 | D101: 3 | E101: 14050 | F101: 35.13 | G101: 14014.87 | H101: 0 | I101: 421.56 | J101: 0 | K101: 14050 | L101: 456.69 | M101: 13593.31 | P101: 421.5 | Q101: =+$K101*$D101/100 -> 421.5 | R101: 421.5 | S101: 421.5 | T101: 421.5 | U101: 421.5 | V101: 421.5 | W101: 421.5 | X101: 421.5 | Y101: 421.5 | Z101: 421.5 | AA101: 421.5 | AB101: 8535.31
A102: 001621 Võsupere Mudila pumpla (omaosalus) | B102: KAN8 | C102: 01.01.2019 | D102: 3 | E102: 4655.73 | F102: 11.63 | G102: 4644.1 | H102: 0 | I102: 139.68 | J102: 0 | K102: 4655.73 | L102: 151.31 | M102: 4504.42 | N102: 2 | O102: kanal | P102: 139.6719 | Q102: 139.6719 | R102: 139.6719 | S102: 139.6719 | T102: 139.6719 | U102: 139.6719 | V102: 139.6719 | W102: 139.6719 | X102: 139.6719 | Y102: 139.6719 | Z102: 139.6719 | AA102: 139.6719 | AB102: 2828.3572
A103: 00163 Võsupere isevoolne kanal torustik (KIK) | B103: SF | C103: 01.01.2019 | D103: 3 | E103: 67571.06 | F103: 168.93 | G103: 67402.13 | H103: 0 | I103: 2027.16 | J103: 0 | K103: 67571.06 | L103: 2196.09 | M103: 65374.97 | P103: 2027.1318 | Q103: 2027.1318 | R103: 2027.1318 | S103: 2027.1318 | T103: 2027.1318 | U103: 2027.1318 | V103: 2027.1318 | W103: 2027.1318 | X103: 2027.1318 | Y103: 2027.1318 | Z103: 2027.1318 | AA103: 2027.1318 | AB103: 41049.3884
A104: 001631 Võsupere isevoolne kanal torustik (omaosa) | B104: KAN8 | C104: 01.01.2019 | D104: 3 | E104: 22390.9 | F104: 55.98 | G104: 22334.92 | H104: 0 | I104: 671.76 | J104: 0 | K104: 22390.9 | L104: 727.74 | M104: 21663.16 | N104: 2 | O104: kanal | P104: 671.727 | Q104: 671.727 | R104: 671.727 | S104: 671.727 | T104: 671.727 | U104: 671.727 | V104: 671.727 | W104: 671.727 | X104: 671.727 | Y104: 671.727 | Z104: 671.727 | AA104: 671.727 | AB104: 13602.436
A105: 00164 Võsupere surveline kanal torustik (KIK) | B105: SF | C105: 01.01.2019 | D105: 3 | E105: 93004.63 | F105: 232.51 | G105: 92772.12 | H105: 0 | I105: 2790.12 | J105: 0 | K105: 93004.63 | L105: 3022.63 | M105: 89982 | P105: 2790.1389 | Q105: 2790.1389 | R105: 2790.1389 | S105: 2790.1389 | T105: 2790.1389 | U105: 2790.1389 | V105: 2790.1389 | W105: 2790.1389 | X105: 2790.1389 | Y105: 2790.1389 | Z105: 2790.1389 | AA105: 2790.1389 | AB105: 56500.3332
A106: 001641 Võsupere surveline kanal torustik (omaosa) | B106: KAN8 | C106: 01.01.2019 | D106: 3 | E106: 30818.77 | F106: 77.05 | G106: 30741.72 | H106: 1005 | I106: 932.13 | J106: 0 | K106: 31823.77 | L106: 1009.18 | M106: 30814.59 | N106: 2 | O106: kanal | P106: 954.7131 | Q106: 954.7131 | R106: 954.7131 | S106: 954.7131 | T106: 954.7131 | U106: 954.7131 | V106: 954.7131 | W106: 954.7131 | X106: 954.7131 | Y106: 954.7131 | Z106: 954.7131 | AA106: 954.7131 | AB106: 19358.0328
A107: 00200 Käsmu Neeme tee veetorustik | B107: TR5 | C107: 01.01.2019 | D107: 3 | E107: 16265 | F107: 772.59 | G107: 15492.41 | H107: 0 | I107: 487.92 | J107: 0 | K107: 16265 | L107: 1260.51 | M107: 15004.49 | N107: 2 | O107: vesi | P107: 487.95 | Q107: 487.95 | R107: 487.95 | S107: 487.95 | T107: 487.95 | U107: 487.95 | V107: 487.95 | W107: 487.95 | X107: 487.95 | Y107: 487.95 | Z107: 487.95 | AA107: 487.95 | AB107: 9149.09
A108: 00201 Käsmu Laane, Põllu veetorustik (KIK) | B108: SF | C108: 01.01.2019 | D108: 3 | E108: 83866.1 | F108: 3983.64 | G108: 79882.46 | H108: 0 | I108: 2516.04 | J108: 0 | K108: 83866.1 | L108: 6499.68 | M108: 77366.42 | P108: 2515.983 | Q108: 2515.983 | R108: 2515.983 | S108: 2515.983 | T108: 2515.983 | U108: 2515.983 | V108: 2515.983 | W108: 2515.983 | X108: 2515.983 | Y108: 2515.983 | Z108: 2515.983 | AA108: 2515.983 | AB108: 47174.624
A109: 002011 Käsmu Laane, Põllu veetorustik (oma) | B109: TR5 | C109: 01.01.2019 | D109: 3 | E109: 15453.5 | F109: 734.04 | G109: 14719.46 | H109: 0 | I109: 463.56 | J109: 0 | K109: 15453.5 | L109: 1197.6 | M109: 14255.9 | N109: 2 | O109: vesi | P109: 463.605 | Q109: 463.605 | R109: 463.605 | S109: 463.605 | T109: 463.605 | U109: 463.605 | V109: 463.605 | W109: 463.605 | X109: 463.605 | Y109: 463.605 | Z109: 463.605 | AA109: 463.605 | AB109: 8692.64
A110: 00202 Käsmu puurkaev (KIK) | B110: SF | C110: 01.01.2019 | D110: 3 | E110: 22448.71 | F110: 1066.32 | G110: 21382.39 | H110: 0 | I110: 673.44 | J110: 0 | K110: 22448.71 | L110: 1739.76 | M110: 20708.95 | P110: 673.4613 | Q110: 673.4613 | R110: 673.4613 | S110: 673.4613 | T110: 673.4613 | U110: 673.4613 | V110: 673.4613 | W110: 673.4613 | X110: 673.4613 | Y110: 673.4613 | Z110: 673.4613 | AA110: 673.4613 | AB110: 12627.4144
A111: 002021 Käsmu puurkaev (oma) | B111: TR5 | C111: 01.01.2019 | D111: 3 | E111: 4136.49 | F111: 196.48 | G111: 3940.01 | H111: 0 | I111: 124.08 | J111: 0 | K111: 4136.49 | L111: 320.56 | M111: 3815.93 | N111: 2 | O111: vesi | P111: 124.0947 | Q111: 124.0947 | R111: 124.0947 | S111: 124.0947 | T111: 124.0947 | U111: 124.0947 | V111: 124.0947 | W111: 124.0947 | X111: 124.0947 | Y111: 124.0947 | Z111: 124.0947 | AA111: 124.0947 | AB111: 2326.7936
A112: 00203 Käsmu veetöötlusjaam (KIK) | B112: SF | C112: 01.01.2019 | D112: 2.5 | E112: 96016.38 | F112: 3000.51 | G112: 93015.87 | H112: 0 | I112: 2400.36 | J112: 0 | K112: 96016.38 | L112: 5400.87 | M112: 90615.51 | P112: 2400.4095 | Q112: 2400.4095 | R112: 2400.4095 | S112: 2400.4095 | T112: 2400.4095 | U112: 2400.4095 | V112: 2400.4095 | W112: 2400.4095 | X112: 2400.4095 | Y112: 2400.4095 | Z112: 2400.4095 | AA112: 2400.4095 | AB112: 61810.596
A113: 002031 Käsmu veetöötlusjaam (oma) | B113: TR5 | C113: 01.01.2019 | D113: 2.5 | E113: 17692.37 | F113: 552.89 | G113: 17139.48 | H113: 0 | I113: 442.32 | J113: 0 | K113: 17692.37 | L113: 995.21 | M113: 16697.16 | N113: 2 | O113: vesi | P113: 442.30925 | Q113: 442.30925 | R113: 442.30925 | S113: 442.30925 | T113: 442.30925 | U113: 442.30925 | V113: 442.30925 | W113: 442.30925 | X113: 442.30925 | Y113: 442.30925 | Z113: 442.30925 | AA113: 442.30925 | AB113: 11389.449
A114: 00300 Vihula reoveepuhasti | B114: KAN7 | C114: 01.01.2019 | D114: 3 | E114: 36711.86 | F114: 7525.96 | G114: 29185.9 | H114: 0 | I114: 1101.36 | J114: 0 | K114: 36711.86 | L114: 8627.32 | M114: 28084.54 | N114: 2 | O114: kanal | P114: 1101.3558 | Q114: 1101.3558 | R114: 1101.3558 | S114: 1101.3558 | T114: 1101.3558 | U114: 1101.3558 | V114: 1101.3558 | W114: 1101.3558 | X114: 1101.3558 | Y114: 1101.3558 | Z114: 1101.3558 | AA114: 1101.3558 | AB114: 14868.2704
A115: 00301 Vihula koolimaja veetorustik | B115: TR7 | C115: 01.01.2019 | D115: 3 | E115: 6875 | F115: 515.63 | G115: 6359.37 | H115: 0 | I115: 206.28 | J115: 0 | K115: 6875 | L115: 721.91 | M115: 6153.09 | N115: 2 | O115: vesi | P115: 206.25 | Q115: 206.25 | R115: 206.25 | S115: 206.25 | T115: 206.25 | U115: 206.25 | V115: 206.25 | W115: 206.25 | X115: 206.25 | Y115: 206.25 | Z115: 206.25 | AA115: 206.25 | AB115: 3678.09
A116: 00302 Vihula koolimaja survekanalisatsioon | B116: KAN7 | C116: 01.01.2019 | D116: 3 | E116: 6876 | F116: 515.7 | G116: 6360.3 | H116: 0 | I116: 206.28 | J116: 0 | K116: 6876 | L116: 721.98 | M116: 6154.02 | N116: 2 | O116: kanal | P116: 206.28 | Q116: 206.28 | R116: 206.28 | S116: 206.28 | T116: 206.28 | U116: 206.28 | V116: 206.28 | W116: 206.28 | X116: 206.28 | Y116: 206.28 | Z116: 206.28 | AA116: 206.28 | AB116: 3678.66
A117: 00400 Vergi veetrass | B117: TR6 | C117: 01.01.2019 | D117: 3 | E117: 26522.05 | F117: 5437.01 | G117: 21085.04 | H117: 0 | I117: 795.72 | J117: 0 | K117: 26522.05 | L117: 6232.73 | M117: 20289.32 | N117: 2 | O117: vesi | P117: 795.6615 | Q117: =+$K117*$D117/100 -> 795.6615 | R117: 795.6615 | S117: 795.6615 | T117: 795.6615 | U117: 795.6615 | V117: 795.6615 | W117: 795.6615 | X117: 795.6615 | Y117: 795.6615 | Z117: 795.6615 | AA117: 795.6615 | AB117: 10741.382
A118: 00500 Võsu reoveepuhasti Piiri 4 (KIK) | B118: SF | C118: 01.01.2019 | D118: 2.5 | E118: 646328.65 | F118: 64632.87 | G118: 581695.78 | H118: 0 | I118: 16158.24 | J118: 0 | K118: 646328.65 | L118: 80791.11 | M118: 565537.54 | P118: 16158.21625 | Q118: 16158.21625 | R118: 16158.21625 | S118: 16158.21625 | T118: 16158.21625 | U118: 16158.21625 | V118: 16158.21625 | W118: 16158.21625 | X118: 16158.21625 | Y118: 16158.21625 | Z118: 16158.21625 | AA118: 16158.21625 | AB118: 371638.945
A119: 005001 Võsu reoveepuhasti Piiri 4(oma) | B119: KAN4 | C119: 01.01.2019 | D119: 2.5 | E119: 152221.34 | F119: 15222.13 | G119: 136999.21 | H119: 0 | I119: 3805.56 | J119: 0 | K119: 152221.34 | L119: 19027.69 | M119: 133193.65 | N119: 2 | O119: kanal | P119: 3805.5335 | Q119: 3805.5335 | R119: 3805.5335 | S119: 3805.5335 | T119: 3805.5335 | U119: 3805.5335 | V119: 3805.5335 | W119: 3805.5335 | X119: 3805.5335 | Y119: 3805.5335 | Z119: 3805.5335 | AA119: 3805.5335 | AB119: 87527.248
A120: 00501 Võsu veetöötlusjaam (KIK) | B120: SF | C120: 01.01.2019 | D120: 2.5 | E120: 260413.26 | F120: 25498.82 | G120: 234914.44 | H120: 0 | I120: 6510.36 | J120: 0 | K120: 260413.26 | L120: 32009.18 | M120: 228404.08 | P120: 6510.3315 | Q120: 6510.3315 | R120: 6510.3315 | S120: 6510.3315 | T120: 6510.3315 | U120: 6510.3315 | V120: 6510.3315 | W120: 6510.3315 | X120: 6510.3315 | Y120: 6510.3315 | Z120: 6510.3315 | AA120: 6510.3315 | AB120: 150280.102
A121: 005011 Võsu veetöötlusjaam (oma) | B121: TR4 | C121: 01.01.2019 | D121: 2.5 | E121: 61331.74 | F121: 6005.4 | G121: 55326.34 | H121: 0 | I121: 1533.24 | J121: 0 | K121: 61331.74 | L121: 7538.64 | M121: 53793.1 | N121: 2 | O121: vesi | P121: 1533.2935 | Q121: 1533.2935 | R121: 1533.2935 | S121: 1533.2935 | T121: 1533.2935 | U121: 1533.2935 | V121: 1533.2935 | W121: 1533.2935 | X121: 1533.2935 | Y121: 1533.2935 | Z121: 1533.2935 | AA121: 1533.2935 | AB121: 35393.578
A122: 00502 Võsu Mere 49 reoveepumpla (KIK) | B122: SF | C122: 01.01.2019 | D122: 2.5 | E122: 10222.44 | F122: 1000.95 | G122: 9221.49 | H122: 0 | I122: 255.6 | J122: 0 | K122: 10222.44 | L122: 1256.55 | M122: 8965.89 | P122: 255.561 | Q122: 255.561 | R122: 255.561 | S122: 255.561 | T122: 255.561 | U122: 255.561 | V122: 255.561 | W122: 255.561 | X122: 255.561 | Y122: 255.561 | Z122: 255.561 | AA122: 255.561 | AB122: 5899.158
A123: 005021 Võsu Mere 49 reoveepumpla (oma) | B123: KAN4 | C123: 01.01.2019 | D123: 2.5 | E123: 2407.56 | F123: 235.74 | G123: 2171.82 | H123: 0 | I123: 60.24 | J123: 0 | K123: 2407.56 | L123: 295.98 | M123: 2111.58 | N123: 2 | O123: kanal | P123: 60.189 | Q123: 60.189 | R123: 60.189 | S123: 60.189 | T123: 60.189 | U123: 60.189 | V123: 60.189 | W123: 60.189 | X123: 60.189 | Y123: 60.189 | Z123: 60.189 | AA123: 60.189 | AB123: 1389.312
A124: 00503 Võsu Kalda, Spordi, Mere veetrassid (KIK) | B124: SF | C124: 01.01.2019 | D124: 3 | E124: 205677.31 | F124: 24167.08 | G124: 181510.23 | H124: 0 | I124: 6170.28 | J124: 0 | K124: 205677.31 | L124: 30337.36 | M124: 175339.95 | P124: 6170.3193 | Q124: 6170.3193 | R124: 6170.3193 | S124: 6170.3193 | T124: 6170.3193 | U124: 6170.3193 | V124: 6170.3193 | W124: 6170.3193 | X124: 6170.3193 | Y124: 6170.3193 | Z124: 6170.3193 | AA124: 6170.3193 | AB124: 101296.1184
A125: 005031 Võsu Kalda, Spordi, Mere veetrassid (oma) | B125: TR4 | C125: 01.01.2019 | D125: 3 | E125: 48440.49 | F125: 5691.76 | G125: 42748.73 | H125: 0 | I125: 1453.2 | J125: 0 | K125: 48440.49 | L125: 7144.96 | M125: 41295.53 | N125: 2 | O125: vesi | P125: 1453.2147 | Q125: 1453.2147 | R125: 1453.2147 | S125: 1453.2147 | T125: 1453.2147 | U125: 1453.2147 | V125: 1453.2147 | W125: 1453.2147 | X125: 1453.2147 | Y125: 1453.2147 | Z125: 1453.2147 | AA125: 1453.2147 | AB125: 23856.9536
A126: 00504 Võsu Kalda, Spordi, Mere kanalitrassid (KIK) | B126: SF | C126: 01.01.2019 | D126: 3 | E126: 203152.16 | F126: 23870.38 | G126: 179281.78 | H126: 0 | I126: 6094.56 | J126: 0 | K126: 203152.16 | L126: 29964.94 | M126: 173187.22 | P126: 6094.5648 | Q126: 6094.5648 | R126: 6094.5648 | S126: 6094.5648 | T126: 6094.5648 | U126: 6094.5648 | V126: 6094.5648 | W126: 6094.5648 | X126: 6094.5648 | Y126: 6094.5648 | Z126: 6094.5648 | AA126: 6094.5648 | AB126: 100052.4424
A127: 005041 Võsu Kalda, Spordi, Mere kanalitrassid (oma) | B127: KAN4 | C127: 01.01.2019 | D127: 3 | E127: 47845.78 | F127: 5621.87 | G127: 42223.91 | H127: 0 | I127: 1435.32 | J127: 0 | K127: 47845.78 | L127: 7057.19 | M127: 40788.59 | N127: 2 | O127: kanal | P127: 1435.3734 | Q127: 1435.3734 | R127: 1435.3734 | S127: 1435.3734 | T127: 1435.3734 | U127: 1435.3734 | V127: 1435.3734 | W127: 1435.3734 | X127: 1435.3734 | Y127: 1435.3734 | Z127: 1435.3734 | AA127: 1435.3734 | AB127: 23564.1092
A128: 00505 Võsu Kalda tn lisalõik veetrassid (KIK) | B128: SF | C128: 01.01.2019 | D128: 3 | E128: 6918.04 | F128: 778.28 | G128: 6139.76 | H128: 0 | I128: 207.6 | J128: 0 | K128: 6918.04 | L128: 985.88 | M128: 5932.16 | P128: 207.5412 | Q128: 207.5412 | R128: 207.5412 | S128: 207.5412 | T128: 207.5412 | U128: 207.5412 | V128: 207.5412 | W128: 207.5412 | X128: 207.5412 | Y128: 207.5412 | Z128: 207.5412 | AA128: 207.5412 | AB128: 3441.6656
A129: 005051 Võsu Kalda tn lisalõik veetrassid (oma) | B129: TR4 | C129: 01.01.2019 | D129: 3 | E129: 1629.32 | F129: 183.3 | G129: 1446.02 | H129: 0 | I129: 48.84 | J129: 0 | K129: 1629.32 | L129: 232.14 | M129: 1397.18 | N129: 2 | O129: vesi | P129: 48.8796 | Q129: 48.8796 | R129: 48.8796 | S129: 48.8796 | T129: 48.8796 | U129: 48.8796 | V129: 48.8796 | W129: 48.8796 | X129: 48.8796 | Y129: 48.8796 | Z129: 48.8796 | AA129: 48.8796 | AB129: 810.6248
A130: 00506 Võsu Kalda tn lisalõik kanalitrassid (KIK) | B130: SF | C130: 01.01.2019 | D130: 3 | E130: 8211.66 | F130: 923.81 | G130: 7287.85 | H130: 0 | I130: 246.36 | J130: 0 | K130: 8211.66 | L130: 1170.17 | M130: 7041.49 | P130: 246.3498 | Q130: 246.3498 | R130: 246.3498 | S130: 246.3498 | T130: 246.3498 | U130: 246.3498 | V130: 246.3498 | W130: 246.3498 | X130: 246.3498 | Y130: 246.3498 | Z130: 246.3498 | AA130: 246.3498 | AB130: 4085.2924
A131: 005061 Võsu Kalda tn lisalõik kanalitrassid (oma) | B131: KAN4 | C131: 01.01.2019 | D131: 3 | E131: 1933.98 | F131: 217.57 | G131: 1716.41 | H131: 0 | I131: 57.96 | J131: 0 | K131: 1933.98 | L131: 275.53 | M131: 1658.45 | N131: 2 | O131: kanal | P131: 58.0194 | Q131: 58.0194 | R131: 58.0194 | S131: 58.0194 | T131: 58.0194 | U131: 58.0194 | V131: 58.0194 | W131: 58.0194 | X131: 58.0194 | Y131: 58.0194 | Z131: 58.0194 | AA131: 58.0194 | AB131: 962.2172
A132: 00507 Võsu Metsa ja Aia tn veetrassid (KIK) | B132: SF | C132: 01.01.2019 | D132: 3 | E132: 220537.77 | F132: 24259.15 | G132: 196278.62 | H132: 0 | I132: 6616.08 | J132: 0 | K132: 220537.77 | L132: 30875.23 | M132: 189662.54 | P132: =+$K132*$D132/100 -> 6616.1331 | Q132: 6616.1331 | R132: 6616.1331 | S132: 6616.1331 | T132: 6616.1331 | U132: 6616.1331 | V132: 6616.1331 | W132: 6616.1331 | X132: 6616.1331 | Y132: 6616.1331 | Z132: 6616.1331 | AA132: 6616.1331 | AB132: =+M132-SUM(P132:AA132) -> 110268.9428
A133: 005071 Võsu Metsa ja Aia tn veetrassid (oma) | B133: TR4 | C133: 01.01.2019 | D133: 3 | E133: 51940.38 | F133: 5713.45 | G133: 46226.93 | H133: 0 | I133: 1558.2 | J133: 0 | K133: 51940.38 | L133: 7271.65 | M133: 44668.73 | N133: 2 | O133: vesi | P133: 1558.2114 | Q133: 1558.2114 | R133: 1558.2114 | S133: 1558.2114 | T133: 1558.2114 | U133: 1558.2114 | V133: 1558.2114 | W133: 1558.2114 | X133: 1558.2114 | Y133: 1558.2114 | Z133: 1558.2114 | AA133: 1558.2114 | AB133: 25970.1932
A134: 00508 Võsu Metsa ja Aia tn kanalitrassid (KIK) | B134: SF | C134: 01.01.2019 | D134: 3 | E134: 138014.98 | F134: 15181.65 | G134: 122833.33 | H134: 0 | I134: 4140.48 | J134: 0 | K134: 138014.98 | L134: 19322.13 | M134: 118692.85 | P134: 4140.4494 | Q134: 4140.4494 | R134: 4140.4494 | S134: 4140.4494 | T134: 4140.4494 | U134: 4140.4494 | V134: 4140.4494 | W134: 4140.4494 | X134: 4140.4494 | Y134: 4140.4494 | Z134: 4140.4494 | AA134: 4140.4494 | AB134: 69007.4572
A135: 005081 Võsu Metsa ja Aia tn kanalitrassid (oma) | B135: KAN4 | C135: 01.01.2019 | D135: 3 | E135: 32504.87 | F135: 3575.53 | G135: 28929.34 | H135: 0 | I135: 975.12 | J135: 0 | K135: 32504.87 | L135: 4550.65 | M135: 27954.22 | N135: 2 | O135: kanal | P135: 975.1461 | Q135: 975.1461 | R135: 975.1461 | S135: 975.1461 | T135: 975.1461 | U135: 975.1461 | V135: 975.1461 | W135: 975.1461 | X135: 975.1461 | Y135: 975.1461 | Z135: 975.1461 | AA135: 975.1461 | AB135: 16252.4668
A136: 00509 Võsu Kalda, Spordi, Mere veetrassid 2 (KIK) | B136: SF | C136: 01.01.2019 | D136: 3 | E136: 102959.23 | F136: 11068.13 | G136: 91891.1 | H136: 0 | I136: 3088.8 | J136: 0 | K136: 102959.23 | L136: 14156.93 | M136: 88802.3 | P136: 3088.7769 | Q136: 3088.7769 | R136: 3088.7769 | S136: 3088.7769 | T136: 3088.7769 | U136: 3088.7769 | V136: 3088.7769 | W136: 3088.7769 | X136: 3088.7769 | Y136: 3088.7769 | Z136: 3088.7769 | AA136: 3088.7769 | AB136: 51736.9772
A137: 005091 Võsu Kalda, Spordi, Mere veetrassid 2 (oma) | B137: TR4 | C137: 01.01.2019 | D137: 3 | E137: 24248.64 | F137: 2606.73 | G137: 21641.91 | H137: 0 | I137: 727.44 | J137: 0 | K137: 24248.64 | L137: 3334.17 | M137: 20914.47 | N137: 2 | O137: vesi | P137: 727.4592 | Q137: 727.4592 | R137: 727.4592 | S137: 727.4592 | T137: 727.4592 | U137: 727.4592 | V137: 727.4592 | W137: 727.4592 | X137: 727.4592 | Y137: 727.4592 | Z137: 727.4592 | AA137: 727.4592 | AB137: 12184.9596
A138: 00510 Võsu veetöötlusjaama kontor | B138: TR4 | C138: 01.01.2019 | D138: 2.5 | E138: 6555.71 | F138: 68.29 | G138: 6487.42 | H138: 0 | I138: 163.92 | J138: 0 | K138: 6555.71 | L138: 232.21 | M138: 6323.5 | N138: 2 | O138: vesi | P138: 163.89275 | Q138: 163.89275 | R138: 163.89275 | S138: 163.89275 | T138: 163.89275 | U138: 163.89275 | V138: 163.89275 | W138: 163.89275 | X138: 163.89275 | Y138: 163.89275 | Z138: 163.89275 | AA138: 163.89275 | AB138: 4356.787
A139: 00511 Võsu Mere tn veetrassid | B139: TR4 | C139: 01.01.2019 | D139: 3 | E139: 67019.62 | F139: 16084.71 | G139: 50934.91 | H139: 0 | I139: 2010.6 | J139: 0 | K139: 67019.62 | L139: 18095.31 | M139: 48924.31 | N139: 2 | O139: vesi | P139: 2010.5886 | Q139: 2010.5886 | R139: 2010.5886 | S139: 2010.5886 | T139: 2010.5886 | U139: 2010.5886 | V139: 2010.5886 | W139: 2010.5886 | X139: 2010.5886 | Y139: 2010.5886 | Z139: 2010.5886 | AA139: 2010.5886 | AB139: 24797.2468
A140: 00512 Võsu Mere tn kanalitrassid | B140: KAN4 | C140: 01.01.2019 | D140: 3 | E140: 72461.38 | F140: 17390.73 | G140: 55070.65 | H140: 0 | I140: 2173.8 | J140: 0 | K140: 72461.38 | L140: 19564.53 | M140: 52896.85 | N140: 2 | O140: kanal | P140: 2173.8414 | Q140: 2173.8414 | R140: 2173.8414 | S140: 2173.8414 | T140: 2173.8414 | U140: 2173.8414 | V140: 2173.8414 | W140: 2173.8414 | X140: 2173.8414 | Y140: 2173.8414 | Z140: 2173.8414 | AA140: 2173.8414 | AB140: 26810.7532
A141: 00513 Võsu Vambola ja Laine tn veetrassid | B141: TR4 | C141: 01.01.2019 | D141: 3 | E141: 28709.79 | F141: 6890.35 | G141: 21819.44 | H141: 0 | I141: 861.24 | J141: 0 | K141: 28709.79 | L141: 7751.59 | M141: 20958.2 | N141: 2 | O141: vesi | P141: 861.2937 | Q141: 861.2937 | R141: 861.2937 | S141: 861.2937 | T141: 861.2937 | U141: 861.2937 | V141: 861.2937 | W141: 861.2937 | X141: 861.2937 | Y141: 861.2937 | Z141: 861.2937 | AA141: 861.2937 | AB141: 10622.6756
A142: 00514 Võsu Vambola ja Laine kan trassid | B142: KAN4 | C142: 01.01.2019 | D142: 3 | E142: 29935.21 | F142: 7184.45 | G142: 22750.76 | H142: 0 | I142: 898.08 | J142: 0 | K142: 29935.21 | L142: 8082.53 | M142: 21852.68 | N142: 2 | O142: kanal | P142: 898.0563 | Q142: 898.0563 | R142: 898.0563 | S142: 898.0563 | T142: 898.0563 | U142: 898.0563 | V142: 898.0563 | W142: 898.0563 | X142: 898.0563 | Y142: 898.0563 | Z142: 898.0563 | AA142: 898.0563 | AB142: 11076.0044
A143: 00515 Võsu Mere 64a kanal trassid | B143: KAN4 | C143: 01.01.2019 | D143: 3 | E143: 6310 | F143: 457.48 | G143: 5852.52 | H143: 0 | I143: 189.36 | J143: 0 | K143: 6310 | L143: 646.84 | M143: 5663.16 | N143: 2 | O143: kanal | P143: 189.3 | Q143: 189.3 | R143: 189.3 | S143: 189.3 | T143: 189.3 | U143: 189.3 | V143: 189.3 | W143: 189.3 | X143: 189.3 | Y143: 189.3 | Z143: 189.3 | AA143: 189.3 | AB143: 3391.56
A144: 01001 Veekatel RFW 3000 | B144: KM1 | C144: 31.12.2010 | D144: 10 | E144: 24781.21 | F144: 19872 | G144: 4909.21 | H144: 0 | I144: 2478.12 | J144: 0 | K144: 24781.21 | L144: 22350.12 | M144: 2431.09 | P144: =+M144 -> 2431.09 | AB144: 0
A145: 01002 Peugeot Boxer | B145: KM1 | C145: 07.04.2008 | D145: 10 | E145: 27075.79 | F145: 27075.79 | G145: 0 | H145: 0 | I145: 0 | J145: 0 | K145: 27075.79 | L145: 27075.79 | M145: 0 | AB145: 0
A146: 01003 Multione 9.5 nr M331360 | B146: KM1 | C146: 30.06.2016 | D146: 10 | E146: 34670 | F146: 8959 | G146: 25711 | H146: 0 | I146: 3467.04 | J146: 0 | K146: 34670 | L146: 12426.04 | M146: 22243.96 | P146: 3467 | Q146: 3467 | R146: 3467 | S146: 3467 | T146: 3467 | U146: 3467 | V146: 1441.96 | AB146: 0
A147: 02000 HKM Komplektne katel (omaosalus) | B147: KM1 | C147: 31.08.2016 | D147: 6.7 | E147: 19548.91 | F147: 3161 | G147: 16387.91 | H147: 0 | I147: 1309.8 | J147: 0 | K147: 19548.91 | L147: 4470.8 | M147: 15078.11 | P147: 1309.77697 | Q147: 1309.77697 | R147: 1309.77697 | S147: 1309.77697 | T147: 1309.77697 | U147: 1309.77697 | V147: 1309.77697 | W147: 1309.77697 | X147: 1309.77697 | Y147: 1309.77697 | Z147: 1309.77697 | AA147: 670.56333 | AB147: 0
A148: 020001 HKM Komplektne katel (Vald toetus) | B148: SF | C148: 31.08.2016 | D148: 6.7 | E148: 30929.24 | F148: 5017 | G148: 25912.24 | H148: 0 | I148: 2072.28 | J148: 0 | K148: 30929.24 | L148: 7089.28 | M148: 23839.96 | P148: 2072.25908 | Q148: 2072.25908 | R148: 2072.25908 | S148: 2072.25908 | T148: 2072.25908 | U148: 2072.25908 | V148: 2072.25908 | W148: 2072.25908 | X148: 2072.25908 | Y148: 2072.25908 | Z148: 2072.25908 | AA148: 1045.11012 | AB148: 0
A149: 0200011 HKM Komplektne katel (KIK toetus) | B149: SF | C149: 31.08.2016 | D149: 6.7 | E149: 49084.28 | F149: 7946 | G149: 41138.28 | H149: 0 | I149: 3288.6 | J149: 0 | K149: 49084.28 | L149: 11234.6 | M149: 37849.68 | P149: 3288.64676 | Q149: 3288.64676 | R149: 3288.64676 | S149: 3288.64676 | T149: 3288.64676 | U149: =+$K149*$D149/100 -> 3288.64676 | V149: 3288.64676 | W149: 3288.64676 | X149: 3288.64676 | Y149: 3288.64676 | Z149: 3288.64676 | AA149: 1674.56564 | AB149: 0
A150: 02001 HKM Suitsugaasi eemalduse seadmed (omaosalus) | B150: KM1 | C150: 31.08.2016 | D150: 6.7 | E150: 2902.02 | F150: 464 | G150: 2438.02 | H150: 0 | I150: 194.4 | J150: 0 | K150: 2902.02 | L150: 658.4 | M150: 2243.62 | P150: 194.43534 | Q150: 194.43534 | R150: 194.43534 | S150: 194.43534 | T150: 194.43534 | U150: 194.43534 | V150: 194.43534 | W150: 194.43534 | X150: 194.43534 | Y150: 194.43534 | Z150: 194.43534 | AA150: 104.83126 | AB150: 0
A151: 020011 HKM Suitsugaasi eemalduse seadmed (Vald toetus) | B151: SF | C151: 31.08.2016 | D151: 6.7 | E151: 4591.43 | F151: 754 | G151: 3837.43 | H151: 0 | I151: 307.68 | J151: 0 | K151: 4591.43 | L151: 1061.68 | M151: 3529.75 | P151: 307.62581 | Q151: 307.62581 | R151: 307.62581 | S151: 307.62581 | T151: 307.62581 | U151: 307.62581 | V151: 307.62581 | W151: 307.62581 | X151: 307.62581 | Y151: 307.62581 | Z151: 307.62581 | AA151: 145.86609 | AB151: 0
A152: 0200111 HKM Suitsugaasi eemalduse seadmed (KIK toetus) | B152: SF | C152: 31.08.2016 | D152: 6.7 | E152: 7286.53 | F152: 1189 | G152: 6097.53 | H152: 0 | I152: 488.16 | J152: 0 | K152: 7286.53 | L152: 1677.16 | M152: 5609.37 | P152: 488.19751 | Q152: 488.19751 | R152: 488.19751 | S152: 488.19751 | T152: 488.19751 | U152: 488.19751 | V152: 488.19751 | W152: 488.19751 | X152: 488.19751 | Y152: 488.19751 | Z152: 488.19751 | AA152: 239.19739 | AB152: 0
A153: 02002 HKM Tuhaeemalduse seadmed (omaosalus) | B153: KM1 | C153: 31.08.2016 | D153: 6.7 | E153: 2688.35 | F153: 435 | G153: 2253.35 | H153: 0 | I153: 180.12 | J153: 0 | K153: 2688.35 | L153: 615.12 | M153: 2073.23 | P153: 180.11945 | Q153: 180.11945 | R153: 180.11945 | S153: 180.11945 | T153: 180.11945 | U153: 180.11945 | V153: 180.11945 | W153: 180.11945 | X153: 180.11945 | Y153: 180.11945 | Z153: 180.11945 | AA153: 91.91605 | AB153: 0
A154: 020021 HKM Tuhaeemalduse seadmed (Vald toetus) | B154: SF | C154: 31.08.2016 | D154: 6.7 | E154: 4253.36 | F154: 696 | G154: 3557.36 | H154: 0 | I154: 285 | J154: 0 | K154: 4253.36 | L154: 981 | M154: 3272.36 | P154: 284.97512 | Q154: 284.97512 | R154: 284.97512 | S154: 284.97512 | T154: 284.97512 | U154: 284.97512 | V154: 284.97512 | W154: 284.97512 | X154: 284.97512 | Y154: 284.97512 | Z154: 284.97512 | AA154: 137.63368 | AB154: 0
A155: 0200211 HKM Tuhaeemalduse seadmed (KIK toetus) | B155: SF | C155: 31.08.2016 | D155: 6.7 | E155: 6750.02 | F155: 1102 | G155: 5648.02 | H155: 0 | I155: 452.28 | J155: 0 | K155: 6750.02 | L155: 1554.28 | M155: 5195.74 | P155: 452.25134 | Q155: 452.25134 | R155: 452.25134 | S155: 452.25134 | T155: 452.25134 | U155: 452.25134 | V155: 452.25134 | W155: 452.25134 | X155: 452.25134 | Y155: 452.25134 | Z155: 452.25134 | AA155: 220.97526 | AB155: 0
A156: 02003 HKM Põrandatõukurid (omaosalus) | B156: KM1 | C156: 31.08.2016 | D156: 6.7 | E156: 4233.78 | F156: 696 | G156: 3537.78 | H156: 0 | I156: 283.68 | J156: 0 | K156: 4233.78 | L156: 979.68 | M156: 3254.1 | P156: 283.66326 | Q156: 283.66326 | R156: 283.66326 | S156: 283.66326 | T156: 283.66326 | U156: 283.66326 | V156: 283.66326 | W156: 283.66326 | X156: 283.66326 | Y156: 283.66326 | Z156: 283.66326 | AA156: 133.80414 | AB156: 0
A157: 020031 HKM Põrandatõukurid (Vald toetus) | B157: SF | C157: 31.08.2016 | D157: 6.7 | E157: 6698.45 | F157: 1073 | G157: 5625.45 | H157: 0 | I157: 448.8 | J157: 0 | K157: 6698.45 | L157: 1521.8 | M157: 5176.65 | P157: 448.79615 | Q157: 448.79615 | R157: 448.79615 | S157: 448.79615 | T157: 448.79615 | U157: 448.79615 | V157: 448.79615 | W157: 448.79615 | X157: 448.79615 | Y157: 448.79615 | Z157: 448.79615 | AA157: 239.89235 | AB157: 0
A158: 0200311 HKM Põrandatõukurid (KIK toetus) | B158: SF | C158: 31.08.2016 | D158: 6.7 | E158: 10630.35 | F158: 1711 | G158: 8919.35 | H158: 0 | I158: 712.2 | J158: 0 | K158: 10630.35 | L158: 2423.2 | M158: 8207.15 | P158: 712.23345 | Q158: 712.23345 | R158: 712.23345 | S158: 712.23345 | T158: 712.23345 | U158: 712.23345 | V158: 712.23345 | W158: 712.23345 | X158: 712.23345 | Y158: 712.23345 | Z158: 712.23345 | AA158: 372.58205 | AB158: 0
A159: 02004 HKM Biiterpurusti, transportöör (omaosalus) | B159: KM1 | C159: 31.08.2016 | D159: 6.7 | E159: 3120.67 | F159: 493 | G159: 2627.67 | H159: 0 | I159: 209.04 | J159: 0 | K159: 3120.67 | L159: 702.04 | M159: 2418.63 | P159: 209.08489 | Q159: 209.08489 | R159: 209.08489 | S159: 209.08489 | T159: 209.08489 | U159: 209.08489 | V159: 209.08489 | W159: 209.08489 | X159: 209.08489 | Y159: 209.08489 | Z159: 209.08489 | AA159: 118.69621 | AB159: 0
A160: 020041 HKM Biiterpurusti, transportöör (Vald toetus) | B160: SF | C160: 31.08.2016 | D160: 6.7 | E160: 4937.36 | F160: 812 | G160: 4125.36 | H160: 0 | I160: 330.84 | J160: 0 | K160: 4937.36 | L160: 1142.84 | M160: 3794.52 | P160: 330.80312 | Q160: 330.80312 | R160: 330.80312 | S160: 330.80312 | T160: 330.80312 | U160: 330.80312 | V160: 330.80312 | W160: 330.80312 | X160: 330.80312 | Y160: 330.80312 | Z160: 330.80312 | AA160: 155.68568 | AB160: 0
A161: 0200411 HKM Biiterpurusti, transportöör (KIK toetus) | B161: SF | C161: 31.08.2016 | D161: 6.7 | E161: 7835.52 | F161: 1276 | G161: 6559.52 | H161: 0 | I161: 525 | J161: 0 | K161: 7835.52 | L161: 1801 | M161: 6034.52 | P161: 524.97984 | Q161: 524.97984 | R161: 524.97984 | S161: 524.97984 | T161: 524.97984 | U161: 524.97984 | V161: 524.97984 | W161: 524.97984 | X161: 524.97984 | Y161: 524.97984 | Z161: 524.97984 | AA161: 259.74176 | AB161: 0
A162: 02005 HKM Primaarringluspumbad (omaosalus) | B162: KM1 | C162: 31.08.2016 | D162: 6.7 | E162: 638.04 | F162: 116 | G162: 522.04 | H162: 0 | I162: 42.72 | J162: 0 | K162: 638.04 | L162: 158.72 | M162: 479.32 | P162: 42.74868 | Q162: 42.74868 | R162: 42.74868 | S162: 42.74868 | T162: 42.74868 | U162: 42.74868 | V162: 42.74868 | W162: 42.74868 | X162: 42.74868 | Y162: 42.74868 | Z162: 42.74868 | AA162: 9.08452 | AB162: 0
A163: 020051 HKM Primaarringluspumbad (Vald toetus) | B163: SF | C163: 31.08.2016 | D163: 6.7 | E163: 1009.49 | F163: 174 | G163: 835.49 | H163: 0 | I163: 67.68 | J163: 0 | K163: 1009.49 | L163: 241.68 | M163: 767.81 | P163: 67.63583 | Q163: 67.63583 | R163: 67.63583 | S163: 67.63583 | T163: 67.63583 | U163: 67.63583 | V163: 67.63583 | W163: 67.63583 | X163: 67.63583 | Y163: 67.63583 | Z163: 67.63583 | AA163: 23.81587 | AB163: 0
A164: 0200511 HKM Primaarringluspumbad (KIK toetus) | B164: SF | C164: 31.08.2016 | D164: 6.7 | E164: 1602.04 | F164: 261 | G164: 1341.04 | H164: 0 | I164: 107.28 | J164: 0 | K164: 1602.04 | L164: 368.28 | M164: 1233.76 | P164: 107.33668 | Q164: 107.33668 | R164: 107.33668 | S164: 107.33668 | T164: 107.33668 | U164: 107.33668 | V164: 107.33668 | W164: 107.33668 | X164: 107.33668 | Y164: 107.33668 | Z164: 107.33668 | AA164: 53.05652 | AB164: 0
A165: 02006 HKM Soojusvaheti (omaosalus) | B165: KM1 | C165: 31.08.2016 | D165: 6.7 | E165: 896.45 | F165: 145 | G165: 751.45 | H165: 0 | I165: 60.12 | J165: 0 | K165: 896.45 | L165: 205.12 | M165: 691.33 | P165: 60.06215 | Q165: =+$K165*$D165/100 -> 60.06215 | R165: 60.06215 | S165: 60.06215 | T165: 60.06215 | U165: 60.06215 | V165: 60.06215 | W165: 60.06215 | X165: 60.06215 | Y165: 60.06215 | Z165: 60.06215 | AA165: 30.64635 | AB165: 0
A166: 020061 HKM Soojusvaheti (Vald toetus) | B166: SF | C166: 31.08.2016 | D166: 6.7 | E166: 1418.31 | F166: 232 | G166: 1186.31 | H166: 0 | I166: 95.04 | J166: 0 | K166: 1418.31 | L166: 327.04 | M166: 1091.27 | P166: 95.02677 | Q166: 95.02677 | R166: 95.02677 | S166: 95.02677 | T166: 95.02677 | U166: 95.02677 | V166: 95.02677 | W166: 95.02677 | X166: 95.02677 | Y166: 95.02677 | Z166: 95.02677 | AA166: 45.97553 | AB166: 0
A167: 0200611 HKM Soojusvaheti (KIK toetus) | B167: SF | C167: 31.08.2016 | D167: 6.7 | E167: 2250.84 | F167: 377 | G167: 1873.84 | H167: 0 | I167: 150.84 | J167: 0 | K167: 2250.84 | L167: 527.84 | M167: 1723 | P167: 150.80628 | Q167: 150.80628 | R167: 150.80628 | S167: 150.80628 | T167: 150.80628 | U167: 150.80628 | V167: 150.80628 | W167: 150.80628 | X167: 150.80628 | Y167: 150.80628 | Z167: 150.80628 | AA167: 64.13092 | AB167: 0
A168: 02007 HKM Sekundaarringluspumbad (omaosalus) | B168: KM1 | C168: 31.08.2016 | D168: 6.7 | E168: 725.51 | F168: 116 | G168: 609.51 | H168: 0 | I168: 48.6 | J168: 0 | K168: 725.51 | L168: 164.6 | M168: 560.91 | P168: 48.60917 | Q168: 48.60917 | R168: 48.60917 | S168: 48.60917 | T168: 48.60917 | U168: 48.60917 | V168: 48.60917 | W168: 48.60917 | X168: 48.60917 | Y168: 48.60917 | Z168: 48.60917 | AA168: 26.20913 | AB168: 0
A169: 020071 HKM Sekundaarringluspumbad (Vald toetus) | B169: SF | C169: 31.08.2016 | D169: 6.7 | E169: 1147.86 | F169: 174 | G169: 973.86 | H169: 0 | I169: 76.92 | J169: 0 | K169: 1147.86 | L169: 250.92 | M169: 896.94 | P169: 76.90662 | Q169: 76.90662 | R169: 76.90662 | S169: 76.90662 | T169: 76.90662 | U169: 76.90662 | V169: 76.90662 | W169: 76.90662 | X169: 76.90662 | Y169: 76.90662 | Z169: 76.90662 | AA169: 50.96718 | AB169: 0
A170: 0200711 HKM Sekundaarringluspumbad (KIK toetus) | B170: SF | C170: 31.08.2016 | D170: 6.7 | E170: 1821.63 | F170: 290 | G170: 1531.63 | H170: 0 | I170: 122.04 | J170: 0 | K170: 1821.63 | L170: 412.04 | M170: 1409.59 | P170: 122.04921 | Q170: 122.04921 | R170: 122.04921 | S170: 122.04921 | T170: 122.04921 | U170: 122.04921 | V170: 122.04921 | W170: 122.04921 | X170: 122.04921 | Y170: 122.04921 | Z170: 122.04921 | AA170: 67.04869 | AB170: 0
A171: 02008 HKM Lisaveeseadmed (omaosalus) | B171: KM1 | C171: 31.08.2016 | D171: 6.7 | E171: 615.19 | F171: 87 | G171: 528.19 | H171: 0 | I171: 41.16 | J171: 0 | K171: 615.19 | L171: 128.16 | M171: 487.03 | P171: 41.21773 | Q171: 41.21773 | R171: 41.21773 | S171: 41.21773 | T171: 41.21773 | U171: 41.21773 | V171: 41.21773 | W171: 41.21773 | X171: 41.21773 | Y171: 41.21773 | Z171: 41.21773 | AA171: 33.63497 | AB171: 0
A172: 020081 HKM Lisaveeseadmed (vald toetas) | B172: SF | C172: 31.08.2016 | D172: 6.7 | E172: 973.32 | F172: 145 | G172: 828.32 | H172: 0 | I172: 65.16 | J172: 0 | K172: 973.32 | L172: 210.16 | M172: 763.16 | P172: 65.21244 | Q172: 65.21244 | R172: 65.21244 | S172: 65.21244 | T172: 65.21244 | U172: 65.21244 | V172: 65.21244 | W172: 65.21244 | X172: 65.21244 | Y172: 65.21244 | Z172: 65.21244 | AA172: 45.82316 | AB172: 0
A173: 0200811 HKM Lisaveeseadmed (KIK toetus) | B173: SF | C173: 31.08.2016 | D173: 6.7 | E173: 1544.64 | F173: 261 | G173: 1283.64 | H173: 0 | I173: 103.44 | J173: 0 | K173: 1544.64 | L173: 364.44 | M173: 1180.2 | P173: 103.49088 | Q173: 103.49088 | R173: 103.49088 | S173: 103.49088 | T173: 103.49088 | U173: 103.49088 | V173: 103.49088 | W173: 103.49088 | X173: 103.49088 | Y173: 103.49088 | Z173: 103.49088 | AA173: 41.80032 | AB173: 0
A174: 02009 HKM Sisemised torustikud (omaosalus) | B174: KM1 | C174: 31.08.2016 | D174: 6.7 | E174: 4730.69 | F174: 754 | G174: 3976.69 | H174: 0 | I174: 316.92 | J174: 0 | K174: 4730.69 | L174: 1070.92 | M174: 3659.77 | P174: 316.95623 | Q174: 316.95623 | R174: 316.95623 | S174: 316.95623 | T174: 316.95623 | U174: 316.95623 | V174: 316.95623 | W174: 316.95623 | X174: 316.95623 | Y174: 316.95623 | Z174: 316.95623 | AA174: 173.25147 | AB174: 0
A175: 020091 HKM Sisemised torustikud (Vald toetus) | B175: SF | C175: 31.08.2016 | D175: 6.7 | E175: 7484.66 | F175: 1218 | G175: 6266.66 | H175: 0 | I175: 501.48 | J175: 0 | K175: 7484.66 | L175: 1719.48 | M175: 5765.18 | P175: 501.47222 | Q175: 501.47222 | R175: 501.47222 | S175: 501.47222 | T175: 501.47222 | U175: 501.47222 | V175: 501.47222 | W175: 501.47222 | X175: 501.47222 | Y175: 501.47222 | Z175: 501.47222 | AA175: 248.98558 | AB175: 0
A176: 0200911 HKM Sisemised torustikud (KIK toetus) | B176: SF | C176: 31.08.2016 | D176: 6.7 | E176: 11878.05 | F176: 1914 | G176: 9964.05 | H176: 0 | I176: 795.84 | J176: 0 | K176: 11878.05 | L176: 2709.84 | M176: 9168.21 | P176: 795.82935 | Q176: 795.82935 | R176: 795.82935 | S176: 795.82935 | T176: 795.82935 | U176: 795.82935 | V176: 795.82935 | W176: 795.82935 | X176: 795.82935 | Y176: 795.82935 | Z176: 795.82935 | AA176: 414.08715 | AB176: 0
A177: 02010 HKM Suitsukorsten (omaosalus) | B177: KM1 | C177: 31.08.2016 | D177: 6.7 | E177: 2771.83 | F177: 435 | G177: 2336.83 | H177: 0 | I177: 185.76 | J177: 0 | K177: 2771.83 | L177: 620.76 | M177: 2151.07 | P177: 185.71261 | Q177: 185.71261 | R177: 185.71261 | S177: 185.71261 | T177: 185.71261 | U177: 185.71261 | V177: 185.71261 | W177: 185.71261 | X177: 185.71261 | Y177: 185.71261 | Z177: 185.71261 | AA177: 108.23129 | AB177: 0
A178: 020101 HKM Suituskorsten (Vald toetus) | B178: SF | C178: 31.08.2016 | D178: 6.7 | E178: 4385.44 | F178: 696 | G178: 3689.44 | H178: 0 | I178: 293.88 | J178: 0 | K178: 4385.44 | L178: 989.88 | M178: 3395.56 | P178: 293.82448 | Q178: 293.82448 | R178: 293.82448 | S178: 293.82448 | T178: 293.82448 | U178: 293.82448 | V178: 293.82448 | W178: 293.82448 | X178: 293.82448 | Y178: 293.82448 | Z178: 293.82448 | AA178: 163.49072 | AB178: 0
A179: 0201011 HKM Suitsukorsten (KIK toetus) | B179: SF | C179: 31.08.2016 | D179: 6.7 | E179: 6959.64 | F179: 1131 | G179: 5828.64 | H179: 0 | I179: 466.32 | J179: 0 | K179: 6959.64 | L179: 1597.32 | M179: 5362.32 | P179: 466.29588 | Q179: 466.29588 | R179: 466.29588 | S179: 466.29588 | T179: 466.29588 | U179: 466.29588 | V179: 466.29588 | W179: 466.29588 | X179: 466.29588 | Y179: 466.29588 | Z179: 466.29588 | AA179: 233.06532 | AB179: 0
A180: 02011 HKM Elektri- ja juhtimiskilbid (omaosalus) | B180: KM1 | C180: 31.08.2016 | D180: 6.7 | E180: 1515.61 | F180: 232 | G180: 1283.61 | H180: 0 | I180: 101.52 | J180: 0 | K180: 1515.61 | L180: 333.52 | M180: 1182.09 | P180: 101.54587 | Q180: 101.54587 | R180: 101.54587 | S180: 101.54587 | T180: 101.54587 | U180: 101.54587 | V180: 101.54587 | W180: 101.54587 | X180: 101.54587 | Y180: 101.54587 | Z180: 101.54587 | AA180: 65.08543 | AB180: 0
A181: 020111 HKM Elektri- ja juhtimiskilbid (Vald toetus) | B181: SF | C181: 31.08.2016 | D181: 6.7 | E181: 2397.92 | F181: 377 | G181: 2020.92 | H181: 0 | I181: 160.68 | J181: 0 | K181: 2397.92 | L181: 537.68 | M181: 1860.24 | P181: 160.66064 | Q181: =+$K181*$D181/100 -> 160.66064 | R181: 160.66064 | S181: 160.66064 | T181: 160.66064 | U181: 160.66064 | V181: 160.66064 | W181: 160.66064 | X181: 160.66064 | Y181: 160.66064 | Z181: 160.66064 | AA181: 92.97296 | AB181: 0
A182: 0201111 HKM Elektri- ja juhtimiskilbid (KIK toetus) | B182: SF | C182: 31.08.2016 | D182: 6.7 | E182: 3805.47 | F182: 609 | G182: 3196.47 | H182: 0 | I182: 255 | J182: 0 | K182: 3805.47 | L182: 864 | M182: 2941.47 | P182: 254.96649 | Q182: 254.96649 | R182: 254.96649 | S182: 254.96649 | T182: 254.96649 | U182: 254.96649 | V182: 254.96649 | W182: 254.96649 | X182: 254.96649 | Y182: 254.96649 | Z182: 254.96649 | AA182: 136.83861 | AB182: 0
A183: 02012 HKM Nõrkvoolu- ja automaatika kilp (omaosalus) | B183: KM1 | C183: 31.08.2016 | D183: 6.7 | E183: 9868.87 | F183: 1595 | G183: 8273.87 | H183: 0 | I183: 661.2 | J183: 0 | K183: 9868.87 | L183: 2256.2 | M183: 7612.67 | P183: 661.21429 | Q183: 661.21429 | R183: 661.21429 | S183: 661.21429 | T183: 661.21429 | U183: 661.21429 | V183: 661.21429 | W183: 661.21429 | X183: 661.21429 | Y183: 661.21429 | Z183: 661.21429 | AA183: 339.31281 | AB183: 0
A184: 020121 HKM Nõrkvoolu- ja automaatika kilp (Vald toetus) | B184: SF | C184: 31.08.2016 | D184: 6.7 | E184: 15614 | F184: 2523 | G184: 13091 | H184: 0 | I184: 1046.16 | J184: 0 | K184: 15614 | L184: 3569.16 | M184: 12044.84 | P184: 1046.138 | Q184: 1046.138 | R184: 1046.138 | S184: 1046.138 | T184: 1046.138 | U184: 1046.138 | V184: 1046.138 | W184: 1046.138 | X184: 1046.138 | Y184: 1046.138 | Z184: 1046.138 | AA184: 537.322 | AB184: 0
A185: 0201211 HKM Nõrkvoolu- ja automaatika kilp (KIK toetus) | B185: SF | C185: 31.08.2016 | D185: 6.7 | E185: 24779.2 | F185: 4002 | G185: 20777.2 | H185: 0 | I185: 1660.2 | J185: 0 | K185: 24779.2 | L185: 5662.2 | M185: 19117 | P185: 1660.2064 | Q185: 1660.2064 | R185: 1660.2064 | S185: 1660.2064 | T185: 1660.2064 | U185: 1660.2064 | V185: 1660.2064 | W185: 1660.2064 | X185: 1660.2064 | Y185: 1660.2064 | Z185: 1660.2064 | AA185: 854.7296 | AB185: 0
A186: 02013 HKM Autonoomne elektrigeneraator (omaosalus) | B186: KM1 | C186: 31.08.2016 | D186: 6.7 | E186: 1918.12 | F186: 319 | G186: 1599.12 | H186: 0 | I186: 128.52 | J186: 0 | K186: 1918.12 | L186: 447.52 | M186: 1470.6 | P186: 128.51404 | Q186: 128.51404 | R186: 128.51404 | S186: 128.51404 | T186: 128.51404 | U186: 128.51404 | V186: 128.51404 | W186: 128.51404 | X186: 128.51404 | Y186: 128.51404 | Z186: 128.51404 | AA186: 56.94556 | AB186: 0
A187: 020131 HKM Autonoomne elektrigeneraator (Vald toetus) | B187: SF | C187: 31.08.2016 | D187: 6.7 | E187: 3034.74 | F187: 493 | G187: 2541.74 | H187: 0 | I187: 203.28 | J187: 0 | K187: 3034.74 | L187: 696.28 | M187: 2338.46 | P187: 203.32758 | Q187: 203.32758 | R187: 203.32758 | S187: 203.32758 | T187: 203.32758 | U187: 203.32758 | V187: 203.32758 | W187: 203.32758 | X187: 203.32758 | Y187: 203.32758 | Z187: 203.32758 | AA187: 101.85662 | AB187: 0
A188: 0201311 HKM Autonoomne elektrigeneraator (KIK toetus) | B188: SF | C188: 31.08.2016 | D188: 6.7 | E188: 4816.1 | F188: 783 | G188: 4033.1 | H188: 0 | I188: 322.68 | J188: 0 | K188: 4816.1 | L188: 1105.68 | M188: 3710.42 | P188: 322.6787 | Q188: 322.6787 | R188: 322.6787 | S188: 322.6787 | T188: 322.6787 | U188: 322.6787 | V188: 322.6787 | W188: 322.6787 | X188: 322.6787 | Y188: 322.6787 | Z188: 322.6787 | AA188: 160.9543 | AB188: 0
A189: 02014 Soojakulumõõtja Multical602 Ultraflow54 DN150x500 | B189: KM1 | C189: 30.09.2016 | D189: 10 | E189: 2150 | F189: 504 | G189: 1646 | H189: 0 | I189: 215.04 | J189: 0 | K189: 2150 | L189: 719.04 | M189: 1430.96 | P189: 215 | Q189: 215 | R189: 215 | S189: 215 | T189: 215 | U189: 215 | V189: 140.96 | AB189: 0
A190: 03003 Naaritsa puurkaevupumpla seadmed (ÜF omaosalus) | B190: TR1 | C190: 31.12.2012 | D190: 6.7 | E190: 7463.5 | F190: 3024 | G190: 4439.5 | H190: 0 | I190: 500.04 | J190: 0 | K190: 7463.5 | L190: 3524.04 | M190: 3939.46 | N190: 1 | O190: vesi | P190: 500.0545 | Q190: 500.0545 | R190: 500.0545 | S190: 500.0545 | T190: 500.0545 | U190: 500.0545 | V190: 500.0545 | W190: 439.0785 | AB190: 0
A191: 03004 Naaritsa puurkaevupumpla seadmed (ÜF toetus) | B191: SF | C191: 31.12.2012 | D191: 6.7 | E191: 37020.97 | F191: 14904 | G191: 22116.97 | H191: 0 | I191: 2480.4 | J191: 0 | K191: 37020.97 | L191: 17384.4 | M191: 19636.57 | P191: 2480.40499 | Q191: 2480.40499 | R191: 2480.40499 | S191: 2480.40499 | T191: 2480.40499 | U191: 2480.40499 | V191: 2480.40499 | W191: 2273.73507 | AB191: 0
A192: 04003 Essu rauaeraldus | B192: TR2 | C192: 30.06.2011 | D192: 6.7 | E192: 1196.17 | F192: 630 | G192: 566.17 | H192: 0 | I192: 80.16 | J192: 0 | K192: 1196.17 | L192: 710.16 | M192: 486.01 | N192: 1 | O192: vesi | P192: 80.14339 | Q192: 80.14339 | R192: 80.14339 | S192: 80.14339 | T192: 80.14339 | U192: 80.14339 | V192: 5.14966 | AB192: 0
A193: 04004 Essu rauaeraldus (KIK toetusega) | B193: SF | C193: 30.06.2011 | D193: 6.7 | E193: 7073.99 | F193: 3510 | G193: 3563.99 | H193: 0 | I193: 474 | J193: 0 | K193: 7073.99 | L193: 3984 | M193: 3089.99 | P193: 473.95733 | Q193: 473.95733 | R193: 473.95733 | S193: 473.95733 | T193: 473.95733 | U193: 473.95733 | V193: 246.24602 | AB193: 0
A194: 06000 Täisautomaatne paarissurvefilter | B194: TR3 | C194: 08.07.2008 | D194: 3.33 | E194: 9329.18 | F194: 3246.64 | G194: 6082.54 | H194: 0 | I194: 310.68 | J194: 0 | K194: 9329.18 | L194: 3557.32 | M194: 5771.86 | N194: 1 | O194: vesi | P194: 310.661694 | Q194: 310.661694 | R194: 310.661694 | S194: 310.661694 | T194: 310.661694 | U194: 310.661694 | V194: 310.661694 | W194: 310.661694 | X194: 310.661694 | Y194: 310.661694 | Z194: 310.661694 | AA194: 310.661694 | AB194: 2043.919672
A195: 07000 RVP Reoveepumpla RVP1 (ÜF toetus) | B195: SF | C195: 31.01.2014 | D195: 6.7 | E195: 50705.79 | F195: 16980 | G195: 33725.79 | H195: 0 | I195: 3397.32 | J195: 0 | K195: 50705.79 | L195: 20377.32 | M195: 30328.47 | P195: 3397.28793 | Q195: 3397.28793 | R195: 3397.28793 | S195: 3397.28793 | T195: 3397.28793 | U195: 3397.28793 | V195: 3397.28793 | W195: 3397.28793 | X195: 3150.16656 | AB195: 0
A196: 070001 RVP Reoveepumpla RVP1 (VÕ, vald toetus) | B196: SF | C196: 31.01.2014 | D196: 6.7 | E196: 9795.95 | F196: 3300 | G196: 6495.95 | H196: 0 | I196: 656.28 | J196: 0 | K196: 9795.95 | L196: 3956.28 | M196: 5839.67 | P196: =+$K196*$D196/100 -> 656.32865 | Q196: 656.32865 | R196: 656.32865 | S196: 656.32865 | T196: 656.32865 | U196: 656.32865 | V196: 656.32865 | W196: 656.32865 | X196: 589.0408 | AB196: =+M196-SUM(P196:AA196) -> 0
A197: 0700011 RVP Reoveepumpla RVP1 (omaosalus) | B197: KAN1 | C197: 31.01.2014 | D197: 6.7 | E197: 307.51 | F197: 120 | G197: 187.51 | H197: 0 | I197: 20.64 | J197: 0 | K197: 307.51 | L197: 140.64 | M197: 166.87 | N197: 1 | O197: kanal | P197: 20.60317 | Q197: 20.60317 | R197: 20.60317 | S197: 20.60317 | T197: 20.60317 | U197: 20.60317 | V197: 20.60317 | W197: 20.60317 | X197: 2.04464 | AB197: 0
A198: 07001 RVP Purgla h=4,02 (ÜF toetus) | B198: SF | C198: 31.01.2014 | D198: 6.7 | E198: 22256.75 | F198: 7440 | G198: 14816.75 | H198: 0 | I198: 1491.24 | J198: 0 | K198: 22256.75 | L198: 8931.24 | M198: 13325.51 | P198: 1491.20225 | Q198: 1491.20225 | R198: 1491.20225 | S198: 1491.20225 | T198: 1491.20225 | U198: 1491.20225 | V198: 1491.20225 | W198: 1491.20225 | X198: 1395.892 | AB198: 0
A199: 070011 RVP Purgla h=4,02 (VÕ, vald toetus) | B199: SF | C199: 31.01.2014 | D199: 6.7 | E199: 4299.81 | F199: 1440 | G199: 2859.81 | H199: 0 | I199: 288.12 | J199: 0 | K199: 4299.81 | L199: 1728.12 | M199: 2571.69 | P199: 288.08727 | Q199: 288.08727 | R199: 288.08727 | S199: 288.08727 | T199: 288.08727 | U199: 288.08727 | V199: 288.08727 | W199: 288.08727 | X199: 266.99184 | AB199: 0
A200: 0700111 RVP Purgla h=4,02 (omaosalus) | B200: KAN1 | C200: 31.01.2014 | D200: 6.7 | E200: 134.98 | F200: 60 | G200: 74.98 | H200: 0 | I200: 9 | J200: 0 | K200: 134.98 | L200: 69 | M200: 65.98 | N200: 1 | O200: kanal | P200: 9.04366 | Q200: 9.04366 | R200: 9.04366 | S200: 9.04366 | T200: 9.04366 | U200: 9.04366 | V200: 9.04366 | W200: 2.67438 | AB200: 0
... 213 more rows

Sheet 2023_2031_FIN (ÜHTNE)
A1: FINANTSANALÜÜS | B1: Ühik | C1: =+EE!I2 -> 2023 | D1: =+EE!J2 -> 2024 | E1: =+EE!K2 -> 2025 | F1: =+EE!L2 -> 2026 | G1: =+EE!M2 -> 2027 | H1: =+EE!N2 -> 2028 | I1: =+EE!O2 -> 2029 | J1: =+EE!P2 -> 2030 | K1: =+EE!Q2 -> 2031
A2: MAHUD
A3: Elanike vesi | B3: m3/a | C3: =+MAHUD!G10 -> 65067.58646 | D3: =+MAHUD!H10 -> 66063.03564 | E3: =+MAHUD!I10 -> 66586.86974 | F3: =+MAHUD!J10 -> 67110.70384 | G3: =+MAHUD!K10 -> 67110.70384 | H3: =+MAHUD!L10 -> 67110.70384 | I3: =+MAHUD!M10 -> 67110.70384 | J3: =+MAHUD!N10 -> 67110.70384 | K3: =+MAHUD!O10 -> 76035.7764
A4: Juriidiliste isikute vesi | B4: m3/a | C4: =+MAHUD!G11 -> 11217.14291 | D4: =+MAHUD!H11 -> 11217.14291 | E4: =+MAHUD!I11 -> 11217.14291 | F4: =+MAHUD!J11 -> 11217.14291 | G4: =+MAHUD!K11 -> 11217.14291 | H4: =+MAHUD!L11 -> 11217.14291 | I4: =+MAHUD!M11 -> 11217.14291 | J4: =+MAHUD!N11 -> 11217.14291 | K4: =+MAHUD!O11 -> 11217.14291
A5: Elanike kanal | B5: m3/a | C5: =+MAHUD!G15 -> 57825.43444 | D5: =+MAHUD!H15 -> 62187.38515 | E5: =+MAHUD!I15 -> 63534.84953 | F5: =+MAHUD!J15 -> 64882.31392 | G5: =+MAHUD!K15 -> 64882.31392 | H5: =+MAHUD!L15 -> 64882.31392 | I5: =+MAHUD!M15 -> 64882.31392 | J5: =+MAHUD!N15 -> 64882.31392 | K5: =+MAHUD!O15 -> 69962.64549
A6: Juriidiliste isikute kanal | B6: m3/a | C6: =+MAHUD!G16 -> 19396.64784 | D6: =+MAHUD!H16 -> 19396.64784 | E6: =+MAHUD!I16 -> 19396.64784 | F6: =+MAHUD!J16 -> 19396.64784 | G6: =+MAHUD!K16 -> 19396.64784 | H6: =+MAHUD!L16 -> 19396.64784 | I6: =+MAHUD!M16 -> 19396.64784 | J6: =+MAHUD!N16 -> 19396.64784 | K6: =+MAHUD!O16 -> 19713.13371
A7: VESI KOKKU | B7: m3/a | C7: =+C3+C4 -> 76284.72937 | D7: 77280.17855 | E7: 77804.01265 | F7: 78327.84675 | G7: 78327.84675 | H7: 78327.84675 | I7: 78327.84675 | J7: 78327.84675 | K7: 87252.91931
A8: KANAL KOKKU | B8: m3/a | C8: =+C5+C6 -> 77222.08227 | D8: 81584.03299 | E8: 82931.49737 | F8: 84278.96175 | G8: 84278.96175 | H8: 84278.96175 | I8: 84278.96175 | J8: 84278.96175 | K8: 89675.7792
A9: ÜV-abonente | B9: tk | C9: 979.6666667 | D9: 995 | E9: 1003 | F9: 1011 | G9: 1011 | H9: 1011 | I9: 1011 | J9: 1011 | K9: 1148
A10: ÜK-abonente | B10: tk | C10: 609.6666667 | D10: 696.3333333 | E10: 725.6666667 | F10: 755 | G10: 755 | H10: 755 | I10: 755 | J10: 755 | K10: 861
A11: TEENUSHINNAD
A12: Elanike vesi | B12: EUR/m3 | C12: 2.11024469 | D12: 2.11024469 | E12: 2.307552568 | F12: 2.390624461 | G12: 2.390624461 | H12: 2.390624461 | I12: 2.486249439 | J12: 2.486249439 | K12: 2.6602869
A13: Juriidiliste isikute vesi | B13: EUR/m3 | C13: 2.11024469 | D13: 2.11024469 | E13: 2.307552568 | F13: 2.390624461 | G13: 2.390624461 | H13: 2.390624461 | I13: 2.486249439 | J13: 2.486249439 | K13: 2.6602869
A14: Elanike kanal | B14: EUR/m3 | C14: 2.371039684 | D14: 2.371039684 | E14: 2.592731894 | F14: 2.686070243 | G14: 2.686070243 | H14: 2.686070243 | I14: 2.793513052 | J14: 2.793513052 | K14: 2.989058966
A15: Juriidiliste isikute kanal* | B15: EUR/m3 | C15: 2.371039684 | D15: 2.371039684 | E15: 2.592731894 | F15: 2.686070243 | G15: 2.686070243 | H15: 2.686070243 | I15: 2.793513052 | J15: 2.793513052 | K15: 2.989058966
A16: Abonenttasud ÜV | B16: EUR/kuu | C16: 1.598188446 | D16: 1.598188446 | E16: 1.747619066 | F16: 1.810533352 | G16: 1.810533352 | H16: 1.810533352 | I16: 1.882954686 | J16: 1.882954686 | K16: 2.014761514
A17: Abonenttasud ÜK | B17: EUR/kuu | C17: 3.224507821 | D17: 3.224507821 | E17: 3.525999303 | F17: 3.652935278 | G17: 3.652935278 | H17: 3.652935278 | I17: 3.799052689 | J17: 3.799052689 | K17: 4.064986377
A18: *keskmistatud hind üle reostusgruppide
A19: Tariifi muutus võrreldes eelmise aastaga
A20: Elanike vesi | B20: % | D20: =+D12/C12-1 -> 0 | E20: =+E12/D12-1 -> 0.0935 | F20: 0.036 | G20: 0 | H20: 0 | I20: 0.04 | J20: 0 | K20: 0.07
A21: Juriidiliste isikute vesi | B21: % | D21: =+D13/C13-1 -> 0 | E21: 0.0935 | F21: 0.036 | G21: 0 | H21: 0 | I21: 0.04 | J21: 0 | K21: 0.07
A22: Elanike kanal | B22: % | D22: 0 | E22: 0.0935 | F22: 0.036 | G22: 0 | H22: 0 | I22: 0.04 | J22: 0 | K22: 0.07
A23: Juriidiliste isikute kanal | B23: % | D23: 0 | E23: 0.0935 | F23: 0.036 | G23: 0 | H23: 0 | I23: 0.04 | J23: 0 | K23: 0.07
A24: Abonenttasud ÜV | B24: % | D24: 0 | E24: 0.0935 | F24: 0.036 | G24: 0 | H24: 0 | I24: 0.04 | J24: 0 | K24: 0.07
A25: Abonenttasud ÜK | B25: % | D25: 0 | E25: 0.0935 | F25: 0.036 | G25: 0 | H25: 0 | I25: 0.04 | J25: 0 | K25: 0.07
A26: MÜÜGITULUD
A27: Elanike vesi | B27: EUR | C27: =+C3*C12 -> 137308.5288 | D27: 139409.1702 | E27: 153652.7023 | F27: 160436.4902 | G27: 160436.4902 | H27: 160436.4902 | I27: 166853.9498 | J27: 166853.9498 | K27: 202276.9799
A28: Juriidiliste isikute vesi | B28: EUR | C28: =+C4*C13 -> 23670.91626 | D28: 23670.91626 | E28: 25884.14693 | F28: 26815.97622 | G28: 26815.97622 | H28: 26815.97622 | I28: 27888.61527 | J28: 27888.61527 | K28: 29840.81833
A29: Elanike kanal | B29: EUR | C29: =+C5*C14 -> 137106.3998 | D29: 147448.758 | E29: 164728.8308 | F29: 174278.4527 | G29: 174278.4527 | H29: 174278.4527 | I29: 181249.5908 | J29: 181249.5908 | K29: 209122.4728
A30: Juriidiliste isikute kanal | B30: EUR | C30: =+C6*C15 -> 45990.22175 | D30: 45990.22175 | E30: 50290.30749 | F30: 52100.75856 | G30: 52100.75856 | H30: 52100.75856 | I30: 54184.7889 | J30: 54184.7889 | K30: 58923.71907
A31: Tulud vee- ja kanalisatsiooni-teenuse müügist | B31: EUR | C31: =+SUM(C27:C30) -> 344076.0666 | D31: 356519.0662 | E31: 394555.9875 | F31: 413631.6776 | G31: 413631.6776 | H31: 413631.6776 | I31: 430176.9447 | J31: 430176.9447 | K31: 500163.9901
A32: Tulu abonenttasust | B32: EUR | C32: =+(C9*C16+C10*C17)*12 -> 42378.80259 | D32: 46026.3574 | E32: 51738.745 | F32: 55060.98424 | G32: 55060.98424 | H32: 55060.98424 | I32: 57263.42361 | J32: 57263.42361 | K32: 69754.79386
A33: KOV toetus tegevuskulude katmiseks | B33: EUR | C33: 0 | D33: 0 | E33: 0 | F33: 0 | G33: 0 | H33: 0 | I33: 0 | J33: 0 | K33: 0
A34: Fekaali purgimine (Haljala) | B34: EUR | C34: 9631.722112 | D34: =+C34*(1+EE!J5) -> 9827.246193 | E34: =+D34*(1+EE!K5) -> 10026.73948 | F34: =+E34*(1+EE!L5) -> 10230.28255 | G34: =+F34*(1+EE!M5) -> 10437.95765 | H34: =+G34*(1+EE!N5) -> 10649.84865 | I34: =+H34*(1+EE!O5) -> 10866.04118 | J34: =+I34*(1+EE!P5) -> 11086.62255 | K34: =+J34*(1+EE!Q5) -> 11311.68189
A35: Muud tulud kokku | B35: EUR | C35: =+SUM(C32:C34) -> 52010.5247 | D35: 55853.60359 | E35: 61765.48448 | F35: 65291.26679 | G35: 65498.94189 | H35: 65710.83289 | I35: 68129.46479 | J35: 68350.04616 | K35: 81066.47576
A36: TULUD KOKKU | B36: EUR | C36: =+C31+C35 -> 396086.5913 | D36: 412372.6698 | E36: 456321.472 | F36: 478922.9444 | G36: 479130.6195 | H36: 479342.5105 | I36: 498306.4095 | J36: 498526.9909 | K36: 581230.4658
A37: TEGEVUSKULUD
A38: Energiakulud | B38: EUR | C38: =+KULUD!G15+KULUD!G44 -> 48005.99806 | D38: =+KULUD!H15+KULUD!H44 -> 51364.53487 | E38: =+KULUD!I15+KULUD!I44 -> 53357.75298 | F38: =+KULUD!J15+KULUD!J44 -> 55410.72937 | G38: =+KULUD!K15+KULUD!K44 -> 56535.56911 | H38: =+KULUD!L15+KULUD!L44 -> 57683.24369 | I38: =+KULUD!M15+KULUD!M44 -> 58854.21676 | J38: =+KULUD!N15+KULUD!N44 -> 60048.96137 | K38: =+KULUD!O15+KULUD!O44 -> 63212.56349
A39: Saastetasu | B39: EUR | C39: =+KULUD!G18+KULUD!G47 -> 11944.28735 | D39: =+KULUD!H18+KULUD!H47 -> 13268.27661 | E39: =+KULUD!I18+KULUD!I47 -> 13955.32619 | F39: =+KULUD!J18+KULUD!J47 -> 14664.80238 | G39: =+KULUD!K18+KULUD!K47 -> 14962.49838 | H39: =+KULUD!L18+KULUD!L47 -> 15266.23777 | I39: =+KULUD!M18+KULUD!M47 -> 15576.14325 | J39: =+KULUD!N18+KULUD!N47 -> 15892.34002 | K39: =+KULUD!O18+KULUD!O47 -> 17097.22771
A40: Vee erikasutusõiguse tasu | B40: EUR | C40: =+KULUD!G19+KULUD!G48 -> 9085.16175 | D40: =+KULUD!H19+KULUD!H48 -> 9226.803415 | E40: =+KULUD!I19+KULUD!I48 -> 9306.365227 | F40: =+KULUD!J19+KULUD!J48 -> 9576.461604 | G40: =+KULUD!K19+KULUD!K48 -> 9770.864109 | H40: =+KULUD!L19+KULUD!L48 -> 9969.213088 | I40: =+KULUD!M19+KULUD!M48 -> 10171.58867 | J40: =+KULUD!N19+KULUD!N48 -> 10378.07261 | K40: =+KULUD!O19+KULUD!O48 -> 11465.87096
A41: Spetsiifilise tehnoloogia kulud (kemikaalid) | B41: EUR | C41: =+KULUD!G20+KULUD!G49 -> 9177.77697 | D41: =+KULUD!H20+KULUD!H49 -> 9751.214289 | E41: =+KULUD!I20+KULUD!I49 -> 10103.86928 | F41: =+KULUD!J20+KULUD!J49 -> 10466.82378 | G41: =+KULUD!K20+KULUD!K49 -> 10679.30066 | H41: =+KULUD!L20+KULUD!L49 -> 10896.09095 | I41: =+KULUD!M20+KULUD!M49 -> 11117.2822 | J41: =+KULUD!N20+KULUD!N49 -> 11342.96379 | K41: =+KULUD!O20+KULUD!O49 -> 11670.90606
A42: Kaupade ja teenuste vahendamiskulud | B42: EUR | C42: =+KULUD!G27+KULUD!G56 -> 27119.79315 | D42: =+KULUD!H27+KULUD!H56 -> 27670.3253 | E42: =+KULUD!I27+KULUD!I56 -> 28232.03343 | F42: =+KULUD!J27+KULUD!J56 -> 28805.14445 | G42: =+KULUD!K27+KULUD!K56 -> 29389.88989 | H42: =+KULUD!L27+KULUD!L56 -> 29986.50597 | I42: =+KULUD!M27+KULUD!M56 -> 30595.23371 | J42: =+KULUD!N27+KULUD!N56 -> 31216.31904 | K42: =+KULUD!O27+KULUD!O56 -> 31850.01286
A43: Seadmete hoolduse teenus ja materjalid | B43: EUR | C43: =+KULUD!G24+KULUD!G53 -> 11625.92101 | D43: =+KULUD!H24+KULUD!H53 -> 11861.92736 | E43: =+KULUD!I24+KULUD!I53 -> 12102.72471 | F43: =+KULUD!J24+KULUD!J53 -> 12348.41034 | G43: =+KULUD!K24+KULUD!K53 -> 12599.0835 | H43: =+KULUD!L24+KULUD!L53 -> 12854.84546 | I43: =+KULUD!M24+KULUD!M53 -> 13115.79954 | J43: =+KULUD!N24+KULUD!N53 -> 13382.05116 | K43: =+KULUD!O24+KULUD!O53 -> 13653.70789
A44: Tööjõu- ja personalikulud | B44: EUR | C44: =+KULUD!G25+KULUD!G54 -> 139758.2498 | D44: =+KULUD!H25+KULUD!H54 -> 142595.3441 | E44: =+KULUD!I25+KULUD!I54 -> 145490.0323 | F44: =+KULUD!J25+KULUD!J54 -> 148443.4837 | G44: =+KULUD!K25+KULUD!K54 -> 151456.8916 | H44: =+KULUD!L25+KULUD!L54 -> 154531.4733 | I44: =+KULUD!M25+KULUD!M54 -> 157668.4709 | J44: =+KULUD!N25+KULUD!N54 -> 160869.1516 | K44: =+KULUD!O25+KULUD!O54 -> 164134.8084
A45: Administratiivkulud | B45: EUR | C45: =+KULUD!G26+KULUD!G55 -> 14357.45735 | D45: =+KULUD!H26+KULUD!H55 -> 14648.91392 | E45: =+KULUD!I26+KULUD!I55 -> 14946.28715 | F45: =+KULUD!J26+KULUD!J55 -> 15249.69717 | G45: =+KULUD!K26+KULUD!K55 -> 15559.26656 | H45: =+KULUD!L26+KULUD!L55 -> 15875.12036 | I45: =+KULUD!M26+KULUD!M55 -> 16197.38619 | J45: =+KULUD!N26+KULUD!N55 -> 16526.19423 | K45: =+KULUD!O26+KULUD!O55 -> 16861.67733
A46: Ülalpidamiskulud | B46: EUR | C46: =+KULUD!G28+KULUD!G57 -> 39310.0912 | D46: =+KULUD!H28+KULUD!H57 -> 40108.08655 | E46: =+KULUD!I28+KULUD!I57 -> 40922.28147 | F46: =+KULUD!J28+KULUD!J57 -> 41753.00486 | G46: =+KULUD!K28+KULUD!K57 -> 42600.59232 | H46: =+KULUD!L28+KULUD!L57 -> 43465.38625 | I46: =+KULUD!M28+KULUD!M57 -> 44347.73602 | J46: =+KULUD!N28+KULUD!N57 -> 45247.99808 | K46: =+KULUD!O28+KULUD!O57 -> 46166.53613
A47: KULUD (va kulum) KOKKU | B47: EUR | C47: =+SUM(C38:C46) -> 310384.7367 | D47: 320495.4264 | E47: 328416.6727 | F47: 336718.5577 | G47: 343553.9562 | H47: 350528.1169 | I47: 357643.8572 | J47: 364904.0519 | K47: 376113.3109
A48: RAHAVOOG OPEREERIMISTEGEVUSEST | B48: EUR | C48: =C36-C47 -> 85701.85466 | D48: 91877.24342 | E48: 127904.7993 | F48: 142204.3867 | G48: 135576.6633 | H48: 128814.3937 | I48: 140662.5523 | J48: 133622.939 | K48: 205117.155
A49: Hinda lülitatav kulum | B49: EUR | C49: =+'Kulum&INV'!G10+'Kulum&INV'!G42 -> 63315.62018 | D49: =+'Kulum&INV'!H10+'Kulum&INV'!H42 -> 77710.96728 | E49: =+'Kulum&INV'!I10+'Kulum&INV'!I42 -> 84303.30227 | F49: =+'Kulum&INV'!J10+'Kulum&INV'!J42 -> 90694.49031 | G49: =+'Kulum&INV'!K10+'Kulum&INV'!K42 -> 97248.58906 | H49: =+'Kulum&INV'!L10+'Kulum&INV'!L42 -> 103075.1199 | I49: =+'Kulum&INV'!M10+'Kulum&INV'!M42 -> 109086.6303 | J49: =+'Kulum&INV'!N10+'Kulum&INV'!N42 -> 114457.623 | K49: =+'Kulum&INV'!O10+'Kulum&INV'!O42 -> 121423.9066
A50: TULEM | B50: EUR | C50: =+C48-C49 -> 22386.23448 | D50: 14166.27614 | E50: 43601.49703 | F50: 51509.89643 | G50: 38328.07429 | H50: 25739.27379 | I50: 31575.92204 | J50: 19165.31606 | K50: 83693.24834
A51: TULUKUS | B51: % | C51: =+C50/C36 -> 0.05651853653 | D51: 0.0343530917 | E51: 0.095549957 | F51: 0.1075536201 | G51: 0.07999504254 | H51: 0.05369703964 | I51: 0.06336647781 | J51: 0.03844388851 | K51: 0.1439932235
A52: TASKUKOHASUS | B52: Ühik | C52: =+C$1 -> 2023 | D52: 2024 | E52: 2025 | F52: 2026 | G52: 2027 | H52: 2028 | I52: 2029 | J52: 2030 | K52: 2031
A53: Leibkonnaliikme netosissetulek | B53: EUR/a | C53: =+EE!I10 -> 9036.136074 | D53: =+EE!J10 -> 9219.569751 | E53: =+EE!K10 -> 9406.727192 | F53: =+EE!L10 -> 9597.684002 | G53: =+EE!M10 -> 9792.517322 | H53: =+EE!N10 -> 9991.305862 | I53: =+EE!O10 -> 10194.12993 | J53: =+EE!P10 -> 10401.07146 | K53: =+EE!Q10 -> 10612.21406
A54: Kulu veele ja kanalisatsioonile pereliikme kohta | B54: EUR/a | C54: =+EE!I13*(C12+C14)*1.2+(C16+C17)*12*1.2/EE!I9 -> 177.2525038 | D54: =+EE!J13*(D12+D14)*1.2+(D16+D17)*12*1.2/EE!J9 -> 177.4872891 | E54: =+EE!K13*(E12+E14)*1.2+(E16+E17)*12*1.2/EE!K9 -> 194.2242392 | F54: =+EE!L13*(F12+F14)*1.2+(F16+F17)*12*1.2/EE!L9 -> 201.3612705 | G54: =+EE!M13*(G12+G14)*1.2+(G16+G17)*12*1.2/EE!M9 -> 201.3612705 | H54: =+EE!N13*(H12+H14)*1.2+(H16+H17)*12*1.2/EE!N9 -> 201.3612705 | I54: =+EE!O13*(I12+I14)*1.2+(I16+I17)*12*1.2/EE!O9 -> 209.4157213 | J54: =+EE!P13*(J12+J14)*1.2+(J16+J17)*12*1.2/EE!P9 -> 209.4157213 | K54: =+EE!Q13*(K12+K14)*1.2+(K16+K17)*12*1.2/EE!Q9 -> 226.415681
A55: Vee- ja kanalisatsiooniteenuse eest makstava kulu osakaal leibkonnaliikme netosissetulekust | B55: % | C55: =+C54/C53 -> 0.01961596221 | D55: 0.01925114662 | E55: 0.02064737663 | F55: 0.02098019381 | G55: 0.02056276888 | H55: 0.02015364891 | I55: 0.02054277538 | J55: 0.02013405274 | K55: 0.02133538579
A56: VEEMAJANDUSALASE TEGEVUSE FINANTSILINE JÄTKUSUUTLIKKUS
A57: Jätkusuutlikkuse analüüs | B57: Ühik | C57: =+C$1 -> 2023 | D57: 2024 | E57: 2025 | F57: 2026 | G57: 2027 | H57: 2028 | I57: 2029 | J57: 2030 | K57: 2031
A58: Toetus (KIK) | B58: EUR | C58: =+Rahastamiseelarve!I89 -> 297376.625 | D58: =+Rahastamiseelarve!J89 -> 0 | E58: =+Rahastamiseelarve!K89 -> 0 | F58: =+Rahastamiseelarve!L89 -> 0 | G58: =+Rahastamiseelarve!M89 -> 0 | H58: =+Rahastamiseelarve!N89 -> 0 | I58: =+Rahastamiseelarve!O89 -> 0 | J58: =+Rahastamiseelarve!P89 -> 0 | K58: =+Rahastamiseelarve!Q89 -> 0
A59: Omavahendid | B59: EUR | C59: 0 | D59: 0 | E59: 0 | F59: 0 | G59: 0 | H59: 0 | I59: 0 | J59: 0 | K59: 0
A60: Võetav laen/Kap.rent | B60: EUR | C60: =+Rahastamiseelarve!I88 -> 90000 | D60: =+Rahastamiseelarve!J88 -> 54433.5646 | E60: =+Rahastamiseelarve!K88 -> 70011.75809 | F60: =+Rahastamiseelarve!L88 -> 113011.7581 | G60: =+Rahastamiseelarve!M88 -> 135011.7581 | H60: =+Rahastamiseelarve!N88 -> 125011.7581 | I60: =+Rahastamiseelarve!O88 -> 120011.7581 | J60: =+Rahastamiseelarve!P88 -> 129011.7581 | K60: =+Rahastamiseelarve!Q88 -> 49167
A61: Kolmandate osapoolte toetus | B61: EUR | C61: =+Rahastamiseelarve!I87 -> 70000 | D61: =+Rahastamiseelarve!J87 -> 70000 | E61: =+Rahastamiseelarve!K87 -> 70000 | F61: =+Rahastamiseelarve!L87 -> 70000 | G61: =+Rahastamiseelarve!M87 -> 70000 | H61: =+Rahastamiseelarve!N87 -> 70000 | I61: =+Rahastamiseelarve!O87 -> 70000 | J61: =+Rahastamiseelarve!P87 -> 70000 | K61: =+Rahastamiseelarve!Q87 -> 70000
A62: Tegevustulud (s.h.muud tulud) | B62: EUR | C62: =C36 -> 396086.5913 | D62: 412372.6698 | E62: 456321.472 | F62: 478922.9444 | G62: 479130.6195 | H62: 479342.5105 | I62: 498306.4095 | J62: 498526.9909 | K62: 581230.4658
A63: Kokku laekumised | B63: EUR | C63: =SUM(C58:C62) -> 853463.2163 | D63: 536806.2344 | E63: 596333.2301 | F63: 661934.7025 | G63: 684142.3776 | H63: 674354.2686 | I63: 688318.1676 | J63: 697538.749 | K63: 700397.4658
A64: Kokku investeeringud | B64: EUR | C64: =+Rahastamiseelarve!I82 -> 466073.75 | D64: =+Rahastamiseelarve!J82 -> 248253.125 | E64: =+Rahastamiseelarve!K82 -> 248253.125 | F64: =+Rahastamiseelarve!L82 -> 248253.125 | G64: =+Rahastamiseelarve!M82 -> 248253.125 | H64: =+Rahastamiseelarve!N82 -> 248253.125 | I64: =+Rahastamiseelarve!O82 -> 248253.125 | J64: =+Rahastamiseelarve!P82 -> 248253.125 | K64: =+Rahastamiseelarve!Q82 -> 248253.125
A65: Intressikulud | B65: EUR | C65: =+LAEN!M7+LAEN!M14+LAEN!M21+LAEN!M28 -> 9274.025 | D65: =+LAEN!N7+LAEN!N14+LAEN!N21+LAEN!N28 -> 9456.209779 | E65: =+LAEN!O7+LAEN!O14+LAEN!O21+LAEN!O28 -> 9468.332557 | F65: =+LAEN!P7+LAEN!P14+LAEN!P21+LAEN!P28 -> 9807.67988 | G65: =+LAEN!Q7+LAEN!Q14+LAEN!Q21+LAEN!Q28 -> 10496.08236 | H65: =+LAEN!R7+LAEN!R14+LAEN!R21+LAEN!R28 -> 11239.40248 | I65: =+LAEN!S7+LAEN!S14+LAEN!S21+LAEN!S28 -> 11865.14026 | J65: =+LAEN!T7+LAEN!T14+LAEN!T21+LAEN!T28 -> 12545.27069 | K65: =+LAEN!U7+LAEN!U14+LAEN!U21+LAEN!U28 -> 12810.76403
A66: Laenude tagasimaksmine | B66: EUR | C66: =+LAEN!M4+LAEN!M11+LAEN!M18+LAEN!M25 -> 55392 | D66: =+LAEN!N4+LAEN!N11+LAEN!N18+LAEN!N25 -> 59892 | E66: =+LAEN!O4+LAEN!O11+LAEN!O18+LAEN!O25 -> 62613.67823 | F66: =+LAEN!P4+LAEN!P11+LAEN!P18+LAEN!P25 -> 66114.26613 | G66: =+LAEN!Q4+LAEN!Q11+LAEN!Q18+LAEN!Q25 -> 71764.85404 | H66: =+LAEN!R4+LAEN!R11+LAEN!R18+LAEN!R25 -> 69327.44194 | I66: =+LAEN!S4+LAEN!S11+LAEN!S18+LAEN!S25 -> 75578.02985 | J66: =+LAEN!T4+LAEN!T11+LAEN!T18+LAEN!T25 -> 64624.61775 | K66: =+LAEN!U4+LAEN!U11+LAEN!U18+LAEN!U25 -> 71075.20566
A67: Tegevuskulud | B67: EUR | C67: =C47 -> 310384.7367 | D67: 320495.4264 | E67: 328416.6727 | F67: 336718.5577 | G67: 343553.9562 | H67: 350528.1169 | I67: 357643.8572 | J67: 364904.0519 | K67: 376113.3109
A68: Kokku väljamaksed | B68: EUR | C68: =SUM(C64:C67) -> 841124.5117 | D68: 638096.7612 | E68: 648751.8085 | F68: 660893.6287 | G68: 674068.0176 | H68: 679348.0863 | I68: 693340.1523 | J68: 690327.0653 | K68: 708252.4056
A69: Kokku rahavoog | B69: EUR | C69: =C63-C68 -> 12338.70466 | D69: -101290.5268 | E69: -52418.5784 | F69: 1041.073817 | G69: 10074.36004 | H69: -4993.817674 | I69: -5021.984697 | J69: 7211.683698 | K69: -7854.939723
A70: Kumulatiivne rahavoog | B70: EUR | C70: ='2020_2022_FIN(ERALDI)'!E167+C69 -> 173546.8941 | D70: =C70+D69 -> 72256.3673 | E70: 19837.7889 | F70: 20878.86271 | G70: 30953.22276 | H70: 25959.40508 | I70: 20937.42039 | J70: 28149.10408 | K70: 20294.16436
A71: DSCR | C71: =+C48/SUM(C65:C66) -> 1.325299563 | D71: 1.32486828 | E71: 1.774434396 | F71: 1.873034007 | G71: 1.648129347 | H71: 1.598851172 | I71: 1.608616798 | J71: 1.731542468 | K71: 2.445190247

Sheet Kulum&INV
A1: Vana Haljala valla piirkond (Haljala, Essu ja Aaspere)
A2: Kulumi arvestus (jooksevhinnas) | B2: Kulum
B3: Ühik | C3: =+EE!E2 -> 2019 | D3: =+EE!F2 -> 2020 | E3: =+EE!G2 -> 2021 | F3: =+EE!H2 -> 2022 | G3: =+EE!I2 -> 2023 | H3: =+EE!J2 -> 2024 | I3: =+EE!K2 -> 2025 | J3: =+EE!L2 -> 2026 | K3: =+EE!M2 -> 2027 | L3: =+EE!N2 -> 2028 | M3: =+EE!O2 -> 2029 | N3: =+EE!P2 -> 2030 | O3: =+EE!Q2 -> 2031
A4: Kategooria
A5: Olemasoleva põhivara kulum
A6: Omavahendite arvelt soetatud pv | B6: tuh EUR | D6: =+SUMIFS(PV!P:P,PV!$N:$N,1) -> 15985.99038 | E6: =+SUMIFS(PV!Q:Q,PV!$N:$N,1) -> 12311.77038 | F6: =+SUMIFS(PV!R:R,PV!$N:$N,1) -> 11631.77038 | G6: =+SUMIFS(PV!S:S,PV!$N:$N,1) -> 11291.77038 | H6: =+SUMIFS(PV!T:T,PV!$N:$N,1) -> 11127.26123 | I6: =+SUMIFS(PV!U:U,PV!$N:$N,1) -> 10739.83059 | J6: =+SUMIFS(PV!V:V,PV!$N:$N,1) -> 10151.25301 | K6: =+SUMIFS(PV!W:W,PV!$N:$N,1) -> 9725.586134 | L6: =+SUMIFS(PV!X:X,PV!$N:$N,1) -> 8572.351324 | M6: =+SUMIFS(PV!Y:Y,PV!$N:$N,1) -> 8082.896104 | N6: =+SUMIFS(PV!Z:Z,PV!$N:$N,1) -> 7235.232194 | O6: =+SUMIFS(PV!AA:AA,PV!$N:$N,1) -> 7221.750194
A7: ÜVK AK INV PR seotud põhivara kulum
A8: Omavahendite arvelt soetatud pv | B8: tuh EUR | D8: =+Rahastamiseelarve!F94 -> 0 | E8: =+Rahastamiseelarve!G94 -> 0 | F8: =+Rahastamiseelarve!H94 -> 0 | G8: =+Rahastamiseelarve!I94 -> 0 | H8: =+Rahastamiseelarve!J94 -> 3895.833333 | I8: =+Rahastamiseelarve!K94 -> 7275.838542 | J8: =+Rahastamiseelarve!L94 -> 10655.84375 | K8: =+Rahastamiseelarve!M94 -> 14035.84896 | L8: =+Rahastamiseelarve!N94 -> 17415.85417 | M8: =+Rahastamiseelarve!O94 -> 20795.85938 | N8: =+Rahastamiseelarve!P94 -> 24175.86458 | O8: =+Rahastamiseelarve!Q94 -> 27555.86979
A9: KULUM KOKKU
A10: Omavahendite arvelt soetatud pv | B10: tuh EUR | D10: =+D6+D8 -> 15985.99038 | E10: 12311.77038 | F10: 11631.77038 | G10: 11291.77038 | H10: 15023.09457 | I10: 18015.66914 | J10: 20807.09676 | K10: 23761.43509 | L10: 25988.20549 | M10: 28878.75548 | N10: 31411.09678 | O10: 34777.61999
A12: Investeeringute arvestus (jooksevhinnas) | B12: Investeeringud
B13: Ühik | C13: =+C3 -> 2019 | D13: 2020 | E13: 2021 | F13: 2022 | G13: 2023 | H13: 2024 | I13: 2025 | J13: 2026 | K13: 2027 | L13: 2028 | M13: 2029 | N13: 2030 | O13: 2031
A14: Kategooria | C14: 0 | D14: 0 | E14: 0 | F14: 0
A15: Olemasoleva põhivara asendamine | B15: tuh EUR | D15: =+SUM(D16:D17) -> 0 | E15: 0 | F15: 0 | G15: 0 | H15: 0 | I15: 0 | J15: 0 | K15: 0 | L15: 0 | M15: 0 | N15: 0 | O15: =+SUM(O16:O17) -> 0
A16: Omavahendite arvelt soetatud pv | B16: tuh EUR
A17: Toetuste abil soetatud pv | B17: tuh EUR | D17: 0 | E17: 0 | F17: 0 | G17: 0 | H17: 0 | I17: 0 | J17: 0 | K17: 0 | L17: 0 | M17: 0 | N17: 0 | O17: 0
A18: ÜVK AK INV PR seonduvalt | B18: tuh EUR | D18: =+SUM(D19:D20) -> 21250 | E18: 21250 | F18: 21250 | G18: 21250 | H18: 124054.375 | I18: 124054.375 | J18: 124054.375 | K18: 124054.375 | L18: 124054.375 | M18: 124054.375 | N18: 124054.375 | O18: =+SUM(O19:O20) -> 124054.375
A19: Omavahendite arvelt soetatud pv | B19: tuh EUR | D19: =+Rahastamiseelarve!F5+Rahastamiseelarve!F13+Rahastamiseelarve!F21 -> 21250 | E19: =+Rahastamiseelarve!G5+Rahastamiseelarve!G13+Rahastamiseelarve!G21 -> 21250 | F19: =+Rahastamiseelarve!H5+Rahastamiseelarve!H13+Rahastamiseelarve!H21 -> 21250 | G19: =+Rahastamiseelarve!I5+Rahastamiseelarve!I13+Rahastamiseelarve!I21 -> 21250 | H19: =+Rahastamiseelarve!J5+Rahastamiseelarve!J13+Rahastamiseelarve!J21 -> 124054.375 | I19: =+Rahastamiseelarve!K5+Rahastamiseelarve!K13+Rahastamiseelarve!K21 -> 124054.375 | J19: =+Rahastamiseelarve!L5+Rahastamiseelarve!L13+Rahastamiseelarve!L21 -> 124054.375 | K19: =+Rahastamiseelarve!M5+Rahastamiseelarve!M13+Rahastamiseelarve!M21 -> 124054.375 | L19: =+Rahastamiseelarve!N5+Rahastamiseelarve!N13+Rahastamiseelarve!N21 -> 124054.375 | M19: =+Rahastamiseelarve!O5+Rahastamiseelarve!O13+Rahastamiseelarve!O21 -> 124054.375 | N19: =+Rahastamiseelarve!P5+Rahastamiseelarve!P13+Rahastamiseelarve!P21 -> 124054.375 | O19: =+Rahastamiseelarve!Q5+Rahastamiseelarve!Q13+Rahastamiseelarve!Q21 -> 124054.375
A20: Toetuste abil soetatud pv | B20: tuh EUR | D20: =+Rahastamiseelarve!F9+Rahastamiseelarve!F17+Rahastamiseelarve!F25 -> 0 | E20: =+Rahastamiseelarve!G9+Rahastamiseelarve!G17+Rahastamiseelarve!G25 -> 0 | F20: =+Rahastamiseelarve!H9+Rahastamiseelarve!H17+Rahastamiseelarve!H25 -> 0 | G20: =+Rahastamiseelarve!I9+Rahastamiseelarve!I17+Rahastamiseelarve!I25 -> 0 | H20: =+Rahastamiseelarve!J9+Rahastamiseelarve!J17+Rahastamiseelarve!J25 -> 0 | I20: =+Rahastamiseelarve!K9+Rahastamiseelarve!K17+Rahastamiseelarve!K25 -> 0 | J20: =+Rahastamiseelarve!L9+Rahastamiseelarve!L17+Rahastamiseelarve!L25 -> 0 | K20: =+Rahastamiseelarve!M9+Rahastamiseelarve!M17+Rahastamiseelarve!M25 -> 0 | L20: =+Rahastamiseelarve!N9+Rahastamiseelarve!N17+Rahastamiseelarve!N25 -> 0 | M20: =+Rahastamiseelarve!O9+Rahastamiseelarve!O17+Rahastamiseelarve!O25 -> 0 | N20: =+Rahastamiseelarve!P9+Rahastamiseelarve!P17+Rahastamiseelarve!P25 -> 0 | O20: =+Rahastamiseelarve!Q9+Rahastamiseelarve!Q17+Rahastamiseelarve!Q25 -> 0
A21: INESTEERINGUD KOKKU | B21: tuh EUR | D21: =D15+D18 -> 21250 | E21: 21250 | F21: 21250 | G21: 21250 | H21: 124054.375 | I21: 124054.375 | J21: 124054.375 | K21: 124054.375 | L21: 124054.375 | M21: 124054.375 | N21: 124054.375 | O21: =O15+O18 -> 124054.375
A22: Omavahendite arvelt soetatud pv | B22: tuh EUR | D22: =+D16+D19 -> 21250 | E22: 21250 | F22: 21250 | G22: 21250 | H22: 124054.375 | I22: 124054.375 | J22: 124054.375 | K22: 124054.375 | L22: 124054.375 | M22: 124054.375 | N22: 124054.375 | O22: =+O16+O19 -> 124054.375
A23: Toetuste abil soetatud pv | B23: tuh EUR | D23: 0 | E23: 0 | F23: 0 | G23: 0 | H23: 0 | I23: 0 | J23: 0 | K23: 0 | L23: 0 | M23: 0 | N23: 0 | O23: =+O17+O20 -> 0
A25: KA põhjendatud tulukuse arvestus | B25: Ühik | C25: =+C13 -> 2019 | D25: =+D13 -> 2020 | E25: 2021 | F25: 2022
A26: OF soetatud PV jääkväärtus | B26: tuh EUR | C26: =+SUMIFS(PV!M:M,PV!N:N,1) -> 275490.83 | D26: =+C26+D22-D10 -> 280754.8396 | E26: 289693.0692 | F26: 299311.2988
A27: Käibekapital | B27: tuh EUR | D27: =5%*D30 -> 9390.219537 | E27: 8954.502432 | F27: 9109.205814
A28: Põhjendatud tulukus (regul.vara*WACC) | B28: tuh EUR | D28: =+(D26+D27)*4.81% -> 13955.97735 | E28: =+(E26+E27)*4.81% -> 14364.9482 | F28: 14835.02627
A29: Lubatud müügitulu | B29: tuh EUR | D29: =+D28+D10+'2020_2022_FIN(ERALDI)'!C47 -> 187804.3656 | E29: =+E28+E10+'2020_2022_FIN(ERALDI)'!D47 -> 179091.082 | F29: =+F28+F10+'2020_2022_FIN(ERALDI)'!E47 -> 182185.1675
A30: Lubatud müügitulu | B30: tuh EUR | D30: 187804.3907 | E30: 179090.0486 | F30: 182184.1163
A31: Prognoositud müügitulu | B31: tuh EUR | D31: =+'2020_2022_FIN(ERALDI)'!C36 -> 149737.3448 | E31: =+'2020_2022_FIN(ERALDI)'!D36 -> 173356.8292 | F31: =+'2020_2022_FIN(ERALDI)'!E36 -> 174509.5501
A32: VAHE PROGNOOSITUD TULUDEGA | B32: tuh EUR | D32: =+D29-D31 -> 38067.02084 | E32: 5734.252841 | F32: 7675.617449
A33: Vana Vihula valla piirkond (Võsu, Käsmu, Vergi, Vihula ja Võsupere)
A34: Kulumi arvestus (jooksevhinnas) | B34: Kulum
B35: Ühik | C35: =+C3 -> 2019 | D35: 2020 | E35: 2021 | F35: 2022 | G35: 2023 | H35: 2024 | I35: 2025 | J35: 2026 | K35: 2027 | L35: 2028 | M35: 2029 | N35: 2030 | O35: 2031
A36: Kategooria
A37: Olemasoleva põhivara kulum | B37: tuh EUR
A38: Omavahendite arvelt soetatud pv | B38: tuh EUR | D38: =+SUMIFS(PV!P:P,PV!$N:$N,2) -> 32922.5873 | E38: =+SUMIFS(PV!Q:Q,PV!$N:$N,2) -> 32922.5873 | F38: =+SUMIFS(PV!R:R,PV!$N:$N,2) -> 32922.5873 | G38: =+SUMIFS(PV!S:S,PV!$N:$N,2) -> 32922.5873 | H38: =+SUMIFS(PV!T:T,PV!$N:$N,2) -> 32922.5873 | I38: =+SUMIFS(PV!U:U,PV!$N:$N,2) -> 32922.5873 | J38: =+SUMIFS(PV!V:V,PV!$N:$N,2) -> 32922.5873 | K38: =+SUMIFS(PV!W:W,PV!$N:$N,2) -> 32922.5873 | L38: =+SUMIFS(PV!X:X,PV!$N:$N,2) -> 32922.5873 | M38: =+SUMIFS(PV!Y:Y,PV!$N:$N,2) -> 32443.7873 | N38: =+SUMIFS(PV!Z:Z,PV!$N:$N,2) -> 31682.6783 | O38: =+SUMIFS(PV!AA:AA,PV!$N:$N,2) -> 31682.6783
A39: ÜVK AK INV PR seotud põhivara kulum | B39: tuh EUR
A40: Omavahendite arvelt soetatud pv | B40: tuh EUR | D40: =+Rahastamiseelarve!F95 -> 0 | E40: =+Rahastamiseelarve!G95 -> 0 | F40: =+Rahastamiseelarve!H95 -> 19101.2625 | G40: =+Rahastamiseelarve!I95 -> 19101.2625 | H40: =+Rahastamiseelarve!J95 -> 29765.28542 | I40: =+Rahastamiseelarve!K95 -> 33365.04583 | J40: =+Rahastamiseelarve!L95 -> 36964.80625 | K40: =+Rahastamiseelarve!M95 -> 40564.56667 | L40: =+Rahastamiseelarve!N95 -> 44164.32708 | M40: =+Rahastamiseelarve!O95 -> 47764.0875 | N40: =+Rahastamiseelarve!P95 -> 51363.84792 | O40: =+Rahastamiseelarve!Q95 -> 54963.60833
A41: KULUM KOKKU | B41: tuh EUR
A42: Omavahendite arvelt soetatud pv | B42: tuh EUR | D42: =+D38+D40 -> 32922.5873 | E42: 32922.5873 | F42: 52023.8498 | G42: 52023.8498 | H42: 62687.87272 | I42: 66287.63313 | J42: 69887.39355 | K42: 73487.15397 | L42: 77086.91438 | M42: 80207.8748 | N42: 83046.52622 | O42: 86646.28663
A44: Investeeringute arvestus (jooksevhinnas) | B44: Investeeringud
B45: Ühik | C45: =+C35 -> 2019 | D45: 2020 | E45: 2021 | F45: 2022 | G45: 2023 | H45: 2024 | I45: 2025 | J45: 2026 | K45: 2027 | L45: 2028 | M45: 2029 | N45: 2030 | O45: 2031
A46: Kategooria
A47: Olemasoleva põhivara asendamine | B47: tuh EUR | D47: =+SUM(D48:D49) -> 0 | E47: 0 | F47: 0 | G47: 0 | H47: 0 | I47: 0 | J47: 0 | K47: 0 | L47: 0 | M47: 0 | N47: 0 | O47: 0
A48: Omavahendite arvelt soetatud pv | B48: tuh EUR
A49: Toetuste abil soetatud pv | B49: tuh EUR | D49: 0 | E49: 0 | F49: 0 | G49: 0 | H49: 0 | I49: 0 | J49: 0 | K49: 0 | L49: 0 | M49: 0 | N49: 0 | O49: 0
A50: ÜVK AK INV PR seonduvalt | B50: tuh EUR | D50: =+SUM(D51:D52) -> 20000 | E50: 1949610 | F50: 444823.75 | G50: 444823.75 | H50: 124198.75 | I50: 124198.75 | J50: 124198.75 | K50: 124198.75 | L50: 124198.75 | M50: 124198.75 | N50: 124198.75 | O50: 124198.75
A51: Omavahendite arvelt soetatud pv | B51: tuh EUR | D51: =+Rahastamiseelarve!F29+Rahastamiseelarve!F37+Rahastamiseelarve!F45+Rahastamiseelarve!F53+Rahastamiseelarve!F61 -> 20000 | E51: =+Rahastamiseelarve!G29+Rahastamiseelarve!G37+Rahastamiseelarve!G45+Rahastamiseelarve!G53+Rahastamiseelarve!G61 -> 784050.5 | F51: =+Rahastamiseelarve!H29+Rahastamiseelarve!H37+Rahastamiseelarve!H45+Rahastamiseelarve!H53+Rahastamiseelarve!H61 -> 147447.125 | G51: =+Rahastamiseelarve!I29+Rahastamiseelarve!I37+Rahastamiseelarve!I45+Rahastamiseelarve!I53+Rahastamiseelarve!I61 -> 147447.125 | H51: =+Rahastamiseelarve!J29+Rahastamiseelarve!J37+Rahastamiseelarve!J45+Rahastamiseelarve!J53+Rahastamiseelarve!J61 -> 124198.75 | I51: =+Rahastamiseelarve!K29+Rahastamiseelarve!K37+Rahastamiseelarve!K45+Rahastamiseelarve!K53+Rahastamiseelarve!K61 -> 124198.75 | J51: =+Rahastamiseelarve!L29+Rahastamiseelarve!L37+Rahastamiseelarve!L45+Rahastamiseelarve!L53+Rahastamiseelarve!L61 -> 124198.75 | K51: =+Rahastamiseelarve!M29+Rahastamiseelarve!M37+Rahastamiseelarve!M45+Rahastamiseelarve!M53+Rahastamiseelarve!M61 -> 124198.75 | L51: =+Rahastamiseelarve!N29+Rahastamiseelarve!N37+Rahastamiseelarve!N45+Rahastamiseelarve!N53+Rahastamiseelarve!N61 -> 124198.75 | M51: =+Rahastamiseelarve!O29+Rahastamiseelarve!O37+Rahastamiseelarve!O45+Rahastamiseelarve!O53+Rahastamiseelarve!O61 -> 124198.75 | N51: =+Rahastamiseelarve!P29+Rahastamiseelarve!P37+Rahastamiseelarve!P45+Rahastamiseelarve!P53+Rahastamiseelarve!P61 -> 124198.75 | O51: =+Rahastamiseelarve!Q29+Rahastamiseelarve!Q37+Rahastamiseelarve!Q45+Rahastamiseelarve!Q53+Rahastamiseelarve!Q61 -> 124198.75
A52: Toetuste abil soetatud pv | B52: tuh EUR | D52: =+Rahastamiseelarve!F33+Rahastamiseelarve!F41+Rahastamiseelarve!F49+Rahastamiseelarve!F57+Rahastamiseelarve!F65 -> 0 | E52: =+Rahastamiseelarve!G33+Rahastamiseelarve!G41+Rahastamiseelarve!G49+Rahastamiseelarve!G57+Rahastamiseelarve!G65 -> 1165559.5 | F52: =+Rahastamiseelarve!H33+Rahastamiseelarve!H41+Rahastamiseelarve!H49+Rahastamiseelarve!H57+Rahastamiseelarve!H65 -> 297376.625 | G52: =+Rahastamiseelarve!I33+Rahastamiseelarve!I41+Rahastamiseelarve!I49+Rahastamiseelarve!I57+Rahastamiseelarve!I65 -> 297376.625 | H52: =+Rahastamiseelarve!J33+Rahastamiseelarve!J41+Rahastamiseelarve!J49+Rahastamiseelarve!J57+Rahastamiseelarve!J65 -> 0 | I52: =+Rahastamiseelarve!K33+Rahastamiseelarve!K41+Rahastamiseelarve!K49+Rahastamiseelarve!K57+Rahastamiseelarve!K65 -> 0 | J52: =+Rahastamiseelarve!L33+Rahastamiseelarve!L41+Rahastamiseelarve!L49+Rahastamiseelarve!L57+Rahastamiseelarve!L65 -> 0 | K52: =+Rahastamiseelarve!M33+Rahastamiseelarve!M41+Rahastamiseelarve!M49+Rahastamiseelarve!M57+Rahastamiseelarve!M65 -> 0 | L52: =+Rahastamiseelarve!N33+Rahastamiseelarve!N41+Rahastamiseelarve!N49+Rahastamiseelarve!N57+Rahastamiseelarve!N65 -> 0 | M52: =+Rahastamiseelarve!O33+Rahastamiseelarve!O41+Rahastamiseelarve!O49+Rahastamiseelarve!O57+Rahastamiseelarve!O65 -> 0 | N52: =+Rahastamiseelarve!P33+Rahastamiseelarve!P41+Rahastamiseelarve!P49+Rahastamiseelarve!P57+Rahastamiseelarve!P65 -> 0 | O52: =+Rahastamiseelarve!Q33+Rahastamiseelarve!Q41+Rahastamiseelarve!Q49+Rahastamiseelarve!Q57+Rahastamiseelarve!Q65 -> 0
A53: INESTEERINGUD KOKKU | B53: tuh EUR | D53: =D47+D50 -> 20000 | E53: 1949610 | F53: 444823.75 | G53: 444823.75 | H53: 124198.75 | I53: 124198.75 | J53: 124198.75 | K53: 124198.75 | L53: 124198.75 | M53: 124198.75 | N53: 124198.75 | O53: 124198.75
A54: Omavahendite arvelt soetatud pv | B54: tuh EUR | D54: =+D48+D51 -> 20000 | E54: 784050.5 | F54: 147447.125 | G54: 147447.125 | H54: 124198.75 | I54: 124198.75 | J54: 124198.75 | K54: 124198.75 | L54: 124198.75 | M54: 124198.75 | N54: 124198.75 | O54: 124198.75
A55: Toetuste abil soetatud pv | B55: tuh EUR | D55: =+D49+D52 -> 0 | E55: 1165559.5 | F55: 297376.625 | G55: 297376.625 | H55: 0 | I55: 0 | J55: 0 | K55: 0 | L55: 0 | M55: 0 | N55: 0 | O55: 0
A57: KA põhjendatud tulukuse arvestus | B57: Ühik | C57: =+C45 -> 2019 | D57: =+D45 -> 2020 | E57: 2021 | F57: 2022
A58: OF soetatud PV jääkväärtus | B58: tuh EUR | C58: =+SUMIFS(PV!M:M,PV!N:N,2) -> 889052.01 | D58: =+C58+D54-D42 -> 876129.4227 | E58: 1627257.335 | F58: 1722680.611
A59: Käibekapital | B59: tuh EUR | D59: =5%*D62 -> 10677.47032 | E59: 12667.53573 | F59: 14152.86709
A60: Põhjendatud tulukus (regul.vara*WACC) | B60: tuh EUR | D60: =+(D58+D59)*4.81% -> 42655.41155 | E60: =+(E58+E59)*4.81% -> 78880.3863 | F60: 83541.69028
A61: Lubatud müügitulu | B61: tuh EUR | D61: =+D60+D42+'2020_2022_FIN(ERALDI)'!C117 -> 213553.0173 | E61: =+E60+E42+'2020_2022_FIN(ERALDI)'!D117 -> 253960.023 | F61: =+F60+F42+'2020_2022_FIN(ERALDI)'!E117 -> 283738.0948
A62: Lubatud müügitulu | B62: tuh EUR | D62: 213549.4063 | E62: 253350.7145 | F62: 283057.3419
A63: Prognoositud müügitulu | B63: tuh EUR | D63: =+'2020_2022_FIN(ERALDI)'!C106 -> 181249.2854 | E63: =+'2020_2022_FIN(ERALDI)'!D106 -> 185739.4056 | F63: =+'2020_2022_FIN(ERALDI)'!E106 -> 204377.387
A64: VAHE PROGNOOSITUD TULUDEGA | B64: tuh EUR | D64: =+D61-D63 -> 32303.73192 | E64: 68220.61741 | F64: 79360.70775
A65: KOKKU KOGU PIIRKOND JA ÜHTNE HIND
A66: KA põhjendatud tulukuse arvestus | B66: Ühik | C66: 2019 | D66: 2020 | E66: 2021 | F66: 2022 | G66: 2023 | H66: 2024 | I66: 2025 | J66: 2026 | K66: 2027 | L66: 2028 | M66: 2029 | N66: 2030 | O66: 2031
A67: OF soetatud PV jääkväärtus | B67: tuh EUR | C67: =+C58+C26 -> 1164542.84 | D67: =+C67+D22-D10+D54-D42 -> 1156884.262 | E67: =+D67+E22-E10+E54-E42 -> 1916950.405 | F67: =+E67+F22-F10+F54-F42 -> 2021991.909 | G67: =+F67+G22-G10+G54-G42 -> 2127373.414 | H67: 2297915.572 | I67: 2461865.395 | J67: 2619424.029 | K67: 2770428.565 | L67: 2915606.57 | M67: 3054773.065 | N67: 3188568.567 | O67: 3315397.786
A68: Käibekapital | B68: tuh EUR | D68: =5%*D71 -> 20068.21236 | E68: 21652.63231 | F68: 23296.24841 | G68: 23858.73336 | H68: 25498.13156 | I68: 26620.80991 | J68: 27737.07661 | K68: 28772.20691 | L68: 29763.77936 | M68: 30757.22659 | N68: 31712.86248 | O68: 32929.58996
A69: Põhjendatud tulukus (regul.vara*WACC) | B69: tuh EUR | D69: =+(D67+D68)*4.81% -> 56611.41403 | E69: =+(E67+E68)*4.81% -> 93246.80608 | F69: 98378.36039 | G69: 103474.2663 | H69: 111756.1991 | I69: 119696.1864 | J69: 127328.4492 | K69: 134641.5571 | L69: 141672.3138 | M69: 148414.007 | N69: 154895.5368 | O69: 161054.5468
A70: Lubatud müügitulu | B70: tuh EUR | D70: =+D69+D42+D10+'2020_2022_FIN(ERALDI)'!C164 -> 401357.408 | E70: =+E69+E42+E10+'2020_2022_FIN(ERALDI)'!D164 -> 433052.5766 | F70: =+F69+F42+F10+'2020_2022_FIN(ERALDI)'!E164 -> 465924.9061 | G70: =+G69+G42+G10+'2023_2031_FIN (ÜHTNE)'!C67 -> 477174.6231 | H70: =+H69+H42+H10+'2023_2031_FIN (ÜHTNE)'!D67 -> 509962.5928 | I70: =+I69+I42+I10+'2023_2031_FIN (ÜHTNE)'!E67 -> 532416.1614 | J70: =+J69+J42+J10+'2023_2031_FIN (ÜHTNE)'!F67 -> 554741.4972 | K70: =+K69+K42+K10+'2023_2031_FIN (ÜHTNE)'!G67 -> 575444.1024 | L70: =+L69+L42+L10+'2023_2031_FIN (ÜHTNE)'!H67 -> 595275.5506 | M70: =+M69+M42+M10+'2023_2031_FIN (ÜHTNE)'!I67 -> 615144.4945 | N70: =+N69+N42+N10+'2023_2031_FIN (ÜHTNE)'!J67 -> 634257.2116 | O70: =+O69+O42+O10+'2023_2031_FIN (ÜHTNE)'!K67 -> 658591.7643
A71: Lubatud müügitulu | B71: tuh EUR | D71: 401364.2472 | E71: 433052.6462 | F71: 465924.9683 | G71: 477174.6673 | H71: 509962.6312 | I71: 532416.1982 | J71: 554741.5323 | K71: 575444.1382 | L71: 595275.5871 | M71: 615144.5318 | N71: 634257.2496 | O71: 658591.7992
A72: Prognoositud müügitulu | B72: tuh EUR | D72: =+'2020_2022_FIN(ERALDI)'!C159 -> 330986.6301 | E72: =+'2020_2022_FIN(ERALDI)'!D159 -> 359096.2347 | F72: =+'2020_2022_FIN(ERALDI)'!E159 -> 378886.9371 | G72: =+'2023_2031_FIN (ÜHTNE)'!C62 -> 396086.5913 | H72: =+'2023_2031_FIN (ÜHTNE)'!D62 -> 412372.6698 | I72: =+'2023_2031_FIN (ÜHTNE)'!E62 -> 456321.472 | J72: =+'2023_2031_FIN (ÜHTNE)'!F62 -> 478922.9444 | K72: =+'2023_2031_FIN (ÜHTNE)'!G62 -> 479130.6195 | L72: =+'2023_2031_FIN (ÜHTNE)'!H62 -> 479342.5105 | M72: =+'2023_2031_FIN (ÜHTNE)'!I62 -> 498306.4095 | N72: =+'2023_2031_FIN (ÜHTNE)'!J62 -> 498526.9909 | O72: =+'2023_2031_FIN (ÜHTNE)'!K62 -> 581230.4658
A73: VAHE PROGNOOSITUD TULUDEGA | B73: tuh EUR | D73: =+D70-D72 -> 70370.77789 | E73: 73956.34183 | F73: 87037.96904 | G73: 81088.03182 | H73: 97589.923 | I73: 76094.68942 | J73: 75818.55277 | K73: 96313.48286 | L73: 115933.04 | M73: 116838.085 | N73: 135730.2207 | O73: 77361.29842

Sheet Maksumus (hidden)
A1: Haljala valla ÜVK investeeringute maksumused
A2: Tegevus | B2: Ühikhind | C2: Haljala | D2: 0 | E2: Võsu | F2: 0 | G2: Essu | H2: 0 | I2: Aaspere | J2: 0 | K2: Käsmu | L2: 0 | M2: Võsupere | N2: 0 | O2: Vihula | P2: 0 | Q2: Vergi | R2: 0 | S2: KOKKU | T2: 0 | U2: 0
A3: 0 | B3: 0 | C3: I etapp | D3: II etapp | E3: I etapp | F3: II etapp | G3: I etapp | H3: II etapp | I3: I etapp | J3: II etapp | K3: I etapp | L3: II etapp | M3: I etapp | N3: II etapp | O3: I etapp | P3: II etapp | Q3: I etapp | R3: II etapp | S3: I etapp | T3: II etapp | U3: Kokku
A4: Veevarustus
A5: Veetorustiku rekonstrueerimine De40-110 | B5: 85 | C5: 0 | D5: 144585 | E5: 185274.5 | F5: 97495 | G5: 0 | H5: 0 | I5: 0 | J5: 0 | K5: 530060 | L5: 0 | M5: 0 | N5: 0 | O5: 0 | P5: 0 | Q5: 0 | R5: 0 | S5: =C5+E5+G5+I5+K5+M5+O5+Q5 -> 715334.5 | T5: =D5+F5+H5+J5+L5+N5+P5+R5 -> 242080 | U5: =SUM(S5:T5) -> 957414.5
A6: Veetorustiku rajamine De40-110 | B6: 80 | C6: 0 | D6: 54240 | E6: 102048 | F6: 210400 | G6: 0 | H6: 0 | I6: 0 | J6: 0 | K6: 27280 | L6: 0 | M6: 0 | N6: 0 | O6: 0 | P6: 0 | Q6: 0 | R6: 4160 | S6: =C6+E6+G6+I6+K6+M6+O6+Q6 -> 129328 | T6: 268800 | U6: =SUM(S6:T6) -> 398128
A7: Tuletõrjeveetorustiku rajamine De110 | B7: 75 | C7: 0 | D7: 0 | E7: 0 | F7: 0 | G7: 0 | H7: 0 | I7: 0 | J7: 0 | K7: 161325 | L7: 0 | M7: 0 | N7: 0 | O7: 0 | P7: 0 | Q7: 0 | R7: 0 | S7: 161325 | T7: 0 | U7: 161325
A8: Puurkaev-pumpla rek. | C8: 10000 | I8: 40000 | O8: 20000 | Q8: 30000 | S8: 100000 | T8: 0 | U8: 100000
A9: Puurkaev-pumpla likvideerimine | B9: 10000 | C9: 0 | D9: 0 | E9: 10000 | F9: 0 | G9: 0 | H9: 0 | I9: 0 | J9: 0 | K9: 0 | L9: 0 | M9: 0 | N9: 0 | O9: 0 | P9: 0 | Q9: 0 | R9: 0 | S9: 10000 | T9: 0 | U9: 10000
A10: Tuletõrjehüdrandi paigaldus | B10: 1200 | C10: 0 | D10: 2400 | E10: 4800 | F10: 22800 | G10: 0 | H10: 0 | I10: 0 | J10: 0 | K10: 13200 | L10: 0 | M10: 0 | N10: 0 | O10: 0 | P10: 0 | Q10: 0 | R10: 0 | S10: 18000 | T10: 25200 | U10: 43200
A11: Tuletõrjemahuti+hüdrandi paigaldus | B11: 30000 | C11: 0 | D11: 0 | E11: 0 | F11: 0 | G11: 0 | H11: 60000 | I11: 0 | J11: 60000 | K11: 60000 | L11: 0 | M11: 0 | N11: 0 | O11: 30000 | P11: 0 | Q11: 0 | R11: 90000 | S11: 90000 | T11: 210000 | U11: 300000
A12: Tuletõrjemahuti ja -pumba paigaldus | B12: 30000 | C12: 0 | D12: 0 | E12: 0 | F12: 0 | G12: 0 | H12: 0 | I12: 0 | J12: 0 | K12: 30000 | L12: 0 | M12: 0 | N12: 0 | O12: 0 | P12: 0 | Q12: 0 | R12: 0 | S12: 30000 | T12: 0 | U12: 30000
A18: Kanalisatsioon
A19: Isevoolse kanalisatsioonitorustiku rekonstrueerimine De160-200 | B19: 95 | C19: 0 | D19: 7695 | E19: 84835 | F19: 0 | G19: 0 | H19: 146775 | I19: 0 | J19: 114665 | K19: 0 | L19: 0 | M19: 0 | N19: 0 | O19: 0 | P19: 0 | Q19: 0 | R19: 0 | S19: =C19+E19+G19+I19+K19+M19+O19+Q19 -> 84835 | T19: =D19+F19+H19+J19+L19+N19+P19+R19 -> 269135 | U19: =SUM(S19:T19) -> 353970
A20: Isevoolse kanalisatsioonitorustiku rajamine De160-200 | B20: 85 | C20: 0 | D20: 119765 | E20: 168470 | F20: 102340 | G20: 0 | H20: 0 | I20: 0 | J20: 0 | K20: 133705 | L20: 0 | M20: 0 | N20: 19550 | O20: 0 | P20: 0 | Q20: 0 | R20: 159885 | S20: =C20+E20+G20+I20+K20+M20+O20+Q20 -> 302175 | T20: 401540 | U20: =SUM(S20:T20) -> 703715
A21: Survelise kanalisatsioonitorustiku rekonstrueerimine De110 | B21: 70 | C21: 0 | D21: 0 | E21: 1260 | F21: 16800 | G21: 0 | H21: 0 | I21: 0 | J21: 121730 | K21: 0 | L21: 0 | M21: 0 | N21: 0 | O21: 0 | P21: 0 | Q21: 0 | R21: 0 | S21: 1260 | T21: 138530 | U21: 139790
A22: Survelise kanalisatsioonitorustiku rajamine De110 | B22: 60 | C22: 0 | D22: 53580 | E22: 102960 | F22: 27960 | G22: 0 | H22: 0 | I22: 0 | J22: 0 | K22: 251160 | L22: 0 | M22: 0 | N22: 12600 | O22: 0 | P22: 0 | Q22: 0 | R22: 39600 | S22: 354120 | T22: 133740 | U22: 487860
A23: Kanalisatsiooni vaakumtorustiku rajamine | B23: 80 | C23: 0 | D23: 0 | E23: 0 | F23: 0 | G23: 0 | H23: 0 | I23: 0 | J23: 0 | K23: 300880 | L23: 0 | M23: 0 | N23: 0 | O23: 0 | P23: 0 | Q23: 0 | R23: 0 | S23: 300880 | T23: 0 | U23: 300880
A24: Kanalisatsiooni vaakumkaevu paigaldus | B24: 3000 | C24: 0 | D24: 0 | E24: 0 | F24: 0 | G24: 0 | H24: 0 | I24: 0 | J24: 0 | K24: 172000 | L24: 0 | M24: 0 | N24: 0 | O24: 0 | P24: 0 | Q24: 0 | R24: 0 | S24: 172000 | T24: 0 | U24: 172000
A25: Kanalisatsioonipumpla rekonstrueerimine | B25: 25000 | C25: 0 | D25: 0 | E25: 50000 | F25: 0 | G25: 0 | H25: 0 | I25: 25000 | J25: 0 | K25: 0 | L25: 0 | M25: 0 | N25: 0 | O25: 0 | P25: 0 | Q25: 0 | R25: 0 | S25: 75000 | T25: 0 | U25: 75000
A26: Kanalisatsioonipumpla rajamine | B26: 30000 | C26: 0 | D26: 90000 | E26: 90000 | F26: 60000 | G26: 0 | H26: 0 | I26: 0 | J26: 0 | K26: 0 | L26: 0 | M26: 0 | N26: 30000 | O26: 0 | P26: 0 | Q26: 0 | R26: 90000 | S26: 90000 | T26: 270000 | U26: 360000
A27: Kanalisatsiooni vaakumpumpla rajamine | B27: 250000 | C27: 0 | D27: 0 | E27: 0 | F27: 0 | G27: 0 | H27: 0 | I27: 0 | J27: 0 | K27: 250000 | L27: 0 | M27: 0 | N27: 0 | O27: 0 | P27: 0 | Q27: 0 | R27: 0 | S27: 250000 | T27: 0 | U27: 250000
A28: Kanalisatsioonipuhasti rekonstrueerimine | E28: 50000 | F28: 10000 | I28: 10000 | J28: 17000 | S28: 60000 | T28: 27000 | U28: 87000
A35: Kokku | B35: =SUM(B5:B34) -> 379830 | C35: =SUM(C5:C34) -> 10000 | D35: 472265 | E35: 849647.5 | F35: 547795 | G35: 0 | H35: 206775 | I35: 75000 | J35: 313395 | K35: =SUM(K5:K34) -> 1929610 | L35: 0 | M35: 0 | N35: 62150 | O35: 50000 | P35: 0 | Q35: 30000 | R35: 383645 | S35: 2944257.5 | T35: 1986025 | U35: 4930282.5
A36: Piirkond | C36: 1 | E36: 2 | G36: 1 | I36: 1 | K36: 2 | M36: 2 | O36: 2 | Q36: 2
A37: Sh seadmete maksumus | B37: EUR | C37: =+C8*$B$39+C9*$B$40+C12*$B$41+C25*$B$42+C26*$B$43+C27*$B$44+C28*$B$45 -> 5000 | D37: =+D8*$B$39+D9*$B$40+D12*$B$41+D25*$B$42+D26*$B$43+D27*$B$44+D28*$B$45 -> 45000 | E37: 100000 | F37: 35000 | G37: 0 | H37: 0 | I37: 37500 | J37: 8500 | K37: 140000 | L37: 0 | M37: 0 | N37: 15000 | O37: 10000 | P37: 0 | Q37: 15000 | R37: 45000 | S37: 307500 | T37: 148500 | U37: 456000
A38: Seadmete osakaal | B38: %
A39: Puurkaev-pumpla rek. | B39: 0.5
A40: Puurkaev-pumpla likvideerimine | B40: 0.5
A41: Tuletõrjemahuti ja -pumba paigaldus | B41: 0.5
A42: Kanalisatsioonipumpla rekonstrueerimine | B42: 0.5
A43: Kanalisatsioonipumpla rajamine | B43: 0.5
A44: Kanalisatsiooni vaakumpumpla rajamine | B44: 0.5
A45: Kanalisatsioonipuhasti rekonstrueerimine | B45: 0.5

Sheet Rahastamiseelarve
A1: Piirkond | B1: Projekti nimi | C1: I etapp | D1: II etapp | E1: KOKKU | F1: =+EE!F2 -> 2020 | G1: =+EE!G2 -> 2021 | H1: =+EE!H2 -> 2022 | I1: =+EE!I2 -> 2023 | J1: =+EE!J2 -> 2024 | K1: =+EE!K2 -> 2025 | L1: =+EE!L2 -> 2026 | M1: =+EE!M2 -> 2027 | N1: =+EE!N2 -> 2028 | O1: =+EE!O2 -> 2029 | P1: =+EE!P2 -> 2030 | Q1: =+EE!Q2 -> 2031
A2: Vana Haljala valla piirkonna projektid | B2: Haljala | C2: =+Maksumus!C35 -> 10000 | D2: =+Maksumus!D35 -> 472265 | E2: =+SUM(C2:D2) -> 482265 | F2: =+C2/4 -> 2500 | G2: =+F2 -> 2500 | H2: =+G2 -> 2500 | I2: 2500 | J2: =+$D2/8 -> 59033.125 | K2: =+$D2/8 -> 59033.125 | L2: 59033.125 | M2: 59033.125 | N2: 59033.125 | O2: 59033.125 | P2: 59033.125 | Q2: 59033.125 | R2: =+SUM(F2:Q2)=E2 -> TRUE
B3: sh abikõlblik kulu | C3: =+C2 -> 10000 | D3: =+D2 -> 472265 | E3: =+C3+D3 -> 482265 | F3: =+F2 -> 2500 | G3: =+G2 -> 2500 | H3: =+H2 -> 2500 | I3: =+I2 -> 2500 | J3: =+J2 -> 59033.125 | K3: =+K2 -> 59033.125 | L3: 59033.125 | M3: 59033.125 | N3: 59033.125 | O3: 59033.125 | P3: 59033.125 | Q3: 59033.125
B4: sh abikõlbmatu kulu | C4: 0 | D4: 0 | E4: 0 | F4: 0 | G4: 0 | H4: 0 | I4: 0 | J4: 0 | K4: 0 | L4: 0 | M4: 0 | N4: 0 | O4: 0 | P4: 0 | Q4: 0
B5: Omafinantseering | C5: =+C2-C9 -> 10000 | D5: =+D2-D9 -> 472265 | E5: 482265 | F5: 2500 | G5: 2500 | H5: 2500 | I5: 2500 | J5: =+J2-J9 -> 59033.125 | K5: =+K2-K9 -> 59033.125 | L5: 59033.125 | M5: 59033.125 | N5: 59033.125 | O5: 59033.125 | P5: 59033.125 | Q5: 59033.125 | R5: =+SUM(F5:Q5)=SUM(F6:Q8) -> TRUE
B6: Omafinantseering omavahenditest | C6: =+SUM(F6:I6) -> 0 | D6: =+SUM(J6:Q6) -> 216100.3117 | E6: =+C6+D6 -> 216100.3117 | F6: =+F5-F7-F8 -> 0 | G6: =+G5-G7-G8 -> 0 | H6: =+H5-H7-H8 -> 0 | I6: =+I5-I7-I8 -> 0 | J6: =+J5-J7-J8 -> 42387.53897 | K6: =+K5-K7-K8 -> 42387.53897 | L6: 19387.53897 | M6: 17387.53897 | N6: 17387.53897 | O6: 17387.53897 | P6: 17387.53897 | Q6: 42387.53897
B7: Valla poolne omakapitali suurendamine | C7: =+SUM(F7:I7) -> 10000 | D7: =+SUM(J7:Q7) -> 133164.6883 | E7: 143164.6883 | F7: =+F5 -> 2500 | G7: =+G5 -> 2500 | H7: 2500 | I7: 2500 | J7: =+J2*$D$91 -> 16645.58603 | K7: =+K2*$D$91 -> 16645.58603 | L7: 16645.58603 | M7: 16645.58603 | N7: 16645.58603 | O7: 16645.58603 | P7: 16645.58603 | Q7: 16645.58603
B8: Vee-ettevõtte laen | C8: 0 | D8: 123000 | E8: 123000 | F8: 0 | G8: 0 | H8: 0 | I8: 0 | J8: 0 | K8: 0 | L8: 23000 | M8: 25000 | N8: 25000 | O8: 25000 | P8: 25000 | Q8: 0
B9: Toetus | C9: 0 | D9: 0 | E9: =+C9+D9 -> 0 | F9: 0 | G9: 0 | H9: 0 | I9: 0 | J9: 0 | K9: 0 | L9: 0 | M9: 0 | N9: 0 | O9: 0 | P9: 0 | Q9: 0 | R9: =+SUM(F9:Q9)=E9 -> TRUE
B10: Essu | C10: =+Maksumus!G35 -> 0 | D10: =+Maksumus!H35 -> 206775 | E10: =+SUM(C10:D10) -> 206775 | F10: 0 | G10: 0 | H10: =+C10/2 -> 0 | I10: =+H10 -> 0 | J10: =+$D10/8 -> 25846.875 | K10: =+$D10/8 -> 25846.875 | L10: 25846.875 | M10: 25846.875 | N10: 25846.875 | O10: 25846.875 | P10: 25846.875 | Q10: 25846.875 | R10: =+SUM(F10:Q10)=E10 -> TRUE
B11: sh abikõlblik kulu | C11: =+C10 -> 0 | D11: =+D10 -> 206775 | E11: =+C11+D11 -> 206775 | F11: =+F10 -> 0 | G11: =+G10 -> 0 | H11: =+H10 -> 0 | I11: =+I10 -> 0 | J11: =+J10 -> 25846.875 | K11: =+K10 -> 25846.875 | L11: =+L10 -> 25846.875 | M11: =+M10 -> 25846.875 | N11: =+N10 -> 25846.875 | O11: =+O10 -> 25846.875 | P11: =+P10 -> 25846.875 | Q11: =+Q10 -> 25846.875
B12: sh abikõlbmatu kulu | C12: 0 | D12: 0 | E12: 0 | F12: 0 | G12: 0 | H12: 0 | I12: 0 | J12: 0 | K12: 0 | L12: 0 | M12: 0 | N12: 0 | O12: 0 | P12: 0 | Q12: 0
B13: Omafinantseering | C13: =+C10-C17 -> 0 | D13: =+D10-D17 -> 206775 | E13: 206775 | F13: 0 | G13: 0 | H13: 0 | I13: 0 | J13: =+J10-J17 -> 25846.875 | K13: =+K10-K17 -> 25846.875 | L13: 25846.875 | M13: 25846.875 | N13: 25846.875 | O13: 25846.875 | P13: 25846.875 | Q13: 25846.875 | R13: =+SUM(F13:Q13)=SUM(F14:Q16) -> TRUE
B14: Omafinantseering omavahenditest | C14: =+SUM(F14:I14) -> 0 | D14: =+SUM(J14:Q14) -> 78470.59799 | E14: =+C14+D14 -> 78470.59799 | F14: =+F13-F15-F16 -> 0 | G14: =+G13-G15-G16 -> 0 | H14: =+H13-H15-H16 -> 0 | I14: =+I13-I15-I16 -> 0 | J14: =+J13-J15-J16 -> 18558.82475 | K14: =+K13-K15-K16 -> 18558.82475 | L14: =+L13-L15-L16 -> 8558.824749 | M14: =+M13-M15-M16 -> 3558.824749 | N14: =+N13-N15-N16 -> 3558.824749 | O14: =+O13-O15-O16 -> 3558.824749 | P14: =+P13-P15-P16 -> 3558.824749 | Q14: =+Q13-Q15-Q16 -> 18558.82475
B15: Valla poolne omakapitali suurendamine | C15: =+SUM(F15:I15) -> 0 | D15: =+SUM(J15:Q15) -> 58304.40201 | E15: 58304.40201 | F15: 0 | G15: 0 | H15: 0 | I15: 0 | J15: =+J10*$D$91 -> 7288.050251 | K15: =+K10*$D$91 -> 7288.050251 | L15: 7288.050251 | M15: 7288.050251 | N15: 7288.050251 | O15: 7288.050251 | P15: 7288.050251 | Q15: 7288.050251
B16: Vee-ettevõtte laen | C16: 0 | D16: 70000 | E16: 70000 | F16: 0 | G16: 0 | H16: 0 | I16: 0 | J16: 0 | K16: 0 | L16: 10000 | M16: 15000 | N16: 15000 | O16: 15000 | P16: 15000 | Q16: 0
B17: Toetus | C17: 0 | D17: 0 | E17: =+C17+D17 -> 0 | F17: 0 | G17: 0 | H17: 0 | I17: 0 | J17: 0 | K17: 0 | L17: 0 | M17: 0 | N17: 0 | O17: 0 | P17: 0 | Q17: 0 | R17: =+SUM(F17:Q17)=E17 -> TRUE
B18: Aaspere | C18: =+Maksumus!I35 -> 75000 | D18: =+Maksumus!J35 -> 313395 | E18: =+SUM(C18:D18) -> 388395 | F18: =+C18/4 -> 18750 | G18: =+F18 -> 18750 | H18: =+G18 -> 18750 | I18: 18750 | J18: =+$D18/8 -> 39174.375 | K18: =+$D18/8 -> 39174.375 | L18: 39174.375 | M18: 39174.375 | N18: 39174.375 | O18: 39174.375 | P18: 39174.375 | Q18: 39174.375 | R18: =+SUM(F18:Q18)=E18 -> TRUE
B19: sh abikõlblik kulu | C19: =+C18 -> 75000 | D19: =+D18 -> 313395 | E19: =+C19+D19 -> 388395 | F19: =+F18 -> 18750 | G19: 18750 | H19: 18750 | I19: 18750 | J19: =+J18 -> 39174.375 | K19: =+K18 -> 39174.375 | L19: =+L18 -> 39174.375 | M19: =+M18 -> 39174.375 | N19: =+N18 -> 39174.375 | O19: =+O18 -> 39174.375 | P19: =+P18 -> 39174.375 | Q19: =+Q18 -> 39174.375
B20: sh abikõlbmatu kulu | C20: 0 | D20: 0 | E20: 0 | F20: 0 | G20: 0 | H20: 0 | I20: 0 | J20: 0 | K20: 0 | L20: 0 | M20: 0 | N20: 0 | O20: 0 | P20: 0 | Q20: 0
B21: Omafinantseering | C21: =+C18-C25 -> 75000 | D21: =+D18-D25 -> 313395 | E21: 388395 | F21: 18750 | G21: 18750 | H21: 18750 | I21: 18750 | J21: =+J18-J25 -> 39174.375 | K21: =+K18-K25 -> 39174.375 | L21: 39174.375 | M21: 39174.375 | N21: 39174.375 | O21: 39174.375 | P21: 39174.375 | Q21: 39174.375 | R21: =+SUM(F21:Q21)=SUM(F22:Q24) -> TRUE
B22: Omafinantseering omavahenditest | C22: =+SUM(F22:I22) -> 0 | D22: =+SUM(J22:Q22) -> 155026.9281 | E22: =+C22+D22 -> 155026.9281 | F22: =+F21-F23-F24 -> 0 | G22: 0 | H22: 0 | I22: 0 | J22: =+J21-J23-J24 -> 28128.36601 | K22: =+K21-K23-K24 -> 28128.36601 | L22: =+L21-L23-L24 -> 18128.36601 | M22: =+M21-M23-M24 -> 13128.36601 | N22: =+N21-N23-N24 -> 13128.36601 | O22: =+O21-O23-O24 -> 13128.36601 | P22: =+P21-P23-P24 -> 13128.36601 | Q22: =+Q21-Q23-Q24 -> 28128.36601
B23: Valla poolne omakapitali suurendamine | C23: =+SUM(F23:I23) -> 75000 | D23: =+SUM(J23:Q23) -> 88368.0719 | E23: 163368.0719 | F23: =+F21 -> 18750 | G23: =+G21 -> 18750 | H23: 18750 | I23: 18750 | J23: =+J18*$D$91 -> 11046.00899 | K23: =+K18*$D$91 -> 11046.00899 | L23: 11046.00899 | M23: 11046.00899 | N23: 11046.00899 | O23: 11046.00899 | P23: 11046.00899 | Q23: 11046.00899
B24: Vee-ettevõtte laen | C24: 0 | D24: 70000 | E24: 70000 | F24: 0 | G24: 0 | H24: 0 | I24: 0 | J24: 0 | K24: 0 | L24: 10000 | M24: 15000 | N24: 15000 | O24: 15000 | P24: 15000 | Q24: 0
B25: Toetus | C25: 0 | D25: 0 | E25: =+C25+D25 -> 0 | F25: 0 | G25: 0 | H25: 0 | I25: 0 | J25: 0 | K25: 0 | L25: 0 | M25: 0 | N25: 0 | O25: 0 | P25: 0 | Q25: 0 | R25: =+SUM(F25:Q25)=E25 -> TRUE
A26: Vana Vihula valla projektid | B26: Võsu | C26: =+Maksumus!E35 -> 849647.5 | D26: =+Maksumus!F35 -> 547795 | E26: =+SUM(C26:D26) -> 1397442.5 | F26: 0 | G26: 0 | H26: =+C26/2 -> 424823.75 | I26: =+H26 -> 424823.75 | J26: =+$D26/8 -> 68474.375 | K26: =+$D26/8 -> 68474.375 | L26: 68474.375 | M26: 68474.375 | N26: 68474.375 | O26: 68474.375 | P26: 68474.375 | Q26: 68474.375 | R26: =+SUM(F26:Q26)=E26 -> TRUE
B27: sh abikõlblik kulu | C27: =+C26 -> 849647.5 | D27: =+D26 -> 547795 | E27: =+C27+D27 -> 1397442.5 | F27: =+F26 -> 0 | G27: 0 | H27: 424823.75 | I27: 424823.75 | J27: =+J26 -> 68474.375 | K27: =+K26 -> 68474.375 | L27: =+L26 -> 68474.375 | M27: =+M26 -> 68474.375 | N27: =+N26 -> 68474.375 | O27: =+O26 -> 68474.375 | P27: =+P26 -> 68474.375 | Q27: =+Q26 -> 68474.375
B28: sh abikõlbmatu kulu | C28: 0 | D28: 0 | E28: 0 | F28: 0 | G28: 0 | H28: 0 | I28: 0 | J28: 0 | K28: 0 | L28: 0 | M28: 0 | N28: 0 | O28: 0 | P28: 0 | Q28: 0
B29: Omafinantseering | C29: =+C26-C33 -> 254894.25 | D29: 547795 | E29: =+E26-E33 -> 802689.25 | F29: =+F26-F33 -> 0 | G29: 0 | H29: 127447.125 | I29: 127447.125 | J29: =+J26-J33 -> 68474.375 | K29: =+K26-K33 -> 68474.375 | L29: 68474.375 | M29: 68474.375 | N29: 68474.375 | O29: 68474.375 | P29: 68474.375 | Q29: 68474.375 | R29: =+SUM(F29:Q29)=SUM(F30:Q32) -> TRUE
B30: Omafinantseering omavahenditest | C30: =+SUM(F30:I30) -> 22394.25 | D30: =+SUM(J30:Q30) -> 135166.0975 | E30: =+C30+D30 -> 157560.3475 | F30: =+F29-F31-F32 -> 0 | G30: 0 | H30: 13697.125 | I30: 8697.125 | J30: =+J29-J31-J32 -> 29166.63718 | K30: =+K29-K31-K32 -> 19166.63718 | L30: =+L29-L31-L32 -> 19166.63718 | M30: =+M29-M31-M32 -> 9166.637182 | N30: =+N29-N31-N32 -> 19166.63718 | O30: =+O29-O31-O32 -> 24166.63718 | P30: =+P29-P31-P32 -> 15166.63718 | Q30: =+Q29-Q31-Q32 -> -0.3628180033
B31: Valla poolne omakapitali suurendamine | C31: =+SUM(F31:I31) -> 57500 | D31: =+SUM(J31:Q31) -> 154461.9025 | E31: 211961.9025 | F31: 0 | G31: 0 | H31: =70000-41250 -> 28750 | I31: =70000-41250 -> 28750 | J31: =+J26*$D$91 -> 19307.73782 | K31: =+K26*$D$91 -> 19307.73782 | L31: 19307.73782 | M31: 19307.73782 | N31: 19307.73782 | O31: 19307.73782 | P31: 19307.73782 | Q31: 19307.73782
B32: Vee-ettevõtte laen | C32: 175000 | D32: 258167 | E32: 433167 | F32: 0 | G32: 0 | H32: 85000 | I32: 90000 | J32: 20000 | K32: 30000 | L32: 30000 | M32: 40000 | N32: 30000 | O32: 25000 | P32: 34000 | Q32: 49167
B33: Toetus | C33: =+C27*70% -> 594753.25 | D33: 0 | E33: =+C33+D33 -> 594753.25 | F33: =+F27*70% -> 0 | G33: 0 | H33: 297376.625 | I33: 297376.625 | J33: 0 | K33: 0 | L33: 0 | M33: 0 | N33: 0 | O33: 0 | P33: 0 | Q33: 0 | R33: =+SUM(F33:Q33)=E33 -> TRUE
B34: Käsmu | C34: =+Maksumus!K35 -> 1929610 | D34: =+Maksumus!L35 -> 0 | E34: =+SUM(C34:D34) -> 1929610 | F34: 0 | G34: =+C34 -> 1929610 | H34: 0 | I34: 0 | J34: =+$D34/8 -> 0 | K34: =+$D34/8 -> 0 | L34: 0 | M34: 0 | N34: 0 | O34: 0 | P34: 0 | Q34: 0 | R34: =+SUM(F34:Q34)=E34 -> TRUE
B35: sh abikõlblik kulu | C35: =+C34-C36 -> 1665085 | D35: =+D34 -> 0 | E35: =+C35+D35 -> 1665085 | F35: 0 | G35: =+C35 -> 1665085 | H35: 0 | I35: 0 | J35: =+J34 -> 0 | K35: =+K34 -> 0 | L35: =+L34 -> 0 | M35: =+M34 -> 0 | N35: =+N34 -> 0 | O35: =+O34 -> 0 | P35: =+P34 -> 0 | Q35: =+Q34 -> 0
B36: sh abikõlbmatu kulu | C36: =+Maksumus!K7+Maksumus!K10+Maksumus!K11+Maksumus!K12 -> 264525 | D36: 0 | E36: 264525 | F36: 0 | G36: =+C36 -> 264525 | H36: 0 | I36: 0 | J36: 0 | K36: 0 | L36: 0 | M36: 0 | N36: 0 | O36: 0 | P36: 0 | Q36: 0
B37: Omafinantseering | C37: =+C34-C41 -> 764050.5 | D37: =+D34-D41 -> 0 | E37: =+E34-E41 -> 764050.5 | F37: 0 | G37: 764050.5 | H37: 0 | I37: 0 | J37: =+J34-J41 -> 0 | K37: =+K34-K41 -> 0 | L37: 0 | M37: 0 | N37: 0 | O37: 0 | P37: 0 | Q37: 0 | R37: =+SUM(F37:Q37)=SUM(F38:Q40) -> TRUE
B38: Omafinantseering omavahenditest | C38: =+SUM(F38:I38) -> 206550.5 | D38: =+SUM(J38:Q38) -> 0 | E38: =+C38+D38 -> 206550.5 | F38: =+F37 -> 0 | G38: =+G37-G39-G40 -> 206550.5 | H38: =+H37 -> 0 | I38: =+I37 -> 0 | J38: =+J37-J39-J40 -> 0 | K38: =+K37-K39-K40 -> 0 | L38: =+L37-L39-L40 -> 0 | M38: =+M37-M39-M40 -> 0 | N38: =+N37-N39-N40 -> 0 | O38: =+O37-O39-O40 -> 0 | P38: =+P37-P39-P40 -> 0 | Q38: =+Q37-Q39-Q40 -> 0
B39: Valla poolne omakapitali suurendamine | C39: =+SUM(F39:I39) -> 57500 | D39: =+SUM(J39:Q39) -> 0 | E39: 57500 | F39: 0 | G39: =115000-57500 -> 57500 | H39: 0 | I39: 0 | J39: =+J34*$D$91 -> 0 | K39: =+K34*$D$91 -> 0 | L39: 0 | M39: 0 | N39: 0 | O39: 0 | P39: 0 | Q39: 0
B40: Vee-ettevõtte laen | C40: 500000 | D40: 0 | E40: 500000 | F40: 0 | G40: 500000 | H40: 0 | I40: 0 | J40: 0 | K40: 0 | L40: 0 | M40: 0 | N40: 0 | O40: 0 | P40: 0 | Q40: 0
B41: Toetus | C41: =+C35*70% -> 1165559.5 | D41: 0 | E41: =+C41+D41 -> 1165559.5 | F41: 0 | G41: =+G35*70% -> 1165559.5 | H41: 0 | I41: 0 | J41: 0 | K41: 0 | L41: 0 | M41: 0 | N41: 0 | O41: 0 | P41: 0 | Q41: 0 | R41: =+SUM(F41:Q41)=E41 -> TRUE
B42: Võsupere | C42: =+Maksumus!M35 -> 0 | D42: =+Maksumus!N35 -> 62150 | E42: =+SUM(C42:D42) -> 62150 | F42: =+C42/4 -> 0 | G42: =+F42 -> 0 | H42: =+G42 -> 0 | I42: 0 | J42: =+$D42/8 -> 7768.75 | K42: =+$D42/8 -> 7768.75 | L42: 7768.75 | M42: 7768.75 | N42: 7768.75 | O42: 7768.75 | P42: 7768.75 | Q42: 7768.75 | R42: =+SUM(F42:Q42)=E42 -> TRUE
B43: sh abikõlblik kulu | C43: =+C42 -> 0 | D43: =+D42 -> 62150 | E43: =+C43+D43 -> 62150 | F43: =+F42 -> 0 | G43: 0 | H43: 0 | I43: 0 | J43: =+J42 -> 7768.75 | K43: =+K42 -> 7768.75 | L43: =+L42 -> 7768.75 | M43: =+M42 -> 7768.75 | N43: =+N42 -> 7768.75 | O43: =+O42 -> 7768.75 | P43: =+P42 -> 7768.75 | Q43: =+Q42 -> 7768.75
B44: sh abikõlbmatu kulu | C44: 0 | D44: 0 | E44: 0 | F44: 0 | G44: 0 | H44: 0 | I44: 0 | J44: 0 | K44: 0 | L44: 0 | M44: 0 | N44: 0 | O44: 0 | P44: 0 | Q44: 0
B45: Omafinantseering | C45: =+C42-C49 -> 0 | D45: =+D42-D49 -> 62150 | E45: =+E42-E49 -> 62150 | F45: 0 | G45: 0 | H45: 0 | I45: 0 | J45: =+J42-J49 -> 7768.75 | K45: =+K42-K49 -> 7768.75 | L45: 7768.75 | M45: 7768.75 | N45: 7768.75 | O45: 7768.75 | P45: 7768.75 | Q45: 7768.75 | R45: =+SUM(F45:Q45)=SUM(F46:Q48) -> TRUE
B46: Omafinantseering omavahenditest | C46: =+SUM(F46:I46) -> 0 | D46: =+SUM(J46:Q46) -> 11156.38697 | E46: =+C46+D46 -> 11156.38697 | F46: =+F45-F47-F48 -> 0 | G46: 0 | H46: 0 | I46: 0 | J46: =+J45-J47-J48 -> 5578.193486 | K46: =+K45-K47-K48 -> 0 | L46: =+L45-L47-L48 -> 0 | M46: =+M45-M47-M48 -> 0 | N46: =+N45-N47-N48 -> 0 | O46: =+O45-O47-O48 -> 0 | P46: =+P45-P47-P48 -> 0 | Q46: =+Q45-Q47-Q48 -> 5578.193486
B47: Valla poolne omakapitali suurendamine | C47: =+SUM(F47:I47) -> 0 | D47: =+SUM(J47:Q47) -> 17524.45211 | E47: 17524.45211 | F47: =+F45 -> 0 | G47: =+G45 -> 0 | H47: 0 | I47: 0 | J47: =+J42*$D$91 -> 2190.556514 | K47: =+K42*$D$91 -> 2190.556514 | L47: 2190.556514 | M47: 2190.556514 | N47: 2190.556514 | O47: 2190.556514 | P47: 2190.556514 | Q47: 2190.556514
B48: Vee-ettevõtte laen | C48: 0 | D48: 33469.16092 | E48: 33469.16092 | F48: 0 | G48: 0 | H48: 0 | I48: 0 | J48: 0 | K48: =+K45-K47 -> 5578.193486 | L48: 5578.193486 | M48: 5578.193486 | N48: 5578.193486 | O48: 5578.193486 | P48: 5578.193486 | Q48: 0
B49: Toetus | C49: 0 | D49: 0 | E49: =+C49+D49 -> 0 | F49: 0 | G49: 0 | H49: 0 | I49: 0 | J49: 0 | K49: 0 | L49: 0 | M49: 0 | N49: 0 | O49: 0 | P49: 0 | Q49: 0 | R49: =+SUM(F49:Q49)=E49 -> TRUE
B50: Vihula | C50: =+Maksumus!O35 -> 50000 | D50: =+Maksumus!P35 -> 0 | E50: =+SUM(C50:D50) -> 50000 | F50: =+C50/4 -> 12500 | G50: =+F50 -> 12500 | H50: =+G50 -> 12500 | I50: 12500 | J50: =+$D50/8 -> 0 | K50: =+$D50/8 -> 0 | L50: 0 | M50: 0 | N50: 0 | O50: 0 | P50: 0 | Q50: 0 | R50: =+SUM(F50:Q50)=E50 -> TRUE
B51: sh abikõlblik kulu | C51: =+C50 -> 50000 | D51: =+D50 -> 0 | E51: =+C51+D51 -> 50000 | F51: =+F50 -> 12500 | G51: 12500 | H51: 12500 | I51: 12500 | J51: =+J50 -> 0 | K51: =+K50 -> 0 | L51: =+L50 -> 0 | M51: =+M50 -> 0 | N51: =+N50 -> 0 | O51: =+O50 -> 0 | P51: =+P50 -> 0 | Q51: =+Q50 -> 0
B52: sh abikõlbmatu kulu | C52: 0 | D52: 0 | E52: 0 | F52: 0 | G52: 0 | H52: 0 | I52: 0 | J52: 0 | K52: 0 | L52: 0 | M52: 0 | N52: 0 | O52: 0 | P52: 0 | Q52: 0
B53: Omafinantseering | C53: =+C50-C57 -> 50000 | D53: =+D50-D57 -> 0 | E53: =+E50-E57 -> 50000 | F53: 12500 | G53: 12500 | H53: 12500 | I53: 12500 | J53: =+J50-J57 -> 0 | K53: =+K50-K57 -> 0 | L53: 0 | M53: 0 | N53: 0 | O53: 0 | P53: 0 | Q53: 0 | R53: =+SUM(F53:Q53)=SUM(F54:Q56) -> TRUE
B54: Omafinantseering omavahenditest | C54: =+SUM(F54:I54) -> 0 | D54: =+SUM(J54:Q54) -> 0 | E54: =+C54+D54 -> 0 | F54: =+F53-F55-F56 -> 0 | G54: 0 | H54: 0 | I54: 0 | J54: =+J53-J55-J56 -> 0 | K54: =+K53-K55-K56 -> 0 | L54: =+L53-L55-L56 -> 0 | M54: =+M53-M55-M56 -> 0 | N54: =+N53-N55-N56 -> 0 | O54: =+O53-O55-O56 -> 0 | P54: =+P53-P55-P56 -> 0 | Q54: =+Q53-Q55-Q56 -> 0
B55: Valla poolne omakapitali suurendamine | C55: =+SUM(F55:I55) -> 50000 | D55: =+SUM(J55:Q55) -> 0 | E55: 50000 | F55: =+F53 -> 12500 | G55: =+G53 -> 12500 | H55: 12500 | I55: 12500 | J55: =+J50*$D$91 -> 0 | K55: =+K50*$D$91 -> 0 | L55: 0 | M55: 0 | N55: 0 | O55: 0 | P55: 0 | Q55: 0
B56: Vee-ettevõtte laen | C56: 0 | D56: 0 | E56: 0 | F56: 0 | G56: 0 | H56: 0 | I56: 0 | J56: 0 | K56: 0 | L56: 0 | M56: 0 | N56: 0 | O56: 0 | P56: 0 | Q56: 0
B57: Toetus | C57: 0 | D57: 0 | E57: =+C57+D57 -> 0 | F57: 0 | G57: 0 | H57: 0 | I57: 0 | J57: 0 | K57: 0 | L57: 0 | M57: 0 | N57: 0 | O57: 0 | P57: 0 | Q57: 0 | R57: =+SUM(F57:Q57)=E57 -> TRUE
B58: Vergi | C58: =+Maksumus!Q35 -> 30000 | D58: =+Maksumus!R35 -> 383645 | E58: =+SUM(C58:D58) -> 413645 | F58: =+C58/4 -> 7500 | G58: =+F58 -> 7500 | H58: =+G58 -> 7500 | I58: 7500 | J58: =+$D58/8 -> 47955.625 | K58: =+$D58/8 -> 47955.625 | L58: 47955.625 | M58: 47955.625 | N58: 47955.625 | O58: 47955.625 | P58: 47955.625 | Q58: 47955.625 | R58: =+SUM(F58:Q58)=E58 -> TRUE
B59: sh abikõlblik kulu | C59: =+C58 -> 30000 | D59: =+D58 -> 383645 | E59: =+C59+D59 -> 413645 | F59: =+F58 -> 7500 | G59: 7500 | H59: 7500 | I59: 7500 | J59: =+J58 -> 47955.625 | K59: =+K58 -> 47955.625 | L59: =+L58 -> 47955.625 | M59: =+M58 -> 47955.625 | N59: =+N58 -> 47955.625 | O59: =+O58 -> 47955.625 | P59: =+P58 -> 47955.625 | Q59: =+Q58 -> 47955.625
B60: sh abikõlbmatu kulu | C60: 0 | D60: 0 | E60: 0 | F60: 0 | G60: 0 | H60: 0 | I60: 0 | J60: 0 | K60: 0 | L60: 0 | M60: 0 | N60: 0 | O60: 0 | P60: 0 | Q60: 0
B61: Omafinantseering | C61: =+C58-C65 -> 30000 | D61: 383645 | E61: =+E58-E65 -> 413645 | F61: 7500 | G61: 7500 | H61: 7500 | I61: 7500 | J61: =+J58-J65 -> 47955.625 | K61: =+K58-K65 -> 47955.625 | L61: 47955.625 | M61: 47955.625 | N61: 47955.625 | O61: 47955.625 | P61: 47955.625 | Q61: 47955.625 | R61: =+SUM(F61:Q61)=SUM(F62:Q64) -> TRUE
B62: Omafinantseering omavahenditest | C62: =+SUM(F62:I62) -> 0 | D62: =+SUM(J62:Q62) -> 34433.5646 | E62: =+C62+D62 -> 34433.5646 | F62: =+F61-F63-F64 -> 0 | G62: 0 | H62: 0 | I62: 0 | J62: =+J61-J63-J64 -> 0 | K62: =+K61-K63-K64 -> 0 | L62: =+L61-L63-L64 -> 0 | M62: =+M61-M63-M64 -> 0 | N62: =+N61-N63-N64 -> 0 | O62: =+O61-O63-O64 -> 0 | P62: =+P61-P63-P64 -> 0 | Q62: =+Q61-Q63-Q64 -> 34433.5646
B63: Valla poolne omakapitali suurendamine | C63: =+SUM(F63:I63) -> 30000 | D63: =+SUM(J63:Q63) -> 108176.4832 | E63: 138176.4832 | F63: =+F61 -> 7500 | G63: =+G61 -> 7500 | H63: 7500 | I63: 7500 | J63: =+J58*$D$91 -> 13522.0604 | K63: =+K58*$D$91 -> 13522.0604 | L63: 13522.0604 | M63: 13522.0604 | N63: 13522.0604 | O63: 13522.0604 | P63: 13522.0604 | Q63: 13522.0604
B64: Vee-ettevõtte laen | C64: 0 | D64: 241034.9522 | E64: 241034.9522 | F64: 0 | G64: 0 | H64: 0 | I64: 0 | J64: =+J61-J63 -> 34433.5646 | K64: 34433.5646 | L64: 34433.5646 | M64: 34433.5646 | N64: 34433.5646 | O64: 34433.5646 | P64: 34433.5646 | Q64: 0
B65: Toetus | C65: 0 | D65: 0 | E65: =+C65+D65 -> 0 | F65: 0 | G65: 0 | H65: 0 | I65: 0 | J65: 0 | K65: 0 | L65: 0 | M65: 0 | N65: 0 | O65: 0 | P65: 0 | Q65: 0 | R65: =+SUM(F65:Q65)=E65 -> TRUE
R66: =+SUM(F66:Q66)=E66 -> TRUE
B67: sh abikõlblik kulu | E67: =+E66 -> 0
B68: sh abikõlbmatu kulu | E68: 0
B69: Omafinantseering | E69: =+E66 -> 0 | R69: =+SUM(F69:Q69)=SUM(F70:Q72) -> TRUE
B70: Omafinantseering omavahenditest | E70: =+E69 -> 0
B71: Valla poolne omakapitali suurendamine | E71: 0
B72: Vee-ettevõtte laen | E72: 0
B73: Toetus | E73: 0 | R73: =+SUM(F73:Q73)=E73 -> TRUE
R74: =+SUM(F74:Q74)=E74 -> TRUE
B75: sh abikõlblik kulu | E75: 0
B76: sh abikõlbmatu kulu | E76: =+E74 -> 0
B77: Omafinantseering | E77: =+E76 -> 0 | R77: =+SUM(F77:Q77)=SUM(F78:Q80) -> TRUE
B78: Omafinantseering omavahenditest | E78: 0
B79: Valla poolne omakapitali suurendamine | E79: =+E77 -> 0
B80: Vee-ettevõtte laen | E80: 0
B81: Toetus | E81: 0 | R81: =+SUM(F81:Q81)=E81 -> TRUE
A82: KOKKU | B82: Projektid kokku | C82: =+C2+C10+C18+C26+C34+C42+C50+C58 -> 2944257.5 | D82: =+D2+D10+D18+D26+D34+D42+D50+D58 -> 1986025 | E82: 4930282.5 | F82: 41250 | G82: 1970860 | H82: 466073.75 | I82: 466073.75 | J82: 248253.125 | K82: 248253.125 | L82: 248253.125 | M82: 248253.125 | N82: 248253.125 | O82: 248253.125 | P82: 248253.125 | Q82: 248253.125 | R82: =+SUM(F82:Q82)=E82 -> TRUE
B83: sh abikõlblik kulu | C83: =+C3+C11+C19+C27+C35+C43+C51+C59 -> 2679732.5 | D83: 1986025 | E83: 4665757.5 | F83: 41250 | G83: 1706335 | H83: 466073.75 | I83: 466073.75 | J83: 248253.125 | K83: 248253.125 | L83: 248253.125 | M83: 248253.125 | N83: 248253.125 | O83: 248253.125 | P83: 248253.125 | Q83: 248253.125
B84: sh abikõlbmatu kulu | C84: 264525 | D84: 0 | E84: 264525 | F84: 0 | G84: 264525 | H84: 0 | I84: 0 | J84: 0 | K84: 0 | L84: 0 | M84: 0 | N84: 0 | O84: 0 | P84: 0 | Q84: 0
B85: Omafinantseering | C85: 1183944.75 | D85: 1986025 | E85: 3169969.75 | F85: 41250 | G85: 805300.5 | H85: 168697.125 | I85: 168697.125 | J85: 248253.125 | K85: 248253.125 | L85: 248253.125 | M85: 248253.125 | N85: 248253.125 | O85: 248253.125 | P85: 248253.125 | Q85: 248253.125 | R85: =+SUM(F85:Q85)=SUM(F86:Q88) -> TRUE
B86: Omafinantseering omavahenditest | C86: 228944.75 | D86: 630353.8869 | E86: 859298.6369 | F86: 0 | G86: 206550.5 | H86: 13697.125 | I86: 8697.125 | J86: 123819.5604 | K86: 108241.3669 | L86: 65241.36691 | M86: 43241.36691 | N86: 53241.36691 | O86: 58241.36691 | P86: 49241.36691 | Q86: 129086.125
B87: Valla poolne omakapitali suurendamine | C87: 280000 | D87: 560000 | E87: 840000 | F87: 41250 | G87: 98750 | H87: 70000 | I87: 70000 | J87: 70000 | K87: 70000 | L87: 70000 | M87: 70000 | N87: 70000 | O87: 70000 | P87: 70000 | Q87: 70000
B88: Vee-ettevõtte laen | C88: 675000 | D88: 795671.1131 | E88: 1470671.113 | F88: 0 | G88: 500000 | H88: 85000 | I88: 90000 | J88: 54433.5646 | K88: 70011.75809 | L88: 113011.7581 | M88: 135011.7581 | N88: 125011.7581 | O88: 120011.7581 | P88: 129011.7581 | Q88: 49167
B89: Toetus | C89: 1760312.75 | D89: 0 | E89: 1760312.75 | F89: 0 | G89: 1165559.5 | H89: 297376.625 | I89: 297376.625 | J89: 0 | K89: 0 | L89: 0 | M89: 0 | N89: 0 | O89: 0 | P89: 0 | Q89: 0 | R89: =+SUM(F89:Q89)=E89 -> TRUE
C90: =+C82=Maksumus!S35 -> TRUE | D90: =+D82=Maksumus!T35 -> TRUE | E90: =+E82=Maksumus!U35 -> TRUE
B91: KOV osalus II etapist | D91: =8*70000/D82 -> 0.2819702672
B93: Omavahenditest soetatud põhivara kulum | C93: EUR | F93: =+SUM(F94:F95) -> 0 | G93: 0 | H93: 19101.2625 | I93: 19101.2625 | J93: 33661.11875 | K93: 40640.88438 | L93: 47620.65 | M93: 54600.41563 | N93: 61580.18125 | O93: 68559.94687 | P93: 75539.7125 | Q93: 82519.47812
B94: sh endine Haljala | C94: EUR | J94: =+(Maksumus!C35+Maksumus!I35-Maksumus!C37-Maksumus!I37)/40+(Maksumus!C37+Maksumus!I37)/15 -> 3895.833333 | K94: =+J94+(Maksumus!$D$35+Maksumus!$H$35+Maksumus!$J$35-Maksumus!$D$37-Maksumus!$H$37-Maksumus!$J$37)/8/40+(Maksumus!$D$37+Maksumus!$H$37+Maksumus!$J$37)/8/15 -> 7275.838542 | L94: =+K94+(Maksumus!$D$35+Maksumus!$H$35+Maksumus!$J$35-Maksumus!$D$37-Maksumus!$H$37-Maksumus!$J$37)/8/40+(Maksumus!$D$37+Maksumus!$H$37+Maksumus!$J$37)/8/15 -> 10655.84375 | M94: =+L94+(Maksumus!$D$35+Maksumus!$H$35+Maksumus!$J$35-Maksumus!$D$37-Maksumus!$H$37-Maksumus!$J$37)/8/40+(Maksumus!$D$37+Maksumus!$H$37+Maksumus!$J$37)/8/15 -> 14035.84896 | N94: =+M94+(Maksumus!$D$35+Maksumus!$H$35+Maksumus!$J$35-Maksumus!$D$37-Maksumus!$H$37-Maksumus!$J$37)/8/40+(Maksumus!$D$37+Maksumus!$H$37+Maksumus!$J$37)/8/15 -> 17415.85417 | O94: =+N94+(Maksumus!$D$35+Maksumus!$H$35+Maksumus!$J$35-Maksumus!$D$37-Maksumus!$H$37-Maksumus!$J$37)/8/40+(Maksumus!$D$37+Maksumus!$H$37+Maksumus!$J$37)/8/15 -> 20795.85938 | P94: =+O94+(Maksumus!$D$35+Maksumus!$H$35+Maksumus!$J$35-Maksumus!$D$37-Maksumus!$H$37-Maksumus!$J$37)/8/40+(Maksumus!$D$37+Maksumus!$H$37+Maksumus!$J$37)/8/15 -> 24175.86458 | Q94: =+P94+(Maksumus!$D$35+Maksumus!$H$35+Maksumus!$J$35-Maksumus!$D$37-Maksumus!$H$37-Maksumus!$J$37)/8/40+(Maksumus!$D$37+Maksumus!$H$37+Maksumus!$J$37)/8/15 -> 27555.86979
B95: sh endine Vihula | C95: EUR | H95: =+(Maksumus!K35-G41)/40 -> 19101.2625 | I95: =+H95 -> 19101.2625 | J95: =+I95+(Maksumus!E35-Maksumus!E37)*0.3/40+Maksumus!E37*0.3/15+(Maksumus!O35+Maksumus!Q35-Maksumus!O37-Maksumus!Q37)/40+(Maksumus!O37+Maksumus!Q37)/15 -> 29765.28542 | K95: =+J95+(SUM(Maksumus!$F$35,Maksumus!$L$35,Maksumus!$N$35,Maksumus!$P$35,Maksumus!$R$35)-SUM(Maksumus!$F$37,Maksumus!$L$37,Maksumus!$N$37,Maksumus!$P$37,Maksumus!$R$37))/8/40+SUM(Maksumus!$F$37,Maksumus!$L$37,Maksumus!$N$37,Maksumus!$P$37,Maksumus!$R$37)/8/15 -> 33365.04583 | L95: =+K95+(SUM(Maksumus!$F$35,Maksumus!$L$35,Maksumus!$N$35,Maksumus!$P$35,Maksumus!$R$35)-SUM(Maksumus!$F$37,Maksumus!$L$37,Maksumus!$N$37,Maksumus!$P$37,Maksumus!$R$37))/8/40+SUM(Maksumus!$F$37,Maksumus!$L$37,Maksumus!$N$37,Maksumus!$P$37,Maksumus!$R$37)/8/15 -> 36964.80625 | M95: =+L95+(SUM(Maksumus!$F$35,Maksumus!$L$35,Maksumus!$N$35,Maksumus!$P$35,Maksumus!$R$35)-SUM(Maksumus!$F$37,Maksumus!$L$37,Maksumus!$N$37,Maksumus!$P$37,Maksumus!$R$37))/8/40+SUM(Maksumus!$F$37,Maksumus!$L$37,Maksumus!$N$37,Maksumus!$P$37,Maksumus!$R$37)/8/15 -> 40564.56667 | N95: =+M95+(SUM(Maksumus!$F$35,Maksumus!$L$35,Maksumus!$N$35,Maksumus!$P$35,Maksumus!$R$35)-SUM(Maksumus!$F$37,Maksumus!$L$37,Maksumus!$N$37,Maksumus!$P$37,Maksumus!$R$37))/8/40+SUM(Maksumus!$F$37,Maksumus!$L$37,Maksumus!$N$37,Maksumus!$P$37,Maksumus!$R$37)/8/15 -> 44164.32708 | O95: =+N95+(SUM(Maksumus!$F$35,Maksumus!$L$35,Maksumus!$N$35,Maksumus!$P$35,Maksumus!$R$35)-SUM(Maksumus!$F$37,Maksumus!$L$37,Maksumus!$N$37,Maksumus!$P$37,Maksumus!$R$37))/8/40+SUM(Maksumus!$F$37,Maksumus!$L$37,Maksumus!$N$37,Maksumus!$P$37,Maksumus!$R$37)/8/15 -> 47764.0875 | P95: =+O95+(SUM(Maksumus!$F$35,Maksumus!$L$35,Maksumus!$N$35,Maksumus!$P$35,Maksumus!$R$35)-SUM(Maksumus!$F$37,Maksumus!$L$37,Maksumus!$N$37,Maksumus!$P$37,Maksumus!$R$37))/8/40+SUM(Maksumus!$F$37,Maksumus!$L$37,Maksumus!$N$37,Maksumus!$P$37,Maksumus!$R$37)/8/15 -> 51363.84792 | Q95: =+P95+(SUM(Maksumus!$F$35,Maksumus!$L$35,Maksumus!$N$35,Maksumus!$P$35,Maksumus!$R$35)-SUM(Maksumus!$F$37,Maksumus!$L$37,Maksumus!$N$37,Maksumus!$P$37,Maksumus!$R$37))/8/40+SUM(Maksumus!$F$37,Maksumus!$L$37,Maksumus!$N$37,Maksumus!$P$37,Maksumus!$R$37)/8/15 -> 54963.60833

Sheet KOOND
A1: FINANTSANALÜÜS | B1: Ühik | C1: 2021 | D1: 2022 | E1: 2023 | F1: 2024 | G1: 2025 | H1: 2026 | I1: 2027 | J1: 2028 | K1: 2029 | L1: 2030 | M1: 2031
A2: Müügimahud
A3: Elanike vesi | B3: m3/a | C3: =+MAHUD!E10 -> 61060.17814 | D3: =+MAHUD!F10 -> 63063.8823 | E3: =+MAHUD!G10 -> 65067.58646 | F3: =+MAHUD!H10 -> 66063.03564 | G3: =+MAHUD!I10 -> 66586.86974 | H3: =+MAHUD!J10 -> 67110.70384 | I3: =+MAHUD!K10 -> 67110.70384 | J3: =+MAHUD!L10 -> 67110.70384 | K3: =+MAHUD!M10 -> 67110.70384 | L3: =+MAHUD!N10 -> 67110.70384 | M3: =+MAHUD!O10 -> 76035.7764
A4: Juriidiliste isikute vesi | B4: m3/a | C4: =+MAHUD!E11 -> 11217.14291 | D4: =+MAHUD!F11 -> 11217.14291 | E4: =+MAHUD!G11 -> 11217.14291 | F4: =+MAHUD!H11 -> 11217.14291 | G4: =+MAHUD!I11 -> 11217.14291 | H4: =+MAHUD!J11 -> 11217.14291 | I4: =+MAHUD!K11 -> 11217.14291 | J4: =+MAHUD!L11 -> 11217.14291 | K4: =+MAHUD!M11 -> 11217.14291 | L4: =+MAHUD!N11 -> 11217.14291 | M4: =+MAHUD!O11 -> 11217.14291
A5: Elanike kanal | B5: m3/a | C5: =+MAHUD!E15 -> 49785.47089 | D5: =+MAHUD!F15 -> 53805.45266 | E5: =+MAHUD!G15 -> 57825.43444 | F5: =+MAHUD!H15 -> 62187.38515 | G5: =+MAHUD!I15 -> 63534.84953 | H5: =+MAHUD!J15 -> 64882.31392 | I5: =+MAHUD!K15 -> 64882.31392 | J5: =+MAHUD!L15 -> 64882.31392 | K5: =+MAHUD!M15 -> 64882.31392 | L5: =+MAHUD!N15 -> 64882.31392 | M5: =+MAHUD!O15 -> 69962.64549
A6: Juriidiliste isikute kanal | B6: m3/a | C6: =+MAHUD!E16 -> 19396.64784 | D6: =+MAHUD!F16 -> 19396.64784 | E6: =+MAHUD!G16 -> 19396.64784 | F6: =+MAHUD!H16 -> 19396.64784 | G6: =+MAHUD!I16 -> 19396.64784 | H6: =+MAHUD!J16 -> 19396.64784 | I6: =+MAHUD!K16 -> 19396.64784 | J6: =+MAHUD!L16 -> 19396.64784 | K6: =+MAHUD!M16 -> 19396.64784 | L6: =+MAHUD!N16 -> 19396.64784 | M6: =+MAHUD!O16 -> 19713.13371
A7: Teenushinnad vanas Haljala teenuspiirkonnas
A8: Elanike vesi | B8: EUR/m3 | C8: =+'2020_2022_FIN(ERALDI)'!D11 -> 2.325 | D8: =+'2020_2022_FIN(ERALDI)'!E11 -> 2.325
A9: Juriidiliste isikute vesi | B9: EUR/m3 | C9: =+'2020_2022_FIN(ERALDI)'!D12 -> 2.325 | D9: =+'2020_2022_FIN(ERALDI)'!E12 -> 2.325
A10: Elanike kanal | B10: EUR/m3 | C10: =+'2020_2022_FIN(ERALDI)'!D13 -> 1.575 | D10: =+'2020_2022_FIN(ERALDI)'!E13 -> 1.575
A11: Juriidiliste isikute kanal | B11: EUR/m3 | C11: =+'2020_2022_FIN(ERALDI)'!D14 -> 2.536453531 | D11: =+'2020_2022_FIN(ERALDI)'!E14 -> 2.536453531
A12: ÜVK-teenuse eest makstava kulu osakaal leibkonnaliikme netosissetulekust | B12: % | C12: =+'2020_2022_FIN(ERALDI)'!D55 -> 0.01444989605 | D12: =+'2020_2022_FIN(ERALDI)'!E55 -> 0.01420164928
A13: Teenushinnad vanas Vihula teenuspiirkonnas
A14: Elanike vesi | B14: EUR/m3 | C14: =+'2020_2022_FIN(ERALDI)'!D80 -> 1.75 | D14: =+'2020_2022_FIN(ERALDI)'!E80 -> 1.785
A15: Juriidiliste isikute vesi | B15: EUR/m3 | C15: =+'2020_2022_FIN(ERALDI)'!D81 -> 1.75 | D15: =+'2020_2022_FIN(ERALDI)'!E81 -> 1.785
A16: Elanike kanal | B16: EUR/m3 | C16: =+'2020_2022_FIN(ERALDI)'!D82 -> 3.1 | D16: =+'2020_2022_FIN(ERALDI)'!E82 -> 3.162
A17: Juriidiliste isikute kanal | B17: EUR/m3 | C17: =+'2020_2022_FIN(ERALDI)'!D83 -> 3.1 | D17: =+'2020_2022_FIN(ERALDI)'!E83 -> 3.162
A18: Abonenttasud ÜV | B18: EUR/kuu | C18: =+'2020_2022_FIN(ERALDI)'!D84 -> 4.95 | D18: =+'2020_2022_FIN(ERALDI)'!E84 -> 5.049
A19: Abonenttasud ÜVK | B19: EUR/kuu | C19: =+'2020_2022_FIN(ERALDI)'!D85 -> 5.95 | D19: =+'2020_2022_FIN(ERALDI)'!E85 -> 6.069
A20: ÜVK-teenuse eest makstava kulu osakaal leibkonnaliikme netosissetulekust | B20: % | C20: =+'2020_2022_FIN(ERALDI)'!D125 -> 0.02256261342 | D20: =+'2020_2022_FIN(ERALDI)'!E125 -> 0.02260396698
A21: Ühtlustatud teenushinnad üle kogu Haljala valla ÜVK teenusalade
A22: Elanike vesi | B22: EUR/m3 | E22: =+'2023_2031_FIN (ÜHTNE)'!C12 -> 2.11024469 | F22: =+'2023_2031_FIN (ÜHTNE)'!D12 -> 2.11024469 | G22: =+'2023_2031_FIN (ÜHTNE)'!E12 -> 2.307552568 | H22: =+'2023_2031_FIN (ÜHTNE)'!F12 -> 2.390624461 | I22: =+'2023_2031_FIN (ÜHTNE)'!G12 -> 2.390624461 | J22: =+'2023_2031_FIN (ÜHTNE)'!H12 -> 2.390624461 | K22: =+'2023_2031_FIN (ÜHTNE)'!I12 -> 2.486249439 | L22: =+'2023_2031_FIN (ÜHTNE)'!J12 -> 2.486249439 | M22: =+'2023_2031_FIN (ÜHTNE)'!K12 -> 2.6602869
A23: Juriidiliste isikute vesi | B23: EUR/m3 | E23: =+'2023_2031_FIN (ÜHTNE)'!C13 -> 2.11024469 | F23: =+'2023_2031_FIN (ÜHTNE)'!D13 -> 2.11024469 | G23: =+'2023_2031_FIN (ÜHTNE)'!E13 -> 2.307552568 | H23: =+'2023_2031_FIN (ÜHTNE)'!F13 -> 2.390624461 | I23: =+'2023_2031_FIN (ÜHTNE)'!G13 -> 2.390624461 | J23: =+'2023_2031_FIN (ÜHTNE)'!H13 -> 2.390624461 | K23: =+'2023_2031_FIN (ÜHTNE)'!I13 -> 2.486249439 | L23: =+'2023_2031_FIN (ÜHTNE)'!J13 -> 2.486249439 | M23: =+'2023_2031_FIN (ÜHTNE)'!K13 -> 2.6602869
A24: Elanike kanal | B24: EUR/m3 | E24: =+'2023_2031_FIN (ÜHTNE)'!C14 -> 2.371039684 | F24: =+'2023_2031_FIN (ÜHTNE)'!D14 -> 2.371039684 | G24: =+'2023_2031_FIN (ÜHTNE)'!E14 -> 2.592731894 | H24: =+'2023_2031_FIN (ÜHTNE)'!F14 -> 2.686070243 | I24: =+'2023_2031_FIN (ÜHTNE)'!G14 -> 2.686070243 | J24: =+'2023_2031_FIN (ÜHTNE)'!H14 -> 2.686070243 | K24: =+'2023_2031_FIN (ÜHTNE)'!I14 -> 2.793513052 | L24: =+'2023_2031_FIN (ÜHTNE)'!J14 -> 2.793513052 | M24: =+'2023_2031_FIN (ÜHTNE)'!K14 -> 2.989058966
A25: Juriidiliste isikute kanal* | B25: EUR/m3 | E25: =+'2023_2031_FIN (ÜHTNE)'!C15 -> 2.371039684 | F25: =+'2023_2031_FIN (ÜHTNE)'!D15 -> 2.371039684 | G25: =+'2023_2031_FIN (ÜHTNE)'!E15 -> 2.592731894 | H25: =+'2023_2031_FIN (ÜHTNE)'!F15 -> 2.686070243 | I25: =+'2023_2031_FIN (ÜHTNE)'!G15 -> 2.686070243 | J25: =+'2023_2031_FIN (ÜHTNE)'!H15 -> 2.686070243 | K25: =+'2023_2031_FIN (ÜHTNE)'!I15 -> 2.793513052 | L25: =+'2023_2031_FIN (ÜHTNE)'!J15 -> 2.793513052 | M25: =+'2023_2031_FIN (ÜHTNE)'!K15 -> 2.989058966
A26: Abonenttasud ÜV | B26: EUR/kuu | E26: =+'2023_2031_FIN (ÜHTNE)'!C16 -> 1.598188446 | F26: =+'2023_2031_FIN (ÜHTNE)'!D16 -> 1.598188446 | G26: =+'2023_2031_FIN (ÜHTNE)'!E16 -> 1.747619066 | H26: =+'2023_2031_FIN (ÜHTNE)'!F16 -> 1.810533352 | I26: =+'2023_2031_FIN (ÜHTNE)'!G16 -> 1.810533352 | J26: =+'2023_2031_FIN (ÜHTNE)'!H16 -> 1.810533352 | K26: =+'2023_2031_FIN (ÜHTNE)'!I16 -> 1.882954686 | L26: =+'2023_2031_FIN (ÜHTNE)'!J16 -> 1.882954686 | M26: =+'2023_2031_FIN (ÜHTNE)'!K16 -> 2.014761514
A27: Abonenttasud ÜK | B27: EUR/kuu | E27: =+'2023_2031_FIN (ÜHTNE)'!C17 -> 3.224507821 | F27: =+'2023_2031_FIN (ÜHTNE)'!D17 -> 3.224507821 | G27: =+'2023_2031_FIN (ÜHTNE)'!E17 -> 3.525999303 | H27: =+'2023_2031_FIN (ÜHTNE)'!F17 -> 3.652935278 | I27: =+'2023_2031_FIN (ÜHTNE)'!G17 -> 3.652935278 | J27: =+'2023_2031_FIN (ÜHTNE)'!H17 -> 3.652935278 | K27: =+'2023_2031_FIN (ÜHTNE)'!I17 -> 3.799052689 | L27: =+'2023_2031_FIN (ÜHTNE)'!J17 -> 3.799052689 | M27: =+'2023_2031_FIN (ÜHTNE)'!K17 -> 4.064986377
A28: ÜVK-teenuse eest makstava kulu osakaal leibkonnaliikme netosissetulekust | B28: % | E28: =+'2023_2031_FIN (ÜHTNE)'!C55 -> 0.01961596221 | F28: =+'2023_2031_FIN (ÜHTNE)'!D55 -> 0.01925114662 | G28: =+'2023_2031_FIN (ÜHTNE)'!E55 -> 0.02064737663 | H28: =+'2023_2031_FIN (ÜHTNE)'!F55 -> 0.02098019381 | I28: =+'2023_2031_FIN (ÜHTNE)'!G55 -> 0.02056276888 | J28: =+'2023_2031_FIN (ÜHTNE)'!H55 -> 0.02015364891 | K28: =+'2023_2031_FIN (ÜHTNE)'!I55 -> 0.02054277538 | L28: =+'2023_2031_FIN (ÜHTNE)'!J55 -> 0.02013405274 | M28: =+'2023_2031_FIN (ÜHTNE)'!K55 -> 0.02133538579
A29: Jätkusuutlikkuse hindamine
A30: Tegevustulud kokku | B30: EUR | C30: =+'2020_2022_FIN(ERALDI)'!D159 -> 359096.2347 | D30: =+'2020_2022_FIN(ERALDI)'!E159 -> 378886.9371 | E30: =+'2023_2031_FIN (ÜHTNE)'!C62 -> 396086.5913 | F30: =+'2023_2031_FIN (ÜHTNE)'!D62 -> 412372.6698 | G30: =+'2023_2031_FIN (ÜHTNE)'!E62 -> 456321.472 | H30: =+'2023_2031_FIN (ÜHTNE)'!F62 -> 478922.9444 | I30: =+'2023_2031_FIN (ÜHTNE)'!G62 -> 479130.6195 | J30: =+'2023_2031_FIN (ÜHTNE)'!H62 -> 479342.5105 | K30: =+'2023_2031_FIN (ÜHTNE)'!I62 -> 498306.4095 | L30: =+'2023_2031_FIN (ÜHTNE)'!J62 -> 498526.9909 | M30: =+'2023_2031_FIN (ÜHTNE)'!K62 -> 581230.4658
A31: Toetused/omakapitali suurendamised (KIK/VALD) | B31: EUR | C31: =+'2020_2022_FIN(ERALDI)'!D155+'2020_2022_FIN(ERALDI)'!D158 -> 1264309.5 | D31: =+'2020_2022_FIN(ERALDI)'!E155+'2020_2022_FIN(ERALDI)'!E158 -> 367376.625 | E31: =+'2023_2031_FIN (ÜHTNE)'!C58+'2023_2031_FIN (ÜHTNE)'!C61 -> 367376.625 | F31: =+'2023_2031_FIN (ÜHTNE)'!D58+'2023_2031_FIN (ÜHTNE)'!D61 -> 70000 | G31: =+'2023_2031_FIN (ÜHTNE)'!E58+'2023_2031_FIN (ÜHTNE)'!E61 -> 70000 | H31: =+'2023_2031_FIN (ÜHTNE)'!F58+'2023_2031_FIN (ÜHTNE)'!F61 -> 70000 | I31: =+'2023_2031_FIN (ÜHTNE)'!G58+'2023_2031_FIN (ÜHTNE)'!G61 -> 70000 | J31: =+'2023_2031_FIN (ÜHTNE)'!H58+'2023_2031_FIN (ÜHTNE)'!H61 -> 70000 | K31: =+'2023_2031_FIN (ÜHTNE)'!I58+'2023_2031_FIN (ÜHTNE)'!I61 -> 70000 | L31: =+'2023_2031_FIN (ÜHTNE)'!J58+'2023_2031_FIN (ÜHTNE)'!J61 -> 70000 | M31: =+'2023_2031_FIN (ÜHTNE)'!K58+'2023_2031_FIN (ÜHTNE)'!K61 -> 70000
A32: Võetavad laenud | B32: EUR | C32: =+'2020_2022_FIN(ERALDI)'!D157 -> 500000 | D32: =+'2020_2022_FIN(ERALDI)'!E157 -> 85000 | E32: =+'2023_2031_FIN (ÜHTNE)'!C60 -> 90000 | F32: =+'2023_2031_FIN (ÜHTNE)'!D60 -> 54433.5646 | G32: =+'2023_2031_FIN (ÜHTNE)'!E60 -> 70011.75809 | H32: =+'2023_2031_FIN (ÜHTNE)'!F60 -> 113011.7581 | I32: =+'2023_2031_FIN (ÜHTNE)'!G60 -> 135011.7581 | J32: =+'2023_2031_FIN (ÜHTNE)'!H60 -> 125011.7581 | K32: =+'2023_2031_FIN (ÜHTNE)'!I60 -> 120011.7581 | L32: =+'2023_2031_FIN (ÜHTNE)'!J60 -> 129011.7581 | M32: =+'2023_2031_FIN (ÜHTNE)'!K60 -> 49167
A33: Omavahendid | B33: EUR | C33: =+'2020_2022_FIN(ERALDI)'!D156 -> 0 | D33: =+'2020_2022_FIN(ERALDI)'!E156 -> 0 | E33: =+'2023_2031_FIN (ÜHTNE)'!C59 -> 0 | F33: =+'2023_2031_FIN (ÜHTNE)'!D59 -> 0 | G33: =+'2023_2031_FIN (ÜHTNE)'!E59 -> 0 | H33: =+'2023_2031_FIN (ÜHTNE)'!F59 -> 0 | I33: =+'2023_2031_FIN (ÜHTNE)'!G59 -> 0 | J33: =+'2023_2031_FIN (ÜHTNE)'!H59 -> 0 | K33: =+'2023_2031_FIN (ÜHTNE)'!I59 -> 0 | L33: =+'2023_2031_FIN (ÜHTNE)'!J59 -> 0 | M33: =+'2023_2031_FIN (ÜHTNE)'!K59 -> 0
A34: Tegevuskulud (va kulum) kokku | B34: EUR | C34: =+'2020_2022_FIN(ERALDI)'!D164 -> 294571.4128 | D34: =+'2020_2022_FIN(ERALDI)'!E164 -> 303890.9255 | E34: =+'2023_2031_FIN (ÜHTNE)'!C67 -> 310384.7367 | F34: =+'2023_2031_FIN (ÜHTNE)'!D67 -> 320495.4264 | G34: =+'2023_2031_FIN (ÜHTNE)'!E67 -> 328416.6727 | H34: =+'2023_2031_FIN (ÜHTNE)'!F67 -> 336718.5577 | I34: =+'2023_2031_FIN (ÜHTNE)'!G67 -> 343553.9562 | J34: =+'2023_2031_FIN (ÜHTNE)'!H67 -> 350528.1169 | K34: =+'2023_2031_FIN (ÜHTNE)'!I67 -> 357643.8572 | L34: =+'2023_2031_FIN (ÜHTNE)'!J67 -> 364904.0519 | M34: =+'2023_2031_FIN (ÜHTNE)'!K67 -> 376113.3109
A35: Investeeringud | B35: EUR | C35: =+'2020_2022_FIN(ERALDI)'!D161 -> 1970860 | D35: =+'2020_2022_FIN(ERALDI)'!E161 -> 466073.75 | E35: =+'2023_2031_FIN (ÜHTNE)'!C64 -> 466073.75 | F35: =+'2023_2031_FIN (ÜHTNE)'!D64 -> 248253.125 | G35: =+'2023_2031_FIN (ÜHTNE)'!E64 -> 248253.125 | H35: =+'2023_2031_FIN (ÜHTNE)'!F64 -> 248253.125 | I35: =+'2023_2031_FIN (ÜHTNE)'!G64 -> 248253.125 | J35: =+'2023_2031_FIN (ÜHTNE)'!H64 -> 248253.125 | K35: =+'2023_2031_FIN (ÜHTNE)'!I64 -> 248253.125 | L35: =+'2023_2031_FIN (ÜHTNE)'!J64 -> 248253.125 | M35: =+'2023_2031_FIN (ÜHTNE)'!K64 -> 248253.125
A36: Laenudetagasimaksed ja intressikulud | B36: EUR | C36: =+'2020_2022_FIN(ERALDI)'!D162+'2020_2022_FIN(ERALDI)'!D163 -> 31814.8875 | D36: =+'2020_2022_FIN(ERALDI)'!E162+'2020_2022_FIN(ERALDI)'!E163 -> 59988.1125 | E36: =+'2023_2031_FIN (ÜHTNE)'!C65+'2023_2031_FIN (ÜHTNE)'!C66 -> 64666.025 | F36: =+'2023_2031_FIN (ÜHTNE)'!D65+'2023_2031_FIN (ÜHTNE)'!D66 -> 69348.20978 | G36: =+'2023_2031_FIN (ÜHTNE)'!E65+'2023_2031_FIN (ÜHTNE)'!E66 -> 72082.01079 | H36: =+'2023_2031_FIN (ÜHTNE)'!F65+'2023_2031_FIN (ÜHTNE)'!F66 -> 75921.94602 | I36: =+'2023_2031_FIN (ÜHTNE)'!G65+'2023_2031_FIN (ÜHTNE)'!G66 -> 82260.93639 | J36: =+'2023_2031_FIN (ÜHTNE)'!H65+'2023_2031_FIN (ÜHTNE)'!H66 -> 80566.84443 | K36: =+'2023_2031_FIN (ÜHTNE)'!I65+'2023_2031_FIN (ÜHTNE)'!I66 -> 87443.17011 | L36: =+'2023_2031_FIN (ÜHTNE)'!J65+'2023_2031_FIN (ÜHTNE)'!J66 -> 77169.88844 | M36: =+'2023_2031_FIN (ÜHTNE)'!K65+'2023_2031_FIN (ÜHTNE)'!K66 -> 83885.96969
A37: Rahavoog | B37: EUR | C37: =+SUM(C30:C33)-SUM(C34:C36) -> -173840.5656 | D37: =+SUM(D30:D33)-SUM(D34:D36) -> 1310.774036 | E37: =+SUM(E30:E33)-SUM(E34:E36) -> 12338.70466 | F37: =+SUM(F30:F33)-SUM(F34:F36) -> -101290.5268 | G37: -52418.5784 | H37: 1041.073817 | I37: 10074.36004 | J37: -4993.817674 | K37: -5021.984697 | L37: 7211.683698 | M37: -7854.939723
A38: Kumulatiivne rahavoog | B38: EUR | C38: =+'2020_2022_FIN(ERALDI)'!C167+C37 -> 159897.4154 | D38: =+C38+D37 -> 161208.1894 | E38: =+D38+E37 -> 173546.8941 | F38: =+E38+F37 -> 72256.3673 | G38: 19837.7889 | H38: 20878.86271 | I38: 30953.22276 | J38: 25959.40508 | K38: 20937.42039 | L38: 28149.10408 | M38: 20294.16436
A39: Laenu kattekordaja | C39: =+'2020_2022_FIN(ERALDI)'!D168 -> 2.028132959 | D39: =+'2020_2022_FIN(ERALDI)'!E168 -> 1.250181218 | E39: =+'2023_2031_FIN (ÜHTNE)'!C71 -> 1.325299563 | F39: =+'2023_2031_FIN (ÜHTNE)'!D71 -> 1.32486828 | G39: =+'2023_2031_FIN (ÜHTNE)'!E71 -> 1.774434396 | H39: =+'2023_2031_FIN (ÜHTNE)'!F71 -> 1.873034007 | I39: =+'2023_2031_FIN (ÜHTNE)'!G71 -> 1.648129347 | J39: =+'2023_2031_FIN (ÜHTNE)'!H71 -> 1.598851172 | K39: =+'2023_2031_FIN (ÜHTNE)'!I71 -> 1.608616798 | L39: =+'2023_2031_FIN (ÜHTNE)'!J71 -> 1.731542468 | M39: =+'2023_2031_FIN (ÜHTNE)'!K71 -> 2.445190247

Sheet KA2019 (hidden)
A1: Kood | B1: Nimetus | C1: KAN1 | D1: KAN2 | E1: KAN3 | F1: KAN4 | G1: KAN5 | H1: KAN6 | I1: KAN7 | J1: KAN8 | K1: TR1 | L1: TR2 | M1: TR3 | N1: TR4 | O1: TR5 | P1: TR6 | Q1: TR7 | R1: TR8 | S1: ABT | T1: Ü1 | U1: Ü1 59% | V1: Ü1 Haljala | W1: Ü1 Vihula | X1: SF | Y1: KM1 | Z1: KM2 | AA1: KM3 | AB1: KM4 | AC1: MÜÜK | AD1: KOKKU | AE1: Kulude jaotus | AG1: SF- Sihtfinantseering
B2: Müügitulu | C2: =SUM(C17:C34) -> 104196.86 | D2: =SUM(D17:D34) -> 6200.25 | E2: 6094.2 | F2: 34284.83 | G2: 0 | H2: 4626.21 | I2: 41133.9 | J2: 14105 | K2: =SUM(K3:K34) -> 46808.45 | L2: 9481.35 | M2: 9234.9 | N2: 25641 | O2: 9506 | P2: 5325.25 | Q2: 1977.5 | R2: 8933.75 | S2: 44122.85 | T2: 0 | X2: 0 | Y2: 240851.72 | Z2: 267.6 | AA2: 0 | AB2: 0 | AC2: 24850.89 | AD2: =SUM(C2:AC2) -> 637642.51 | AG2: Ü1- Üldkulud
A3: 31111 | B3: Vesi Haljala- Alev | K3: 44985.65 | AD3: =SUM(C3:AC3) -> 44985.65
A4: 31112 | B4: Vesi Haljala- Maheda | K4: 1822.8 | AD4: 1822.8 | AG4: TR1- Haljala vesi
A5: 31131 | B5: Vesi Aaspere- keskus | M5: 5983 | AD5: 5983 | AG5: TR2- Essu vesi
A6: 31132 | B6: Vesi Aaspere- mõis | M6: 3251.9 | AD6: 3251.9 | AG6: TR3- Aaspere vesi
A7: 31141 | B7: Vesi Võsu- Vabaduse | N7: 23814 | AD7: 23814 | AG7: TR4- Võsu vesi
A8: 31142 | B8: Vesi Võsu- Pargi | N8: 1419.25 | AD8: 1419.25 | AG8: TR5- Käsmu vesi
A9: 31143 | B9: Vesi Võsu- Männi | N9: 407.75 | AD9: 407.75 | AG9: TR6- Vergi vesi
A10: 31151 | B10: Vesi Käsmu | O10: 8744.75 | AD10: 8744.75 | AG10: TR7- Vihula vesi
A11: 31152 | B11: Vesi Käsmu- Lepiku | O11: 761.25 | AD11: 761.25 | AG11: TR8- Võsupere vesi
A12: 31121 | B12: Vesi Essu | L12: 7055.6 | AD12: 7055.6
A13: 31122 | B13: Vesi Essu- Tammispea | L13: 2425.75 | AD13: 2425.75 | AG13: KAN1- Haljala kanal
A14: 3116 | B14: Vesi Vergi | P14: 5325.25 | AD14: 5325.25 | AG14: KAN2- Essu kanal
A15: 3117 | B15: Vesi Vihula | Q15: 1977.5 | AD15: 1977.5 | AG15: KAN3- Aaspere kanal
A16: 3118 | B16: Vesi Võsupere | R16: 8933.75 | AD16: 8933.75 | AG16: KAN4- Võsu kanal
A17: 31211 | B17: Kanalisatsioon Haljala | C17: 27665.4 | AD17: 27665.4 | AG17: KAN5- Käsmu kanal
A18: 31212 | B18: Kanalisatsioon Haljala- Viru Õlu | C18: 73561.01 | AD18: 73561.01 | AG18: KAN6- Vergi kanal
A19: 31213 | B19: Fekaali purgimine Haljala | C19: 2970.45 | AD19: 2970.45 | AG19: KAN7- Vihula kanal
A20: 31221 | B20: Kanalisatsioon Essu | D20: 4699.8 | AD20: 4699.8 | AG20: KAN8- Võsupere kanal
A21: 31222 | B21: Kanalisatsioon Essu- Tammispea | D21: 1500.45 | AD21: 1500.45
A22: 31231 | B22: Kanalisatsioon Aaspere-keskus | E22: 3891.3 | AD22: 3891.3 | AG22: KM1- Haljala katlamaja
A23: 31232 | B23: Kanalisatsioon Aaspere-mõis | E23: 2202.9 | AD23: 2202.9 | AG23: KM2- Essu katlamaja
A24: 31241 | B24: Kanalisatsioon Võsu | F24: 28287.5 | AD24: 28287.5 | AG24: KM3- Aaspere katlamaja
A25: 31242 | B25: Fekaali purgimine Võsu | F25: 1819.7 | AD25: 1819.7 | AG25: KM4- Võsu vallamaja katlamaja
A26: 3126 | B26: Kanalisatsioon Vergi | H26: 4603.5 | AD26: 4603.5
A27: 3127 | B27: Kanalisatsioon Vihula | I27: 41133.9 | AD27: 41133.9 | AG27: MÜÜK- Muud teenused
A28: 3128 | B28: Kanalisatsioon Võsupere | J28: 14105 | AD28: 14105 | AG28: Üldkulud jagunevad: 24% vesi; 35% kanal; 38% soojus; 3% muu tulu
A29: 3131 | B29: Soojus Haljalas | Y29: 239249.98 | AD29: 239249.98
A30: 3132 | B30: Soojus Essus | Z30: 267.6 | AD30: 267.6
A31: 3141 | B31: Abonenttasud- vesi | S31: 24948 | AD31: 24948
A32: 3142 | B32: Abonenttasud- vesi, kanalisatsioon | S32: 19174.85 | AD32: 19174.85
A33: 3151 | B33: Teenustööd | F33: 4177.63 | H33: 22.71 | Y33: 1601.74 | AD33: 5802.08
A34: 3151 | B34: MÜÜK Teenustööd Muud teenused | AC34: 24850.89 | AD34: 24850.89
B35: Muud äritulud | T35: =SUM(T38) -> 0 | X35: =SUM(X38) -> 59894.84 | Y35: 0 | Z35: 0 | AA35: 0 | AB35: 0 | AC35: =SUM(AC36:AC38) -> 1662.72 | AD35: 61557.56
A36: 432 | B36: MÜÜK Kindlustushüvitised Muud teenused | AC36: 1622.61 | AD36: 1622.61
A37: 434 | B37: MÜÜK Muud äritulud Muud teenused | AC37: 40.11 | AD37: 40.11
A38: 4371 | B38: Kodumaine sihtfin pv soetamiseks VERGI | X38: 59894.84 | AD38: 59894.84
